Workbook

Sheet INGRESOS
A1: FECHA REGISTRO | B1: FECHA FACTURA | C1: Nº FACTURA | D1: CIF / NIF | E1: APELLIDOS Y NOMBRE O RAZÓN SOCIAL | F1: BASE IMPONIBLE | G1: % IVA | H1: % REC.EQ. | I1: CUOTA IVA | J1: CUOTA REC. EQ. | K1: CUOTA RETENC IRPF | L1: TOTAL FACTURA | N1: Trimestre | O1: Nº de Declarado Modelo 347 | P1: MES | Q1: empresa | R1: ESTADO
A2: 2014-06-16 | B2: 2014-06-16 | C2: T01A2014 | D2: Q4675003J | E2: COLEGIO TERRITORIAL DE ARQUITECTOS DE VALENCIA | F2: 1750 | G2: 21 | I2: =ROUND((F2*(G2/100)),2) -> 367.5 | J2: =ROUND((F2*(H2/100)),2) -> 0 | L2: =+F2+I2+J2-K2 -> 2117.5 | N2: =IF(F2<>"",IF(MONTH(A2)<=3,1,IF(AND(MONTH(A2)>3,MONTH(A2)<=6),2,IF(AND(MONTH(A2)>6,MONTH(A2)<=9),3,4))),"") -> 2 | P2: =IF(A2<>"",MONTH(A2),"") -> 6 | Q2: TRAZIA | R2: COBRADA
A3: 2014-08-30 | B3: 2014-07-30 | C3: T02A2014 | D3: =IF(E3<>"",VLOOKUP(E3,CLIENTES!$A$2:$B$1001,2,FALSE),"") -> A28791069 | E3: KONE ELEVADORES, S.A. | F3: 1650 | G3: 21 | I3: 346.5 | J3: 0 | L3: 1996.5 | N3: 3 | O3: 1 | P3: 8 | Q3: TRAZIA | R3: COBRADA
A4: 2014-08-30 | B4: 2014-07-26 | C4: T03A2014 | D4: =IF(E4<>"",VLOOKUP(E4,CLIENTES!$A$2:$B$1001,2,FALSE),"") -> A28791069 | E4: KONE ELEVADORES, S.A. | F4: 1150 | G4: 21 | I4: 241.5 | J4: 0 | L4: 1391.5 | N4: 3 | O4: =IF(AND(D4<>"",SUMIF($D$2:$D$471,D4,$F$2:$F$471)+SUMIF($D$2:$D$471,D4,$I$2:$I$471)+SUMIF($D$2:$D$471,D4,$J$2:$J$471)>3005.06),IF(COUNTIF($D$2:D4,D4)>1,INDEX(INGRESOS!$A$1:$O$471,MATCH(D4,$D$1:D3,0),COLUMN($O$1)),MAX($O$1:O3)+1),0) -> 1 | P4: 8 | Q4: TRAZIA | R4: COBRADA
A5: 2014-09-30 | B5: 2014-08-21 | C5: T04A2014 | D5: =IF(E5<>"",VLOOKUP(E5,CLIENTES!$A$2:$B$1001,2,FALSE),"") -> A28791069 | E5: KONE ELEVADORES, S.A. | F5: 3130 | G5: 21 | I5: 657.3 | J5: 0 | L5: 3787.3 | N5: 3 | O5: =IF(AND(D5<>"",SUMIF($D$2:$D$471,D5,$F$2:$F$471)+SUMIF($D$2:$D$471,D5,$I$2:$I$471)+SUMIF($D$2:$D$471,D5,$J$2:$J$471)>3005.06),IF(COUNTIF($D$2:D5,D5)>1,INDEX(INGRESOS!$A$1:$O$471,MATCH(D5,$D$1:D4,0),COLUMN($O$1)),MAX($O$1:O4)+1),0) -> 1 | P5: 9 | Q5: TRAZIA | R5: COBRADA
A6: 2014-10-30 | B6: 2014-09-16 | C6: T05A2014 | D6: =IF(E6<>"",VLOOKUP(E6,CLIENTES!$A$2:$B$1001,2,FALSE),"") -> A28791069 | E6: KONE ELEVADORES, S.A. | F6: 2840 | G6: 21 | I6: 596.4 | J6: 0 | L6: 3436.4 | N6: 4 | O6: =IF(AND(D6<>"",SUMIF($D$2:$D$471,D6,$F$2:$F$471)+SUMIF($D$2:$D$471,D6,$I$2:$I$471)+SUMIF($D$2:$D$471,D6,$J$2:$J$471)>3005.06),IF(COUNTIF($D$2:D6,D6)>1,INDEX(INGRESOS!$A$1:$O$471,MATCH(D6,$D$1:D5,0),COLUMN($O$1)),MAX($O$1:O5)+1),0) -> 1 | P6: 10 | Q6: TRAZIA | R6: COBRADA
A7: 2014-10-30 | B7: 2014-09-16 | C7: T06A2014 | D7: =IF(E7<>"",VLOOKUP(E7,CLIENTES!$A$2:$B$1001,2,FALSE),"") -> A28791069 | E7: KONE ELEVADORES, S.A. | F7: 1580 | G7: 21 | I7: =ROUND((F7*(G7/100)),2) -> 331.8 | J7: =ROUND((F7*(H7/100)),2) -> 0 | L7: =+F7+I7+J7-K7 -> 1911.8 | N7: =IF(F7<>"",IF(MONTH(A7)<=3,1,IF(AND(MONTH(A7)>3,MONTH(A7)<=6),2,IF(AND(MONTH(A7)>6,MONTH(A7)<=9),3,4))),"") -> 4 | O7: =IF(AND(D7<>"",SUMIF($D$2:$D$471,D7,$F$2:$F$471)+SUMIF($D$2:$D$471,D7,$I$2:$I$471)+SUMIF($D$2:$D$471,D7,$J$2:$J$471)>3005.06),IF(COUNTIF($D$2:D7,D7)>1,INDEX(INGRESOS!$A$1:$O$471,MATCH(D7,$D$1:D6,0),COLUMN($O$1)),MAX($O$1:O6)+1),0) -> 1 | P7: =IF(A7<>"",MONTH(A7),"") -> 10 | Q7: TRAZIA | R7: COBRADA
A8: 2014-10-30 | B8: 2014-09-16 | C8: T07A2014 | D8: =IF(E8<>"",VLOOKUP(E8,CLIENTES!$A$2:$B$1001,2,FALSE),"") -> A28791069 | E8: KONE ELEVADORES, S.A. | F8: 1387 | G8: 21 | I8: 291.27 | J8: 0 | L8: 1678.27 | N8: 4 | O8: =IF(AND(D8<>"",SUMIF($D$2:$D$471,D8,$F$2:$F$471)+SUMIF($D$2:$D$471,D8,$I$2:$I$471)+SUMIF($D$2:$D$471,D8,$J$2:$J$471)>3005.06),IF(COUNTIF($D$2:D8,D8)>1,INDEX(INGRESOS!$A$1:$O$471,MATCH(D8,$D$1:D7,0),COLUMN($O$1)),MAX($O$1:O7)+1),0) -> 1 | P8: 10 | Q8: TRAZIA | R8: COBRADA
A9: 2014-12-30 | B9: 2014-11-24 | C9: T08A2014 | D9: A28791069 | E9: KONE ELEVADORES, S.A. | F9: 1650 | G9: 21 | I9: 346.5 | J9: 0 | L9: 1996.5 | N9: 4 | O9: =IF(AND(D9<>"",SUMIF($D$2:$D$471,D9,$F$2:$F$471)+SUMIF($D$2:$D$471,D9,$I$2:$I$471)+SUMIF($D$2:$D$471,D9,$J$2:$J$471)>3005.06),IF(COUNTIF($D$2:D9,D9)>1,INDEX(INGRESOS!$A$1:$O$471,MATCH(D9,$D$1:D8,0),COLUMN($O$1)),MAX($O$1:O8)+1),0) -> 1 | P9: 12 | Q9: TRAZIA | R9: COBRADA
A10: 2014-12-30 | B10: 2014-11-25 | C10: T09A2014 | D10: A28791069 | E10: KONE ELEVADORES, S.A. | F10: 1400 | G10: 21 | I10: 294 | J10: 0 | L10: 1694 | N10: 4 | O10: =IF(AND(D10<>"",SUMIF($D$2:$D$471,D10,$F$2:$F$471)+SUMIF($D$2:$D$471,D10,$I$2:$I$471)+SUMIF($D$2:$D$471,D10,$J$2:$J$471)>3005.06),IF(COUNTIF($D$2:D10,D10)>1,INDEX(INGRESOS!$A$1:$O$471,MATCH(D10,$D$1:D9,0),COLUMN($O$1)),MAX($O$1:O9)+1),0) -> 1 | P10: 12 | Q10: TRAZIA | R10: COBRADA
B11: =IF(A11<>"",A11,"") ->  | D11: =IF(E11<>"",VLOOKUP(E11,CLIENTES!$A$2:$B$1001,2,FALSE),"") ->  | G11: 21 | I11: 0 | J11: 0 | L11: 0 | O11: =IF(AND(D11<>"",SUMIF($D$2:$D$471,D11,$F$2:$F$471)+SUMIF($D$2:$D$471,D11,$I$2:$I$471)+SUMIF($D$2:$D$471,D11,$J$2:$J$471)>3005.06),IF(COUNTIF($D$2:D11,D11)>1,INDEX(INGRESOS!$A$1:$O$471,MATCH(D11,$D$1:D10,0),COLUMN($O$1)),MAX($O$1:O10)+1),0) -> 0
D12: =IF(E12<>"",VLOOKUP(E12,CLIENTES!$A$2:$B$1001,2,FALSE),"") ->  | G12: 21 | I12: 0 | J12: 0 | L12: 0 | O12: =IF(AND(D12<>"",SUMIF($D$2:$D$471,D12,$F$2:$F$471)+SUMIF($D$2:$D$471,D12,$I$2:$I$471)+SUMIF($D$2:$D$471,D12,$J$2:$J$471)>3005.06),IF(COUNTIF($D$2:D12,D12)>1,INDEX(INGRESOS!$A$1:$O$471,MATCH(D12,$D$1:D11,0),COLUMN($O$1)),MAX($O$1:O11)+1),0) -> 0
D13: =IF(E13<>"",VLOOKUP(E13,CLIENTES!$A$2:$B$1001,2,FALSE),"") ->  | G13: 21 | I13: 0 | J13: 0 | L13: 0 | O13: =IF(AND(D13<>"",SUMIF($D$2:$D$471,D13,$F$2:$F$471)+SUMIF($D$2:$D$471,D13,$I$2:$I$471)+SUMIF($D$2:$D$471,D13,$J$2:$J$471)>3005.06),IF(COUNTIF($D$2:D13,D13)>1,INDEX(INGRESOS!$A$1:$O$471,MATCH(D13,$D$1:D12,0),COLUMN($O$1)),MAX($O$1:O12)+1),0) -> 0
D14: =IF(E14<>"",VLOOKUP(E14,CLIENTES!$A$2:$B$1001,2,FALSE),"") ->  | G14: 21 | I14: 0 | J14: 0 | L14: 0 | O14: =IF(AND(D14<>"",SUMIF($D$2:$D$471,D14,$F$2:$F$471)+SUMIF($D$2:$D$471,D14,$I$2:$I$471)+SUMIF($D$2:$D$471,D14,$J$2:$J$471)>3005.06),IF(COUNTIF($D$2:D14,D14)>1,INDEX(INGRESOS!$A$1:$O$471,MATCH(D14,$D$1:D13,0),COLUMN($O$1)),MAX($O$1:O13)+1),0) -> 0
D15: =IF(E15<>"",VLOOKUP(E15,CLIENTES!$A$2:$B$1001,2,FALSE),"") ->  | G15: 21 | I15: 0 | J15: 0 | L15: 0 | O15: =IF(AND(D15<>"",SUMIF($D$2:$D$471,D15,$F$2:$F$471)+SUMIF($D$2:$D$471,D15,$I$2:$I$471)+SUMIF($D$2:$D$471,D15,$J$2:$J$471)>3005.06),IF(COUNTIF($D$2:D15,D15)>1,INDEX(INGRESOS!$A$1:$O$471,MATCH(D15,$D$1:D14,0),COLUMN($O$1)),MAX($O$1:O14)+1),0) -> 0
D16: =IF(E16<>"",VLOOKUP(E16,CLIENTES!$A$2:$B$1001,2,FALSE),"") ->  | G16: 21 | I16: 0 | J16: 0 | L16: 0 | O16: =IF(AND(D16<>"",SUMIF($D$2:$D$471,D16,$F$2:$F$471)+SUMIF($D$2:$D$471,D16,$I$2:$I$471)+SUMIF($D$2:$D$471,D16,$J$2:$J$471)>3005.06),IF(COUNTIF($D$2:D16,D16)>1,INDEX(INGRESOS!$A$1:$O$471,MATCH(D16,$D$1:D15,0),COLUMN($O$1)),MAX($O$1:O15)+1),0) -> 0
D17: =IF(E17<>"",VLOOKUP(E17,CLIENTES!$A$2:$B$1001,2,FALSE),"") ->  | G17: 21 | I17: 0 | J17: 0 | L17: 0 | O17: =IF(AND(D17<>"",SUMIF($D$2:$D$471,D17,$F$2:$F$471)+SUMIF($D$2:$D$471,D17,$I$2:$I$471)+SUMIF($D$2:$D$471,D17,$J$2:$J$471)>3005.06),IF(COUNTIF($D$2:D17,D17)>1,INDEX(INGRESOS!$A$1:$O$471,MATCH(D17,$D$1:D16,0),COLUMN($O$1)),MAX($O$1:O16)+1),0) -> 0
D18: =IF(E18<>"",VLOOKUP(E18,CLIENTES!$A$2:$B$1001,2,FALSE),"") ->  | G18: 21 | I18: 0 | J18: 0 | L18: 0 | O18: =IF(AND(D18<>"",SUMIF($D$2:$D$471,D18,$F$2:$F$471)+SUMIF($D$2:$D$471,D18,$I$2:$I$471)+SUMIF($D$2:$D$471,D18,$J$2:$J$471)>3005.06),IF(COUNTIF($D$2:D18,D18)>1,INDEX(INGRESOS!$A$1:$O$471,MATCH(D18,$D$1:D17,0),COLUMN($O$1)),MAX($O$1:O17)+1),0) -> 0
D19: =IF(E19<>"",VLOOKUP(E19,CLIENTES!$A$2:$B$1001,2,FALSE),"") ->  | G19: 21 | I19: 0 | J19: 0 | L19: 0 | O19: =IF(AND(D19<>"",SUMIF($D$2:$D$471,D19,$F$2:$F$471)+SUMIF($D$2:$D$471,D19,$I$2:$I$471)+SUMIF($D$2:$D$471,D19,$J$2:$J$471)>3005.06),IF(COUNTIF($D$2:D19,D19)>1,INDEX(INGRESOS!$A$1:$O$471,MATCH(D19,$D$1:D18,0),COLUMN($O$1)),MAX($O$1:O18)+1),0) -> 0
D20: =IF(E20<>"",VLOOKUP(E20,CLIENTES!$A$2:$B$1001,2,FALSE),"") ->  | G20: 21 | I20: 0 | J20: 0 | L20: 0 | O20: =IF(AND(D20<>"",SUMIF($D$2:$D$471,D20,$F$2:$F$471)+SUMIF($D$2:$D$471,D20,$I$2:$I$471)+SUMIF($D$2:$D$471,D20,$J$2:$J$471)>3005.06),IF(COUNTIF($D$2:D20,D20)>1,INDEX(INGRESOS!$A$1:$O$471,MATCH(D20,$D$1:D19,0),COLUMN($O$1)),MAX($O$1:O19)+1),0) -> 0
D21: =IF(E21<>"",VLOOKUP(E21,CLIENTES!$A$2:$B$1001,2,FALSE),"") ->  | G21: 21 | I21: 0 | J21: 0 | L21: 0 | O21: =IF(AND(D21<>"",SUMIF($D$2:$D$471,D21,$F$2:$F$471)+SUMIF($D$2:$D$471,D21,$I$2:$I$471)+SUMIF($D$2:$D$471,D21,$J$2:$J$471)>3005.06),IF(COUNTIF($D$2:D21,D21)>1,INDEX(INGRESOS!$A$1:$O$471,MATCH(D21,$D$1:D20,0),COLUMN($O$1)),MAX($O$1:O20)+1),0) -> 0
D22: =IF(E22<>"",VLOOKUP(E22,CLIENTES!$A$2:$B$1001,2,FALSE),"") ->  | G22: 21 | I22: 0 | J22: 0 | L22: 0 | O22: =IF(AND(D22<>"",SUMIF($D$2:$D$471,D22,$F$2:$F$471)+SUMIF($D$2:$D$471,D22,$I$2:$I$471)+SUMIF($D$2:$D$471,D22,$J$2:$J$471)>3005.06),IF(COUNTIF($D$2:D22,D22)>1,INDEX(INGRESOS!$A$1:$O$471,MATCH(D22,$D$1:D21,0),COLUMN($O$1)),MAX($O$1:O21)+1),0) -> 0
D23: =IF(E23<>"",VLOOKUP(E23,CLIENTES!$A$2:$B$1001,2,FALSE),"") ->  | G23: 21 | I23: 0 | J23: 0 | L23: 0 | O23: =IF(AND(D23<>"",SUMIF($D$2:$D$471,D23,$F$2:$F$471)+SUMIF($D$2:$D$471,D23,$I$2:$I$471)+SUMIF($D$2:$D$471,D23,$J$2:$J$471)>3005.06),IF(COUNTIF($D$2:D23,D23)>1,INDEX(INGRESOS!$A$1:$O$471,MATCH(D23,$D$1:D22,0),COLUMN($O$1)),MAX($O$1:O22)+1),0) -> 0
D24: =IF(E24<>"",VLOOKUP(E24,CLIENTES!$A$2:$B$1001,2,FALSE),"") ->  | G24: 21 | I24: 0 | J24: 0 | L24: 0 | O24: =IF(AND(D24<>"",SUMIF($D$2:$D$471,D24,$F$2:$F$471)+SUMIF($D$2:$D$471,D24,$I$2:$I$471)+SUMIF($D$2:$D$471,D24,$J$2:$J$471)>3005.06),IF(COUNTIF($D$2:D24,D24)>1,INDEX(INGRESOS!$A$1:$O$471,MATCH(D24,$D$1:D23,0),COLUMN($O$1)),MAX($O$1:O23)+1),0) -> 0
D25: =IF(E25<>"",VLOOKUP(E25,CLIENTES!$A$2:$B$1001,2,FALSE),"") ->  | G25: 21 | I25: 0 | J25: 0 | L25: 0 | O25: =IF(AND(D25<>"",SUMIF($D$2:$D$471,D25,$F$2:$F$471)+SUMIF($D$2:$D$471,D25,$I$2:$I$471)+SUMIF($D$2:$D$471,D25,$J$2:$J$471)>3005.06),IF(COUNTIF($D$2:D25,D25)>1,INDEX(INGRESOS!$A$1:$O$471,MATCH(D25,$D$1:D24,0),COLUMN($O$1)),MAX($O$1:O24)+1),0) -> 0
D26: =IF(E26<>"",VLOOKUP(E26,CLIENTES!$A$2:$B$1001,2,FALSE),"") ->  | G26: 21 | I26: 0 | J26: 0 | L26: 0 | O26: =IF(AND(D26<>"",SUMIF($D$2:$D$471,D26,$F$2:$F$471)+SUMIF($D$2:$D$471,D26,$I$2:$I$471)+SUMIF($D$2:$D$471,D26,$J$2:$J$471)>3005.06),IF(COUNTIF($D$2:D26,D26)>1,INDEX(INGRESOS!$A$1:$O$471,MATCH(D26,$D$1:D25,0),COLUMN($O$1)),MAX($O$1:O25)+1),0) -> 0
D27: =IF(E27<>"",VLOOKUP(E27,CLIENTES!$A$2:$B$1001,2,FALSE),"") ->  | G27: 21 | I27: 0 | J27: 0 | L27: 0 | O27: =IF(AND(D27<>"",SUMIF($D$2:$D$471,D27,$F$2:$F$471)+SUMIF($D$2:$D$471,D27,$I$2:$I$471)+SUMIF($D$2:$D$471,D27,$J$2:$J$471)>3005.06),IF(COUNTIF($D$2:D27,D27)>1,INDEX(INGRESOS!$A$1:$O$471,MATCH(D27,$D$1:D26,0),COLUMN($O$1)),MAX($O$1:O26)+1),0) -> 0
D28: =IF(E28<>"",VLOOKUP(E28,CLIENTES!$A$2:$B$1001,2,FALSE),"") ->  | G28: 21 | I28: 0 | J28: 0 | L28: 0 | O28: =IF(AND(D28<>"",SUMIF($D$2:$D$471,D28,$F$2:$F$471)+SUMIF($D$2:$D$471,D28,$I$2:$I$471)+SUMIF($D$2:$D$471,D28,$J$2:$J$471)>3005.06),IF(COUNTIF($D$2:D28,D28)>1,INDEX(INGRESOS!$A$1:$O$471,MATCH(D28,$D$1:D27,0),COLUMN($O$1)),MAX($O$1:O27)+1),0) -> 0
D29: =IF(E29<>"",VLOOKUP(E29,CLIENTES!$A$2:$B$1001,2,FALSE),"") ->  | G29: 21 | I29: 0 | J29: 0 | L29: 0 | O29: =IF(AND(D29<>"",SUMIF($D$2:$D$471,D29,$F$2:$F$471)+SUMIF($D$2:$D$471,D29,$I$2:$I$471)+SUMIF($D$2:$D$471,D29,$J$2:$J$471)>3005.06),IF(COUNTIF($D$2:D29,D29)>1,INDEX(INGRESOS!$A$1:$O$471,MATCH(D29,$D$1:D28,0),COLUMN($O$1)),MAX($O$1:O28)+1),0) -> 0
D30: =IF(E30<>"",VLOOKUP(E30,CLIENTES!$A$2:$B$1001,2,FALSE),"") ->  | G30: 21 | I30: 0 | J30: 0 | L30: 0 | O30: =IF(AND(D30<>"",SUMIF($D$2:$D$471,D30,$F$2:$F$471)+SUMIF($D$2:$D$471,D30,$I$2:$I$471)+SUMIF($D$2:$D$471,D30,$J$2:$J$471)>3005.06),IF(COUNTIF($D$2:D30,D30)>1,INDEX(INGRESOS!$A$1:$O$471,MATCH(D30,$D$1:D29,0),COLUMN($O$1)),MAX($O$1:O29)+1),0) -> 0
D31: =IF(E31<>"",VLOOKUP(E31,CLIENTES!$A$2:$B$1001,2,FALSE),"") ->  | G31: 21 | I31: 0 | J31: 0 | L31: 0 | O31: =IF(AND(D31<>"",SUMIF($D$2:$D$471,D31,$F$2:$F$471)+SUMIF($D$2:$D$471,D31,$I$2:$I$471)+SUMIF($D$2:$D$471,D31,$J$2:$J$471)>3005.06),IF(COUNTIF($D$2:D31,D31)>1,INDEX(INGRESOS!$A$1:$O$471,MATCH(D31,$D$1:D30,0),COLUMN($O$1)),MAX($O$1:O30)+1),0) -> 0
D32: =IF(E32<>"",VLOOKUP(E32,CLIENTES!$A$2:$B$1001,2,FALSE),"") ->  | G32: 21 | I32: 0 | J32: 0 | L32: 0 | O32: =IF(AND(D32<>"",SUMIF($D$2:$D$471,D32,$F$2:$F$471)+SUMIF($D$2:$D$471,D32,$I$2:$I$471)+SUMIF($D$2:$D$471,D32,$J$2:$J$471)>3005.06),IF(COUNTIF($D$2:D32,D32)>1,INDEX(INGRESOS!$A$1:$O$471,MATCH(D32,$D$1:D31,0),COLUMN($O$1)),MAX($O$1:O31)+1),0) -> 0
D33: =IF(E33<>"",VLOOKUP(E33,CLIENTES!$A$2:$B$1001,2,FALSE),"") ->  | G33: 21 | I33: 0 | J33: 0 | L33: 0 | O33: =IF(AND(D33<>"",SUMIF($D$2:$D$471,D33,$F$2:$F$471)+SUMIF($D$2:$D$471,D33,$I$2:$I$471)+SUMIF($D$2:$D$471,D33,$J$2:$J$471)>3005.06),IF(COUNTIF($D$2:D33,D33)>1,INDEX(INGRESOS!$A$1:$O$471,MATCH(D33,$D$1:D32,0),COLUMN($O$1)),MAX($O$1:O32)+1),0) -> 0
D34: =IF(E34<>"",VLOOKUP(E34,CLIENTES!$A$2:$B$1001,2,FALSE),"") ->  | G34: 21 | I34: 0 | J34: 0 | L34: 0 | O34: =IF(AND(D34<>"",SUMIF($D$2:$D$471,D34,$F$2:$F$471)+SUMIF($D$2:$D$471,D34,$I$2:$I$471)+SUMIF($D$2:$D$471,D34,$J$2:$J$471)>3005.06),IF(COUNTIF($D$2:D34,D34)>1,INDEX(INGRESOS!$A$1:$O$471,MATCH(D34,$D$1:D33,0),COLUMN($O$1)),MAX($O$1:O33)+1),0) -> 0
D35: =IF(E35<>"",VLOOKUP(E35,CLIENTES!$A$2:$B$1001,2,FALSE),"") ->  | G35: 21 | I35: 0 | J35: 0 | L35: 0 | O35: =IF(AND(D35<>"",SUMIF($D$2:$D$471,D35,$F$2:$F$471)+SUMIF($D$2:$D$471,D35,$I$2:$I$471)+SUMIF($D$2:$D$471,D35,$J$2:$J$471)>3005.06),IF(COUNTIF($D$2:D35,D35)>1,INDEX(INGRESOS!$A$1:$O$471,MATCH(D35,$D$1:D34,0),COLUMN($O$1)),MAX($O$1:O34)+1),0) -> 0
D36: =IF(E36<>"",VLOOKUP(E36,CLIENTES!$A$2:$B$1001,2,FALSE),"") ->  | G36: 21 | I36: 0 | J36: 0 | L36: 0 | O36: =IF(AND(D36<>"",SUMIF($D$2:$D$471,D36,$F$2:$F$471)+SUMIF($D$2:$D$471,D36,$I$2:$I$471)+SUMIF($D$2:$D$471,D36,$J$2:$J$471)>3005.06),IF(COUNTIF($D$2:D36,D36)>1,INDEX(INGRESOS!$A$1:$O$471,MATCH(D36,$D$1:D35,0),COLUMN($O$1)),MAX($O$1:O35)+1),0) -> 0
B37: =IF(A37<>"",A37,"") ->  | D37: =IF(E37<>"",VLOOKUP(E37,CLIENTES!$A$2:$B$1001,2,FALSE),"") ->  | G37: 21 | I37: =ROUND((F37*(G37/100)),2) -> 0 | J37: =ROUND((F37*(H37/100)),2) -> 0 | L37: =+F37+I37+J37-K37 -> 0 | N37: =IF(F37<>"",IF(MONTH(A37)<=3,1,IF(AND(MONTH(A37)>3,MONTH(A37)<=6),2,IF(AND(MONTH(A37)>6,MONTH(A37)<=9),3,4))),"") ->  | O37: =IF(AND(D37<>"",SUMIF($D$2:$D$471,D37,$F$2:$F$471)+SUMIF($D$2:$D$471,D37,$I$2:$I$471)+SUMIF($D$2:$D$471,D37,$J$2:$J$471)>3005.06),IF(COUNTIF($D$2:D37,D37)>1,INDEX(INGRESOS!$A$1:$O$471,MATCH(D37,$D$1:D36,0),COLUMN($O$1)),MAX($O$1:O36)+1),0) -> 0 | P37: =IF(A37<>"",MONTH(A37),"") -> 
D38: =IF(E38<>"",VLOOKUP(E38,CLIENTES!$A$2:$B$1001,2,FALSE),"") ->  | G38: 21 | I38: 0 | J38: 0 | L38: 0 | O38: =IF(AND(D38<>"",SUMIF($D$2:$D$471,D38,$F$2:$F$471)+SUMIF($D$2:$D$471,D38,$I$2:$I$471)+SUMIF($D$2:$D$471,D38,$J$2:$J$471)>3005.06),IF(COUNTIF($D$2:D38,D38)>1,INDEX(INGRESOS!$A$1:$O$471,MATCH(D38,$D$1:D37,0),COLUMN($O$1)),MAX($O$1:O37)+1),0) -> 0
D39: =IF(E39<>"",VLOOKUP(E39,CLIENTES!$A$2:$B$1001,2,FALSE),"") ->  | G39: 21 | I39: 0 | J39: 0 | L39: 0 | O39: =IF(AND(D39<>"",SUMIF($D$2:$D$471,D39,$F$2:$F$471)+SUMIF($D$2:$D$471,D39,$I$2:$I$471)+SUMIF($D$2:$D$471,D39,$J$2:$J$471)>3005.06),IF(COUNTIF($D$2:D39,D39)>1,INDEX(INGRESOS!$A$1:$O$471,MATCH(D39,$D$1:D38,0),COLUMN($O$1)),MAX($O$1:O38)+1),0) -> 0
D40: =IF(E40<>"",VLOOKUP(E40,CLIENTES!$A$2:$B$1001,2,FALSE),"") ->  | G40: 21 | I40: 0 | J40: 0 | L40: 0 | O40: =IF(AND(D40<>"",SUMIF($D$2:$D$471,D40,$F$2:$F$471)+SUMIF($D$2:$D$471,D40,$I$2:$I$471)+SUMIF($D$2:$D$471,D40,$J$2:$J$471)>3005.06),IF(COUNTIF($D$2:D40,D40)>1,INDEX(INGRESOS!$A$1:$O$471,MATCH(D40,$D$1:D39,0),COLUMN($O$1)),MAX($O$1:O39)+1),0) -> 0
D41: =IF(E41<>"",VLOOKUP(E41,CLIENTES!$A$2:$B$1001,2,FALSE),"") ->  | G41: 21 | I41: 0 | J41: 0 | L41: 0 | O41: =IF(AND(D41<>"",SUMIF($D$2:$D$471,D41,$F$2:$F$471)+SUMIF($D$2:$D$471,D41,$I$2:$I$471)+SUMIF($D$2:$D$471,D41,$J$2:$J$471)>3005.06),IF(COUNTIF($D$2:D41,D41)>1,INDEX(INGRESOS!$A$1:$O$471,MATCH(D41,$D$1:D40,0),COLUMN($O$1)),MAX($O$1:O40)+1),0) -> 0
D42: =IF(E42<>"",VLOOKUP(E42,CLIENTES!$A$2:$B$1001,2,FALSE),"") ->  | G42: 21 | I42: 0 | J42: 0 | L42: 0 | O42: =IF(AND(D42<>"",SUMIF($D$2:$D$471,D42,$F$2:$F$471)+SUMIF($D$2:$D$471,D42,$I$2:$I$471)+SUMIF($D$2:$D$471,D42,$J$2:$J$471)>3005.06),IF(COUNTIF($D$2:D42,D42)>1,INDEX(INGRESOS!$A$1:$O$471,MATCH(D42,$D$1:D41,0),COLUMN($O$1)),MAX($O$1:O41)+1),0) -> 0
D43: =IF(E43<>"",VLOOKUP(E43,CLIENTES!$A$2:$B$1001,2,FALSE),"") ->  | G43: 21 | I43: 0 | J43: 0 | L43: 0 | O43: =IF(AND(D43<>"",SUMIF($D$2:$D$471,D43,$F$2:$F$471)+SUMIF($D$2:$D$471,D43,$I$2:$I$471)+SUMIF($D$2:$D$471,D43,$J$2:$J$471)>3005.06),IF(COUNTIF($D$2:D43,D43)>1,INDEX(INGRESOS!$A$1:$O$471,MATCH(D43,$D$1:D42,0),COLUMN($O$1)),MAX($O$1:O42)+1),0) -> 0
D44: =IF(E44<>"",VLOOKUP(E44,CLIENTES!$A$2:$B$1001,2,FALSE),"") ->  | G44: 21 | I44: 0 | J44: 0 | L44: 0 | O44: =IF(AND(D44<>"",SUMIF($D$2:$D$471,D44,$F$2:$F$471)+SUMIF($D$2:$D$471,D44,$I$2:$I$471)+SUMIF($D$2:$D$471,D44,$J$2:$J$471)>3005.06),IF(COUNTIF($D$2:D44,D44)>1,INDEX(INGRESOS!$A$1:$O$471,MATCH(D44,$D$1:D43,0),COLUMN($O$1)),MAX($O$1:O43)+1),0) -> 0
D45: =IF(E45<>"",VLOOKUP(E45,CLIENTES!$A$2:$B$1001,2,FALSE),"") ->  | G45: 21 | I45: 0 | J45: 0 | L45: 0 | O45: =IF(AND(D45<>"",SUMIF($D$2:$D$471,D45,$F$2:$F$471)+SUMIF($D$2:$D$471,D45,$I$2:$I$471)+SUMIF($D$2:$D$471,D45,$J$2:$J$471)>3005.06),IF(COUNTIF($D$2:D45,D45)>1,INDEX(INGRESOS!$A$1:$O$471,MATCH(D45,$D$1:D44,0),COLUMN($O$1)),MAX($O$1:O44)+1),0) -> 0
D46: =IF(E46<>"",VLOOKUP(E46,CLIENTES!$A$2:$B$1001,2,FALSE),"") ->  | G46: 21 | I46: 0 | J46: 0 | L46: 0 | O46: =IF(AND(D46<>"",SUMIF($D$2:$D$471,D46,$F$2:$F$471)+SUMIF($D$2:$D$471,D46,$I$2:$I$471)+SUMIF($D$2:$D$471,D46,$J$2:$J$471)>3005.06),IF(COUNTIF($D$2:D46,D46)>1,INDEX(INGRESOS!$A$1:$O$471,MATCH(D46,$D$1:D45,0),COLUMN($O$1)),MAX($O$1:O45)+1),0) -> 0
D47: =IF(E47<>"",VLOOKUP(E47,CLIENTES!$A$2:$B$1001,2,FALSE),"") ->  | G47: 21 | I47: 0 | J47: 0 | L47: 0 | O47: =IF(AND(D47<>"",SUMIF($D$2:$D$471,D47,$F$2:$F$471)+SUMIF($D$2:$D$471,D47,$I$2:$I$471)+SUMIF($D$2:$D$471,D47,$J$2:$J$471)>3005.06),IF(COUNTIF($D$2:D47,D47)>1,INDEX(INGRESOS!$A$1:$O$471,MATCH(D47,$D$1:D46,0),COLUMN($O$1)),MAX($O$1:O46)+1),0) -> 0
D48: =IF(E48<>"",VLOOKUP(E48,CLIENTES!$A$2:$B$1001,2,FALSE),"") ->  | G48: 21 | I48: 0 | J48: 0 | L48: 0 | O48: =IF(AND(D48<>"",SUMIF($D$2:$D$471,D48,$F$2:$F$471)+SUMIF($D$2:$D$471,D48,$I$2:$I$471)+SUMIF($D$2:$D$471,D48,$J$2:$J$471)>3005.06),IF(COUNTIF($D$2:D48,D48)>1,INDEX(INGRESOS!$A$1:$O$471,MATCH(D48,$D$1:D47,0),COLUMN($O$1)),MAX($O$1:O47)+1),0) -> 0
D49: =IF(E49<>"",VLOOKUP(E49,CLIENTES!$A$2:$B$1001,2,FALSE),"") ->  | G49: 21 | I49: 0 | J49: 0 | L49: 0 | O49: =IF(AND(D49<>"",SUMIF($D$2:$D$471,D49,$F$2:$F$471)+SUMIF($D$2:$D$471,D49,$I$2:$I$471)+SUMIF($D$2:$D$471,D49,$J$2:$J$471)>3005.06),IF(COUNTIF($D$2:D49,D49)>1,INDEX(INGRESOS!$A$1:$O$471,MATCH(D49,$D$1:D48,0),COLUMN($O$1)),MAX($O$1:O48)+1),0) -> 0
D50: =IF(E50<>"",VLOOKUP(E50,CLIENTES!$A$2:$B$1001,2,FALSE),"") ->  | G50: 21 | I50: 0 | J50: 0 | L50: 0 | O50: =IF(AND(D50<>"",SUMIF($D$2:$D$471,D50,$F$2:$F$471)+SUMIF($D$2:$D$471,D50,$I$2:$I$471)+SUMIF($D$2:$D$471,D50,$J$2:$J$471)>3005.06),IF(COUNTIF($D$2:D50,D50)>1,INDEX(INGRESOS!$A$1:$O$471,MATCH(D50,$D$1:D49,0),COLUMN($O$1)),MAX($O$1:O49)+1),0) -> 0
D51: =IF(E51<>"",VLOOKUP(E51,CLIENTES!$A$2:$B$1001,2,FALSE),"") ->  | G51: 21 | I51: 0 | J51: 0 | L51: 0 | O51: =IF(AND(D51<>"",SUMIF($D$2:$D$471,D51,$F$2:$F$471)+SUMIF($D$2:$D$471,D51,$I$2:$I$471)+SUMIF($D$2:$D$471,D51,$J$2:$J$471)>3005.06),IF(COUNTIF($D$2:D51,D51)>1,INDEX(INGRESOS!$A$1:$O$471,MATCH(D51,$D$1:D50,0),COLUMN($O$1)),MAX($O$1:O50)+1),0) -> 0
D52: =IF(E52<>"",VLOOKUP(E52,CLIENTES!$A$2:$B$1001,2,FALSE),"") ->  | G52: 21 | I52: 0 | J52: 0 | L52: 0 | O52: =IF(AND(D52<>"",SUMIF($D$2:$D$471,D52,$F$2:$F$471)+SUMIF($D$2:$D$471,D52,$I$2:$I$471)+SUMIF($D$2:$D$471,D52,$J$2:$J$471)>3005.06),IF(COUNTIF($D$2:D52,D52)>1,INDEX(INGRESOS!$A$1:$O$471,MATCH(D52,$D$1:D51,0),COLUMN($O$1)),MAX($O$1:O51)+1),0) -> 0
D53: =IF(E53<>"",VLOOKUP(E53,CLIENTES!$A$2:$B$1001,2,FALSE),"") ->  | G53: 21 | I53: 0 | J53: 0 | L53: 0 | O53: =IF(AND(D53<>"",SUMIF($D$2:$D$471,D53,$F$2:$F$471)+SUMIF($D$2:$D$471,D53,$I$2:$I$471)+SUMIF($D$2:$D$471,D53,$J$2:$J$471)>3005.06),IF(COUNTIF($D$2:D53,D53)>1,INDEX(INGRESOS!$A$1:$O$471,MATCH(D53,$D$1:D52,0),COLUMN($O$1)),MAX($O$1:O52)+1),0) -> 0
D54: =IF(E54<>"",VLOOKUP(E54,CLIENTES!$A$2:$B$1001,2,FALSE),"") ->  | G54: 21 | I54: 0 | J54: 0 | L54: 0 | O54: =IF(AND(D54<>"",SUMIF($D$2:$D$471,D54,$F$2:$F$471)+SUMIF($D$2:$D$471,D54,$I$2:$I$471)+SUMIF($D$2:$D$471,D54,$J$2:$J$471)>3005.06),IF(COUNTIF($D$2:D54,D54)>1,INDEX(INGRESOS!$A$1:$O$471,MATCH(D54,$D$1:D53,0),COLUMN($O$1)),MAX($O$1:O53)+1),0) -> 0
D55: =IF(E55<>"",VLOOKUP(E55,CLIENTES!$A$2:$B$1001,2,FALSE),"") ->  | G55: 21 | I55: 0 | J55: 0 | L55: 0 | O55: =IF(AND(D55<>"",SUMIF($D$2:$D$471,D55,$F$2:$F$471)+SUMIF($D$2:$D$471,D55,$I$2:$I$471)+SUMIF($D$2:$D$471,D55,$J$2:$J$471)>3005.06),IF(COUNTIF($D$2:D55,D55)>1,INDEX(INGRESOS!$A$1:$O$471,MATCH(D55,$D$1:D54,0),COLUMN($O$1)),MAX($O$1:O54)+1),0) -> 0
D56: =IF(E56<>"",VLOOKUP(E56,CLIENTES!$A$2:$B$1001,2,FALSE),"") ->  | G56: 21 | I56: 0 | J56: 0 | L56: 0 | O56: =IF(AND(D56<>"",SUMIF($D$2:$D$471,D56,$F$2:$F$471)+SUMIF($D$2:$D$471,D56,$I$2:$I$471)+SUMIF($D$2:$D$471,D56,$J$2:$J$471)>3005.06),IF(COUNTIF($D$2:D56,D56)>1,INDEX(INGRESOS!$A$1:$O$471,MATCH(D56,$D$1:D55,0),COLUMN($O$1)),MAX($O$1:O55)+1),0) -> 0
D57: =IF(E57<>"",VLOOKUP(E57,CLIENTES!$A$2:$B$1001,2,FALSE),"") ->  | G57: 21 | I57: 0 | J57: 0 | L57: 0 | O57: =IF(AND(D57<>"",SUMIF($D$2:$D$471,D57,$F$2:$F$471)+SUMIF($D$2:$D$471,D57,$I$2:$I$471)+SUMIF($D$2:$D$471,D57,$J$2:$J$471)>3005.06),IF(COUNTIF($D$2:D57,D57)>1,INDEX(INGRESOS!$A$1:$O$471,MATCH(D57,$D$1:D56,0),COLUMN($O$1)),MAX($O$1:O56)+1),0) -> 0
D58: =IF(E58<>"",VLOOKUP(E58,CLIENTES!$A$2:$B$1001,2,FALSE),"") ->  | G58: 21 | I58: 0 | J58: 0 | L58: 0 | O58: =IF(AND(D58<>"",SUMIF($D$2:$D$471,D58,$F$2:$F$471)+SUMIF($D$2:$D$471,D58,$I$2:$I$471)+SUMIF($D$2:$D$471,D58,$J$2:$J$471)>3005.06),IF(COUNTIF($D$2:D58,D58)>1,INDEX(INGRESOS!$A$1:$O$471,MATCH(D58,$D$1:D57,0),COLUMN($O$1)),MAX($O$1:O57)+1),0) -> 0
D59: =IF(E59<>"",VLOOKUP(E59,CLIENTES!$A$2:$B$1001,2,FALSE),"") ->  | G59: 21 | I59: 0 | J59: 0 | L59: 0 | O59: =IF(AND(D59<>"",SUMIF($D$2:$D$471,D59,$F$2:$F$471)+SUMIF($D$2:$D$471,D59,$I$2:$I$471)+SUMIF($D$2:$D$471,D59,$J$2:$J$471)>3005.06),IF(COUNTIF($D$2:D59,D59)>1,INDEX(INGRESOS!$A$1:$O$471,MATCH(D59,$D$1:D58,0),COLUMN($O$1)),MAX($O$1:O58)+1),0) -> 0
D60: =IF(E60<>"",VLOOKUP(E60,CLIENTES!$A$2:$B$1001,2,FALSE),"") ->  | G60: 21 | I60: 0 | J60: 0 | L60: 0 | O60: =IF(AND(D60<>"",SUMIF($D$2:$D$471,D60,$F$2:$F$471)+SUMIF($D$2:$D$471,D60,$I$2:$I$471)+SUMIF($D$2:$D$471,D60,$J$2:$J$471)>3005.06),IF(COUNTIF($D$2:D60,D60)>1,INDEX(INGRESOS!$A$1:$O$471,MATCH(D60,$D$1:D59,0),COLUMN($O$1)),MAX($O$1:O59)+1),0) -> 0
D61: =IF(E61<>"",VLOOKUP(E61,CLIENTES!$A$2:$B$1001,2,FALSE),"") ->  | G61: 21 | I61: 0 | J61: 0 | L61: 0 | O61: =IF(AND(D61<>"",SUMIF($D$2:$D$471,D61,$F$2:$F$471)+SUMIF($D$2:$D$471,D61,$I$2:$I$471)+SUMIF($D$2:$D$471,D61,$J$2:$J$471)>3005.06),IF(COUNTIF($D$2:D61,D61)>1,INDEX(INGRESOS!$A$1:$O$471,MATCH(D61,$D$1:D60,0),COLUMN($O$1)),MAX($O$1:O60)+1),0) -> 0
D62: =IF(E62<>"",VLOOKUP(E62,CLIENTES!$A$2:$B$1001,2,FALSE),"") ->  | G62: 21 | I62: 0 | J62: 0 | L62: 0 | O62: =IF(AND(D62<>"",SUMIF($D$2:$D$471,D62,$F$2:$F$471)+SUMIF($D$2:$D$471,D62,$I$2:$I$471)+SUMIF($D$2:$D$471,D62,$J$2:$J$471)>3005.06),IF(COUNTIF($D$2:D62,D62)>1,INDEX(INGRESOS!$A$1:$O$471,MATCH(D62,$D$1:D61,0),COLUMN($O$1)),MAX($O$1:O61)+1),0) -> 0
D63: =IF(E63<>"",VLOOKUP(E63,CLIENTES!$A$2:$B$1001,2,FALSE),"") ->  | G63: 21 | I63: 0 | J63: 0 | L63: 0 | O63: =IF(AND(D63<>"",SUMIF($D$2:$D$471,D63,$F$2:$F$471)+SUMIF($D$2:$D$471,D63,$I$2:$I$471)+SUMIF($D$2:$D$471,D63,$J$2:$J$471)>3005.06),IF(COUNTIF($D$2:D63,D63)>1,INDEX(INGRESOS!$A$1:$O$471,MATCH(D63,$D$1:D62,0),COLUMN($O$1)),MAX($O$1:O62)+1),0) -> 0
D64: =IF(E64<>"",VLOOKUP(E64,CLIENTES!$A$2:$B$1001,2,FALSE),"") ->  | G64: 21 | I64: 0 | J64: 0 | L64: 0 | O64: =IF(AND(D64<>"",SUMIF($D$2:$D$471,D64,$F$2:$F$471)+SUMIF($D$2:$D$471,D64,$I$2:$I$471)+SUMIF($D$2:$D$471,D64,$J$2:$J$471)>3005.06),IF(COUNTIF($D$2:D64,D64)>1,INDEX(INGRESOS!$A$1:$O$471,MATCH(D64,$D$1:D63,0),COLUMN($O$1)),MAX($O$1:O63)+1),0) -> 0
D65: =IF(E65<>"",VLOOKUP(E65,CLIENTES!$A$2:$B$1001,2,FALSE),"") ->  | G65: 21 | I65: 0 | J65: 0 | L65: 0 | O65: =IF(AND(D65<>"",SUMIF($D$2:$D$471,D65,$F$2:$F$471)+SUMIF($D$2:$D$471,D65,$I$2:$I$471)+SUMIF($D$2:$D$471,D65,$J$2:$J$471)>3005.06),IF(COUNTIF($D$2:D65,D65)>1,INDEX(INGRESOS!$A$1:$O$471,MATCH(D65,$D$1:D64,0),COLUMN($O$1)),MAX($O$1:O64)+1),0) -> 0
D66: =IF(E66<>"",VLOOKUP(E66,CLIENTES!$A$2:$B$1001,2,FALSE),"") ->  | G66: 21 | I66: 0 | J66: 0 | L66: 0 | O66: =IF(AND(D66<>"",SUMIF($D$2:$D$471,D66,$F$2:$F$471)+SUMIF($D$2:$D$471,D66,$I$2:$I$471)+SUMIF($D$2:$D$471,D66,$J$2:$J$471)>3005.06),IF(COUNTIF($D$2:D66,D66)>1,INDEX(INGRESOS!$A$1:$O$471,MATCH(D66,$D$1:D65,0),COLUMN($O$1)),MAX($O$1:O65)+1),0) -> 0
D67: =IF(E67<>"",VLOOKUP(E67,CLIENTES!$A$2:$B$1001,2,FALSE),"") ->  | G67: 21 | I67: 0 | J67: 0 | L67: 0 | O67: =IF(AND(D67<>"",SUMIF($D$2:$D$471,D67,$F$2:$F$471)+SUMIF($D$2:$D$471,D67,$I$2:$I$471)+SUMIF($D$2:$D$471,D67,$J$2:$J$471)>3005.06),IF(COUNTIF($D$2:D67,D67)>1,INDEX(INGRESOS!$A$1:$O$471,MATCH(D67,$D$1:D66,0),COLUMN($O$1)),MAX($O$1:O66)+1),0) -> 0
D68: =IF(E68<>"",VLOOKUP(E68,CLIENTES!$A$2:$B$1001,2,FALSE),"") ->  | G68: 21 | I68: 0 | J68: 0 | L68: 0 | O68: =IF(AND(D68<>"",SUMIF($D$2:$D$471,D68,$F$2:$F$471)+SUMIF($D$2:$D$471,D68,$I$2:$I$471)+SUMIF($D$2:$D$471,D68,$J$2:$J$471)>3005.06),IF(COUNTIF($D$2:D68,D68)>1,INDEX(INGRESOS!$A$1:$O$471,MATCH(D68,$D$1:D67,0),COLUMN($O$1)),MAX($O$1:O67)+1),0) -> 0
D69: =IF(E69<>"",VLOOKUP(E69,CLIENTES!$A$2:$B$1001,2,FALSE),"") ->  | G69: 21 | I69: 0 | J69: 0 | L69: 0 | O69: =IF(AND(D69<>"",SUMIF($D$2:$D$471,D69,$F$2:$F$471)+SUMIF($D$2:$D$471,D69,$I$2:$I$471)+SUMIF($D$2:$D$471,D69,$J$2:$J$471)>3005.06),IF(COUNTIF($D$2:D69,D69)>1,INDEX(INGRESOS!$A$1:$O$471,MATCH(D69,$D$1:D68,0),COLUMN($O$1)),MAX($O$1:O68)+1),0) -> 0
D70: =IF(E70<>"",VLOOKUP(E70,CLIENTES!$A$2:$B$1001,2,FALSE),"") ->  | G70: 21 | I70: 0 | J70: 0 | L70: 0 | O70: =IF(AND(D70<>"",SUMIF($D$2:$D$471,D70,$F$2:$F$471)+SUMIF($D$2:$D$471,D70,$I$2:$I$471)+SUMIF($D$2:$D$471,D70,$J$2:$J$471)>3005.06),IF(COUNTIF($D$2:D70,D70)>1,INDEX(INGRESOS!$A$1:$O$471,MATCH(D70,$D$1:D69,0),COLUMN($O$1)),MAX($O$1:O69)+1),0) -> 0
D71: =IF(E71<>"",VLOOKUP(E71,CLIENTES!$A$2:$B$1001,2,FALSE),"") ->  | G71: 21 | I71: 0 | J71: 0 | L71: 0 | O71: =IF(AND(D71<>"",SUMIF($D$2:$D$471,D71,$F$2:$F$471)+SUMIF($D$2:$D$471,D71,$I$2:$I$471)+SUMIF($D$2:$D$471,D71,$J$2:$J$471)>3005.06),IF(COUNTIF($D$2:D71,D71)>1,INDEX(INGRESOS!$A$1:$O$471,MATCH(D71,$D$1:D70,0),COLUMN($O$1)),MAX($O$1:O70)+1),0) -> 0
D72: =IF(E72<>"",VLOOKUP(E72,CLIENTES!$A$2:$B$1001,2,FALSE),"") ->  | G72: 21 | I72: 0 | J72: 0 | L72: 0 | O72: =IF(AND(D72<>"",SUMIF($D$2:$D$471,D72,$F$2:$F$471)+SUMIF($D$2:$D$471,D72,$I$2:$I$471)+SUMIF($D$2:$D$471,D72,$J$2:$J$471)>3005.06),IF(COUNTIF($D$2:D72,D72)>1,INDEX(INGRESOS!$A$1:$O$471,MATCH(D72,$D$1:D71,0),COLUMN($O$1)),MAX($O$1:O71)+1),0) -> 0
D73: =IF(E73<>"",VLOOKUP(E73,CLIENTES!$A$2:$B$1001,2,FALSE),"") ->  | G73: 21 | I73: 0 | J73: 0 | L73: 0 | O73: =IF(AND(D73<>"",SUMIF($D$2:$D$471,D73,$F$2:$F$471)+SUMIF($D$2:$D$471,D73,$I$2:$I$471)+SUMIF($D$2:$D$471,D73,$J$2:$J$471)>3005.06),IF(COUNTIF($D$2:D73,D73)>1,INDEX(INGRESOS!$A$1:$O$471,MATCH(D73,$D$1:D72,0),COLUMN($O$1)),MAX($O$1:O72)+1),0) -> 0
D74: =IF(E74<>"",VLOOKUP(E74,CLIENTES!$A$2:$B$1001,2,FALSE),"") ->  | G74: 21 | I74: 0 | J74: 0 | L74: 0 | O74: =IF(AND(D74<>"",SUMIF($D$2:$D$471,D74,$F$2:$F$471)+SUMIF($D$2:$D$471,D74,$I$2:$I$471)+SUMIF($D$2:$D$471,D74,$J$2:$J$471)>3005.06),IF(COUNTIF($D$2:D74,D74)>1,INDEX(INGRESOS!$A$1:$O$471,MATCH(D74,$D$1:D73,0),COLUMN($O$1)),MAX($O$1:O73)+1),0) -> 0
D75: =IF(E75<>"",VLOOKUP(E75,CLIENTES!$A$2:$B$1001,2,FALSE),"") ->  | G75: 21 | I75: 0 | J75: 0 | L75: 0 | O75: =IF(AND(D75<>"",SUMIF($D$2:$D$471,D75,$F$2:$F$471)+SUMIF($D$2:$D$471,D75,$I$2:$I$471)+SUMIF($D$2:$D$471,D75,$J$2:$J$471)>3005.06),IF(COUNTIF($D$2:D75,D75)>1,INDEX(INGRESOS!$A$1:$O$471,MATCH(D75,$D$1:D74,0),COLUMN($O$1)),MAX($O$1:O74)+1),0) -> 0
D76: =IF(E76<>"",VLOOKUP(E76,CLIENTES!$A$2:$B$1001,2,FALSE),"") ->  | G76: 21 | I76: 0 | J76: 0 | L76: 0 | O76: =IF(AND(D76<>"",SUMIF($D$2:$D$471,D76,$F$2:$F$471)+SUMIF($D$2:$D$471,D76,$I$2:$I$471)+SUMIF($D$2:$D$471,D76,$J$2:$J$471)>3005.06),IF(COUNTIF($D$2:D76,D76)>1,INDEX(INGRESOS!$A$1:$O$471,MATCH(D76,$D$1:D75,0),COLUMN($O$1)),MAX($O$1:O75)+1),0) -> 0
D77: =IF(E77<>"",VLOOKUP(E77,CLIENTES!$A$2:$B$1001,2,FALSE),"") ->  | G77: 21 | I77: 0 | J77: 0 | L77: 0 | O77: =IF(AND(D77<>"",SUMIF($D$2:$D$471,D77,$F$2:$F$471)+SUMIF($D$2:$D$471,D77,$I$2:$I$471)+SUMIF($D$2:$D$471,D77,$J$2:$J$471)>3005.06),IF(COUNTIF($D$2:D77,D77)>1,INDEX(INGRESOS!$A$1:$O$471,MATCH(D77,$D$1:D76,0),COLUMN($O$1)),MAX($O$1:O76)+1),0) -> 0
D78: =IF(E78<>"",VLOOKUP(E78,CLIENTES!$A$2:$B$1001,2,FALSE),"") ->  | G78: 21 | I78: 0 | J78: 0 | L78: 0 | O78: =IF(AND(D78<>"",SUMIF($D$2:$D$471,D78,$F$2:$F$471)+SUMIF($D$2:$D$471,D78,$I$2:$I$471)+SUMIF($D$2:$D$471,D78,$J$2:$J$471)>3005.06),IF(COUNTIF($D$2:D78,D78)>1,INDEX(INGRESOS!$A$1:$O$471,MATCH(D78,$D$1:D77,0),COLUMN($O$1)),MAX($O$1:O77)+1),0) -> 0
D79: =IF(E79<>"",VLOOKUP(E79,CLIENTES!$A$2:$B$1001,2,FALSE),"") ->  | G79: 21 | I79: 0 | J79: 0 | L79: 0 | O79: =IF(AND(D79<>"",SUMIF($D$2:$D$471,D79,$F$2:$F$471)+SUMIF($D$2:$D$471,D79,$I$2:$I$471)+SUMIF($D$2:$D$471,D79,$J$2:$J$471)>3005.06),IF(COUNTIF($D$2:D79,D79)>1,INDEX(INGRESOS!$A$1:$O$471,MATCH(D79,$D$1:D78,0),COLUMN($O$1)),MAX($O$1:O78)+1),0) -> 0
D80: =IF(E80<>"",VLOOKUP(E80,CLIENTES!$A$2:$B$1001,2,FALSE),"") ->  | G80: 21 | I80: 0 | J80: 0 | L80: 0 | O80: =IF(AND(D80<>"",SUMIF($D$2:$D$471,D80,$F$2:$F$471)+SUMIF($D$2:$D$471,D80,$I$2:$I$471)+SUMIF($D$2:$D$471,D80,$J$2:$J$471)>3005.06),IF(COUNTIF($D$2:D80,D80)>1,INDEX(INGRESOS!$A$1:$O$471,MATCH(D80,$D$1:D79,0),COLUMN($O$1)),MAX($O$1:O79)+1),0) -> 0
D81: =IF(E81<>"",VLOOKUP(E81,CLIENTES!$A$2:$B$1001,2,FALSE),"") ->  | G81: 21 | I81: 0 | J81: 0 | L81: 0 | O81: =IF(AND(D81<>"",SUMIF($D$2:$D$471,D81,$F$2:$F$471)+SUMIF($D$2:$D$471,D81,$I$2:$I$471)+SUMIF($D$2:$D$471,D81,$J$2:$J$471)>3005.06),IF(COUNTIF($D$2:D81,D81)>1,INDEX(INGRESOS!$A$1:$O$471,MATCH(D81,$D$1:D80,0),COLUMN($O$1)),MAX($O$1:O80)+1),0) -> 0
D82: =IF(E82<>"",VLOOKUP(E82,CLIENTES!$A$2:$B$1001,2,FALSE),"") ->  | G82: 21 | I82: 0 | J82: 0 | L82: 0 | O82: =IF(AND(D82<>"",SUMIF($D$2:$D$471,D82,$F$2:$F$471)+SUMIF($D$2:$D$471,D82,$I$2:$I$471)+SUMIF($D$2:$D$471,D82,$J$2:$J$471)>3005.06),IF(COUNTIF($D$2:D82,D82)>1,INDEX(INGRESOS!$A$1:$O$471,MATCH(D82,$D$1:D81,0),COLUMN($O$1)),MAX($O$1:O81)+1),0) -> 0
D83: =IF(E83<>"",VLOOKUP(E83,CLIENTES!$A$2:$B$1001,2,FALSE),"") ->  | G83: 21 | I83: 0 | J83: 0 | L83: 0 | O83: =IF(AND(D83<>"",SUMIF($D$2:$D$471,D83,$F$2:$F$471)+SUMIF($D$2:$D$471,D83,$I$2:$I$471)+SUMIF($D$2:$D$471,D83,$J$2:$J$471)>3005.06),IF(COUNTIF($D$2:D83,D83)>1,INDEX(INGRESOS!$A$1:$O$471,MATCH(D83,$D$1:D82,0),COLUMN($O$1)),MAX($O$1:O82)+1),0) -> 0
D84: =IF(E84<>"",VLOOKUP(E84,CLIENTES!$A$2:$B$1001,2,FALSE),"") ->  | G84: 21 | I84: 0 | J84: 0 | L84: 0 | O84: =IF(AND(D84<>"",SUMIF($D$2:$D$471,D84,$F$2:$F$471)+SUMIF($D$2:$D$471,D84,$I$2:$I$471)+SUMIF($D$2:$D$471,D84,$J$2:$J$471)>3005.06),IF(COUNTIF($D$2:D84,D84)>1,INDEX(INGRESOS!$A$1:$O$471,MATCH(D84,$D$1:D83,0),COLUMN($O$1)),MAX($O$1:O83)+1),0) -> 0
D85: =IF(E85<>"",VLOOKUP(E85,CLIENTES!$A$2:$B$1001,2,FALSE),"") ->  | G85: 21 | I85: 0 | J85: 0 | L85: 0 | O85: =IF(AND(D85<>"",SUMIF($D$2:$D$471,D85,$F$2:$F$471)+SUMIF($D$2:$D$471,D85,$I$2:$I$471)+SUMIF($D$2:$D$471,D85,$J$2:$J$471)>3005.06),IF(COUNTIF($D$2:D85,D85)>1,INDEX(INGRESOS!$A$1:$O$471,MATCH(D85,$D$1:D84,0),COLUMN($O$1)),MAX($O$1:O84)+1),0) -> 0
D86: =IF(E86<>"",VLOOKUP(E86,CLIENTES!$A$2:$B$1001,2,FALSE),"") ->  | G86: 21 | I86: 0 | J86: 0 | L86: 0 | O86: =IF(AND(D86<>"",SUMIF($D$2:$D$471,D86,$F$2:$F$471)+SUMIF($D$2:$D$471,D86,$I$2:$I$471)+SUMIF($D$2:$D$471,D86,$J$2:$J$471)>3005.06),IF(COUNTIF($D$2:D86,D86)>1,INDEX(INGRESOS!$A$1:$O$471,MATCH(D86,$D$1:D85,0),COLUMN($O$1)),MAX($O$1:O85)+1),0) -> 0
D87: =IF(E87<>"",VLOOKUP(E87,CLIENTES!$A$2:$B$1001,2,FALSE),"") ->  | G87: 21 | I87: 0 | J87: 0 | L87: 0 | O87: =IF(AND(D87<>"",SUMIF($D$2:$D$471,D87,$F$2:$F$471)+SUMIF($D$2:$D$471,D87,$I$2:$I$471)+SUMIF($D$2:$D$471,D87,$J$2:$J$471)>3005.06),IF(COUNTIF($D$2:D87,D87)>1,INDEX(INGRESOS!$A$1:$O$471,MATCH(D87,$D$1:D86,0),COLUMN($O$1)),MAX($O$1:O86)+1),0) -> 0
D88: =IF(E88<>"",VLOOKUP(E88,CLIENTES!$A$2:$B$1001,2,FALSE),"") ->  | G88: 21 | I88: 0 | J88: 0 | L88: 0 | O88: =IF(AND(D88<>"",SUMIF($D$2:$D$471,D88,$F$2:$F$471)+SUMIF($D$2:$D$471,D88,$I$2:$I$471)+SUMIF($D$2:$D$471,D88,$J$2:$J$471)>3005.06),IF(COUNTIF($D$2:D88,D88)>1,INDEX(INGRESOS!$A$1:$O$471,MATCH(D88,$D$1:D87,0),COLUMN($O$1)),MAX($O$1:O87)+1),0) -> 0
D89: =IF(E89<>"",VLOOKUP(E89,CLIENTES!$A$2:$B$1001,2,FALSE),"") ->  | G89: 21 | I89: 0 | J89: 0 | L89: 0 | O89: =IF(AND(D89<>"",SUMIF($D$2:$D$471,D89,$F$2:$F$471)+SUMIF($D$2:$D$471,D89,$I$2:$I$471)+SUMIF($D$2:$D$471,D89,$J$2:$J$471)>3005.06),IF(COUNTIF($D$2:D89,D89)>1,INDEX(INGRESOS!$A$1:$O$471,MATCH(D89,$D$1:D88,0),COLUMN($O$1)),MAX($O$1:O88)+1),0) -> 0
D90: =IF(E90<>"",VLOOKUP(E90,CLIENTES!$A$2:$B$1001,2,FALSE),"") ->  | G90: 21 | I90: 0 | J90: 0 | L90: 0 | O90: =IF(AND(D90<>"",SUMIF($D$2:$D$471,D90,$F$2:$F$471)+SUMIF($D$2:$D$471,D90,$I$2:$I$471)+SUMIF($D$2:$D$471,D90,$J$2:$J$471)>3005.06),IF(COUNTIF($D$2:D90,D90)>1,INDEX(INGRESOS!$A$1:$O$471,MATCH(D90,$D$1:D89,0),COLUMN($O$1)),MAX($O$1:O89)+1),0) -> 0
D91: =IF(E91<>"",VLOOKUP(E91,CLIENTES!$A$2:$B$1001,2,FALSE),"") ->  | G91: 21 | I91: 0 | J91: 0 | L91: 0 | O91: =IF(AND(D91<>"",SUMIF($D$2:$D$471,D91,$F$2:$F$471)+SUMIF($D$2:$D$471,D91,$I$2:$I$471)+SUMIF($D$2:$D$471,D91,$J$2:$J$471)>3005.06),IF(COUNTIF($D$2:D91,D91)>1,INDEX(INGRESOS!$A$1:$O$471,MATCH(D91,$D$1:D90,0),COLUMN($O$1)),MAX($O$1:O90)+1),0) -> 0
D92: =IF(E92<>"",VLOOKUP(E92,CLIENTES!$A$2:$B$1001,2,FALSE),"") ->  | G92: 21 | I92: 0 | J92: 0 | L92: 0 | O92: =IF(AND(D92<>"",SUMIF($D$2:$D$471,D92,$F$2:$F$471)+SUMIF($D$2:$D$471,D92,$I$2:$I$471)+SUMIF($D$2:$D$471,D92,$J$2:$J$471)>3005.06),IF(COUNTIF($D$2:D92,D92)>1,INDEX(INGRESOS!$A$1:$O$471,MATCH(D92,$D$1:D91,0),COLUMN($O$1)),MAX($O$1:O91)+1),0) -> 0
D93: =IF(E93<>"",VLOOKUP(E93,CLIENTES!$A$2:$B$1001,2,FALSE),"") ->  | G93: 21 | I93: 0 | J93: 0 | L93: 0 | O93: =IF(AND(D93<>"",SUMIF($D$2:$D$471,D93,$F$2:$F$471)+SUMIF($D$2:$D$471,D93,$I$2:$I$471)+SUMIF($D$2:$D$471,D93,$J$2:$J$471)>3005.06),IF(COUNTIF($D$2:D93,D93)>1,INDEX(INGRESOS!$A$1:$O$471,MATCH(D93,$D$1:D92,0),COLUMN($O$1)),MAX($O$1:O92)+1),0) -> 0
D94: =IF(E94<>"",VLOOKUP(E94,CLIENTES!$A$2:$B$1001,2,FALSE),"") ->  | G94: 21 | I94: 0 | J94: 0 | L94: 0 | O94: =IF(AND(D94<>"",SUMIF($D$2:$D$471,D94,$F$2:$F$471)+SUMIF($D$2:$D$471,D94,$I$2:$I$471)+SUMIF($D$2:$D$471,D94,$J$2:$J$471)>3005.06),IF(COUNTIF($D$2:D94,D94)>1,INDEX(INGRESOS!$A$1:$O$471,MATCH(D94,$D$1:D93,0),COLUMN($O$1)),MAX($O$1:O93)+1),0) -> 0
D95: =IF(E95<>"",VLOOKUP(E95,CLIENTES!$A$2:$B$1001,2,FALSE),"") ->  | G95: 21 | I95: 0 | J95: 0 | L95: 0 | O95: =IF(AND(D95<>"",SUMIF($D$2:$D$471,D95,$F$2:$F$471)+SUMIF($D$2:$D$471,D95,$I$2:$I$471)+SUMIF($D$2:$D$471,D95,$J$2:$J$471)>3005.06),IF(COUNTIF($D$2:D95,D95)>1,INDEX(INGRESOS!$A$1:$O$471,MATCH(D95,$D$1:D94,0),COLUMN($O$1)),MAX($O$1:O94)+1),0) -> 0
D96: =IF(E96<>"",VLOOKUP(E96,CLIENTES!$A$2:$B$1001,2,FALSE),"") ->  | G96: 21 | I96: 0 | J96: 0 | L96: 0 | O96: =IF(AND(D96<>"",SUMIF($D$2:$D$471,D96,$F$2:$F$471)+SUMIF($D$2:$D$471,D96,$I$2:$I$471)+SUMIF($D$2:$D$471,D96,$J$2:$J$471)>3005.06),IF(COUNTIF($D$2:D96,D96)>1,INDEX(INGRESOS!$A$1:$O$471,MATCH(D96,$D$1:D95,0),COLUMN($O$1)),MAX($O$1:O95)+1),0) -> 0
D97: =IF(E97<>"",VLOOKUP(E97,CLIENTES!$A$2:$B$1001,2,FALSE),"") ->  | G97: 21 | I97: 0 | J97: 0 | L97: 0 | O97: =IF(AND(D97<>"",SUMIF($D$2:$D$471,D97,$F$2:$F$471)+SUMIF($D$2:$D$471,D97,$I$2:$I$471)+SUMIF($D$2:$D$471,D97,$J$2:$J$471)>3005.06),IF(COUNTIF($D$2:D97,D97)>1,INDEX(INGRESOS!$A$1:$O$471,MATCH(D97,$D$1:D96,0),COLUMN($O$1)),MAX($O$1:O96)+1),0) -> 0
D98: =IF(E98<>"",VLOOKUP(E98,CLIENTES!$A$2:$B$1001,2,FALSE),"") ->  | G98: 21 | I98: 0 | J98: 0 | L98: 0 | O98: =IF(AND(D98<>"",SUMIF($D$2:$D$471,D98,$F$2:$F$471)+SUMIF($D$2:$D$471,D98,$I$2:$I$471)+SUMIF($D$2:$D$471,D98,$J$2:$J$471)>3005.06),IF(COUNTIF($D$2:D98,D98)>1,INDEX(INGRESOS!$A$1:$O$471,MATCH(D98,$D$1:D97,0),COLUMN($O$1)),MAX($O$1:O97)+1),0) -> 0
D99: =IF(E99<>"",VLOOKUP(E99,CLIENTES!$A$2:$B$1001,2,FALSE),"") ->  | G99: 21 | I99: 0 | J99: 0 | L99: 0 | O99: =IF(AND(D99<>"",SUMIF($D$2:$D$471,D99,$F$2:$F$471)+SUMIF($D$2:$D$471,D99,$I$2:$I$471)+SUMIF($D$2:$D$471,D99,$J$2:$J$471)>3005.06),IF(COUNTIF($D$2:D99,D99)>1,INDEX(INGRESOS!$A$1:$O$471,MATCH(D99,$D$1:D98,0),COLUMN($O$1)),MAX($O$1:O98)+1),0) -> 0
D100: =IF(E100<>"",VLOOKUP(E100,CLIENTES!$A$2:$B$1001,2,FALSE),"") ->  | G100: 21 | I100: 0 | J100: 0 | L100: 0 | O100: =IF(AND(D100<>"",SUMIF($D$2:$D$471,D100,$F$2:$F$471)+SUMIF($D$2:$D$471,D100,$I$2:$I$471)+SUMIF($D$2:$D$471,D100,$J$2:$J$471)>3005.06),IF(COUNTIF($D$2:D100,D100)>1,INDEX(INGRESOS!$A$1:$O$471,MATCH(D100,$D$1:D99,0),COLUMN($O$1)),MAX($O$1:O99)+1),0) -> 0
B101: =IF(A101<>"",A101,"") ->  | D101: =IF(E101<>"",VLOOKUP(E101,CLIENTES!$A$2:$B$1001,2,FALSE),"") ->  | G101: 21 | I101: =ROUND((F101*(G101/100)),2) -> 0 | J101: =ROUND((F101*(H101/100)),2) -> 0 | L101: =+F101+I101+J101-K101 -> 0 | N101: =IF(F101<>"",IF(MONTH(A101)<=3,1,IF(AND(MONTH(A101)>3,MONTH(A101)<=6),2,IF(AND(MONTH(A101)>6,MONTH(A101)<=9),3,4))),"") ->  | O101: =IF(AND(D101<>"",SUMIF($D$2:$D$471,D101,$F$2:$F$471)+SUMIF($D$2:$D$471,D101,$I$2:$I$471)+SUMIF($D$2:$D$471,D101,$J$2:$J$471)>3005.06),IF(COUNTIF($D$2:D101,D101)>1,INDEX(INGRESOS!$A$1:$O$471,MATCH(D101,$D$1:D100,0),COLUMN($O$1)),MAX($O$1:O100)+1),0) -> 0 | P101: =IF(A101<>"",MONTH(A101),"") -> 
D102: =IF(E102<>"",VLOOKUP(E102,CLIENTES!$A$2:$B$1001,2,FALSE),"") ->  | G102: 21 | I102: 0 | J102: 0 | L102: 0 | O102: =IF(AND(D102<>"",SUMIF($D$2:$D$471,D102,$F$2:$F$471)+SUMIF($D$2:$D$471,D102,$I$2:$I$471)+SUMIF($D$2:$D$471,D102,$J$2:$J$471)>3005.06),IF(COUNTIF($D$2:D102,D102)>1,INDEX(INGRESOS!$A$1:$O$471,MATCH(D102,$D$1:D101,0),COLUMN($O$1)),MAX($O$1:O101)+1),0) -> 0
D103: =IF(E103<>"",VLOOKUP(E103,CLIENTES!$A$2:$B$1001,2,FALSE),"") ->  | G103: 21 | I103: 0 | J103: 0 | L103: 0 | O103: =IF(AND(D103<>"",SUMIF($D$2:$D$471,D103,$F$2:$F$471)+SUMIF($D$2:$D$471,D103,$I$2:$I$471)+SUMIF($D$2:$D$471,D103,$J$2:$J$471)>3005.06),IF(COUNTIF($D$2:D103,D103)>1,INDEX(INGRESOS!$A$1:$O$471,MATCH(D103,$D$1:D102,0),COLUMN($O$1)),MAX($O$1:O102)+1),0) -> 0
D104: =IF(E104<>"",VLOOKUP(E104,CLIENTES!$A$2:$B$1001,2,FALSE),"") ->  | G104: 21 | I104: 0 | J104: 0 | L104: 0 | O104: =IF(AND(D104<>"",SUMIF($D$2:$D$471,D104,$F$2:$F$471)+SUMIF($D$2:$D$471,D104,$I$2:$I$471)+SUMIF($D$2:$D$471,D104,$J$2:$J$471)>3005.06),IF(COUNTIF($D$2:D104,D104)>1,INDEX(INGRESOS!$A$1:$O$471,MATCH(D104,$D$1:D103,0),COLUMN($O$1)),MAX($O$1:O103)+1),0) -> 0
D105: =IF(E105<>"",VLOOKUP(E105,CLIENTES!$A$2:$B$1001,2,FALSE),"") ->  | G105: 21 | I105: 0 | J105: 0 | L105: 0 | O105: =IF(AND(D105<>"",SUMIF($D$2:$D$471,D105,$F$2:$F$471)+SUMIF($D$2:$D$471,D105,$I$2:$I$471)+SUMIF($D$2:$D$471,D105,$J$2:$J$471)>3005.06),IF(COUNTIF($D$2:D105,D105)>1,INDEX(INGRESOS!$A$1:$O$471,MATCH(D105,$D$1:D104,0),COLUMN($O$1)),MAX($O$1:O104)+1),0) -> 0
D106: =IF(E106<>"",VLOOKUP(E106,CLIENTES!$A$2:$B$1001,2,FALSE),"") ->  | G106: 21 | I106: 0 | J106: 0 | L106: 0 | O106: =IF(AND(D106<>"",SUMIF($D$2:$D$471,D106,$F$2:$F$471)+SUMIF($D$2:$D$471,D106,$I$2:$I$471)+SUMIF($D$2:$D$471,D106,$J$2:$J$471)>3005.06),IF(COUNTIF($D$2:D106,D106)>1,INDEX(INGRESOS!$A$1:$O$471,MATCH(D106,$D$1:D105,0),COLUMN($O$1)),MAX($O$1:O105)+1),0) -> 0
D107: =IF(E107<>"",VLOOKUP(E107,CLIENTES!$A$2:$B$1001,2,FALSE),"") ->  | G107: 21 | I107: 0 | J107: 0 | L107: 0 | O107: =IF(AND(D107<>"",SUMIF($D$2:$D$471,D107,$F$2:$F$471)+SUMIF($D$2:$D$471,D107,$I$2:$I$471)+SUMIF($D$2:$D$471,D107,$J$2:$J$471)>3005.06),IF(COUNTIF($D$2:D107,D107)>1,INDEX(INGRESOS!$A$1:$O$471,MATCH(D107,$D$1:D106,0),COLUMN($O$1)),MAX($O$1:O106)+1),0) -> 0
D108: =IF(E108<>"",VLOOKUP(E108,CLIENTES!$A$2:$B$1001,2,FALSE),"") ->  | G108: 21 | I108: 0 | J108: 0 | L108: 0 | O108: =IF(AND(D108<>"",SUMIF($D$2:$D$471,D108,$F$2:$F$471)+SUMIF($D$2:$D$471,D108,$I$2:$I$471)+SUMIF($D$2:$D$471,D108,$J$2:$J$471)>3005.06),IF(COUNTIF($D$2:D108,D108)>1,INDEX(INGRESOS!$A$1:$O$471,MATCH(D108,$D$1:D107,0),COLUMN($O$1)),MAX($O$1:O107)+1),0) -> 0
D109: =IF(E109<>"",VLOOKUP(E109,CLIENTES!$A$2:$B$1001,2,FALSE),"") ->  | G109: 21 | I109: 0 | J109: 0 | L109: 0 | O109: =IF(AND(D109<>"",SUMIF($D$2:$D$471,D109,$F$2:$F$471)+SUMIF($D$2:$D$471,D109,$I$2:$I$471)+SUMIF($D$2:$D$471,D109,$J$2:$J$471)>3005.06),IF(COUNTIF($D$2:D109,D109)>1,INDEX(INGRESOS!$A$1:$O$471,MATCH(D109,$D$1:D108,0),COLUMN($O$1)),MAX($O$1:O108)+1),0) -> 0
D110: =IF(E110<>"",VLOOKUP(E110,CLIENTES!$A$2:$B$1001,2,FALSE),"") ->  | G110: 21 | I110: 0 | J110: 0 | L110: 0 | O110: =IF(AND(D110<>"",SUMIF($D$2:$D$471,D110,$F$2:$F$471)+SUMIF($D$2:$D$471,D110,$I$2:$I$471)+SUMIF($D$2:$D$471,D110,$J$2:$J$471)>3005.06),IF(COUNTIF($D$2:D110,D110)>1,INDEX(INGRESOS!$A$1:$O$471,MATCH(D110,$D$1:D109,0),COLUMN($O$1)),MAX($O$1:O109)+1),0) -> 0
D111: =IF(E111<>"",VLOOKUP(E111,CLIENTES!$A$2:$B$1001,2,FALSE),"") ->  | G111: 21 | I111: 0 | J111: 0 | L111: 0 | O111: =IF(AND(D111<>"",SUMIF($D$2:$D$471,D111,$F$2:$F$471)+SUMIF($D$2:$D$471,D111,$I$2:$I$471)+SUMIF($D$2:$D$471,D111,$J$2:$J$471)>3005.06),IF(COUNTIF($D$2:D111,D111)>1,INDEX(INGRESOS!$A$1:$O$471,MATCH(D111,$D$1:D110,0),COLUMN($O$1)),MAX($O$1:O110)+1),0) -> 0
D112: =IF(E112<>"",VLOOKUP(E112,CLIENTES!$A$2:$B$1001,2,FALSE),"") ->  | G112: 21 | I112: 0 | J112: 0 | L112: 0 | O112: =IF(AND(D112<>"",SUMIF($D$2:$D$471,D112,$F$2:$F$471)+SUMIF($D$2:$D$471,D112,$I$2:$I$471)+SUMIF($D$2:$D$471,D112,$J$2:$J$471)>3005.06),IF(COUNTIF($D$2:D112,D112)>1,INDEX(INGRESOS!$A$1:$O$471,MATCH(D112,$D$1:D111,0),COLUMN($O$1)),MAX($O$1:O111)+1),0) -> 0
D113: =IF(E113<>"",VLOOKUP(E113,CLIENTES!$A$2:$B$1001,2,FALSE),"") ->  | G113: 21 | I113: 0 | J113: 0 | L113: 0 | O113: =IF(AND(D113<>"",SUMIF($D$2:$D$471,D113,$F$2:$F$471)+SUMIF($D$2:$D$471,D113,$I$2:$I$471)+SUMIF($D$2:$D$471,D113,$J$2:$J$471)>3005.06),IF(COUNTIF($D$2:D113,D113)>1,INDEX(INGRESOS!$A$1:$O$471,MATCH(D113,$D$1:D112,0),COLUMN($O$1)),MAX($O$1:O112)+1),0) -> 0
D114: =IF(E114<>"",VLOOKUP(E114,CLIENTES!$A$2:$B$1001,2,FALSE),"") ->  | G114: 21 | I114: 0 | J114: 0 | L114: 0 | O114: =IF(AND(D114<>"",SUMIF($D$2:$D$471,D114,$F$2:$F$471)+SUMIF($D$2:$D$471,D114,$I$2:$I$471)+SUMIF($D$2:$D$471,D114,$J$2:$J$471)>3005.06),IF(COUNTIF($D$2:D114,D114)>1,INDEX(INGRESOS!$A$1:$O$471,MATCH(D114,$D$1:D113,0),COLUMN($O$1)),MAX($O$1:O113)+1),0) -> 0
D115: =IF(E115<>"",VLOOKUP(E115,CLIENTES!$A$2:$B$1001,2,FALSE),"") ->  | G115: 21 | I115: 0 | J115: 0 | L115: 0 | O115: =IF(AND(D115<>"",SUMIF($D$2:$D$471,D115,$F$2:$F$471)+SUMIF($D$2:$D$471,D115,$I$2:$I$471)+SUMIF($D$2:$D$471,D115,$J$2:$J$471)>3005.06),IF(COUNTIF($D$2:D115,D115)>1,INDEX(INGRESOS!$A$1:$O$471,MATCH(D115,$D$1:D114,0),COLUMN($O$1)),MAX($O$1:O114)+1),0) -> 0
D116: =IF(E116<>"",VLOOKUP(E116,CLIENTES!$A$2:$B$1001,2,FALSE),"") ->  | G116: 21 | I116: 0 | J116: 0 | L116: 0 | O116: =IF(AND(D116<>"",SUMIF($D$2:$D$471,D116,$F$2:$F$471)+SUMIF($D$2:$D$471,D116,$I$2:$I$471)+SUMIF($D$2:$D$471,D116,$J$2:$J$471)>3005.06),IF(COUNTIF($D$2:D116,D116)>1,INDEX(INGRESOS!$A$1:$O$471,MATCH(D116,$D$1:D115,0),COLUMN($O$1)),MAX($O$1:O115)+1),0) -> 0
D117: =IF(E117<>"",VLOOKUP(E117,CLIENTES!$A$2:$B$1001,2,FALSE),"") ->  | G117: 21 | I117: 0 | J117: 0 | L117: 0 | O117: =IF(AND(D117<>"",SUMIF($D$2:$D$471,D117,$F$2:$F$471)+SUMIF($D$2:$D$471,D117,$I$2:$I$471)+SUMIF($D$2:$D$471,D117,$J$2:$J$471)>3005.06),IF(COUNTIF($D$2:D117,D117)>1,INDEX(INGRESOS!$A$1:$O$471,MATCH(D117,$D$1:D116,0),COLUMN($O$1)),MAX($O$1:O116)+1),0) -> 0
D118: =IF(E118<>"",VLOOKUP(E118,CLIENTES!$A$2:$B$1001,2,FALSE),"") ->  | G118: 21 | I118: 0 | J118: 0 | L118: 0 | O118: =IF(AND(D118<>"",SUMIF($D$2:$D$471,D118,$F$2:$F$471)+SUMIF($D$2:$D$471,D118,$I$2:$I$471)+SUMIF($D$2:$D$471,D118,$J$2:$J$471)>3005.06),IF(COUNTIF($D$2:D118,D118)>1,INDEX(INGRESOS!$A$1:$O$471,MATCH(D118,$D$1:D117,0),COLUMN($O$1)),MAX($O$1:O117)+1),0) -> 0
D119: =IF(E119<>"",VLOOKUP(E119,CLIENTES!$A$2:$B$1001,2,FALSE),"") ->  | G119: 21 | I119: 0 | J119: 0 | L119: 0 | O119: =IF(AND(D119<>"",SUMIF($D$2:$D$471,D119,$F$2:$F$471)+SUMIF($D$2:$D$471,D119,$I$2:$I$471)+SUMIF($D$2:$D$471,D119,$J$2:$J$471)>3005.06),IF(COUNTIF($D$2:D119,D119)>1,INDEX(INGRESOS!$A$1:$O$471,MATCH(D119,$D$1:D118,0),COLUMN($O$1)),MAX($O$1:O118)+1),0) -> 0
D120: =IF(E120<>"",VLOOKUP(E120,CLIENTES!$A$2:$B$1001,2,FALSE),"") ->  | G120: 21 | I120: 0 | J120: 0 | L120: 0 | O120: =IF(AND(D120<>"",SUMIF($D$2:$D$471,D120,$F$2:$F$471)+SUMIF($D$2:$D$471,D120,$I$2:$I$471)+SUMIF($D$2:$D$471,D120,$J$2:$J$471)>3005.06),IF(COUNTIF($D$2:D120,D120)>1,INDEX(INGRESOS!$A$1:$O$471,MATCH(D120,$D$1:D119,0),COLUMN($O$1)),MAX($O$1:O119)+1),0) -> 0
D121: =IF(E121<>"",VLOOKUP(E121,CLIENTES!$A$2:$B$1001,2,FALSE),"") ->  | G121: 21 | I121: 0 | J121: 0 | L121: 0 | O121: =IF(AND(D121<>"",SUMIF($D$2:$D$471,D121,$F$2:$F$471)+SUMIF($D$2:$D$471,D121,$I$2:$I$471)+SUMIF($D$2:$D$471,D121,$J$2:$J$471)>3005.06),IF(COUNTIF($D$2:D121,D121)>1,INDEX(INGRESOS!$A$1:$O$471,MATCH(D121,$D$1:D120,0),COLUMN($O$1)),MAX($O$1:O120)+1),0) -> 0
D122: =IF(E122<>"",VLOOKUP(E122,CLIENTES!$A$2:$B$1001,2,FALSE),"") ->  | G122: 21 | I122: 0 | J122: 0 | L122: 0 | O122: =IF(AND(D122<>"",SUMIF($D$2:$D$471,D122,$F$2:$F$471)+SUMIF($D$2:$D$471,D122,$I$2:$I$471)+SUMIF($D$2:$D$471,D122,$J$2:$J$471)>3005.06),IF(COUNTIF($D$2:D122,D122)>1,INDEX(INGRESOS!$A$1:$O$471,MATCH(D122,$D$1:D121,0),COLUMN($O$1)),MAX($O$1:O121)+1),0) -> 0
D123: =IF(E123<>"",VLOOKUP(E123,CLIENTES!$A$2:$B$1001,2,FALSE),"") ->  | G123: 21 | I123: 0 | J123: 0 | L123: 0 | O123: =IF(AND(D123<>"",SUMIF($D$2:$D$471,D123,$F$2:$F$471)+SUMIF($D$2:$D$471,D123,$I$2:$I$471)+SUMIF($D$2:$D$471,D123,$J$2:$J$471)>3005.06),IF(COUNTIF($D$2:D123,D123)>1,INDEX(INGRESOS!$A$1:$O$471,MATCH(D123,$D$1:D122,0),COLUMN($O$1)),MAX($O$1:O122)+1),0) -> 0
D124: =IF(E124<>"",VLOOKUP(E124,CLIENTES!$A$2:$B$1001,2,FALSE),"") ->  | G124: 21 | I124: 0 | J124: 0 | L124: 0 | O124: =IF(AND(D124<>"",SUMIF($D$2:$D$471,D124,$F$2:$F$471)+SUMIF($D$2:$D$471,D124,$I$2:$I$471)+SUMIF($D$2:$D$471,D124,$J$2:$J$471)>3005.06),IF(COUNTIF($D$2:D124,D124)>1,INDEX(INGRESOS!$A$1:$O$471,MATCH(D124,$D$1:D123,0),COLUMN($O$1)),MAX($O$1:O123)+1),0) -> 0
D125: =IF(E125<>"",VLOOKUP(E125,CLIENTES!$A$2:$B$1001,2,FALSE),"") ->  | G125: 21 | I125: 0 | J125: 0 | L125: 0 | O125: =IF(AND(D125<>"",SUMIF($D$2:$D$471,D125,$F$2:$F$471)+SUMIF($D$2:$D$471,D125,$I$2:$I$471)+SUMIF($D$2:$D$471,D125,$J$2:$J$471)>3005.06),IF(COUNTIF($D$2:D125,D125)>1,INDEX(INGRESOS!$A$1:$O$471,MATCH(D125,$D$1:D124,0),COLUMN($O$1)),MAX($O$1:O124)+1),0) -> 0
D126: =IF(E126<>"",VLOOKUP(E126,CLIENTES!$A$2:$B$1001,2,FALSE),"") ->  | G126: 21 | I126: 0 | J126: 0 | L126: 0 | O126: =IF(AND(D126<>"",SUMIF($D$2:$D$471,D126,$F$2:$F$471)+SUMIF($D$2:$D$471,D126,$I$2:$I$471)+SUMIF($D$2:$D$471,D126,$J$2:$J$471)>3005.06),IF(COUNTIF($D$2:D126,D126)>1,INDEX(INGRESOS!$A$1:$O$471,MATCH(D126,$D$1:D125,0),COLUMN($O$1)),MAX($O$1:O125)+1),0) -> 0
D127: =IF(E127<>"",VLOOKUP(E127,CLIENTES!$A$2:$B$1001,2,FALSE),"") ->  | G127: 21 | I127: 0 | J127: 0 | L127: 0 | O127: =IF(AND(D127<>"",SUMIF($D$2:$D$471,D127,$F$2:$F$471)+SUMIF($D$2:$D$471,D127,$I$2:$I$471)+SUMIF($D$2:$D$471,D127,$J$2:$J$471)>3005.06),IF(COUNTIF($D$2:D127,D127)>1,INDEX(INGRESOS!$A$1:$O$471,MATCH(D127,$D$1:D126,0),COLUMN($O$1)),MAX($O$1:O126)+1),0) -> 0
D128: =IF(E128<>"",VLOOKUP(E128,CLIENTES!$A$2:$B$1001,2,FALSE),"") ->  | G128: 21 | I128: 0 | J128: 0 | L128: 0 | O128: =IF(AND(D128<>"",SUMIF($D$2:$D$471,D128,$F$2:$F$471)+SUMIF($D$2:$D$471,D128,$I$2:$I$471)+SUMIF($D$2:$D$471,D128,$J$2:$J$471)>3005.06),IF(COUNTIF($D$2:D128,D128)>1,INDEX(INGRESOS!$A$1:$O$471,MATCH(D128,$D$1:D127,0),COLUMN($O$1)),MAX($O$1:O127)+1),0) -> 0
D129: =IF(E129<>"",VLOOKUP(E129,CLIENTES!$A$2:$B$1001,2,FALSE),"") ->  | G129: 21 | I129: 0 | J129: 0 | L129: 0 | O129: =IF(AND(D129<>"",SUMIF($D$2:$D$471,D129,$F$2:$F$471)+SUMIF($D$2:$D$471,D129,$I$2:$I$471)+SUMIF($D$2:$D$471,D129,$J$2:$J$471)>3005.06),IF(COUNTIF($D$2:D129,D129)>1,INDEX(INGRESOS!$A$1:$O$471,MATCH(D129,$D$1:D128,0),COLUMN($O$1)),MAX($O$1:O128)+1),0) -> 0
D130: =IF(E130<>"",VLOOKUP(E130,CLIENTES!$A$2:$B$1001,2,FALSE),"") ->  | G130: 21 | I130: 0 | J130: 0 | L130: 0 | O130: =IF(AND(D130<>"",SUMIF($D$2:$D$471,D130,$F$2:$F$471)+SUMIF($D$2:$D$471,D130,$I$2:$I$471)+SUMIF($D$2:$D$471,D130,$J$2:$J$471)>3005.06),IF(COUNTIF($D$2:D130,D130)>1,INDEX(INGRESOS!$A$1:$O$471,MATCH(D130,$D$1:D129,0),COLUMN($O$1)),MAX($O$1:O129)+1),0) -> 0
D131: =IF(E131<>"",VLOOKUP(E131,CLIENTES!$A$2:$B$1001,2,FALSE),"") ->  | G131: 21 | I131: 0 | J131: 0 | L131: 0 | O131: =IF(AND(D131<>"",SUMIF($D$2:$D$471,D131,$F$2:$F$471)+SUMIF($D$2:$D$471,D131,$I$2:$I$471)+SUMIF($D$2:$D$471,D131,$J$2:$J$471)>3005.06),IF(COUNTIF($D$2:D131,D131)>1,INDEX(INGRESOS!$A$1:$O$471,MATCH(D131,$D$1:D130,0),COLUMN($O$1)),MAX($O$1:O130)+1),0) -> 0
D132: =IF(E132<>"",VLOOKUP(E132,CLIENTES!$A$2:$B$1001,2,FALSE),"") ->  | G132: 21 | I132: 0 | J132: 0 | L132: 0 | O132: =IF(AND(D132<>"",SUMIF($D$2:$D$471,D132,$F$2:$F$471)+SUMIF($D$2:$D$471,D132,$I$2:$I$471)+SUMIF($D$2:$D$471,D132,$J$2:$J$471)>3005.06),IF(COUNTIF($D$2:D132,D132)>1,INDEX(INGRESOS!$A$1:$O$471,MATCH(D132,$D$1:D131,0),COLUMN($O$1)),MAX($O$1:O131)+1),0) -> 0
D133: =IF(E133<>"",VLOOKUP(E133,CLIENTES!$A$2:$B$1001,2,FALSE),"") ->  | G133: 21 | I133: 0 | J133: 0 | L133: 0 | O133: =IF(AND(D133<>"",SUMIF($D$2:$D$471,D133,$F$2:$F$471)+SUMIF($D$2:$D$471,D133,$I$2:$I$471)+SUMIF($D$2:$D$471,D133,$J$2:$J$471)>3005.06),IF(COUNTIF($D$2:D133,D133)>1,INDEX(INGRESOS!$A$1:$O$471,MATCH(D133,$D$1:D132,0),COLUMN($O$1)),MAX($O$1:O132)+1),0) -> 0
D134: =IF(E134<>"",VLOOKUP(E134,CLIENTES!$A$2:$B$1001,2,FALSE),"") ->  | G134: 21 | I134: 0 | J134: 0 | L134: 0 | O134: =IF(AND(D134<>"",SUMIF($D$2:$D$471,D134,$F$2:$F$471)+SUMIF($D$2:$D$471,D134,$I$2:$I$471)+SUMIF($D$2:$D$471,D134,$J$2:$J$471)>3005.06),IF(COUNTIF($D$2:D134,D134)>1,INDEX(INGRESOS!$A$1:$O$471,MATCH(D134,$D$1:D133,0),COLUMN($O$1)),MAX($O$1:O133)+1),0) -> 0
D135: =IF(E135<>"",VLOOKUP(E135,CLIENTES!$A$2:$B$1001,2,FALSE),"") ->  | G135: 21 | I135: 0 | J135: 0 | L135: 0 | O135: =IF(AND(D135<>"",SUMIF($D$2:$D$471,D135,$F$2:$F$471)+SUMIF($D$2:$D$471,D135,$I$2:$I$471)+SUMIF($D$2:$D$471,D135,$J$2:$J$471)>3005.06),IF(COUNTIF($D$2:D135,D135)>1,INDEX(INGRESOS!$A$1:$O$471,MATCH(D135,$D$1:D134,0),COLUMN($O$1)),MAX($O$1:O134)+1),0) -> 0
D136: =IF(E136<>"",VLOOKUP(E136,CLIENTES!$A$2:$B$1001,2,FALSE),"") ->  | G136: 21 | I136: 0 | J136: 0 | L136: 0 | O136: =IF(AND(D136<>"",SUMIF($D$2:$D$471,D136,$F$2:$F$471)+SUMIF($D$2:$D$471,D136,$I$2:$I$471)+SUMIF($D$2:$D$471,D136,$J$2:$J$471)>3005.06),IF(COUNTIF($D$2:D136,D136)>1,INDEX(INGRESOS!$A$1:$O$471,MATCH(D136,$D$1:D135,0),COLUMN($O$1)),MAX($O$1:O135)+1),0) -> 0
D137: =IF(E137<>"",VLOOKUP(E137,CLIENTES!$A$2:$B$1001,2,FALSE),"") ->  | G137: 21 | I137: 0 | J137: 0 | L137: 0 | O137: =IF(AND(D137<>"",SUMIF($D$2:$D$471,D137,$F$2:$F$471)+SUMIF($D$2:$D$471,D137,$I$2:$I$471)+SUMIF($D$2:$D$471,D137,$J$2:$J$471)>3005.06),IF(COUNTIF($D$2:D137,D137)>1,INDEX(INGRESOS!$A$1:$O$471,MATCH(D137,$D$1:D136,0),COLUMN($O$1)),MAX($O$1:O136)+1),0) -> 0
D138: =IF(E138<>"",VLOOKUP(E138,CLIENTES!$A$2:$B$1001,2,FALSE),"") ->  | G138: 21 | I138: 0 | J138: 0 | L138: 0 | O138: =IF(AND(D138<>"",SUMIF($D$2:$D$471,D138,$F$2:$F$471)+SUMIF($D$2:$D$471,D138,$I$2:$I$471)+SUMIF($D$2:$D$471,D138,$J$2:$J$471)>3005.06),IF(COUNTIF($D$2:D138,D138)>1,INDEX(INGRESOS!$A$1:$O$471,MATCH(D138,$D$1:D137,0),COLUMN($O$1)),MAX($O$1:O137)+1),0) -> 0
D139: =IF(E139<>"",VLOOKUP(E139,CLIENTES!$A$2:$B$1001,2,FALSE),"") ->  | G139: 21 | I139: 0 | J139: 0 | L139: 0 | O139: =IF(AND(D139<>"",SUMIF($D$2:$D$471,D139,$F$2:$F$471)+SUMIF($D$2:$D$471,D139,$I$2:$I$471)+SUMIF($D$2:$D$471,D139,$J$2:$J$471)>3005.06),IF(COUNTIF($D$2:D139,D139)>1,INDEX(INGRESOS!$A$1:$O$471,MATCH(D139,$D$1:D138,0),COLUMN($O$1)),MAX($O$1:O138)+1),0) -> 0
D140: =IF(E140<>"",VLOOKUP(E140,CLIENTES!$A$2:$B$1001,2,FALSE),"") ->  | G140: 21 | I140: 0 | J140: 0 | L140: 0 | O140: =IF(AND(D140<>"",SUMIF($D$2:$D$471,D140,$F$2:$F$471)+SUMIF($D$2:$D$471,D140,$I$2:$I$471)+SUMIF($D$2:$D$471,D140,$J$2:$J$471)>3005.06),IF(COUNTIF($D$2:D140,D140)>1,INDEX(INGRESOS!$A$1:$O$471,MATCH(D140,$D$1:D139,0),COLUMN($O$1)),MAX($O$1:O139)+1),0) -> 0
D141: =IF(E141<>"",VLOOKUP(E141,CLIENTES!$A$2:$B$1001,2,FALSE),"") ->  | G141: 21 | I141: 0 | J141: 0 | L141: 0 | O141: =IF(AND(D141<>"",SUMIF($D$2:$D$471,D141,$F$2:$F$471)+SUMIF($D$2:$D$471,D141,$I$2:$I$471)+SUMIF($D$2:$D$471,D141,$J$2:$J$471)>3005.06),IF(COUNTIF($D$2:D141,D141)>1,INDEX(INGRESOS!$A$1:$O$471,MATCH(D141,$D$1:D140,0),COLUMN($O$1)),MAX($O$1:O140)+1),0) -> 0
D142: =IF(E142<>"",VLOOKUP(E142,CLIENTES!$A$2:$B$1001,2,FALSE),"") ->  | G142: 21 | I142: 0 | J142: 0 | L142: 0 | O142: =IF(AND(D142<>"",SUMIF($D$2:$D$471,D142,$F$2:$F$471)+SUMIF($D$2:$D$471,D142,$I$2:$I$471)+SUMIF($D$2:$D$471,D142,$J$2:$J$471)>3005.06),IF(COUNTIF($D$2:D142,D142)>1,INDEX(INGRESOS!$A$1:$O$471,MATCH(D142,$D$1:D141,0),COLUMN($O$1)),MAX($O$1:O141)+1),0) -> 0
D143: =IF(E143<>"",VLOOKUP(E143,CLIENTES!$A$2:$B$1001,2,FALSE),"") ->  | G143: 21 | I143: 0 | J143: 0 | L143: 0 | O143: =IF(AND(D143<>"",SUMIF($D$2:$D$471,D143,$F$2:$F$471)+SUMIF($D$2:$D$471,D143,$I$2:$I$471)+SUMIF($D$2:$D$471,D143,$J$2:$J$471)>3005.06),IF(COUNTIF($D$2:D143,D143)>1,INDEX(INGRESOS!$A$1:$O$471,MATCH(D143,$D$1:D142,0),COLUMN($O$1)),MAX($O$1:O142)+1),0) -> 0
D144: =IF(E144<>"",VLOOKUP(E144,CLIENTES!$A$2:$B$1001,2,FALSE),"") ->  | G144: 21 | I144: 0 | J144: 0 | L144: 0 | O144: =IF(AND(D144<>"",SUMIF($D$2:$D$471,D144,$F$2:$F$471)+SUMIF($D$2:$D$471,D144,$I$2:$I$471)+SUMIF($D$2:$D$471,D144,$J$2:$J$471)>3005.06),IF(COUNTIF($D$2:D144,D144)>1,INDEX(INGRESOS!$A$1:$O$471,MATCH(D144,$D$1:D143,0),COLUMN($O$1)),MAX($O$1:O143)+1),0) -> 0
D145: =IF(E145<>"",VLOOKUP(E145,CLIENTES!$A$2:$B$1001,2,FALSE),"") ->  | G145: 21 | I145: 0 | J145: 0 | L145: 0 | O145: =IF(AND(D145<>"",SUMIF($D$2:$D$471,D145,$F$2:$F$471)+SUMIF($D$2:$D$471,D145,$I$2:$I$471)+SUMIF($D$2:$D$471,D145,$J$2:$J$471)>3005.06),IF(COUNTIF($D$2:D145,D145)>1,INDEX(INGRESOS!$A$1:$O$471,MATCH(D145,$D$1:D144,0),COLUMN($O$1)),MAX($O$1:O144)+1),0) -> 0
D146: =IF(E146<>"",VLOOKUP(E146,CLIENTES!$A$2:$B$1001,2,FALSE),"") ->  | G146: 21 | I146: 0 | J146: 0 | L146: 0 | O146: =IF(AND(D146<>"",SUMIF($D$2:$D$471,D146,$F$2:$F$471)+SUMIF($D$2:$D$471,D146,$I$2:$I$471)+SUMIF($D$2:$D$471,D146,$J$2:$J$471)>3005.06),IF(COUNTIF($D$2:D146,D146)>1,INDEX(INGRESOS!$A$1:$O$471,MATCH(D146,$D$1:D145,0),COLUMN($O$1)),MAX($O$1:O145)+1),0) -> 0
D147: =IF(E147<>"",VLOOKUP(E147,CLIENTES!$A$2:$B$1001,2,FALSE),"") ->  | G147: 21 | I147: 0 | J147: 0 | L147: 0 | O147: =IF(AND(D147<>"",SUMIF($D$2:$D$471,D147,$F$2:$F$471)+SUMIF($D$2:$D$471,D147,$I$2:$I$471)+SUMIF($D$2:$D$471,D147,$J$2:$J$471)>3005.06),IF(COUNTIF($D$2:D147,D147)>1,INDEX(INGRESOS!$A$1:$O$471,MATCH(D147,$D$1:D146,0),COLUMN($O$1)),MAX($O$1:O146)+1),0) -> 0
D148: =IF(E148<>"",VLOOKUP(E148,CLIENTES!$A$2:$B$1001,2,FALSE),"") ->  | G148: 21 | I148: 0 | J148: 0 | L148: 0 | O148: =IF(AND(D148<>"",SUMIF($D$2:$D$471,D148,$F$2:$F$471)+SUMIF($D$2:$D$471,D148,$I$2:$I$471)+SUMIF($D$2:$D$471,D148,$J$2:$J$471)>3005.06),IF(COUNTIF($D$2:D148,D148)>1,INDEX(INGRESOS!$A$1:$O$471,MATCH(D148,$D$1:D147,0),COLUMN($O$1)),MAX($O$1:O147)+1),0) -> 0
D149: =IF(E149<>"",VLOOKUP(E149,CLIENTES!$A$2:$B$1001,2,FALSE),"") ->  | G149: 21 | I149: 0 | J149: 0 | L149: 0 | O149: =IF(AND(D149<>"",SUMIF($D$2:$D$471,D149,$F$2:$F$471)+SUMIF($D$2:$D$471,D149,$I$2:$I$471)+SUMIF($D$2:$D$471,D149,$J$2:$J$471)>3005.06),IF(COUNTIF($D$2:D149,D149)>1,INDEX(INGRESOS!$A$1:$O$471,MATCH(D149,$D$1:D148,0),COLUMN($O$1)),MAX($O$1:O148)+1),0) -> 0
D150: =IF(E150<>"",VLOOKUP(E150,CLIENTES!$A$2:$B$1001,2,FALSE),"") ->  | G150: 21 | I150: 0 | J150: 0 | L150: 0 | O150: =IF(AND(D150<>"",SUMIF($D$2:$D$471,D150,$F$2:$F$471)+SUMIF($D$2:$D$471,D150,$I$2:$I$471)+SUMIF($D$2:$D$471,D150,$J$2:$J$471)>3005.06),IF(COUNTIF($D$2:D150,D150)>1,INDEX(INGRESOS!$A$1:$O$471,MATCH(D150,$D$1:D149,0),COLUMN($O$1)),MAX($O$1:O149)+1),0) -> 0
D151: =IF(E151<>"",VLOOKUP(E151,CLIENTES!$A$2:$B$1001,2,FALSE),"") ->  | G151: 21 | I151: 0 | J151: 0 | L151: 0 | O151: =IF(AND(D151<>"",SUMIF($D$2:$D$471,D151,$F$2:$F$471)+SUMIF($D$2:$D$471,D151,$I$2:$I$471)+SUMIF($D$2:$D$471,D151,$J$2:$J$471)>3005.06),IF(COUNTIF($D$2:D151,D151)>1,INDEX(INGRESOS!$A$1:$O$471,MATCH(D151,$D$1:D150,0),COLUMN($O$1)),MAX($O$1:O150)+1),0) -> 0
D152: =IF(E152<>"",VLOOKUP(E152,CLIENTES!$A$2:$B$1001,2,FALSE),"") ->  | G152: 21 | I152: 0 | J152: 0 | L152: 0 | O152: =IF(AND(D152<>"",SUMIF($D$2:$D$471,D152,$F$2:$F$471)+SUMIF($D$2:$D$471,D152,$I$2:$I$471)+SUMIF($D$2:$D$471,D152,$J$2:$J$471)>3005.06),IF(COUNTIF($D$2:D152,D152)>1,INDEX(INGRESOS!$A$1:$O$471,MATCH(D152,$D$1:D151,0),COLUMN($O$1)),MAX($O$1:O151)+1),0) -> 0
D153: =IF(E153<>"",VLOOKUP(E153,CLIENTES!$A$2:$B$1001,2,FALSE),"") ->  | G153: 21 | I153: 0 | J153: 0 | L153: 0 | O153: =IF(AND(D153<>"",SUMIF($D$2:$D$471,D153,$F$2:$F$471)+SUMIF($D$2:$D$471,D153,$I$2:$I$471)+SUMIF($D$2:$D$471,D153,$J$2:$J$471)>3005.06),IF(COUNTIF($D$2:D153,D153)>1,INDEX(INGRESOS!$A$1:$O$471,MATCH(D153,$D$1:D152,0),COLUMN($O$1)),MAX($O$1:O152)+1),0) -> 0
D154: =IF(E154<>"",VLOOKUP(E154,CLIENTES!$A$2:$B$1001,2,FALSE),"") ->  | G154: 21 | I154: 0 | J154: 0 | L154: 0 | O154: =IF(AND(D154<>"",SUMIF($D$2:$D$471,D154,$F$2:$F$471)+SUMIF($D$2:$D$471,D154,$I$2:$I$471)+SUMIF($D$2:$D$471,D154,$J$2:$J$471)>3005.06),IF(COUNTIF($D$2:D154,D154)>1,INDEX(INGRESOS!$A$1:$O$471,MATCH(D154,$D$1:D153,0),COLUMN($O$1)),MAX($O$1:O153)+1),0) -> 0
D155: =IF(E155<>"",VLOOKUP(E155,CLIENTES!$A$2:$B$1001,2,FALSE),"") ->  | G155: 21 | I155: 0 | J155: 0 | L155: 0 | O155: =IF(AND(D155<>"",SUMIF($D$2:$D$471,D155,$F$2:$F$471)+SUMIF($D$2:$D$471,D155,$I$2:$I$471)+SUMIF($D$2:$D$471,D155,$J$2:$J$471)>3005.06),IF(COUNTIF($D$2:D155,D155)>1,INDEX(INGRESOS!$A$1:$O$471,MATCH(D155,$D$1:D154,0),COLUMN($O$1)),MAX($O$1:O154)+1),0) -> 0
D156: =IF(E156<>"",VLOOKUP(E156,CLIENTES!$A$2:$B$1001,2,FALSE),"") ->  | G156: 21 | I156: 0 | J156: 0 | L156: 0 | O156: =IF(AND(D156<>"",SUMIF($D$2:$D$471,D156,$F$2:$F$471)+SUMIF($D$2:$D$471,D156,$I$2:$I$471)+SUMIF($D$2:$D$471,D156,$J$2:$J$471)>3005.06),IF(COUNTIF($D$2:D156,D156)>1,INDEX(INGRESOS!$A$1:$O$471,MATCH(D156,$D$1:D155,0),COLUMN($O$1)),MAX($O$1:O155)+1),0) -> 0
D157: =IF(E157<>"",VLOOKUP(E157,CLIENTES!$A$2:$B$1001,2,FALSE),"") ->  | G157: 21 | I157: 0 | J157: 0 | L157: 0 | O157: =IF(AND(D157<>"",SUMIF($D$2:$D$471,D157,$F$2:$F$471)+SUMIF($D$2:$D$471,D157,$I$2:$I$471)+SUMIF($D$2:$D$471,D157,$J$2:$J$471)>3005.06),IF(COUNTIF($D$2:D157,D157)>1,INDEX(INGRESOS!$A$1:$O$471,MATCH(D157,$D$1:D156,0),COLUMN($O$1)),MAX($O$1:O156)+1),0) -> 0
D158: =IF(E158<>"",VLOOKUP(E158,CLIENTES!$A$2:$B$1001,2,FALSE),"") ->  | G158: 21 | I158: 0 | J158: 0 | L158: 0 | O158: =IF(AND(D158<>"",SUMIF($D$2:$D$471,D158,$F$2:$F$471)+SUMIF($D$2:$D$471,D158,$I$2:$I$471)+SUMIF($D$2:$D$471,D158,$J$2:$J$471)>3005.06),IF(COUNTIF($D$2:D158,D158)>1,INDEX(INGRESOS!$A$1:$O$471,MATCH(D158,$D$1:D157,0),COLUMN($O$1)),MAX($O$1:O157)+1),0) -> 0
D159: =IF(E159<>"",VLOOKUP(E159,CLIENTES!$A$2:$B$1001,2,FALSE),"") ->  | G159: 21 | I159: 0 | J159: 0 | L159: 0 | O159: =IF(AND(D159<>"",SUMIF($D$2:$D$471,D159,$F$2:$F$471)+SUMIF($D$2:$D$471,D159,$I$2:$I$471)+SUMIF($D$2:$D$471,D159,$J$2:$J$471)>3005.06),IF(COUNTIF($D$2:D159,D159)>1,INDEX(INGRESOS!$A$1:$O$471,MATCH(D159,$D$1:D158,0),COLUMN($O$1)),MAX($O$1:O158)+1),0) -> 0
D160: =IF(E160<>"",VLOOKUP(E160,CLIENTES!$A$2:$B$1001,2,FALSE),"") ->  | G160: 21 | I160: 0 | J160: 0 | L160: 0 | O160: =IF(AND(D160<>"",SUMIF($D$2:$D$471,D160,$F$2:$F$471)+SUMIF($D$2:$D$471,D160,$I$2:$I$471)+SUMIF($D$2:$D$471,D160,$J$2:$J$471)>3005.06),IF(COUNTIF($D$2:D160,D160)>1,INDEX(INGRESOS!$A$1:$O$471,MATCH(D160,$D$1:D159,0),COLUMN($O$1)),MAX($O$1:O159)+1),0) -> 0
D161: =IF(E161<>"",VLOOKUP(E161,CLIENTES!$A$2:$B$1001,2,FALSE),"") ->  | G161: 21 | I161: 0 | J161: 0 | L161: 0 | O161: =IF(AND(D161<>"",SUMIF($D$2:$D$471,D161,$F$2:$F$471)+SUMIF($D$2:$D$471,D161,$I$2:$I$471)+SUMIF($D$2:$D$471,D161,$J$2:$J$471)>3005.06),IF(COUNTIF($D$2:D161,D161)>1,INDEX(INGRESOS!$A$1:$O$471,MATCH(D161,$D$1:D160,0),COLUMN($O$1)),MAX($O$1:O160)+1),0) -> 0
D162: =IF(E162<>"",VLOOKUP(E162,CLIENTES!$A$2:$B$1001,2,FALSE),"") ->  | G162: 21 | I162: 0 | J162: 0 | L162: 0 | O162: =IF(AND(D162<>"",SUMIF($D$2:$D$471,D162,$F$2:$F$471)+SUMIF($D$2:$D$471,D162,$I$2:$I$471)+SUMIF($D$2:$D$471,D162,$J$2:$J$471)>3005.06),IF(COUNTIF($D$2:D162,D162)>1,INDEX(INGRESOS!$A$1:$O$471,MATCH(D162,$D$1:D161,0),COLUMN($O$1)),MAX($O$1:O161)+1),0) -> 0
D163: =IF(E163<>"",VLOOKUP(E163,CLIENTES!$A$2:$B$1001,2,FALSE),"") ->  | G163: 21 | I163: 0 | J163: 0 | L163: 0 | O163: =IF(AND(D163<>"",SUMIF($D$2:$D$471,D163,$F$2:$F$471)+SUMIF($D$2:$D$471,D163,$I$2:$I$471)+SUMIF($D$2:$D$471,D163,$J$2:$J$471)>3005.06),IF(COUNTIF($D$2:D163,D163)>1,INDEX(INGRESOS!$A$1:$O$471,MATCH(D163,$D$1:D162,0),COLUMN($O$1)),MAX($O$1:O162)+1),0) -> 0
D164: =IF(E164<>"",VLOOKUP(E164,CLIENTES!$A$2:$B$1001,2,FALSE),"") ->  | G164: 21 | I164: 0 | J164: 0 | L164: 0 | O164: =IF(AND(D164<>"",SUMIF($D$2:$D$471,D164,$F$2:$F$471)+SUMIF($D$2:$D$471,D164,$I$2:$I$471)+SUMIF($D$2:$D$471,D164,$J$2:$J$471)>3005.06),IF(COUNTIF($D$2:D164,D164)>1,INDEX(INGRESOS!$A$1:$O$471,MATCH(D164,$D$1:D163,0),COLUMN($O$1)),MAX($O$1:O163)+1),0) -> 0
B165: =IF(A165<>"",A165,"") ->  | D165: =IF(E165<>"",VLOOKUP(E165,CLIENTES!$A$2:$B$1001,2,FALSE),"") ->  | G165: 21 | I165: =ROUND((F165*(G165/100)),2) -> 0 | J165: =ROUND((F165*(H165/100)),2) -> 0 | L165: =+F165+I165+J165-K165 -> 0 | N165: =IF(F165<>"",IF(MONTH(A165)<=3,1,IF(AND(MONTH(A165)>3,MONTH(A165)<=6),2,IF(AND(MONTH(A165)>6,MONTH(A165)<=9),3,4))),"") ->  | O165: =IF(AND(D165<>"",SUMIF($D$2:$D$471,D165,$F$2:$F$471)+SUMIF($D$2:$D$471,D165,$I$2:$I$471)+SUMIF($D$2:$D$471,D165,$J$2:$J$471)>3005.06),IF(COUNTIF($D$2:D165,D165)>1,INDEX(INGRESOS!$A$1:$O$471,MATCH(D165,$D$1:D164,0),COLUMN($O$1)),MAX($O$1:O164)+1),0) -> 0 | P165: =IF(A165<>"",MONTH(A165),"") -> 
D166: =IF(E166<>"",VLOOKUP(E166,CLIENTES!$A$2:$B$1001,2,FALSE),"") ->  | G166: 21 | I166: 0 | J166: 0 | L166: 0 | O166: =IF(AND(D166<>"",SUMIF($D$2:$D$471,D166,$F$2:$F$471)+SUMIF($D$2:$D$471,D166,$I$2:$I$471)+SUMIF($D$2:$D$471,D166,$J$2:$J$471)>3005.06),IF(COUNTIF($D$2:D166,D166)>1,INDEX(INGRESOS!$A$1:$O$471,MATCH(D166,$D$1:D165,0),COLUMN($O$1)),MAX($O$1:O165)+1),0) -> 0
D167: =IF(E167<>"",VLOOKUP(E167,CLIENTES!$A$2:$B$1001,2,FALSE),"") ->  | G167: 21 | I167: 0 | J167: 0 | L167: 0 | O167: =IF(AND(D167<>"",SUMIF($D$2:$D$471,D167,$F$2:$F$471)+SUMIF($D$2:$D$471,D167,$I$2:$I$471)+SUMIF($D$2:$D$471,D167,$J$2:$J$471)>3005.06),IF(COUNTIF($D$2:D167,D167)>1,INDEX(INGRESOS!$A$1:$O$471,MATCH(D167,$D$1:D166,0),COLUMN($O$1)),MAX($O$1:O166)+1),0) -> 0
D168: =IF(E168<>"",VLOOKUP(E168,CLIENTES!$A$2:$B$1001,2,FALSE),"") ->  | G168: 21 | I168: 0 | J168: 0 | L168: 0 | O168: =IF(AND(D168<>"",SUMIF($D$2:$D$471,D168,$F$2:$F$471)+SUMIF($D$2:$D$471,D168,$I$2:$I$471)+SUMIF($D$2:$D$471,D168,$J$2:$J$471)>3005.06),IF(COUNTIF($D$2:D168,D168)>1,INDEX(INGRESOS!$A$1:$O$471,MATCH(D168,$D$1:D167,0),COLUMN($O$1)),MAX($O$1:O167)+1),0) -> 0
D169: =IF(E169<>"",VLOOKUP(E169,CLIENTES!$A$2:$B$1001,2,FALSE),"") ->  | G169: 21 | I169: 0 | J169: 0 | L169: 0 | O169: =IF(AND(D169<>"",SUMIF($D$2:$D$471,D169,$F$2:$F$471)+SUMIF($D$2:$D$471,D169,$I$2:$I$471)+SUMIF($D$2:$D$471,D169,$J$2:$J$471)>3005.06),IF(COUNTIF($D$2:D169,D169)>1,INDEX(INGRESOS!$A$1:$O$471,MATCH(D169,$D$1:D168,0),COLUMN($O$1)),MAX($O$1:O168)+1),0) -> 0
D170: =IF(E170<>"",VLOOKUP(E170,CLIENTES!$A$2:$B$1001,2,FALSE),"") ->  | G170: 21 | I170: 0 | J170: 0 | L170: 0 | O170: =IF(AND(D170<>"",SUMIF($D$2:$D$471,D170,$F$2:$F$471)+SUMIF($D$2:$D$471,D170,$I$2:$I$471)+SUMIF($D$2:$D$471,D170,$J$2:$J$471)>3005.06),IF(COUNTIF($D$2:D170,D170)>1,INDEX(INGRESOS!$A$1:$O$471,MATCH(D170,$D$1:D169,0),COLUMN($O$1)),MAX($O$1:O169)+1),0) -> 0
D171: =IF(E171<>"",VLOOKUP(E171,CLIENTES!$A$2:$B$1001,2,FALSE),"") ->  | G171: 21 | I171: 0 | J171: 0 | L171: 0 | O171: =IF(AND(D171<>"",SUMIF($D$2:$D$471,D171,$F$2:$F$471)+SUMIF($D$2:$D$471,D171,$I$2:$I$471)+SUMIF($D$2:$D$471,D171,$J$2:$J$471)>3005.06),IF(COUNTIF($D$2:D171,D171)>1,INDEX(INGRESOS!$A$1:$O$471,MATCH(D171,$D$1:D170,0),COLUMN($O$1)),MAX($O$1:O170)+1),0) -> 0
D172: =IF(E172<>"",VLOOKUP(E172,CLIENTES!$A$2:$B$1001,2,FALSE),"") ->  | G172: 21 | I172: 0 | J172: 0 | L172: 0 | O172: =IF(AND(D172<>"",SUMIF($D$2:$D$471,D172,$F$2:$F$471)+SUMIF($D$2:$D$471,D172,$I$2:$I$471)+SUMIF($D$2:$D$471,D172,$J$2:$J$471)>3005.06),IF(COUNTIF($D$2:D172,D172)>1,INDEX(INGRESOS!$A$1:$O$471,MATCH(D172,$D$1:D171,0),COLUMN($O$1)),MAX($O$1:O171)+1),0) -> 0
D173: =IF(E173<>"",VLOOKUP(E173,CLIENTES!$A$2:$B$1001,2,FALSE),"") ->  | G173: 21 | I173: 0 | J173: 0 | L173: 0 | O173: =IF(AND(D173<>"",SUMIF($D$2:$D$471,D173,$F$2:$F$471)+SUMIF($D$2:$D$471,D173,$I$2:$I$471)+SUMIF($D$2:$D$471,D173,$J$2:$J$471)>3005.06),IF(COUNTIF($D$2:D173,D173)>1,INDEX(INGRESOS!$A$1:$O$471,MATCH(D173,$D$1:D172,0),COLUMN($O$1)),MAX($O$1:O172)+1),0) -> 0
D174: =IF(E174<>"",VLOOKUP(E174,CLIENTES!$A$2:$B$1001,2,FALSE),"") ->  | G174: 21 | I174: 0 | J174: 0 | L174: 0 | O174: =IF(AND(D174<>"",SUMIF($D$2:$D$471,D174,$F$2:$F$471)+SUMIF($D$2:$D$471,D174,$I$2:$I$471)+SUMIF($D$2:$D$471,D174,$J$2:$J$471)>3005.06),IF(COUNTIF($D$2:D174,D174)>1,INDEX(INGRESOS!$A$1:$O$471,MATCH(D174,$D$1:D173,0),COLUMN($O$1)),MAX($O$1:O173)+1),0) -> 0
D175: =IF(E175<>"",VLOOKUP(E175,CLIENTES!$A$2:$B$1001,2,FALSE),"") ->  | G175: 21 | I175: 0 | J175: 0 | L175: 0 | O175: =IF(AND(D175<>"",SUMIF($D$2:$D$471,D175,$F$2:$F$471)+SUMIF($D$2:$D$471,D175,$I$2:$I$471)+SUMIF($D$2:$D$471,D175,$J$2:$J$471)>3005.06),IF(COUNTIF($D$2:D175,D175)>1,INDEX(INGRESOS!$A$1:$O$471,MATCH(D175,$D$1:D174,0),COLUMN($O$1)),MAX($O$1:O174)+1),0) -> 0
D176: =IF(E176<>"",VLOOKUP(E176,CLIENTES!$A$2:$B$1001,2,FALSE),"") ->  | G176: 21 | I176: 0 | J176: 0 | L176: 0 | O176: =IF(AND(D176<>"",SUMIF($D$2:$D$471,D176,$F$2:$F$471)+SUMIF($D$2:$D$471,D176,$I$2:$I$471)+SUMIF($D$2:$D$471,D176,$J$2:$J$471)>3005.06),IF(COUNTIF($D$2:D176,D176)>1,INDEX(INGRESOS!$A$1:$O$471,MATCH(D176,$D$1:D175,0),COLUMN($O$1)),MAX($O$1:O175)+1),0) -> 0
D177: =IF(E177<>"",VLOOKUP(E177,CLIENTES!$A$2:$B$1001,2,FALSE),"") ->  | G177: 21 | I177: 0 | J177: 0 | L177: 0 | O177: =IF(AND(D177<>"",SUMIF($D$2:$D$471,D177,$F$2:$F$471)+SUMIF($D$2:$D$471,D177,$I$2:$I$471)+SUMIF($D$2:$D$471,D177,$J$2:$J$471)>3005.06),IF(COUNTIF($D$2:D177,D177)>1,INDEX(INGRESOS!$A$1:$O$471,MATCH(D177,$D$1:D176,0),COLUMN($O$1)),MAX($O$1:O176)+1),0) -> 0
D178: =IF(E178<>"",VLOOKUP(E178,CLIENTES!$A$2:$B$1001,2,FALSE),"") ->  | G178: 21 | I178: 0 | J178: 0 | L178: 0 | O178: =IF(AND(D178<>"",SUMIF($D$2:$D$471,D178,$F$2:$F$471)+SUMIF($D$2:$D$471,D178,$I$2:$I$471)+SUMIF($D$2:$D$471,D178,$J$2:$J$471)>3005.06),IF(COUNTIF($D$2:D178,D178)>1,INDEX(INGRESOS!$A$1:$O$471,MATCH(D178,$D$1:D177,0),COLUMN($O$1)),MAX($O$1:O177)+1),0) -> 0
D179: =IF(E179<>"",VLOOKUP(E179,CLIENTES!$A$2:$B$1001,2,FALSE),"") ->  | G179: 21 | I179: 0 | J179: 0 | L179: 0 | O179: =IF(AND(D179<>"",SUMIF($D$2:$D$471,D179,$F$2:$F$471)+SUMIF($D$2:$D$471,D179,$I$2:$I$471)+SUMIF($D$2:$D$471,D179,$J$2:$J$471)>3005.06),IF(COUNTIF($D$2:D179,D179)>1,INDEX(INGRESOS!$A$1:$O$471,MATCH(D179,$D$1:D178,0),COLUMN($O$1)),MAX($O$1:O178)+1),0) -> 0
D180: =IF(E180<>"",VLOOKUP(E180,CLIENTES!$A$2:$B$1001,2,FALSE),"") ->  | G180: 21 | I180: 0 | J180: 0 | L180: 0 | O180: =IF(AND(D180<>"",SUMIF($D$2:$D$471,D180,$F$2:$F$471)+SUMIF($D$2:$D$471,D180,$I$2:$I$471)+SUMIF($D$2:$D$471,D180,$J$2:$J$471)>3005.06),IF(COUNTIF($D$2:D180,D180)>1,INDEX(INGRESOS!$A$1:$O$471,MATCH(D180,$D$1:D179,0),COLUMN($O$1)),MAX($O$1:O179)+1),0) -> 0
D181: =IF(E181<>"",VLOOKUP(E181,CLIENTES!$A$2:$B$1001,2,FALSE),"") ->  | G181: 21 | I181: 0 | J181: 0 | L181: 0 | O181: =IF(AND(D181<>"",SUMIF($D$2:$D$471,D181,$F$2:$F$471)+SUMIF($D$2:$D$471,D181,$I$2:$I$471)+SUMIF($D$2:$D$471,D181,$J$2:$J$471)>3005.06),IF(COUNTIF($D$2:D181,D181)>1,INDEX(INGRESOS!$A$1:$O$471,MATCH(D181,$D$1:D180,0),COLUMN($O$1)),MAX($O$1:O180)+1),0) -> 0
D182: =IF(E182<>"",VLOOKUP(E182,CLIENTES!$A$2:$B$1001,2,FALSE),"") ->  | G182: 21 | I182: 0 | J182: 0 | L182: 0 | O182: =IF(AND(D182<>"",SUMIF($D$2:$D$471,D182,$F$2:$F$471)+SUMIF($D$2:$D$471,D182,$I$2:$I$471)+SUMIF($D$2:$D$471,D182,$J$2:$J$471)>3005.06),IF(COUNTIF($D$2:D182,D182)>1,INDEX(INGRESOS!$A$1:$O$471,MATCH(D182,$D$1:D181,0),COLUMN($O$1)),MAX($O$1:O181)+1),0) -> 0
D183: =IF(E183<>"",VLOOKUP(E183,CLIENTES!$A$2:$B$1001,2,FALSE),"") ->  | G183: 21 | I183: 0 | J183: 0 | L183: 0 | O183: =IF(AND(D183<>"",SUMIF($D$2:$D$471,D183,$F$2:$F$471)+SUMIF($D$2:$D$471,D183,$I$2:$I$471)+SUMIF($D$2:$D$471,D183,$J$2:$J$471)>3005.06),IF(COUNTIF($D$2:D183,D183)>1,INDEX(INGRESOS!$A$1:$O$471,MATCH(D183,$D$1:D182,0),COLUMN($O$1)),MAX($O$1:O182)+1),0) -> 0
D184: =IF(E184<>"",VLOOKUP(E184,CLIENTES!$A$2:$B$1001,2,FALSE),"") ->  | G184: 21 | I184: 0 | J184: 0 | L184: 0 | O184: =IF(AND(D184<>"",SUMIF($D$2:$D$471,D184,$F$2:$F$471)+SUMIF($D$2:$D$471,D184,$I$2:$I$471)+SUMIF($D$2:$D$471,D184,$J$2:$J$471)>3005.06),IF(COUNTIF($D$2:D184,D184)>1,INDEX(INGRESOS!$A$1:$O$471,MATCH(D184,$D$1:D183,0),COLUMN($O$1)),MAX($O$1:O183)+1),0) -> 0
D185: =IF(E185<>"",VLOOKUP(E185,CLIENTES!$A$2:$B$1001,2,FALSE),"") ->  | G185: 21 | I185: 0 | J185: 0 | L185: 0 | O185: =IF(AND(D185<>"",SUMIF($D$2:$D$471,D185,$F$2:$F$471)+SUMIF($D$2:$D$471,D185,$I$2:$I$471)+SUMIF($D$2:$D$471,D185,$J$2:$J$471)>3005.06),IF(COUNTIF($D$2:D185,D185)>1,INDEX(INGRESOS!$A$1:$O$471,MATCH(D185,$D$1:D184,0),COLUMN($O$1)),MAX($O$1:O184)+1),0) -> 0
D186: =IF(E186<>"",VLOOKUP(E186,CLIENTES!$A$2:$B$1001,2,FALSE),"") ->  | G186: 21 | I186: 0 | J186: 0 | L186: 0 | O186: =IF(AND(D186<>"",SUMIF($D$2:$D$471,D186,$F$2:$F$471)+SUMIF($D$2:$D$471,D186,$I$2:$I$471)+SUMIF($D$2:$D$471,D186,$J$2:$J$471)>3005.06),IF(COUNTIF($D$2:D186,D186)>1,INDEX(INGRESOS!$A$1:$O$471,MATCH(D186,$D$1:D185,0),COLUMN($O$1)),MAX($O$1:O185)+1),0) -> 0
D187: =IF(E187<>"",VLOOKUP(E187,CLIENTES!$A$2:$B$1001,2,FALSE),"") ->  | G187: 21 | I187: 0 | J187: 0 | L187: 0 | O187: =IF(AND(D187<>"",SUMIF($D$2:$D$471,D187,$F$2:$F$471)+SUMIF($D$2:$D$471,D187,$I$2:$I$471)+SUMIF($D$2:$D$471,D187,$J$2:$J$471)>3005.06),IF(COUNTIF($D$2:D187,D187)>1,INDEX(INGRESOS!$A$1:$O$471,MATCH(D187,$D$1:D186,0),COLUMN($O$1)),MAX($O$1:O186)+1),0) -> 0
D188: =IF(E188<>"",VLOOKUP(E188,CLIENTES!$A$2:$B$1001,2,FALSE),"") ->  | G188: 21 | I188: 0 | J188: 0 | L188: 0 | O188: =IF(AND(D188<>"",SUMIF($D$2:$D$471,D188,$F$2:$F$471)+SUMIF($D$2:$D$471,D188,$I$2:$I$471)+SUMIF($D$2:$D$471,D188,$J$2:$J$471)>3005.06),IF(COUNTIF($D$2:D188,D188)>1,INDEX(INGRESOS!$A$1:$O$471,MATCH(D188,$D$1:D187,0),COLUMN($O$1)),MAX($O$1:O187)+1),0) -> 0
D189: =IF(E189<>"",VLOOKUP(E189,CLIENTES!$A$2:$B$1001,2,FALSE),"") ->  | G189: 21 | I189: 0 | J189: 0 | L189: 0 | O189: =IF(AND(D189<>"",SUMIF($D$2:$D$471,D189,$F$2:$F$471)+SUMIF($D$2:$D$471,D189,$I$2:$I$471)+SUMIF($D$2:$D$471,D189,$J$2:$J$471)>3005.06),IF(COUNTIF($D$2:D189,D189)>1,INDEX(INGRESOS!$A$1:$O$471,MATCH(D189,$D$1:D188,0),COLUMN($O$1)),MAX($O$1:O188)+1),0) -> 0
D190: =IF(E190<>"",VLOOKUP(E190,CLIENTES!$A$2:$B$1001,2,FALSE),"") ->  | G190: 21 | I190: 0 | J190: 0 | L190: 0 | O190: =IF(AND(D190<>"",SUMIF($D$2:$D$471,D190,$F$2:$F$471)+SUMIF($D$2:$D$471,D190,$I$2:$I$471)+SUMIF($D$2:$D$471,D190,$J$2:$J$471)>3005.06),IF(COUNTIF($D$2:D190,D190)>1,INDEX(INGRESOS!$A$1:$O$471,MATCH(D190,$D$1:D189,0),COLUMN($O$1)),MAX($O$1:O189)+1),0) -> 0
D191: =IF(E191<>"",VLOOKUP(E191,CLIENTES!$A$2:$B$1001,2,FALSE),"") ->  | G191: 21 | I191: 0 | J191: 0 | L191: 0 | O191: =IF(AND(D191<>"",SUMIF($D$2:$D$471,D191,$F$2:$F$471)+SUMIF($D$2:$D$471,D191,$I$2:$I$471)+SUMIF($D$2:$D$471,D191,$J$2:$J$471)>3005.06),IF(COUNTIF($D$2:D191,D191)>1,INDEX(INGRESOS!$A$1:$O$471,MATCH(D191,$D$1:D190,0),COLUMN($O$1)),MAX($O$1:O190)+1),0) -> 0
D192: =IF(E192<>"",VLOOKUP(E192,CLIENTES!$A$2:$B$1001,2,FALSE),"") ->  | G192: 21 | I192: 0 | J192: 0 | L192: 0 | O192: =IF(AND(D192<>"",SUMIF($D$2:$D$471,D192,$F$2:$F$471)+SUMIF($D$2:$D$471,D192,$I$2:$I$471)+SUMIF($D$2:$D$471,D192,$J$2:$J$471)>3005.06),IF(COUNTIF($D$2:D192,D192)>1,INDEX(INGRESOS!$A$1:$O$471,MATCH(D192,$D$1:D191,0),COLUMN($O$1)),MAX($O$1:O191)+1),0) -> 0
D193: =IF(E193<>"",VLOOKUP(E193,CLIENTES!$A$2:$B$1001,2,FALSE),"") ->  | G193: 21 | I193: 0 | J193: 0 | L193: 0 | O193: =IF(AND(D193<>"",SUMIF($D$2:$D$471,D193,$F$2:$F$471)+SUMIF($D$2:$D$471,D193,$I$2:$I$471)+SUMIF($D$2:$D$471,D193,$J$2:$J$471)>3005.06),IF(COUNTIF($D$2:D193,D193)>1,INDEX(INGRESOS!$A$1:$O$471,MATCH(D193,$D$1:D192,0),COLUMN($O$1)),MAX($O$1:O192)+1),0) -> 0
D194: =IF(E194<>"",VLOOKUP(E194,CLIENTES!$A$2:$B$1001,2,FALSE),"") ->  | G194: 21 | I194: 0 | J194: 0 | L194: 0 | O194: =IF(AND(D194<>"",SUMIF($D$2:$D$471,D194,$F$2:$F$471)+SUMIF($D$2:$D$471,D194,$I$2:$I$471)+SUMIF($D$2:$D$471,D194,$J$2:$J$471)>3005.06),IF(COUNTIF($D$2:D194,D194)>1,INDEX(INGRESOS!$A$1:$O$471,MATCH(D194,$D$1:D193,0),COLUMN($O$1)),MAX($O$1:O193)+1),0) -> 0
D195: =IF(E195<>"",VLOOKUP(E195,CLIENTES!$A$2:$B$1001,2,FALSE),"") ->  | G195: 21 | I195: 0 | J195: 0 | L195: 0 | O195: =IF(AND(D195<>"",SUMIF($D$2:$D$471,D195,$F$2:$F$471)+SUMIF($D$2:$D$471,D195,$I$2:$I$471)+SUMIF($D$2:$D$471,D195,$J$2:$J$471)>3005.06),IF(COUNTIF($D$2:D195,D195)>1,INDEX(INGRESOS!$A$1:$O$471,MATCH(D195,$D$1:D194,0),COLUMN($O$1)),MAX($O$1:O194)+1),0) -> 0
D196: =IF(E196<>"",VLOOKUP(E196,CLIENTES!$A$2:$B$1001,2,FALSE),"") ->  | G196: 21 | I196: 0 | J196: 0 | L196: 0 | O196: =IF(AND(D196<>"",SUMIF($D$2:$D$471,D196,$F$2:$F$471)+SUMIF($D$2:$D$471,D196,$I$2:$I$471)+SUMIF($D$2:$D$471,D196,$J$2:$J$471)>3005.06),IF(COUNTIF($D$2:D196,D196)>1,INDEX(INGRESOS!$A$1:$O$471,MATCH(D196,$D$1:D195,0),COLUMN($O$1)),MAX($O$1:O195)+1),0) -> 0
D197: =IF(E197<>"",VLOOKUP(E197,CLIENTES!$A$2:$B$1001,2,FALSE),"") ->  | G197: 21 | I197: 0 | J197: 0 | L197: 0 | O197: =IF(AND(D197<>"",SUMIF($D$2:$D$471,D197,$F$2:$F$471)+SUMIF($D$2:$D$471,D197,$I$2:$I$471)+SUMIF($D$2:$D$471,D197,$J$2:$J$471)>3005.06),IF(COUNTIF($D$2:D197,D197)>1,INDEX(INGRESOS!$A$1:$O$471,MATCH(D197,$D$1:D196,0),COLUMN($O$1)),MAX($O$1:O196)+1),0) -> 0
D198: =IF(E198<>"",VLOOKUP(E198,CLIENTES!$A$2:$B$1001,2,FALSE),"") ->  | G198: 21 | I198: 0 | J198: 0 | L198: 0 | O198: =IF(AND(D198<>"",SUMIF($D$2:$D$471,D198,$F$2:$F$471)+SUMIF($D$2:$D$471,D198,$I$2:$I$471)+SUMIF($D$2:$D$471,D198,$J$2:$J$471)>3005.06),IF(COUNTIF($D$2:D198,D198)>1,INDEX(INGRESOS!$A$1:$O$471,MATCH(D198,$D$1:D197,0),COLUMN($O$1)),MAX($O$1:O197)+1),0) -> 0
D199: =IF(E199<>"",VLOOKUP(E199,CLIENTES!$A$2:$B$1001,2,FALSE),"") ->  | G199: 21 | I199: 0 | J199: 0 | L199: 0 | O199: =IF(AND(D199<>"",SUMIF($D$2:$D$471,D199,$F$2:$F$471)+SUMIF($D$2:$D$471,D199,$I$2:$I$471)+SUMIF($D$2:$D$471,D199,$J$2:$J$471)>3005.06),IF(COUNTIF($D$2:D199,D199)>1,INDEX(INGRESOS!$A$1:$O$471,MATCH(D199,$D$1:D198,0),COLUMN($O$1)),MAX($O$1:O198)+1),0) -> 0
D200: =IF(E200<>"",VLOOKUP(E200,CLIENTES!$A$2:$B$1001,2,FALSE),"") ->  | G200: 21 | I200: 0 | J200: 0 | L200: 0 | O200: =IF(AND(D200<>"",SUMIF($D$2:$D$471,D200,$F$2:$F$471)+SUMIF($D$2:$D$471,D200,$I$2:$I$471)+SUMIF($D$2:$D$471,D200,$J$2:$J$471)>3005.06),IF(COUNTIF($D$2:D200,D200)>1,INDEX(INGRESOS!$A$1:$O$471,MATCH(D200,$D$1:D199,0),COLUMN($O$1)),MAX($O$1:O199)+1),0) -> 0
... 272 more rows

Sheet GASTOS
A1: FECHA REGISTRO | B1: FECHA FACTURA | C1: Nº FACTURA | D1: CIF / NIF | E1: APELLIDOS Y NOMBRE O RAZÓN SOCIAL | F1: DESCRIPCIÓN | G1: AEAT | H1: CONSUMOS EXPLOTACIÓN | I1: SUELDOS SALARIOS | J1: OTROS GASTOS PERSONAL | K1: SEGURIDAD SOCIAL | L1: ARRENDAM. CÁNONES | M1: REPARACIONES CONSERVACIÓN | N1: SERVICIOS PROFESIONALES INDEPENDIENTES | O1: OTROS SERV. EXTERIORES (INCLUID. SUMINISTROS) | P1: TRIBUTOS DEDUCIBLES | Q1: GASTOS FINANCIEROS | R1: AMORTIZACIONES DOTACIONES DEDUCIBLES | S1: PÉRDIDAS DETERIORO VALOR ELEMENTOS PATRIMONIALES | T1: OTROS GASTOS | U1: BASE IMPONIBLE IRPF | V1: BASE IMPONIBLE IVA | W1: % IVA | X1: CUOTA IVA SOPORT | Y1: RETENCIÓN IRPF | Z1: TOTAL | AB1: GRUPO | AC1: Trimestre | AD1: Nº de Declarado Modelo 347 | AE1: MES | AF1: ESTADO | AH1: donde va?
A2: 2014-01-01 | B2: =IF(A2<>"",A2,"") -> 2014-01-01 | D2: H97554299 | E2: CDAD. PROP. CADIZ 38 | F2: 4T/2013 | G2: 0 | O2: 134.1 | U2: 134.1 | V2: =SUMPRODUCT((G2=1)*(W2<>0)*(H2:T2)) -> 0 | W2: 0 | X2: =ROUND((V2*(W2/100)),2) -> 0 | Z2: =SUM(H2:T2)+X2 -> 134.1 | AB2: CADIZ 38 | AC2: =IF(A2<>"",IF(MONTH(A2)<=3,1,IF(AND(MONTH(A2)>3,MONTH(A2)<=6),2,IF(AND(MONTH(A2)>6,MONTH(A2)<=9),3,4))),"") -> 1 | AD2: =IF(AND(D2<>"",SUMIF($D$3:$D$548,D2,$V$3:$V$548)+SUMIF($D$3:$D$548,D2,$X$3:$X$548)>3005.06),IF(COUNTIF($D$2:D3,D2)>1,INDEX(GASTOS!$A$2:$AD$548,MATCH(D2,$D$1:D2,0),COLUMN($AD$2)),IF(MAX($AD$1:AD2)>MAX(INGRESOS!$O$1:$O$471),MAX($AD$1:AD2)+1,MAX(INGRESOS!$O$1:$O$471)+1)),0) -> 0 | AE2: =IF(A2<>"",MONTH(A2),"") -> 1 | AF2: PAGADA | AG2: 2014-01-22 | AH2: CDAD. CADIZ 38
A3: 2014-01-01 | B3: =IF(A3<>"",A3,"") -> 2014-01-01 | D3: H96036967 | E3: CDAD. PROP. CADIZ 77 | F3: 4T/2013 | G3: 1 | O3: 148.69 | U3: =IF(G3=1,SUM(H3:T3),0) -> 148.69 | V3: 0 | W3: 0 | X3: 0 | Z3: 148.69 | AB3: CADIZ 77 | AC3: 1 | AD3: =IF(AND(D3<>"",SUMIF($D$3:$D$548,D3,$V$3:$V$548)+SUMIF($D$3:$D$548,D3,$X$3:$X$548)>3005.06),IF(COUNTIF($D$3:D3,D3)>1,INDEX(GASTOS!$A$2:$AD$548,MATCH(D3,$D$2:D2,0),COLUMN($AD$2)),IF(MAX($AD$2:AD2)>MAX(INGRESOS!$O$1:$O$471),MAX($AD$2:AD2)+1,MAX(INGRESOS!$O$1:$O$471)+1)),0) -> 0 | AE3: 1 | AF3: PAGADA | AG3: 2014-01-21 | AH3: CDAD. CADIZ 77
A4: 2014-01-01 | B4: =IF(A4<>"",A4,"") -> 2014-01-01 | D4: H46854410 | E4: CDAD. PROP. GARAJE SUECA 64 | F4: 4T/2013 | G4: 0 | O4: 96.61 | U4: =IF(G4=1,SUM(H4:T4),0) -> 0 | V4: 0 | W4: 0 | X4: 0 | Z4: 96.61 | AB4: SUECA 64 | AC4: 1 | AD4: =IF(AND(D4<>"",SUMIF($D$3:$D$548,D4,$V$3:$V$548)+SUMIF($D$3:$D$548,D4,$X$3:$X$548)>3005.06),IF(COUNTIF($D$3:D4,D4)>1,INDEX(GASTOS!$A$2:$AD$548,MATCH(D4,$D$2:D3,0),COLUMN($AD$2)),IF(MAX($AD$2:AD3)>MAX(INGRESOS!$O$1:$O$471),MAX($AD$2:AD3)+1,MAX(INGRESOS!$O$1:$O$471)+1)),0) -> 0 | AE4: 1 | AF4: PAGADA | AG4: 2014-08-19 | AH4: CDAD. SUECA 64
A5: 2014-01-01 | B5: 2014-01-01 | D5: =IF(E5<>"",VLOOKUP(E5,PROVEEDORES!$A$2:$B$1000,2,FALSE),"") -> A82018474 | E5: TELEFÓNICA DE ESPAÑA S.A.U. | F5: TELEFONIA FIJA | G5: 1 | O5: 60.38 | U5: =IF(G5=1,SUM(H5:T5),0) -> 60.38 | V5: 60.38 | W5: 21 | X5: 12.68 | Z5: 73.06 | AB5: CADIZ 77 | AC5: 1 | AD5: =IF(AND(D5<>"",SUMIF($D$3:$D$548,D5,$V$3:$V$548)+SUMIF($D$3:$D$548,D5,$X$3:$X$548)>3005.06),IF(COUNTIF($D$2:D6,D5)>1,INDEX(GASTOS!$A$2:$AD$548,MATCH(D5,$D$2:D5,0),COLUMN($AD$2)),IF(MAX($AD$2:AD5)>MAX(INGRESOS!$O$1:$O$471),MAX($AD$2:AD5)+1,MAX(INGRESOS!$O$1:$O$471)+1)),0) -> 0 | AE5: 1 | AF5: PAGADA | AH5: TELEFONIA
A6: 2014-01-01 | B6: 2014-01-01 | D6: =IF(E6<>"",VLOOKUP(E6,PROVEEDORES!$A$2:$B$1000,2,FALSE),"") -> A82018474 | E6: TELEFÓNICA DE ESPAÑA S.A.U. | F6: TERMINAL | G6: 1 | T6: 27.5 | U6: =IF(G6=1,SUM(H6:T6),0) -> 27.5 | V6: 0 | W6: 0 | X6: 0 | Z6: 27.5 | AB6: ARQUITECTURA | AC6: 1 | AD6: =IF(AND(D6<>"",SUMIF($D$3:$D$548,D6,$V$3:$V$548)+SUMIF($D$3:$D$548,D6,$X$3:$X$548)>3005.06),IF(COUNTIF($D$3:D6,D6)>1,INDEX(GASTOS!$A$2:$AD$548,MATCH(D6,$D$2:D5,0),COLUMN($AD$2)),IF(MAX($AD$2:AD5)>MAX(INGRESOS!$O$1:$O$471),MAX($AD$2:AD5)+1,MAX(INGRESOS!$O$1:$O$471)+1)),0) -> 0 | AE6: 1 | AF6: PAGADA | AH6: TELEFONIA
A7: 2014-01-02 | B7: =IF(A7<>"",A7,"") -> 2014-01-02 | D7: =IF(E7<>"",VLOOKUP(E7,PROVEEDORES!$A$2:$B$1000,2,FALSE),"") -> F08809808 | E7: CAJA DE ARQUITECTOS | F7: VISA LUCIA | G7: 0 | T7: 593.31 | U7: 593.31 | V7: 0 | W7: 0 | X7: 0 | Z7: 593.31 | AB7: CORRIENTE LUCIA | AC7: 1 | AD7: =IF(AND(D7<>"",SUMIF($D$3:$D$548,D7,$V$3:$V$548)+SUMIF($D$3:$D$548,D7,$X$3:$X$548)>3005.06),IF(COUNTIF($D$3:D7,D7)>1,INDEX(GASTOS!$A$2:$AD$548,MATCH(D7,$D$2:D6,0),COLUMN($AD$2)),IF(MAX($AD$2:AD6)>MAX(INGRESOS!$O$1:$O$471),MAX($AD$2:AD6)+1,MAX(INGRESOS!$O$1:$O$471)+1)),0) -> 0 | AE7: 1 | AF7: PAGADA | AH7: GASTOS CON TARJETA
A8: 2014-01-02 | B8: =IF(A8<>"",A8,"") -> 2014-01-02 | D8: =IF(E8<>"",VLOOKUP(E8,PROVEEDORES!$A$2:$B$1000,2,FALSE),"") ->  | E8: ING DIRECT | F8: AUTOPISTA | G8: 0 | T8: 25.8 | U8: =SUM(H8:T8) -> 25.8 | V8: 0 | W8: 0 | X8: 0 | Z8: 25.8 | AB8: CORRIENTE CARLOS | AC8: 1 | AD8: =IF(AND(D8<>"",SUMIF($D$3:$D$548,D8,$V$3:$V$548)+SUMIF($D$3:$D$548,D8,$X$3:$X$548)>3005.06),IF(COUNTIF($D$3:D8,D8)>1,INDEX(GASTOS!$A$2:$AD$548,MATCH(D8,$D$2:D7,0),COLUMN($AD$2)),IF(MAX($AD$2:AD7)>MAX(INGRESOS!$O$1:$O$471),MAX($AD$2:AD7)+1,MAX(INGRESOS!$O$1:$O$471)+1)),0) ->  | AE8: 1 | AH8: GASTOS CON TARJETA
A9: 2014-01-02 | B9: =IF(A9<>"",A9,"") -> 2014-01-02 | D9: =IF(E9<>"",VLOOKUP(E9,PROVEEDORES!$A$2:$B$1000,2,FALSE),"") ->  | E9: ING DIRECT | F9: CAJEROS | G9: 0 | T9: 40 | U9: 40 | V9: 0 | W9: 0 | X9: 0 | Z9: 40 | AB9: CORRIENTE CARLOS | AC9: 1 | AD9: =IF(AND(D9<>"",SUMIF($D$3:$D$548,D9,$V$3:$V$548)+SUMIF($D$3:$D$548,D9,$X$3:$X$548)>3005.06),IF(COUNTIF($D$3:D9,D9)>1,INDEX(GASTOS!$A$2:$AD$548,MATCH(D9,$D$2:D8,0),COLUMN($AD$2)),IF(MAX($AD$2:AD8)>MAX(INGRESOS!$O$1:$O$471),MAX($AD$2:AD8)+1,MAX(INGRESOS!$O$1:$O$471)+1)),0) ->  | AE9: 1 | AH9: GASTOS METALICO
A10: 2014-01-03 | B10: 2014-01-03 | D10: 13157016G | E10: JUAN JOSE HERRERO MANRIQUE | F10: EXTRACTOR | G10: 0 | M10: 45.14 | U10: 45.14 | V10: 0 | W10: 21 | X10: 0 | Z10: 45.14 | AB10: CADIZ 77 | AC10: 1 | AD10: =IF(AND(D10<>"",SUMIF($D$3:$D$548,D10,$V$3:$V$548)+SUMIF($D$3:$D$548,D10,$X$3:$X$548)>3005.06),IF(COUNTIF($D$3:D10,D10)>1,INDEX(GASTOS!$A$2:$AD$548,MATCH(D10,$D$2:D9,0),COLUMN($AD$2)),IF(MAX($AD$2:AD9)>MAX(INGRESOS!$O$1:$O$471),MAX($AD$2:AD9)+1,MAX(INGRESOS!$O$1:$O$471)+1)),0) -> 0 | AE10: 1 | AF10: PAGADA | AH10: FACTURAS
A11: 2014-01-05 | B11: =IF(A11<>"",A11,"") -> 2014-01-05 | D11: B96589668 | E11: E.S. SUR | F11: GASOLINA | G11: 0 | H11: 32 | U11: 32 | V11: 0 | W11: 21 | X11: 0 | Z11: 32 | AB11: ARQUITECTURA | AC11: 1 | AD11: =IF(AND(D11<>"",SUMIF($D$3:$D$548,D11,$V$3:$V$548)+SUMIF($D$3:$D$548,D11,$X$3:$X$548)>3005.06),IF(COUNTIF($D$3:D11,D11)>1,INDEX(GASTOS!$A$2:$AD$548,MATCH(D11,$D$2:D10,0),COLUMN($AD$2)),IF(MAX($AD$2:AD10)>MAX(INGRESOS!$O$1:$O$471),MAX($AD$2:AD10)+1,MAX(INGRESOS!$O$1:$O$471)+1)),0) -> 0 | AE11: 1 | AF11: PAGADA | AH11: COMBUSTIBLE
A12: 2014-01-07 | B12: 2014-01-07 | D12: =IF(E12<>"",VLOOKUP(E12,PROVEEDORES!$A$2:$B$1000,2,FALSE),"") ->  | E12: ING DIRECT | F12: COMIDA | G12: 0 | T12: 5.9 | U12: 5.9 | V12: 0 | W12: 0 | X12: 0 | Z12: 5.9 | AB12: CORRIENTE CARLOS | AC12: 1 | AD12: =IF(AND(D12<>"",SUMIF($D$3:$D$548,D12,$V$3:$V$548)+SUMIF($D$3:$D$548,D12,$X$3:$X$548)>3005.06),IF(COUNTIF($D$3:D12,D12)>1,INDEX(GASTOS!$A$2:$AD$548,MATCH(D12,$D$2:D11,0),COLUMN($AD$2)),IF(MAX($AD$2:AD11)>MAX(INGRESOS!$O$1:$O$471),MAX($AD$2:AD11)+1,MAX(INGRESOS!$O$1:$O$471)+1)),0) ->  | AE12: 1 | AH12: GASTOS METALICO
A13: 2014-01-07 | B13: 2014-01-07 | D13: =IF(E13<>"",VLOOKUP(E13,PROVEEDORES!$A$2:$B$1000,2,FALSE),"") -> B84406289 | E13: BRICOLAJE BRICOMAN S.L.U. | F13: MATERIAL | G13: 0 | T13: 32.97 | U13: 32.97 | V13: 0 | W13: 21 | X13: 0 | Z13: 32.97 | AB13: CADIZ 77 | AC13: 1 | AD13: =IF(AND(D13<>"",SUMIF($D$3:$D$548,D13,$V$3:$V$548)+SUMIF($D$3:$D$548,D13,$X$3:$X$548)>3005.06),IF(COUNTIF($D$3:D13,D13)>1,INDEX(GASTOS!$A$2:$AD$548,MATCH(D13,$D$2:D12,0),COLUMN($AD$2)),IF(MAX($AD$2:AD12)>MAX(INGRESOS!$O$1:$O$471),MAX($AD$2:AD12)+1,MAX(INGRESOS!$O$1:$O$471)+1)),0) -> 0 | AE13: 1 | AF13: PAGADA | AH13: MATERIALES/COMPRAS
A14: 2014-01-07 | B14: 2014-01-07 | D14: =IF(E14<>"",VLOOKUP(E14,PROVEEDORES!$A$2:$B$1000,2,FALSE),"") ->  | E14: ING DIRECT | F14: COMPRAS | G14: 0 | T14: 11.14 | U14: 11.14 | V14: 0 | W14: 0 | X14: 0 | Z14: 11.14 | AB14: CORRIENTE CARLOS | AC14: 1 | AD14: =IF(AND(D14<>"",SUMIF($D$3:$D$548,D14,$V$3:$V$548)+SUMIF($D$3:$D$548,D14,$X$3:$X$548)>3005.06),IF(COUNTIF($D$3:D14,D14)>1,INDEX(GASTOS!$A$2:$AD$548,MATCH(D14,$D$2:D13,0),COLUMN($AD$2)),IF(MAX($AD$2:AD13)>MAX(INGRESOS!$O$1:$O$471),MAX($AD$2:AD13)+1,MAX(INGRESOS!$O$1:$O$471)+1)),0) ->  | AE14: 1 | AH14: MATERIALES/COMPRAS
A15: 2014-01-08 | B15: 2014-01-08 | D15: =IF(E15<>"",VLOOKUP(E15,PROVEEDORES!$A$2:$B$1000,2,FALSE),"") ->  | E15: ING DIRECT | F15: CAJEROS | G15: 0 | T15: 40 | U15: 40 | V15: 0 | W15: 0 | X15: 0 | Z15: 40 | AB15: CORRIENTE CARLOS | AC15: 1 | AD15: =IF(AND(D15<>"",SUMIF($D$3:$D$548,D15,$V$3:$V$548)+SUMIF($D$3:$D$548,D15,$X$3:$X$548)>3005.06),IF(COUNTIF($D$3:D15,D15)>1,INDEX(GASTOS!$A$2:$AD$548,MATCH(D15,$D$2:D14,0),COLUMN($AD$2)),IF(MAX($AD$2:AD14)>MAX(INGRESOS!$O$1:$O$471),MAX($AD$2:AD14)+1,MAX(INGRESOS!$O$1:$O$471)+1)),0) ->  | AE15: 1 | AH15: GASTOS CON TARJETA
A16: 2014-01-08 | B16: 2014-01-08 | D16: =IF(E16<>"",VLOOKUP(E16,PROVEEDORES!$A$2:$B$1000,2,FALSE),"") -> A82009812 | E16: FRANCE TELECOM ESPAÑA | F16: MOVIL | G16: 1 | T16: 26.14 | U16: =IF(G16=1,SUM(H16:T16),0) -> 26.14 | V16: 26.14 | W16: 21 | X16: 5.49 | Z16: 31.63 | AB16: ARQUITECTURA | AC16: 1 | AD16: =IF(AND(D16<>"",SUMIF($D$3:$D$548,D16,$V$3:$V$548)+SUMIF($D$3:$D$548,D16,$X$3:$X$548)>3005.06),IF(COUNTIF($D$3:D16,D16)>1,INDEX(GASTOS!$A$2:$AD$548,MATCH(D16,$D$2:D15,0),COLUMN($AD$2)),IF(MAX($AD$2:AD15)>MAX(INGRESOS!$O$1:$O$471),MAX($AD$2:AD15)+1,MAX(INGRESOS!$O$1:$O$471)+1)),0) -> 0 | AE16: 1 | AF16: PAGADA | AH16: TELEFONIA
A17: 2014-01-09 | B17: 2014-01-09 | D17: =IF(E17<>"",VLOOKUP(E17,PROVEEDORES!$A$2:$B$1000,2,FALSE),"") -> B84406289 | E17: BRICOLAJE BRICOMAN S.L.U. | F17: MATERIAL | G17: 0 | T17: 37.43 | U17: =IF(G17=1,SUM(H17:T17),0) -> 0 | V17: 0 | W17: 21 | X17: 0 | Z17: 37.43 | AB17: CADIZ 77 | AC17: 1 | AD17: =IF(AND(D17<>"",SUMIF($D$3:$D$548,D17,$V$3:$V$548)+SUMIF($D$3:$D$548,D17,$X$3:$X$548)>3005.06),IF(COUNTIF($D$3:D17,D17)>1,INDEX(GASTOS!$A$2:$AD$548,MATCH(D17,$D$2:D16,0),COLUMN($AD$2)),IF(MAX($AD$2:AD16)>MAX(INGRESOS!$O$1:$O$471),MAX($AD$2:AD16)+1,MAX(INGRESOS!$O$1:$O$471)+1)),0) -> 0 | AE17: 1 | AF17: PAGADA | AH17: MATERIALES/COMPRAS
A18: 2014-01-14 | B18: 2014-01-14 | D18: =IF(E18<>"",VLOOKUP(E18,PROVEEDORES!$A$2:$B$1000,2,FALSE),"") -> A95554630 | E18: IBERDROLA COMERCIALIZACIÓN DE ÚLTIMO RECURSO | F18: CADIZ 38 | G18: 0 | O18: 145.67 | U18: =SUM(H18:T18) -> 145.67 | V18: 0 | W18: 21 | X18: 0 | Z18: 145.67 | AB18: CADIZ 38 | AC18: 1 | AD18: =IF(AND(D18<>"",SUMIF($D$3:$D$548,D18,$V$3:$V$548)+SUMIF($D$3:$D$548,D18,$X$3:$X$548)>3005.06),IF(COUNTIF($D$3:D18,D18)>1,INDEX(GASTOS!$A$2:$AD$548,MATCH(D18,$D$2:D17,0),COLUMN($AD$2)),IF(MAX($AD$2:AD17)>MAX(INGRESOS!$O$1:$O$471),MAX($AD$2:AD17)+1,MAX(INGRESOS!$O$1:$O$471)+1)),0) -> 0 | AE18: 1 | AF18: PAGADA | AH18: ELEC. CADIZ 38
A19: 2014-01-15 | B19: 2014-01-15 | D19: A95075586 | E19: IBERDROLA GENERACION S.A.U. | F19: CADIZ 77 | G19: 1 | O19: 196.3 | U19: =IF(G19=1,SUM(H19:T19),0) -> 196.3 | V19: 196.3 | W19: 21 | X19: 41.22 | Z19: 237.52 | AB19: CADIZ 77 | AC19: 1 | AD19: =IF(AND(D19<>"",SUMIF($D$3:$D$548,D19,$V$3:$V$548)+SUMIF($D$3:$D$548,D19,$X$3:$X$548)>3005.06),IF(COUNTIF($D$3:D19,D19)>1,INDEX(GASTOS!$A$2:$AD$548,MATCH(D19,$D$2:D18,0),COLUMN($AD$2)),IF(MAX($AD$2:AD18)>MAX(INGRESOS!$O$1:$O$471),MAX($AD$2:AD18)+1,MAX(INGRESOS!$O$1:$O$471)+1)),0) -> 0 | AE19: 1 | AF19: PAGADA | AH19: ELEC. CADIZ 77
A20: 2014-01-15 | B20: 2014-01-15 | D20: 0 | E20: AGENCIA TRIBUTARIA | F20: MULTA | G20: 0 | T20: 75 | U20: =SUM(H20:T20) -> 75 | V20: 0 | W20: 0 | X20: 0 | Z20: 75 | AB20: VARIOS | AC20: 1 | AD20: =IF(AND(D20<>"",SUMIF($D$3:$D$548,D20,$V$3:$V$548)+SUMIF($D$3:$D$548,D20,$X$3:$X$548)>3005.06),IF(COUNTIF($D$3:D20,D20)>1,INDEX(GASTOS!$A$2:$AD$548,MATCH(D20,$D$2:D19,0),COLUMN($AD$2)),IF(MAX($AD$2:AD19)>MAX(INGRESOS!$O$1:$O$471),MAX($AD$2:AD19)+1,MAX(INGRESOS!$O$1:$O$471)+1)),0) -> 0 | AE20: 1 | AF20: PAGADA | AH20: PAGOS AEAT
A21: 2014-01-15 | B21: 2014-01-15 | D21: =IF(E21<>"",VLOOKUP(E21,PROVEEDORES!$A$2:$B$1000,2,FALSE),"") -> 0 | E21: AGENCIA TRIBUTARIA | F21: MULTA LUCIA | G21: 0 | T21: 75 | U21: =SUM(H21:T21) -> 75 | V21: 0 | W21: 0 | X21: 0 | Z21: 75 | AB21: VARIOS | AC21: 1 | AD21: =IF(AND(D21<>"",SUMIF($D$3:$D$548,D21,$V$3:$V$548)+SUMIF($D$3:$D$548,D21,$X$3:$X$548)>3005.06),IF(COUNTIF($D$3:D21,D21)>1,INDEX(GASTOS!$A$2:$AD$548,MATCH(D21,$D$2:D20,0),COLUMN($AD$2)),IF(MAX($AD$2:AD20)>MAX(INGRESOS!$O$1:$O$471),MAX($AD$2:AD20)+1,MAX(INGRESOS!$O$1:$O$471)+1)),0) -> 0 | AE21: 1 | AF21: PAGADA | AH21: PAGOS AEAT
A22: 2014-01-16 | B22: 2014-01-16 | D22: =IF(E22<>"",VLOOKUP(E22,PROVEEDORES!$A$2:$B$1000,2,FALSE),"") -> F08809808 | E22: CAJA DE ARQUITECTOS | F22: GASTOS LUCIA | G22: 0 | T22: 20 | U22: =SUM(H22:T22) -> 20 | V22: 0 | W22: 0 | X22: 0 | Z22: 20 | AB22: CORRIENTE LUCIA | AC22: 1 | AD22: =IF(AND(D22<>"",SUMIF($D$3:$D$548,D22,$V$3:$V$548)+SUMIF($D$3:$D$548,D22,$X$3:$X$548)>3005.06),IF(COUNTIF($D$3:D22,D22)>1,INDEX(GASTOS!$A$2:$AD$548,MATCH(D22,$D$2:D21,0),COLUMN($AD$2)),IF(MAX($AD$2:AD21)>MAX(INGRESOS!$O$1:$O$471),MAX($AD$2:AD21)+1,MAX(INGRESOS!$O$1:$O$471)+1)),0) -> 0 | AE22: 1 | AF22: PAGADA | AH22: GASTOS CON TARJETA
A23: 2014-01-16 | B23: 2014-01-16 | D23: =IF(E23<>"",VLOOKUP(E23,PROVEEDORES!$A$2:$B$1000,2,FALSE),"") -> F08809808 | E23: CAJA DE ARQUITECTOS | F23: HIPOTECA CADIZ 38 | G23: 0 | Q23: 614.44 | T23: 0 | U23: =SUM(H23:T23) -> 614.44 | V23: 0 | W23: 0 | X23: 0 | Z23: 614.44 | AB23: CADIZ 38 | AC23: 1 | AD23: =IF(AND(D23<>"",SUMIF($D$3:$D$548,D23,$V$3:$V$548)+SUMIF($D$3:$D$548,D23,$X$3:$X$548)>3005.06),IF(COUNTIF($D$3:D23,D23)>1,INDEX(GASTOS!$A$2:$AD$548,MATCH(D23,$D$2:D22,0),COLUMN($AD$2)),IF(MAX($AD$2:AD22)>MAX(INGRESOS!$O$1:$O$471),MAX($AD$2:AD22)+1,MAX(INGRESOS!$O$1:$O$471)+1)),0) -> 0 | AE23: 1 | AF23: PAGADA | AH23: HIP. CADIZ 38
A24: 2014-01-16 | B24: 2014-01-16 | D24: =IF(E24<>"",VLOOKUP(E24,PROVEEDORES!$A$2:$B$1000,2,FALSE),"") -> F08809808 | E24: CAJA DE ARQUITECTOS | F24: HIPOTECA SAN VCTE | G24: 0 | Q24: 719.09 | U24: =IF(G24=1,SUM(H24:T24),0) -> 0 | V24: 0 | W24: 0 | X24: 0 | Z24: 719.09 | AB24: SAN VICENTE 222 | AC24: 1 | AD24: =IF(AND(D24<>"",SUMIF($D$3:$D$548,D24,$V$3:$V$548)+SUMIF($D$3:$D$548,D24,$X$3:$X$548)>3005.06),IF(COUNTIF($D$3:D24,D24)>1,INDEX(GASTOS!$A$2:$AD$548,MATCH(D24,$D$2:D23,0),COLUMN($AD$2)),IF(MAX($AD$2:AD23)>MAX(INGRESOS!$O$1:$O$471),MAX($AD$2:AD23)+1,MAX(INGRESOS!$O$1:$O$471)+1)),0) -> 0 | AE24: 1 | AF24: PAGADA | AH24: HIP. SAN VICENTE
A25: 2014-01-16 | B25: 2014-01-16 | D25: A28037042 | E25: SANITAS SOCIEDAD ANONIMA DE SEGUROS S.A. | F25: SALUD CARLOS | G25: 0 | T25: 51.89 | U25: =IF(G25=1,SUM(H25:T25),0) -> 0 | V25: 0 | W25: 0 | X25: 0 | Z25: 51.89 | AB25: SALUD CARLOS | AC25: 1 | AD25: =IF(AND(D25<>"",SUMIF($D$3:$D$548,D25,$V$3:$V$548)+SUMIF($D$3:$D$548,D25,$X$3:$X$548)>3005.06),IF(COUNTIF($D$3:D25,D25)>1,INDEX(GASTOS!$A$2:$AD$548,MATCH(D25,$D$2:D24,0),COLUMN($AD$2)),IF(MAX($AD$2:AD24)>MAX(INGRESOS!$O$1:$O$471),MAX($AD$2:AD24)+1,MAX(INGRESOS!$O$1:$O$471)+1)),0) -> 0 | AE25: 1 | AF25: PAGADA | AH25: HNA CARLOS
A26: 2014-01-16 | B26: 2014-01-16 | D26: V28306678 | E26: HERMANDAD NACIONAL DE ARQUITECTOS | F26: SPP CARLOS | G26: 0 | T26: 218.87 | U26: =IF(G26=1,SUM(H26:T26),0) -> 0 | V26: 0 | W26: 0 | X26: 0 | Z26: 218.87 | AB26: SALUD CARLOS | AC26: 1 | AD26: =IF(AND(D26<>"",SUMIF($D$3:$D$548,D26,$V$3:$V$548)+SUMIF($D$3:$D$548,D26,$X$3:$X$548)>3005.06),IF(COUNTIF($D$3:D26,D26)>1,INDEX(GASTOS!$A$2:$AD$548,MATCH(D26,$D$2:D25,0),COLUMN($AD$2)),IF(MAX($AD$2:AD25)>MAX(INGRESOS!$O$1:$O$471),MAX($AD$2:AD25)+1,MAX(INGRESOS!$O$1:$O$471)+1)),0) -> 0 | AE26: 1 | AF26: PAGADA | AH26: HNA CARLOS
A27: 2014-01-16 | B27: 2014-01-16 | D27: =IF(E27<>"",VLOOKUP(E27,PROVEEDORES!$A$2:$B$1000,2,FALSE),"") -> V28306678 | E27: HERMANDAD NACIONAL DE ARQUITECTOS | F27: SEGURO CARLOS | G27: 0 | T27: 37.39 | U27: =IF(G27=1,SUM(H27:T27),0) -> 0 | V27: 0 | W27: 0 | X27: 0 | Z27: 37.39 | AB27: SALUD CARLOS | AC27: 1 | AD27: =IF(AND(D27<>"",SUMIF($D$3:$D$548,D27,$V$3:$V$548)+SUMIF($D$3:$D$548,D27,$X$3:$X$548)>3005.06),IF(COUNTIF($D$3:D27,D27)>1,INDEX(GASTOS!$A$2:$AD$548,MATCH(D27,$D$2:D26,0),COLUMN($AD$2)),IF(MAX($AD$2:AD26)>MAX(INGRESOS!$O$1:$O$471),MAX($AD$2:AD26)+1,MAX(INGRESOS!$O$1:$O$471)+1)),0) -> 0 | AE27: 1 | AF27: PAGADA | AH27: HNA CARLOS
A28: 2014-01-16 | B28: 2014-01-16 | D28: V28306678 | E28: HERMANDAD NACIONAL DE ARQUITECTOS | F28: SALUD LUCIAS | G28: 0 | T28: 122.84 | U28: =IF(G28=1,SUM(H28:T28),0) -> 0 | V28: 0 | W28: 0 | X28: 0 | Z28: 122.84 | AB28: SALUD LUCIAS | AC28: 1 | AD28: =IF(AND(D28<>"",SUMIF($D$3:$D$548,D28,$V$3:$V$548)+SUMIF($D$3:$D$548,D28,$X$3:$X$548)>3005.06),IF(COUNTIF($D$3:D28,D28)>1,INDEX(GASTOS!$A$2:$AD$548,MATCH(D28,$D$2:D27,0),COLUMN($AD$2)),IF(MAX($AD$2:AD27)>MAX(INGRESOS!$O$1:$O$471),MAX($AD$2:AD27)+1,MAX(INGRESOS!$O$1:$O$471)+1)),0) -> 0 | AE28: 1 | AF28: PAGADA | AH28: HNA LUCIAS
A29: 2014-01-18 | B29: 2014-01-18 | D29: =IF(E29<>"",VLOOKUP(E29,PROVEEDORES!$A$2:$B$1000,2,FALSE),"") ->  | E29: ING DIRECT | F29: COMIDA | G29: 0 | T29: 69.64 | U29: =SUM(H29:T29) -> 69.64 | V29: 0 | W29: 0 | X29: 0 | Z29: 69.64 | AB29: CORRIENTE CARLOS | AC29: 1 | AD29: =IF(AND(D29<>"",SUMIF($D$3:$D$548,D29,$V$3:$V$548)+SUMIF($D$3:$D$548,D29,$X$3:$X$548)>3005.06),IF(COUNTIF($D$3:D29,D29)>1,INDEX(GASTOS!$A$2:$AD$548,MATCH(D29,$D$2:D28,0),COLUMN($AD$2)),IF(MAX($AD$2:AD28)>MAX(INGRESOS!$O$1:$O$471),MAX($AD$2:AD28)+1,MAX(INGRESOS!$O$1:$O$471)+1)),0) ->  | AE29: 1 | AH29: GASTOS METALICO
A30: 2014-01-20 | B30: 2014-01-20 | D30: =IF(E30<>"",VLOOKUP(E30,PROVEEDORES!$A$2:$B$1000,2,FALSE),"") ->  | E30: ING DIRECT | F30: COMIDA | G30: 0 | T30: 5.9 | U30: =SUM(H30:T30) -> 5.9 | V30: 0 | W30: 0 | X30: 0 | Z30: 5.9 | AB30: CORRIENTE CARLOS | AC30: 1 | AD30: =IF(AND(D30<>"",SUMIF($D$3:$D$548,D30,$V$3:$V$548)+SUMIF($D$3:$D$548,D30,$X$3:$X$548)>3005.06),IF(COUNTIF($D$3:D30,D30)>1,INDEX(GASTOS!$A$2:$AD$548,MATCH(D30,$D$2:D29,0),COLUMN($AD$2)),IF(MAX($AD$2:AD29)>MAX(INGRESOS!$O$1:$O$471),MAX($AD$2:AD29)+1,MAX(INGRESOS!$O$1:$O$471)+1)),0) ->  | AE30: 1 | AH30: GASTOS METALICO
A31: 2014-01-21 | B31: 2014-01-21 | D31: =IF(E31<>"",VLOOKUP(E31,PROVEEDORES!$A$2:$B$1000,2,FALSE),"") -> F08809808 | E31: CAJA DE ARQUITECTOS | F31: HIPOTECA SAN VICENTE | G31: 0 | Q31: 563.36 | U31: =SUM(H31:T31) -> 563.36 | V31: 0 | W31: 0 | X31: 0 | Z31: 563.36 | AB31: SAN VICENTE 222 | AC31: 1 | AD31: =IF(AND(D31<>"",SUMIF($D$3:$D$548,D31,$V$3:$V$548)+SUMIF($D$3:$D$548,D31,$X$3:$X$548)>3005.06),IF(COUNTIF($D$3:D31,D31)>1,INDEX(GASTOS!$A$2:$AD$548,MATCH(D31,$D$2:D30,0),COLUMN($AD$2)),IF(MAX($AD$2:AD30)>MAX(INGRESOS!$O$1:$O$471),MAX($AD$2:AD30)+1,MAX(INGRESOS!$O$1:$O$471)+1)),0) -> 0 | AE31: 1 | AF31: PAGADA | AH31: HIP. SAN VICENTE
A32: 2014-01-22 | B32: 2014-01-22 | D32: =IF(E32<>"",VLOOKUP(E32,PROVEEDORES!$A$2:$B$1000,2,FALSE),"") -> F08809808 | E32: CAJA DE ARQUITECTOS | F32: VISA LUCIA | G32: 0 | T32: 150 | U32: =SUM(H32:T32) -> 150 | V32: 0 | W32: 0 | X32: 0 | Z32: 150 | AB32: CORRIENTE LUCIA | AC32: 1 | AD32: =IF(AND(D32<>"",SUMIF($D$3:$D$548,D32,$V$3:$V$548)+SUMIF($D$3:$D$548,D32,$X$3:$X$548)>3005.06),IF(COUNTIF($D$3:D32,D32)>1,INDEX(GASTOS!$A$2:$AD$548,MATCH(D32,$D$2:D31,0),COLUMN($AD$2)),IF(MAX($AD$2:AD31)>MAX(INGRESOS!$O$1:$O$471),MAX($AD$2:AD31)+1,MAX(INGRESOS!$O$1:$O$471)+1)),0) -> 0 | AE32: 1 | AF32: PAGADA | AH32: GASTOS CON TARJETA
A33: 2014-01-23 | B33: 2014-01-23 | D33: =IF(E33<>"",VLOOKUP(E33,PROVEEDORES!$A$2:$B$1000,2,FALSE),"") ->  | E33: ING DIRECT | F33: COMIDA | G33: 0 | T33: 19.9 | U33: =SUM(H33:T33) -> 19.9 | V33: 0 | W33: 0 | X33: 0 | Z33: 19.9 | AB33: CORRIENTE CARLOS | AC33: 1 | AD33: =IF(AND(D33<>"",SUMIF($D$3:$D$548,D33,$V$3:$V$548)+SUMIF($D$3:$D$548,D33,$X$3:$X$548)>3005.06),IF(COUNTIF($D$3:D33,D33)>1,INDEX(GASTOS!$A$2:$AD$548,MATCH(D33,$D$2:D32,0),COLUMN($AD$2)),IF(MAX($AD$2:AD32)>MAX(INGRESOS!$O$1:$O$471),MAX($AD$2:AD32)+1,MAX(INGRESOS!$O$1:$O$471)+1)),0) ->  | AE33: 1 | AH33: GASTOS METALICO
A34: 2014-01-23 | B34: 2014-01-23 | D34: B81609372 | E34: MADERAS HERMANOS ANDRES GOLVANO, S.L. | F34: PANELES DESPACHO | G34: 0 | T34: 299.72 | U34: =IF(G34=1,SUM(H34:T34),0) -> 0 | V34: 0 | W34: 21 | X34: 0 | Z34: 299.72 | AB34: CADIZ 77 | AC34: 1 | AD34: =IF(AND(D34<>"",SUMIF($D$3:$D$548,D34,$V$3:$V$548)+SUMIF($D$3:$D$548,D34,$X$3:$X$548)>3005.06),IF(COUNTIF($D$3:D34,D34)>1,INDEX(GASTOS!$A$2:$AD$548,MATCH(D34,$D$2:D33,0),COLUMN($AD$2)),IF(MAX($AD$2:AD33)>MAX(INGRESOS!$O$1:$O$471),MAX($AD$2:AD33)+1,MAX(INGRESOS!$O$1:$O$471)+1)),0) -> 0 | AE34: 1 | AF34: PAGADA | AH34: MATERIALES/COMPRAS
A35: 2014-01-24 | B35: 2014-01-24 | D35: A08980153 | E35: FINCONSUM, S.A.U. | F35: CREDITO IKEA | G35: 0 | T35: 143.09 | U35: =SUM(H35:T35) -> 143.09 | V35: 0 | W35: 0 | X35: 0 | Z35: 143.09 | AB35: PRESTAMOS | AC35: 1 | AD35: =IF(AND(D35<>"",SUMIF($D$3:$D$548,D35,$V$3:$V$548)+SUMIF($D$3:$D$548,D35,$X$3:$X$548)>3005.06),IF(COUNTIF($D$3:D35,D35)>1,INDEX(GASTOS!$A$2:$AD$548,MATCH(D35,$D$2:D34,0),COLUMN($AD$2)),IF(MAX($AD$2:AD34)>MAX(INGRESOS!$O$1:$O$471),MAX($AD$2:AD34)+1,MAX(INGRESOS!$O$1:$O$471)+1)),0) -> 0 | AE35: 1 | AF35: PAGADA | AH35: CREDITOS
A36: 2014-01-24 | B36: 2014-01-24 | D36: =IF(E36<>"",VLOOKUP(E36,PROVEEDORES!$A$2:$B$1000,2,FALSE),"") ->  | E36: ING DIRECT | F36: CAJEROS | G36: 0 | T36: 50 | U36: =SUM(H36:T36) -> 50 | V36: 0 | W36: 0 | X36: 0 | Z36: 50 | AB36: CORRIENTE CARLOS | AC36: 1 | AD36: =IF(AND(D36<>"",SUMIF($D$3:$D$548,D36,$V$3:$V$548)+SUMIF($D$3:$D$548,D36,$X$3:$X$548)>3005.06),IF(COUNTIF($D$3:D36,D36)>1,INDEX(GASTOS!$A$2:$AD$548,MATCH(D36,$D$2:D35,0),COLUMN($AD$2)),IF(MAX($AD$2:AD35)>MAX(INGRESOS!$O$1:$O$471),MAX($AD$2:AD35)+1,MAX(INGRESOS!$O$1:$O$471)+1)),0) ->  | AE36: 1 | AH36: GASTOS METALICO
A37: 2014-01-24 | B37: 2014-01-24 | D37: =IF(E37<>"",VLOOKUP(E37,PROVEEDORES!$A$2:$B$1000,2,FALSE),"") -> A28037042 | E37: SANITAS SOCIEDAD ANONIMA DE SEGUROS S.A. | F37: SEGURO CARLOS | G37: 0 | T37: 51.89 | U37: =IF(G37=1,SUM(H37:T37),0) -> 0 | V37: 0 | W37: 0 | X37: 0 | Z37: 51.89 | AA37: A | AB37: ARQUITECTURA | AC37: 1 | AD37: =IF(AND(D37<>"",SUMIF($D$3:$D$548,D37,$V$3:$V$548)+SUMIF($D$3:$D$548,D37,$X$3:$X$548)>3005.06),IF(COUNTIF($D$3:D37,D37)>1,INDEX(GASTOS!$A$2:$AD$548,MATCH(D37,$D$2:D36,0),COLUMN($AD$2)),IF(MAX($AD$2:AD36)>MAX(INGRESOS!$O$1:$O$471),MAX($AD$2:AD36)+1,MAX(INGRESOS!$O$1:$O$471)+1)),0) -> 0 | AE37: 1 | AF37: PAGADA | AH37: HNA CARLOS
A38: 2014-01-25 | B38: 2014-01-25 | D38: B65371171 | E38: E.S. BALLENOIL | F38: GASOLINA | G38: 0 | T38: 33.06 | U38: =IF(G38=1,SUM(H38:T38),0) -> 0 | V38: 0 | W38: 21 | X38: 0 | Z38: 33.06 | AB38: ARQUITECTURA | AC38: 1 | AD38: =IF(AND(D38<>"",SUMIF($D$3:$D$548,D38,$V$3:$V$548)+SUMIF($D$3:$D$548,D38,$X$3:$X$548)>3005.06),IF(COUNTIF($D$3:D38,D38)>1,INDEX(GASTOS!$A$2:$AD$548,MATCH(D38,$D$2:D37,0),COLUMN($AD$2)),IF(MAX($AD$2:AD37)>MAX(INGRESOS!$O$1:$O$471),MAX($AD$2:AD37)+1,MAX(INGRESOS!$O$1:$O$471)+1)),0) -> 0 | AE38: 1 | AF38: PAGADA | AH38: COMBUSTIBLE
A39: 2014-01-27 | B39: 2014-01-27 | D39: =IF(E39<>"",VLOOKUP(E39,PROVEEDORES!$A$2:$B$1000,2,FALSE),"") -> F08809808 | E39: CAJA DE ARQUITECTOS | F39: VISA LUCIA | G39: 0 | T39: 20 | U39: =SUM(H39:T39) -> 20 | V39: 0 | W39: 0 | X39: 0 | Z39: 20 | AB39: CORRIENTE LUCIA | AC39: 1 | AD39: =IF(AND(D39<>"",SUMIF($D$3:$D$548,D39,$V$3:$V$548)+SUMIF($D$3:$D$548,D39,$X$3:$X$548)>3005.06),IF(COUNTIF($D$3:D39,D39)>1,INDEX(GASTOS!$A$2:$AD$548,MATCH(D39,$D$2:D38,0),COLUMN($AD$2)),IF(MAX($AD$2:AD38)>MAX(INGRESOS!$O$1:$O$471),MAX($AD$2:AD38)+1,MAX(INGRESOS!$O$1:$O$471)+1)),0) -> 0 | AE39: 1 | AF39: PAGADA | AH39: GASTOS CON TARJETA
A40: 2014-01-27 | B40: 2014-01-27 | D40: =IF(E40<>"",VLOOKUP(E40,PROVEEDORES!$A$2:$B$1000,2,FALSE),"") -> V28306678 | E40: HERMANDAD NACIONAL DE ARQUITECTOS | F40: SALUD LUCIAS | G40: 0 | T40: 111.95 | U40: =SUM(H40:T40) -> 111.95 | V40: 0 | W40: 0 | X40: 0 | Z40: 111.95 | AB40: SALUD LUCIAS | AC40: 1 | AD40: =IF(AND(D40<>"",SUMIF($D$3:$D$548,D40,$V$3:$V$548)+SUMIF($D$3:$D$548,D40,$X$3:$X$548)>3005.06),IF(COUNTIF($D$3:D40,D40)>1,INDEX(GASTOS!$A$2:$AD$548,MATCH(D40,$D$2:D39,0),COLUMN($AD$2)),IF(MAX($AD$2:AD39)>MAX(INGRESOS!$O$1:$O$471),MAX($AD$2:AD39)+1,MAX(INGRESOS!$O$1:$O$471)+1)),0) -> 0 | AE40: 1 | AF40: PAGADA | AH40: HNA LUCIAS
A41: 2014-01-28 | B41: 2014-01-28 | D41: =IF(E41<>"",VLOOKUP(E41,PROVEEDORES!$A$2:$B$1000,2,FALSE),"") ->  | E41: ING DIRECT | F41: CAJEROS | G41: 0 | T41: 40 | U41: =SUM(H41:T41) -> 40 | V41: 0 | W41: 0 | X41: 0 | Z41: 40 | AB41: CORRIENTE CARLOS | AC41: 1 | AD41: =IF(AND(D41<>"",SUMIF($D$3:$D$548,D41,$V$3:$V$548)+SUMIF($D$3:$D$548,D41,$X$3:$X$548)>3005.06),IF(COUNTIF($D$3:D41,D41)>1,INDEX(GASTOS!$A$2:$AD$548,MATCH(D41,$D$2:D40,0),COLUMN($AD$2)),IF(MAX($AD$2:AD40)>MAX(INGRESOS!$O$1:$O$471),MAX($AD$2:AD40)+1,MAX(INGRESOS!$O$1:$O$471)+1)),0) ->  | AE41: 1 | AH41: GASTOS METALICO
A42: 2014-01-28 | B42: 2014-01-28 | D42: =IF(E42<>"",VLOOKUP(E42,PROVEEDORES!$A$2:$B$1000,2,FALSE),"") ->  | E42: ING DIRECT | F42: FONTANERO CALDERA | G42: 0 | T42: 150 | U42: =SUM(H42:T42) -> 150 | V42: 0 | W42: 0 | X42: 0 | Z42: 150 | AB42: CADIZ 77 | AC42: 1 | AD42: =IF(AND(D42<>"",SUMIF($D$3:$D$548,D42,$V$3:$V$548)+SUMIF($D$3:$D$548,D42,$X$3:$X$548)>3005.06),IF(COUNTIF($D$3:D42,D42)>1,INDEX(GASTOS!$A$2:$AD$548,MATCH(D42,$D$2:D41,0),COLUMN($AD$2)),IF(MAX($AD$2:AD41)>MAX(INGRESOS!$O$1:$O$471),MAX($AD$2:AD41)+1,MAX(INGRESOS!$O$1:$O$471)+1)),0) ->  | AE42: 1 | AH42: MATERIALES/COMPRAS
A43: 2014-01-29 | B43: =IF(A43<>"",A43,"") -> 2014-01-29 | D43: =IF(E43<>"",VLOOKUP(E43,PROVEEDORES!$A$2:$B$1000,2,FALSE),"") -> F08809808 | E43: CAJA DE ARQUITECTOS | F43: HIPOTECA SAN VICENTE | G43: 0 | Q43: 151.24 | U43: =SUM(H43:T43) -> 151.24 | V43: 0 | W43: 0 | X43: 0 | Z43: 151.24 | AB43: SAN VICENTE 222 | AC43: 1 | AD43: =IF(AND(D43<>"",SUMIF($D$3:$D$548,D43,$V$3:$V$548)+SUMIF($D$3:$D$548,D43,$X$3:$X$548)>3005.06),IF(COUNTIF($D$3:D43,D43)>1,INDEX(GASTOS!$A$2:$AD$548,MATCH(D43,$D$2:D42,0),COLUMN($AD$2)),IF(MAX($AD$2:AD42)>MAX(INGRESOS!$O$1:$O$471),MAX($AD$2:AD42)+1,MAX(INGRESOS!$O$1:$O$471)+1)),0) -> 0 | AE43: 1 | AF43: PAGADA | AH43: HIP. SAN VICENTE
A44: 2014-01-30 | B44: 2014-01-30 | D44: =IF(E44<>"",VLOOKUP(E44,PROVEEDORES!$A$2:$B$1000,2,FALSE),"") -> B84406289 | E44: BRICOLAJE BRICOMAN S.L.U. | F44: CADIZ 77 | G44: 0 | T44: 10.7 | U44: =IF(G44=1,SUM(H44:T44),0) -> 0 | V44: 0 | W44: 21 | X44: 0 | Z44: 10.7 | AB44: CADIZ 77 | AC44: 1 | AD44: =IF(AND(D44<>"",SUMIF($D$3:$D$548,D44,$V$3:$V$548)+SUMIF($D$3:$D$548,D44,$X$3:$X$548)>3005.06),IF(COUNTIF($D$3:D44,D44)>1,INDEX(GASTOS!$A$2:$AD$548,MATCH(D44,$D$2:D43,0),COLUMN($AD$2)),IF(MAX($AD$2:AD43)>MAX(INGRESOS!$O$1:$O$471),MAX($AD$2:AD43)+1,MAX(INGRESOS!$O$1:$O$471)+1)),0) -> 0 | AE44: 1 | AF44: PAGADA | AH44: MATERIALES/COMPRAS
A45: 2014-01-30 | B45: 2014-01-30 | D45: =IF(E45<>"",VLOOKUP(E45,PROVEEDORES!$A$2:$B$1000,2,FALSE),"") -> B84406289 | E45: BRICOLAJE BRICOMAN S.L.U. | F45: MATERIAL | G45: 0 | T45: 15.45 | U45: =SUM(H45:T45) -> 15.45 | V45: 0 | W45: 0 | X45: 0 | Z45: 15.45 | AB45: CADIZ 77 | AC45: 1 | AD45: =IF(AND(D45<>"",SUMIF($D$3:$D$548,D45,$V$3:$V$548)+SUMIF($D$3:$D$548,D45,$X$3:$X$548)>3005.06),IF(COUNTIF($D$3:D45,D45)>1,INDEX(GASTOS!$A$2:$AD$548,MATCH(D45,$D$2:D44,0),COLUMN($AD$2)),IF(MAX($AD$2:AD44)>MAX(INGRESOS!$O$1:$O$471),MAX($AD$2:AD44)+1,MAX(INGRESOS!$O$1:$O$471)+1)),0) -> 0 | AE45: 1 | AF45: PAGADA | AH45: MATERIALES/COMPRAS
A46: 2014-01-31 | B46: 2014-01-31 | D46: =IF(E46<>"",VLOOKUP(E46,PROVEEDORES!$A$2:$B$1000,2,FALSE),"") ->  | E46: E.M. VALENCIANA DE AGUAS S.A. | F46: SUMINISTROS SAN VICENTE | G46: 1 | H46: 45.1 | U46: 45.1 | V46: 45.1 | W46: 5 | X46: 2.26 | Z46: 47.36 | AB46: SAN VICENTE 222 | AC46: 1 | AD46: =IF(AND(D46<>"",SUMIF($D$3:$D$548,D46,$V$3:$V$548)+SUMIF($D$3:$D$548,D46,$X$3:$X$548)>3005.06),IF(COUNTIF($D$3:D46,D46)>1,INDEX(GASTOS!$A$2:$AD$548,MATCH(D46,$D$2:D45,0),COLUMN($AD$2)),IF(MAX($AD$2:AD45)>MAX(INGRESOS!$O$1:$O$471),MAX($AD$2:AD45)+1,MAX(INGRESOS!$O$1:$O$471)+1)),0) ->  | AE46: 1 | AH46: AGUA SAN VICENTE
A47: 2014-01-31 | B47: 2014-01-31 | D47: =IF(E47<>"",VLOOKUP(E47,PROVEEDORES!$A$2:$B$1000,2,FALSE),"") ->  | E47: ING DIRECT | F47: CAJEROS | G47: 0 | T47: 50 | U47: 50 | V47: 0 | W47: 0 | X47: 0 | Z47: 50 | AB47: CORRIENTE CARLOS | AC47: 1 | AD47: =IF(AND(D47<>"",SUMIF($D$3:$D$548,D47,$V$3:$V$548)+SUMIF($D$3:$D$548,D47,$X$3:$X$548)>3005.06),IF(COUNTIF($D$3:D47,D47)>1,INDEX(GASTOS!$A$2:$AD$548,MATCH(D47,$D$2:D46,0),COLUMN($AD$2)),IF(MAX($AD$2:AD46)>MAX(INGRESOS!$O$1:$O$471),MAX($AD$2:AD46)+1,MAX(INGRESOS!$O$1:$O$471)+1)),0) ->  | AE47: 1 | AH47: GASTOS METALICO
A48: 2014-02-01 | B48: 2014-02-01 | D48: =IF(E48<>"",VLOOKUP(E48,PROVEEDORES!$A$2:$B$1000,2,FALSE),"") -> A82018474 | E48: TELEFÓNICA DE ESPAÑA S.A.U. | F48: TELEFONIA FIJA | G48: 1 | O48: 49.9 | U48: 49.9 | V48: 49.9 | W48: 21 | X48: 10.48 | Z48: 60.38 | AB48: CADIZ 77 | AC48: 1 | AD48: =IF(AND(D48<>"",SUMIF($D$3:$D$548,D48,$V$3:$V$548)+SUMIF($D$3:$D$548,D48,$X$3:$X$548)>3005.06),IF(COUNTIF($D$3:D48,D48)>1,INDEX(GASTOS!$A$2:$AD$548,MATCH(D48,$D$2:D47,0),COLUMN($AD$2)),IF(MAX($AD$2:AD47)>MAX(INGRESOS!$O$1:$O$471),MAX($AD$2:AD47)+1,MAX(INGRESOS!$O$1:$O$471)+1)),0) -> 0 | AE48: 2 | AF48: PAGADA | AH48: TELEFONIA
A49: 2014-02-01 | B49: 2014-02-01 | D49: =IF(E49<>"",VLOOKUP(E49,PROVEEDORES!$A$2:$B$1000,2,FALSE),"") -> A82018474 | E49: TELEFÓNICA DE ESPAÑA S.A.U. | F49: TERMINAL | G49: 1 | T49: 27.5 | U49: 27.5 | V49: 0 | W49: 0 | X49: 0 | Z49: 27.5 | AB49: ARQUITECTURA | AC49: 1 | AD49: =IF(AND(D49<>"",SUMIF($D$3:$D$548,D49,$V$3:$V$548)+SUMIF($D$3:$D$548,D49,$X$3:$X$548)>3005.06),IF(COUNTIF($D$3:D49,D49)>1,INDEX(GASTOS!$A$2:$AD$548,MATCH(D49,$D$2:D48,0),COLUMN($AD$2)),IF(MAX($AD$2:AD48)>MAX(INGRESOS!$O$1:$O$471),MAX($AD$2:AD48)+1,MAX(INGRESOS!$O$1:$O$471)+1)),0) -> 0 | AE49: 2 | AF49: PAGADA | AH49: TELEFONIA
A50: 2014-02-03 | B50: 2014-02-03 | D50: =IF(E50<>"",VLOOKUP(E50,PROVEEDORES!$A$2:$B$1000,2,FALSE),"") -> F08809808 | E50: CAJA DE ARQUITECTOS | F50: VISA LUCIA | G50: 0 | T50: 40 | U50: 40 | V50: 0 | W50: 0 | X50: 0 | Z50: 40 | AB50: CORRIENTE LUCIA | AC50: 1 | AD50: =IF(AND(D50<>"",SUMIF($D$3:$D$548,D50,$V$3:$V$548)+SUMIF($D$3:$D$548,D50,$X$3:$X$548)>3005.06),IF(COUNTIF($D$3:D50,D50)>1,INDEX(GASTOS!$A$2:$AD$548,MATCH(D50,$D$2:D49,0),COLUMN($AD$2)),IF(MAX($AD$2:AD49)>MAX(INGRESOS!$O$1:$O$471),MAX($AD$2:AD49)+1,MAX(INGRESOS!$O$1:$O$471)+1)),0) -> 0 | AE50: 2 | AH50: GASTOS CON TARJETA
A51: 2014-02-03 | B51: 2014-02-03 | D51: =IF(E51<>"",VLOOKUP(E51,PROVEEDORES!$A$2:$B$1000,2,FALSE),"") -> F08809808 | E51: CAJA DE ARQUITECTOS | F51: CARGO RECIBOS VISA LUCIA ENERO | G51: 0 | T51: 845.19 | U51: 845.19 | V51: 0 | W51: 0 | X51: 0 | Z51: 845.19 | AB51: CORRIENTE LUCIA | AC51: 1 | AD51: =IF(AND(D51<>"",SUMIF($D$3:$D$548,D51,$V$3:$V$548)+SUMIF($D$3:$D$548,D51,$X$3:$X$548)>3005.06),IF(COUNTIF($D$3:D51,D51)>1,INDEX(GASTOS!$A$2:$AD$548,MATCH(D51,$D$2:D50,0),COLUMN($AD$2)),IF(MAX($AD$2:AD50)>MAX(INGRESOS!$O$1:$O$471),MAX($AD$2:AD50)+1,MAX(INGRESOS!$O$1:$O$471)+1)),0) -> 0 | AE51: 2 | AH51: GASTOS CON TARJETA
A52: 2014-02-03 | B52: 2014-02-03 | D52: =IF(E52<>"",VLOOKUP(E52,PROVEEDORES!$A$2:$B$1000,2,FALSE),"") -> A28037042 | E52: SANITAS SOCIEDAD ANONIMA DE SEGUROS S.A. | F52: SALUD CARLOS | G52: 0 | T52: 51.89 | U52: 51.89 | V52: 0 | W52: 0 | X52: 0 | Z52: 51.89 | AB52: SALUD CARLOS | AC52: 1 | AD52: =IF(AND(D52<>"",SUMIF($D$3:$D$548,D52,$V$3:$V$548)+SUMIF($D$3:$D$548,D52,$X$3:$X$548)>3005.06),IF(COUNTIF($D$3:D52,D52)>1,INDEX(GASTOS!$A$2:$AD$548,MATCH(D52,$D$2:D51,0),COLUMN($AD$2)),IF(MAX($AD$2:AD51)>MAX(INGRESOS!$O$1:$O$471),MAX($AD$2:AD51)+1,MAX(INGRESOS!$O$1:$O$471)+1)),0) -> 0 | AE52: 2 | AH52: HNA CARLOS
A53: 2014-02-03 | B53: 2014-02-03 | D53: =IF(E53<>"",VLOOKUP(E53,PROVEEDORES!$A$2:$B$1000,2,FALSE),"") -> V28306678 | E53: HERMANDAD NACIONAL DE ARQUITECTOS | F53: SALUD LUCIAS | G53: 0 | T53: 120.66 | U53: 120.66 | V53: 0 | W53: 0 | X53: 0 | Z53: 120.66 | AB53: SALUD LUCIAS | AC53: 1 | AD53: =IF(AND(D53<>"",SUMIF($D$3:$D$548,D53,$V$3:$V$548)+SUMIF($D$3:$D$548,D53,$X$3:$X$548)>3005.06),IF(COUNTIF($D$3:D53,D53)>1,INDEX(GASTOS!$A$2:$AD$548,MATCH(D53,$D$2:D52,0),COLUMN($AD$2)),IF(MAX($AD$2:AD52)>MAX(INGRESOS!$O$1:$O$471),MAX($AD$2:AD52)+1,MAX(INGRESOS!$O$1:$O$471)+1)),0) -> 0 | AE53: 2 | AH53: HNA LUCIAS
A54: 2014-02-03 | B54: 2014-02-03 | D54: =IF(E54<>"",VLOOKUP(E54,PROVEEDORES!$A$2:$B$1000,2,FALSE),"") ->  | E54: GENERALI SEGUROS | F54: SEGUROS | G54: 0 | T54: 252.83 | U54: 252.83 | V54: 0 | W54: 0 | X54: 0 | Z54: 252.83 | AB54: CADIZ 38 | AC54: 1 | AD54: =IF(AND(D54<>"",SUMIF($D$3:$D$548,D54,$V$3:$V$548)+SUMIF($D$3:$D$548,D54,$X$3:$X$548)>3005.06),IF(COUNTIF($D$3:D54,D54)>1,INDEX(GASTOS!$A$2:$AD$548,MATCH(D54,$D$2:D53,0),COLUMN($AD$2)),IF(MAX($AD$2:AD53)>MAX(INGRESOS!$O$1:$O$471),MAX($AD$2:AD53)+1,MAX(INGRESOS!$O$1:$O$471)+1)),0) ->  | AE54: 2 | AH54: OTROS SEGUROS
A55: 2014-02-03 | B55: 2014-02-03 | D55: =IF(E55<>"",VLOOKUP(E55,PROVEEDORES!$A$2:$B$1000,2,FALSE),"") -> A82018474 | E55: TELEFÓNICA DE ESPAÑA S.A.U. | F55: TELEFONIA FIJA | G55: 1 | H55: 3 | U55: 3 | V55: 3 | W55: 21 | X55: 0.63 | Z55: 3.63 | AB55: ARQUITECTURA | AC55: 1 | AD55: =IF(AND(D55<>"",SUMIF($D$3:$D$548,D55,$V$3:$V$548)+SUMIF($D$3:$D$548,D55,$X$3:$X$548)>3005.06),IF(COUNTIF($D$3:D55,D55)>1,INDEX(GASTOS!$A$2:$AD$548,MATCH(D55,$D$2:D54,0),COLUMN($AD$2)),IF(MAX($AD$2:AD54)>MAX(INGRESOS!$O$1:$O$471),MAX($AD$2:AD54)+1,MAX(INGRESOS!$O$1:$O$471)+1)),0) -> 0 | AE55: 2 | AH55: TELEFONIA
A56: 2014-02-04 | B56: 2014-02-04 | D56: =IF(E56<>"",VLOOKUP(E56,PROVEEDORES!$A$2:$B$1000,2,FALSE),"") -> F08809808 | E56: CAJA DE ARQUITECTOS | F56: HIPOTECA CADIZ 38 | G56: 0 | Q56: 641.19 | U56: 641.19 | V56: 0 | W56: 0 | X56: 0 | Z56: 641.19 | AB56: CADIZ 38 | AC56: 1 | AD56: =IF(AND(D56<>"",SUMIF($D$3:$D$548,D56,$V$3:$V$548)+SUMIF($D$3:$D$548,D56,$X$3:$X$548)>3005.06),IF(COUNTIF($D$3:D56,D56)>1,INDEX(GASTOS!$A$2:$AD$548,MATCH(D56,$D$2:D55,0),COLUMN($AD$2)),IF(MAX($AD$2:AD55)>MAX(INGRESOS!$O$1:$O$471),MAX($AD$2:AD55)+1,MAX(INGRESOS!$O$1:$O$471)+1)),0) -> 0 | AE56: 2 | AH56: HIP. CADIZ 38
A57: 2014-02-05 | B57: 2014-02-05 | D57: A78492782 | E57: CAMPSA ESTACIONES DE SERVICIO S.A. | F57: GASOLINA | G57: 0 | H57: 26.46 | U57: 26.46 | V57: 0 | W57: 21 | X57: 0 | Z57: 26.46 | AB57: ARQUITECTURA | AC57: 1 | AD57: =IF(AND(D57<>"",SUMIF($D$3:$D$548,D57,$V$3:$V$548)+SUMIF($D$3:$D$548,D57,$X$3:$X$548)>3005.06),IF(COUNTIF($D$3:D57,D57)>1,INDEX(GASTOS!$A$2:$AD$548,MATCH(D57,$D$2:D56,0),COLUMN($AD$2)),IF(MAX($AD$2:AD56)>MAX(INGRESOS!$O$1:$O$471),MAX($AD$2:AD56)+1,MAX(INGRESOS!$O$1:$O$471)+1)),0) -> 0 | AE57: 2 | AF57: PAGADA | AH57: COMBUSTIBLE
A58: 2014-02-05 | B58: 2014-02-05 | D58: =IF(E58<>"",VLOOKUP(E58,PROVEEDORES!$A$2:$B$1000,2,FALSE),"") -> A08980153 | E58: FINCONSUM, S.A.U. | F58: CREDITO IKEA | G58: 0 | T58: 122.83 | U58: 122.83 | V58: 0 | W58: 0 | X58: 0 | Z58: 122.83 | AB58: PRESTAMOS | AC58: 1 | AD58: =IF(AND(D58<>"",SUMIF($D$3:$D$548,D58,$V$3:$V$548)+SUMIF($D$3:$D$548,D58,$X$3:$X$548)>3005.06),IF(COUNTIF($D$3:D58,D58)>1,INDEX(GASTOS!$A$2:$AD$548,MATCH(D58,$D$2:D57,0),COLUMN($AD$2)),IF(MAX($AD$2:AD57)>MAX(INGRESOS!$O$1:$O$471),MAX($AD$2:AD57)+1,MAX(INGRESOS!$O$1:$O$471)+1)),0) -> 0 | AE58: 2 | AH58: CREDITOS
A59: 2014-02-05 | B59: 2014-02-05 | D59: =IF(E59<>"",VLOOKUP(E59,PROVEEDORES!$A$2:$B$1000,2,FALSE),"") -> Q4675003J | E59: COLEGIO TERRITORIAL DE ARQUITECTOS DE VALENCIA | F59: EXP. SOTAVENTO 5 | G59: 1 | N59: 72 | U59: 72 | V59: 72 | W59: 21 | X59: 15.12 | Z59: 87.12 | AB59: ARQUITECTURA | AC59: 1 | AD59: =IF(AND(D59<>"",SUMIF($D$3:$D$548,D59,$V$3:$V$548)+SUMIF($D$3:$D$548,D59,$X$3:$X$548)>3005.06),IF(COUNTIF($D$3:D59,D59)>1,INDEX(GASTOS!$A$2:$AD$548,MATCH(D59,$D$2:D58,0),COLUMN($AD$2)),IF(MAX($AD$2:AD58)>MAX(INGRESOS!$O$1:$O$471),MAX($AD$2:AD58)+1,MAX(INGRESOS!$O$1:$O$471)+1)),0) -> 0 | AE59: 2 | AH59: FACTURAS COLEGIO
A60: 2014-02-05 | B60: 2014-02-05 | D60: =IF(E60<>"",VLOOKUP(E60,PROVEEDORES!$A$2:$B$1000,2,FALSE),"") -> B84406289 | E60: BRICOLAJE BRICOMAN S.L.U. | F60: MATERIAL | G60: 0 | T60: 13.24 | U60: 13.24 | V60: 0 | W60: 21 | X60: 0 | Z60: 13.24 | AB60: CADIZ 77 | AC60: 1 | AD60: =IF(AND(D60<>"",SUMIF($D$3:$D$548,D60,$V$3:$V$548)+SUMIF($D$3:$D$548,D60,$X$3:$X$548)>3005.06),IF(COUNTIF($D$3:D60,D60)>1,INDEX(GASTOS!$A$2:$AD$548,MATCH(D60,$D$2:D59,0),COLUMN($AD$2)),IF(MAX($AD$2:AD59)>MAX(INGRESOS!$O$1:$O$471),MAX($AD$2:AD59)+1,MAX(INGRESOS!$O$1:$O$471)+1)),0) -> 0 | AE60: 2 | AF60: PAGADA | AH60: MATERIALES/COMPRAS
A61: 2014-02-05 | B61: 2014-02-05 | D61: =IF(E61<>"",VLOOKUP(E61,PROVEEDORES!$A$2:$B$1000,2,FALSE),"") ->  | E61: LEROY MERLIN MASSANASSA | F61: MATERIAL | G61: 0 | T61: 26.03 | U61: 26.03 | V61: 0 | W61: 21 | X61: 0 | Z61: 26.03 | AB61: CADIZ 77 | AC61: 1 | AD61: =IF(AND(D61<>"",SUMIF($D$3:$D$548,D61,$V$3:$V$548)+SUMIF($D$3:$D$548,D61,$X$3:$X$548)>3005.06),IF(COUNTIF($D$3:D61,D61)>1,INDEX(GASTOS!$A$2:$AD$548,MATCH(D61,$D$2:D60,0),COLUMN($AD$2)),IF(MAX($AD$2:AD60)>MAX(INGRESOS!$O$1:$O$471),MAX($AD$2:AD60)+1,MAX(INGRESOS!$O$1:$O$471)+1)),0) ->  | AE61: 2 | AF61: PAGADA | AH61: MATERIALES/COMPRAS
A62: 2014-02-05 | B62: 2014-02-05 | D62: =IF(E62<>"",VLOOKUP(E62,PROVEEDORES!$A$2:$B$1000,2,FALSE),"") -> B84406289 | E62: BRICOLAJE BRICOMAN S.L.U. | F62: MATERIAL | G62: 0 | T62: 23.64 | U62: 23.64 | V62: 0 | W62: 21 | X62: 0 | Z62: 23.64 | AB62: CADIZ 77 | AC62: 1 | AD62: =IF(AND(D62<>"",SUMIF($D$3:$D$548,D62,$V$3:$V$548)+SUMIF($D$3:$D$548,D62,$X$3:$X$548)>3005.06),IF(COUNTIF($D$3:D62,D62)>1,INDEX(GASTOS!$A$2:$AD$548,MATCH(D62,$D$2:D61,0),COLUMN($AD$2)),IF(MAX($AD$2:AD61)>MAX(INGRESOS!$O$1:$O$471),MAX($AD$2:AD61)+1,MAX(INGRESOS!$O$1:$O$471)+1)),0) -> 0 | AE62: 2 | AF62: PAGADA | AH62: MATERIALES/COMPRAS
A63: 2014-02-05 | B63: 2014-02-05 | D63: =IF(E63<>"",VLOOKUP(E63,PROVEEDORES!$A$2:$B$1000,2,FALSE),"") ->  | E63: LEROY MERLIN MASSANASSA | F63: MATERIAL | G63: 0 | T63: 4.26 | U63: 4.26 | V63: 0 | W63: 21 | X63: 0 | Z63: 4.26 | AB63: CADIZ 77 | AC63: 1 | AD63: =IF(AND(D63<>"",SUMIF($D$3:$D$548,D63,$V$3:$V$548)+SUMIF($D$3:$D$548,D63,$X$3:$X$548)>3005.06),IF(COUNTIF($D$3:D63,D63)>1,INDEX(GASTOS!$A$2:$AD$548,MATCH(D63,$D$2:D62,0),COLUMN($AD$2)),IF(MAX($AD$2:AD62)>MAX(INGRESOS!$O$1:$O$471),MAX($AD$2:AD62)+1,MAX(INGRESOS!$O$1:$O$471)+1)),0) ->  | AE63: 2 | AH63: MATERIALES/COMPRAS
A64: 2014-02-05 | B64: 2014-02-05 | D64: =IF(E64<>"",VLOOKUP(E64,PROVEEDORES!$A$2:$B$1000,2,FALSE),"") ->  | E64: ING DIRECT | F64: COMIDA | G64: 0 | T64: 6.69 | U64: 6.69 | V64: 0 | W64: 0 | X64: 0 | Z64: 6.69 | AB64: CORRIENTE CARLOS | AC64: 1 | AD64: =IF(AND(D64<>"",SUMIF($D$3:$D$548,D64,$V$3:$V$548)+SUMIF($D$3:$D$548,D64,$X$3:$X$548)>3005.06),IF(COUNTIF($D$3:D64,D64)>1,INDEX(GASTOS!$A$2:$AD$548,MATCH(D64,$D$2:D63,0),COLUMN($AD$2)),IF(MAX($AD$2:AD63)>MAX(INGRESOS!$O$1:$O$471),MAX($AD$2:AD63)+1,MAX(INGRESOS!$O$1:$O$471)+1)),0) ->  | AE64: 2 | AH64: RETIRADAS METALICO
A65: 2014-02-06 | B65: 2014-02-06 | D65: =IF(E65<>"",VLOOKUP(E65,PROVEEDORES!$A$2:$B$1000,2,FALSE),"") ->  | E65: ING DIRECT | F65: CAJEROS | G65: 0 | T65: 40 | U65: 40 | V65: 0 | W65: 0 | X65: 0 | Z65: 40 | AB65: CORRIENTE CARLOS | AC65: 1 | AD65: =IF(AND(D65<>"",SUMIF($D$3:$D$548,D65,$V$3:$V$548)+SUMIF($D$3:$D$548,D65,$X$3:$X$548)>3005.06),IF(COUNTIF($D$3:D65,D65)>1,INDEX(GASTOS!$A$2:$AD$548,MATCH(D65,$D$2:D64,0),COLUMN($AD$2)),IF(MAX($AD$2:AD64)>MAX(INGRESOS!$O$1:$O$471),MAX($AD$2:AD64)+1,MAX(INGRESOS!$O$1:$O$471)+1)),0) ->  | AE65: 2 | AH65: RETIRADAS METALICO
A66: 2014-02-08 | B66: 2014-02-08 | D66: =IF(E66<>"",VLOOKUP(E66,PROVEEDORES!$A$2:$B$1000,2,FALSE),"") -> B84406289 | E66: BRICOLAJE BRICOMAN S.L.U. | F66: MATERIAL | G66: 0 | T66: 39.36 | U66: 39.36 | V66: =SUMPRODUCT((G66=1)*(W66<>0)*(H66:T66)) -> 0 | W66: 21 | X66: =ROUND((V66*(W66/100)),2) -> 0 | Z66: =SUM(H66:T66)+X66 -> 39.36 | AB66: cadiz 77 | AC66: =IF(A66<>"",IF(MONTH(A66)<=3,1,IF(AND(MONTH(A66)>3,MONTH(A66)<=6),2,IF(AND(MONTH(A66)>6,MONTH(A66)<=9),3,4))),"") -> 1 | AD66: =IF(AND(D66<>"",SUMIF($D$3:$D$548,D66,$V$3:$V$548)+SUMIF($D$3:$D$548,D66,$X$3:$X$548)>3005.06),IF(COUNTIF($D$3:D66,D66)>1,INDEX(GASTOS!$A$2:$AD$548,MATCH(D66,$D$2:D65,0),COLUMN($AD$2)),IF(MAX($AD$2:AD65)>MAX(INGRESOS!$O$1:$O$471),MAX($AD$2:AD65)+1,MAX(INGRESOS!$O$1:$O$471)+1)),0) -> 0 | AE66: =IF(A66<>"",MONTH(A66),"") -> 2 | AF66: PAGADA | AH66: MATERIALES/COMPRAS
A67: 2014-02-08 | B67: 2014-02-08 | D67: =IF(E67<>"",VLOOKUP(E67,PROVEEDORES!$A$2:$B$1000,2,FALSE),"") ->  | E67: ING DIRECT | F67: COMIDA | G67: 0 | T67: 12.59 | U67: 12.59 | V67: 0 | W67: 0 | X67: 0 | Z67: 12.59 | AB67: CORRIENTE CARLOS | AC67: 1 | AD67: =IF(AND(D67<>"",SUMIF($D$3:$D$548,D67,$V$3:$V$548)+SUMIF($D$3:$D$548,D67,$X$3:$X$548)>3005.06),IF(COUNTIF($D$3:D67,D67)>1,INDEX(GASTOS!$A$2:$AD$548,MATCH(D67,$D$2:D66,0),COLUMN($AD$2)),IF(MAX($AD$2:AD66)>MAX(INGRESOS!$O$1:$O$471),MAX($AD$2:AD66)+1,MAX(INGRESOS!$O$1:$O$471)+1)),0) ->  | AE67: 2 | AH67: RETIRADAS METALICO
A68: 2014-02-08 | B68: 2014-02-08 | D68: =IF(E68<>"",VLOOKUP(E68,PROVEEDORES!$A$2:$B$1000,2,FALSE),"") -> A82009812 | E68: FRANCE TELECOM ESPAÑA | F68: MOVIL | G68: 1 | T68: 23 | U68: 23 | V68: 23 | W68: 21 | X68: 4.83 | Z68: 27.83 | AB68: ARQUITECTURA | AC68: 1 | AD68: =IF(AND(D68<>"",SUMIF($D$3:$D$548,D68,$V$3:$V$548)+SUMIF($D$3:$D$548,D68,$X$3:$X$548)>3005.06),IF(COUNTIF($D$3:D68,D68)>1,INDEX(GASTOS!$A$2:$AD$548,MATCH(D68,$D$2:D67,0),COLUMN($AD$2)),IF(MAX($AD$2:AD67)>MAX(INGRESOS!$O$1:$O$471),MAX($AD$2:AD67)+1,MAX(INGRESOS!$O$1:$O$471)+1)),0) -> 0 | AE68: 2 | AF68: PAGADA | AH68: TELEFONIA
A69: 2014-02-09 | B69: 2014-02-09 | D69: =IF(E69<>"",VLOOKUP(E69,PROVEEDORES!$A$2:$B$1000,2,FALSE),"") ->  | E69: ING DIRECT | F69: CAJEROS | G69: 0 | T69: 40 | U69: 40 | V69: 0 | W69: 0 | X69: 0 | Z69: 40 | AB69: CORRIENTE CARLOS | AC69: 1 | AD69: =IF(AND(D69<>"",SUMIF($D$3:$D$548,D69,$V$3:$V$548)+SUMIF($D$3:$D$548,D69,$X$3:$X$548)>3005.06),IF(COUNTIF($D$3:D69,D69)>1,INDEX(GASTOS!$A$2:$AD$548,MATCH(D69,$D$2:D68,0),COLUMN($AD$2)),IF(MAX($AD$2:AD68)>MAX(INGRESOS!$O$1:$O$471),MAX($AD$2:AD68)+1,MAX(INGRESOS!$O$1:$O$471)+1)),0) ->  | AE69: 2 | AH69: RETIRADAS METALICO
A70: 2014-02-10 | B70: 2014-02-10 | D70: =IF(E70<>"",VLOOKUP(E70,PROVEEDORES!$A$2:$B$1000,2,FALSE),"") ->  | E70: E.M. VALENCIANA DE AGUAS S.A. | F70: AGUA CADIZ 38 | G70: 0 | T70: 47.48 | U70: 47.48 | V70: 0 | W70: 5.85 | X70: 0 | Z70: 47.48 | AB70: CADIZ 38 | AC70: 1 | AD70: =IF(AND(D70<>"",SUMIF($D$3:$D$548,D70,$V$3:$V$548)+SUMIF($D$3:$D$548,D70,$X$3:$X$548)>3005.06),IF(COUNTIF($D$2:D71,D70)>1,INDEX(GASTOS!$A$2:$AD$548,MATCH(D70,$D$1:D70,0),COLUMN($AD$2)),IF(MAX($AD$1:AD70)>MAX(INGRESOS!$O$1:$O$471),MAX($AD$1:AD70)+1,MAX(INGRESOS!$O$1:$O$471)+1)),0) ->  | AE70: 2 | AH70: AGUA CADIZ 38
A71: 2014-02-10 | B71: 2014-02-10 | D71: =IF(E71<>"",VLOOKUP(E71,PROVEEDORES!$A$2:$B$1000,2,FALSE),"") ->  | E71: ING DIRECT | F71: CAJEROS | G71: 0 | T71: 200 | U71: 200 | V71: 0 | W71: 0 | X71: 0 | Z71: 200 | AB71: CORRIENTE LUCIA | AC71: 1 | AD71: =IF(AND(D71<>"",SUMIF($D$3:$D$548,D71,$V$3:$V$548)+SUMIF($D$3:$D$548,D71,$X$3:$X$548)>3005.06),IF(COUNTIF($D$3:D71,D71)>1,INDEX(GASTOS!$A$2:$AD$548,MATCH(D71,$D$2:D70,0),COLUMN($AD$2)),IF(MAX($AD$2:AD70)>MAX(INGRESOS!$O$1:$O$471),MAX($AD$2:AD70)+1,MAX(INGRESOS!$O$1:$O$471)+1)),0) ->  | AE71: 2 | AH71: RETIRADAS METALICO
A72: 2014-02-11 | B72: 2014-02-11 | D72: =IF(E72<>"",VLOOKUP(E72,PROVEEDORES!$A$2:$B$1000,2,FALSE),"") -> F08809808 | E72: CAJA DE ARQUITECTOS | F72: AMORT. ANT. HIP. SAN VCTE | G72: 0 | Q72: 600.31 | U72: 600.31 | V72: 0 | W72: 0 | X72: 0 | Z72: 600.31 | AB72: SAN VICENTE 222 | AC72: 1 | AD72: =IF(AND(D72<>"",SUMIF($D$3:$D$548,D72,$V$3:$V$548)+SUMIF($D$3:$D$548,D72,$X$3:$X$548)>3005.06),IF(COUNTIF($D$3:D72,D72)>1,INDEX(GASTOS!$A$2:$AD$548,MATCH(D72,$D$2:D71,0),COLUMN($AD$2)),IF(MAX($AD$2:AD71)>MAX(INGRESOS!$O$1:$O$471),MAX($AD$2:AD71)+1,MAX(INGRESOS!$O$1:$O$471)+1)),0) -> 0 | AE72: 2 | AH72: HIP. CADIZ 38
A73: 2014-02-12 | B73: 2014-02-12 | D73: =IF(E73<>"",VLOOKUP(E73,PROVEEDORES!$A$2:$B$1000,2,FALSE),"") -> Q4675003J | E73: COLEGIO TERRITORIAL DE ARQUITECTOS DE VALENCIA | F73: APROB. PSS CURA FEMENIA 22 | G73: 1 | N73: 37.5 | U73: 37.5 | V73: 37.5 | W73: 21 | X73: 7.88 | Z73: 45.38 | AB73: ARQUITECTURA | AC73: 1 | AD73: =IF(AND(D73<>"",SUMIF($D$3:$D$548,D73,$V$3:$V$548)+SUMIF($D$3:$D$548,D73,$X$3:$X$548)>3005.06),IF(COUNTIF($D$3:D73,D73)>1,INDEX(GASTOS!$A$2:$AD$548,MATCH(D73,$D$2:D72,0),COLUMN($AD$2)),IF(MAX($AD$2:AD72)>MAX(INGRESOS!$O$1:$O$471),MAX($AD$2:AD72)+1,MAX(INGRESOS!$O$1:$O$471)+1)),0) -> 0 | AE73: 2 | AH73: FACTURAS COLEGIO
A74: 2014-02-12 | B74: 2014-02-12 | D74: =IF(E74<>"",VLOOKUP(E74,PROVEEDORES!$A$2:$B$1000,2,FALSE),"") -> F08809808 | E74: CAJA DE ARQUITECTOS | F74: VISA LUCIA | G74: 0 | T74: 20 | U74: 20 | V74: 0 | W74: 0 | X74: 0 | Z74: 20 | AB74: CORRIENTE LUCIA | AC74: 1 | AD74: =IF(AND(D74<>"",SUMIF($D$3:$D$548,D74,$V$3:$V$548)+SUMIF($D$3:$D$548,D74,$X$3:$X$548)>3005.06),IF(COUNTIF($D$3:D74,D74)>1,INDEX(GASTOS!$A$2:$AD$548,MATCH(D74,$D$2:D73,0),COLUMN($AD$2)),IF(MAX($AD$2:AD73)>MAX(INGRESOS!$O$1:$O$471),MAX($AD$2:AD73)+1,MAX(INGRESOS!$O$1:$O$471)+1)),0) -> 0 | AE74: 2 | AH74: GASTOS CON TARJETA
A75: 2014-02-12 | B75: =IF(A75<>"",A75,"") -> 2014-02-12 | D75: =IF(E75<>"",VLOOKUP(E75,PROVEEDORES!$A$2:$B$1000,2,FALSE),"") -> B84406289 | E75: BRICOLAJE BRICOMAN S.L.U. | F75: MATERIAL | G75: 0 | T75: 107.43 | U75: 107.43 | V75: 0 | W75: 21 | X75: 0 | Z75: 107.43 | AB75: CADIZ 77 | AC75: 1 | AD75: =IF(AND(D75<>"",SUMIF($D$3:$D$548,D75,$V$3:$V$548)+SUMIF($D$3:$D$548,D75,$X$3:$X$548)>3005.06),IF(COUNTIF($D$3:D75,D75)>1,INDEX(GASTOS!$A$2:$AD$548,MATCH(D75,$D$2:D74,0),COLUMN($AD$2)),IF(MAX($AD$2:AD74)>MAX(INGRESOS!$O$1:$O$471),MAX($AD$2:AD74)+1,MAX(INGRESOS!$O$1:$O$471)+1)),0) -> 0 | AE75: 2 | AF75: PAGADA | AH75: MATERIALES/COMPRAS
A76: 2014-02-12 | B76: 2014-02-12 | D76: =IF(E76<>"",VLOOKUP(E76,PROVEEDORES!$A$2:$B$1000,2,FALSE),"") -> B84406289 | E76: BRICOLAJE BRICOMAN S.L.U. | F76: MATERIAL | G76: 0 | T76: 18.95 | U76: 18.95 | V76: 0 | W76: 0 | X76: 0 | Z76: 18.95 | AB76: CADIZ 77 | AC76: 1 | AD76: =IF(AND(D76<>"",SUMIF($D$3:$D$548,D76,$V$3:$V$548)+SUMIF($D$3:$D$548,D76,$X$3:$X$548)>3005.06),IF(COUNTIF($D$3:D76,D76)>1,INDEX(GASTOS!$A$2:$AD$548,MATCH(D76,$D$2:D75,0),COLUMN($AD$2)),IF(MAX($AD$2:AD75)>MAX(INGRESOS!$O$1:$O$471),MAX($AD$2:AD75)+1,MAX(INGRESOS!$O$1:$O$471)+1)),0) -> 0 | AE76: 2 | AH76: MATERIALES/COMPRAS
A77: 2014-02-13 | B77: 2014-02-13 | D77: =IF(E77<>"",VLOOKUP(E77,PROVEEDORES!$A$2:$B$1000,2,FALSE),"") ->  | E77: ING DIRECT | F77: CAJEROS | G77: 0 | T77: 40 | U77: =SUM(H77:T77) -> 40 | V77: 0 | W77: 0 | X77: 0 | Z77: 40 | AB77: CORRIENTE CARLOS | AC77: 1 | AD77: =IF(AND(D77<>"",SUMIF($D$3:$D$548,D77,$V$3:$V$548)+SUMIF($D$3:$D$548,D77,$X$3:$X$548)>3005.06),IF(COUNTIF($D$3:D77,D77)>1,INDEX(GASTOS!$A$2:$AD$548,MATCH(D77,$D$2:D76,0),COLUMN($AD$2)),IF(MAX($AD$2:AD76)>MAX(INGRESOS!$O$1:$O$471),MAX($AD$2:AD76)+1,MAX(INGRESOS!$O$1:$O$471)+1)),0) ->  | AE77: 2 | AH77: RETIRADAS METALICO
A78: 2014-02-15 | B78: 2014-02-15 | D78: =IF(E78<>"",VLOOKUP(E78,PROVEEDORES!$A$2:$B$1000,2,FALSE),"") ->  | E78: SUCESORES DAVER, S.L. | F78: GASOLINA | G78: 0 | T78: 30 | U78: 30 | V78: 0 | W78: 0 | X78: 0 | Z78: 30 | AC78: 1 | AD78: =IF(AND(D78<>"",SUMIF($D$3:$D$548,D78,$V$3:$V$548)+SUMIF($D$3:$D$548,D78,$X$3:$X$548)>3005.06),IF(COUNTIF($D$3:D78,D78)>1,INDEX(GASTOS!$A$2:$AD$548,MATCH(D78,$D$2:D77,0),COLUMN($AD$2)),IF(MAX($AD$2:AD77)>MAX(INGRESOS!$O$1:$O$471),MAX($AD$2:AD77)+1,MAX(INGRESOS!$O$1:$O$471)+1)),0) ->  | AE78: 2 | AF78: PAGADA | AH78: COMBUSTIBLE
A79: 2014-02-15 | B79: 2014-02-15 | D79: =IF(E79<>"",VLOOKUP(E79,PROVEEDORES!$A$2:$B$1000,2,FALSE),"") ->  | E79: ING DIRECT | F79: CAJEROS | G79: 0 | T79: 40 | U79: 40 | V79: 0 | W79: 0 | X79: 0 | Z79: 40 | AB79: CORRIENTE CARLOS | AC79: 1 | AD79: =IF(AND(D79<>"",SUMIF($D$3:$D$548,D79,$V$3:$V$548)+SUMIF($D$3:$D$548,D79,$X$3:$X$548)>3005.06),IF(COUNTIF($D$3:D79,D79)>1,INDEX(GASTOS!$A$2:$AD$548,MATCH(D79,$D$2:D78,0),COLUMN($AD$2)),IF(MAX($AD$2:AD78)>MAX(INGRESOS!$O$1:$O$471),MAX($AD$2:AD78)+1,MAX(INGRESOS!$O$1:$O$471)+1)),0) ->  | AE79: 2 | AH79: RETIRADAS METALICO
A80: 2014-02-17 | B80: 2014-02-17 | D80: =IF(E80<>"",VLOOKUP(E80,PROVEEDORES!$A$2:$B$1000,2,FALSE),"") -> B84406289 | E80: BRICOLAJE BRICOMAN S.L.U. | F80: MATERIAL | G80: 0 | T80: 18.1 | U80: 18.1 | V80: 0 | W80: 21 | X80: 0 | Z80: 18.1 | AB80: CADIZ 77 | AC80: 1 | AD80: =IF(AND(D80<>"",SUMIF($D$3:$D$548,D80,$V$3:$V$548)+SUMIF($D$3:$D$548,D80,$X$3:$X$548)>3005.06),IF(COUNTIF($D$3:D80,D80)>1,INDEX(GASTOS!$A$2:$AD$548,MATCH(D80,$D$2:D79,0),COLUMN($AD$2)),IF(MAX($AD$2:AD79)>MAX(INGRESOS!$O$1:$O$471),MAX($AD$2:AD79)+1,MAX(INGRESOS!$O$1:$O$471)+1)),0) -> 0 | AE80: 2 | AF80: PAGADA | AH80: MATERIALES/COMPRAS
A81: 2014-02-17 | B81: 2014-02-17 | D81: =IF(E81<>"",VLOOKUP(E81,PROVEEDORES!$A$2:$B$1000,2,FALSE),"") -> B84406289 | E81: BRICOLAJE BRICOMAN S.L.U. | F81: MATERIAL | G81: 0 | T81: 265.81 | U81: 265.81 | V81: 0 | W81: 21 | X81: 0 | Z81: 265.81 | AB81: CADIZ 77 | AC81: 1 | AD81: =IF(AND(D81<>"",SUMIF($D$3:$D$548,D81,$V$3:$V$548)+SUMIF($D$3:$D$548,D81,$X$3:$X$548)>3005.06),IF(COUNTIF($D$3:D81,D81)>1,INDEX(GASTOS!$A$2:$AD$548,MATCH(D81,$D$2:D80,0),COLUMN($AD$2)),IF(MAX($AD$2:AD80)>MAX(INGRESOS!$O$1:$O$471),MAX($AD$2:AD80)+1,MAX(INGRESOS!$O$1:$O$471)+1)),0) -> 0 | AE81: 2 | AF81: PAGADA | AH81: MATERIALES/COMPRAS
A82: 2014-02-17 | B82: 2014-02-17 | D82: =IF(E82<>"",VLOOKUP(E82,PROVEEDORES!$A$2:$B$1000,2,FALSE),"") ->  | E82: ING DIRECT | F82: COMIDA | G82: 0 | T82: 17.9 | U82: 17.9 | V82: 0 | W82: 0 | X82: 0 | Z82: 17.9 | AB82: CORRIENTE CARLOS | AC82: 1 | AD82: =IF(AND(D82<>"",SUMIF($D$3:$D$548,D82,$V$3:$V$548)+SUMIF($D$3:$D$548,D82,$X$3:$X$548)>3005.06),IF(COUNTIF($D$3:D82,D82)>1,INDEX(GASTOS!$A$2:$AD$548,MATCH(D82,$D$2:D81,0),COLUMN($AD$2)),IF(MAX($AD$2:AD81)>MAX(INGRESOS!$O$1:$O$471),MAX($AD$2:AD81)+1,MAX(INGRESOS!$O$1:$O$471)+1)),0) ->  | AE82: 2 | AH82: RETIRADAS METALICO
A83: 2014-02-19 | B83: 2014-02-19 | D83: =IF(E83<>"",VLOOKUP(E83,PROVEEDORES!$A$2:$B$1000,2,FALSE),"") -> Q4675003J | E83: COLEGIO TERRITORIAL DE ARQUITECTOS DE VALENCIA | F83: REGULARIZACION SALDO DEUDOR | G83: 1 | N83: 87.5 | U83: 87.5 | V83: 87.5 | W83: 21 | X83: 18.38 | Z83: 105.88 | AA83: AR | AB83: ARQUITECTURA | AC83: 1 | AD83: =IF(AND(D83<>"",SUMIF($D$3:$D$548,D83,$V$3:$V$548)+SUMIF($D$3:$D$548,D83,$X$3:$X$548)>3005.06),IF(COUNTIF($D$3:D83,D83)>1,INDEX(GASTOS!$A$2:$AD$548,MATCH(D83,$D$2:D82,0),COLUMN($AD$2)),IF(MAX($AD$2:AD82)>MAX(INGRESOS!$O$1:$O$471),MAX($AD$2:AD82)+1,MAX(INGRESOS!$O$1:$O$471)+1)),0) -> 0 | AE83: 2 | AH83: FACTURAS COLEGIO
A84: 2014-02-19 | B84: 2014-02-19 | D84: =IF(E84<>"",VLOOKUP(E84,PROVEEDORES!$A$2:$B$1000,2,FALSE),"") -> F08809808 | E84: CAJA DE ARQUITECTOS | F84: VISA LUCIA | G84: 0 | T84: 50 | U84: 50 | V84: 0 | W84: 0 | X84: 0 | Z84: 50 | AB84: CORRIENTE LUCIA | AC84: 1 | AD84: =IF(AND(D84<>"",SUMIF($D$3:$D$548,D84,$V$3:$V$548)+SUMIF($D$3:$D$548,D84,$X$3:$X$548)>3005.06),IF(COUNTIF($D$3:D84,D84)>1,INDEX(GASTOS!$A$2:$AD$548,MATCH(D84,$D$2:D83,0),COLUMN($AD$2)),IF(MAX($AD$2:AD83)>MAX(INGRESOS!$O$1:$O$471),MAX($AD$2:AD83)+1,MAX(INGRESOS!$O$1:$O$471)+1)),0) -> 0 | AE84: 2 | AH84: GASTOS CON TARJETA
A85: 2014-02-19 | B85: 2014-02-19 | C85: 0 | D85: =IF(E85<>"",VLOOKUP(E85,PROVEEDORES!$A$2:$B$1000,2,FALSE),"") -> A82009812 | E85: FRANCE TELECOM ESPAÑA | F85: TELEFONIA MOVIL | G85: 1 | T85: 23 | U85: 23 | V85: 23 | W85: 21 | X85: 4.83 | Z85: 27.83 | AB85: ARQUITECTURA | AC85: 1 | AD85: =IF(AND(D85<>"",SUMIF($D$3:$D$548,D85,$V$3:$V$548)+SUMIF($D$3:$D$548,D85,$X$3:$X$548)>3005.06),IF(COUNTIF($D$3:D85,D85)>1,INDEX(GASTOS!$A$2:$AD$548,MATCH(D85,$D$2:D84,0),COLUMN($AD$2)),IF(MAX($AD$2:AD84)>MAX(INGRESOS!$O$1:$O$471),MAX($AD$2:AD84)+1,MAX(INGRESOS!$O$1:$O$471)+1)),0) -> 0 | AE85: 2 | AH85: TELEFONIA
A86: 2014-02-21 | B86: 2014-02-21 | D86: =IF(E86<>"",VLOOKUP(E86,PROVEEDORES!$A$2:$B$1000,2,FALSE),"") -> Q4675003J | E86: COLEGIO TERRITORIAL DE ARQUITECTOS DE VALENCIA | F86: EXP. CURA FEMENIA 20 | G86: 1 | N86: 120.24 | U86: 120.24 | V86: 120.24 | W86: 21 | X86: 25.25 | Z86: 145.49 | AB86: ARQUITECTURA | AC86: 1 | AD86: =IF(AND(D86<>"",SUMIF($D$3:$D$548,D86,$V$3:$V$548)+SUMIF($D$3:$D$548,D86,$X$3:$X$548)>3005.06),IF(COUNTIF($D$3:D86,D86)>1,INDEX(GASTOS!$A$2:$AD$548,MATCH(D86,$D$2:D85,0),COLUMN($AD$2)),IF(MAX($AD$2:AD85)>MAX(INGRESOS!$O$1:$O$471),MAX($AD$2:AD85)+1,MAX(INGRESOS!$O$1:$O$471)+1)),0) -> 0 | AE86: 2 | AH86: FACTURAS COLEGIO
A87: 2014-02-21 | B87: 2014-02-21 | D87: =IF(E87<>"",VLOOKUP(E87,PROVEEDORES!$A$2:$B$1000,2,FALSE),"") -> F08809808 | E87: CAJA DE ARQUITECTOS | F87: HIPOTECA SAN VICENTE | G87: 0 | Q87: 452.38 | U87: 452.38 | V87: 0 | W87: 0 | X87: 0 | Z87: 452.38 | AB87: SAN VICENTE 222 | AC87: 1 | AD87: =IF(AND(D87<>"",SUMIF($D$3:$D$548,D87,$V$3:$V$548)+SUMIF($D$3:$D$548,D87,$X$3:$X$548)>3005.06),IF(COUNTIF($D$3:D87,D87)>1,INDEX(GASTOS!$A$2:$AD$548,MATCH(D87,$D$2:D86,0),COLUMN($AD$2)),IF(MAX($AD$2:AD86)>MAX(INGRESOS!$O$1:$O$471),MAX($AD$2:AD86)+1,MAX(INGRESOS!$O$1:$O$471)+1)),0) -> 0 | AE87: 2 | AH87: HIP. SAN VICENTE
A88: 2014-02-21 | B88: 2014-02-21 | D88: =IF(E88<>"",VLOOKUP(E88,PROVEEDORES!$A$2:$B$1000,2,FALSE),"") -> F08809808 | E88: CAJA DE ARQUITECTOS | F88: HIPOTECA SAN VICENTE | G88: 0 | Q88: 258.43 | U88: 258.43 | V88: 0 | W88: 0 | X88: 0 | Z88: 258.43 | AB88: SAN VICENTE 222 | AC88: 1 | AD88: =IF(AND(D88<>"",SUMIF($D$3:$D$548,D88,$V$3:$V$548)+SUMIF($D$3:$D$548,D88,$X$3:$X$548)>3005.06),IF(COUNTIF($D$3:D88,D88)>1,INDEX(GASTOS!$A$2:$AD$548,MATCH(D88,$D$2:D87,0),COLUMN($AD$2)),IF(MAX($AD$2:AD87)>MAX(INGRESOS!$O$1:$O$471),MAX($AD$2:AD87)+1,MAX(INGRESOS!$O$1:$O$471)+1)),0) -> 0 | AE88: 2 | AH88: HIP. SAN VICENTE
A89: 2014-02-21 | B89: 2014-02-21 | D89: B98361108 | E89: DECORVEGA DECORACIONES, S.L. | F89: MATERIAL | G89: 0 | T89: 24.97 | U89: 24.97 | V89: 0 | W89: 21 | X89: 0 | Z89: 24.97 | AB89: CADIZ 77 | AC89: 1 | AD89: =IF(AND(D89<>"",SUMIF($D$3:$D$548,D89,$V$3:$V$548)+SUMIF($D$3:$D$548,D89,$X$3:$X$548)>3005.06),IF(COUNTIF($D$3:D89,D89)>1,INDEX(GASTOS!$A$2:$AD$548,MATCH(D89,$D$2:D88,0),COLUMN($AD$2)),IF(MAX($AD$2:AD88)>MAX(INGRESOS!$O$1:$O$471),MAX($AD$2:AD88)+1,MAX(INGRESOS!$O$1:$O$471)+1)),0) -> 0 | AE89: 2 | AH89: MATERIALES/COMPRAS
A90: 2014-02-22 | B90: 2014-02-22 | D90: =IF(E90<>"",VLOOKUP(E90,PROVEEDORES!$A$2:$B$1000,2,FALSE),"") ->  | E90: SUCESORES DAVER, S.L. | F90: GASOLINA | G90: 0 | H90: 24.79 | U90: 24.79 | V90: 0 | W90: 21 | X90: 0 | Z90: 24.79 | AB90: ARQUITECTURA | AC90: 1 | AD90: =IF(AND(D90<>"",SUMIF($D$3:$D$548,D90,$V$3:$V$548)+SUMIF($D$3:$D$548,D90,$X$3:$X$548)>3005.06),IF(COUNTIF($D$3:D90,D90)>1,INDEX(GASTOS!$A$2:$AD$548,MATCH(D90,$D$2:D89,0),COLUMN($AD$2)),IF(MAX($AD$2:AD89)>MAX(INGRESOS!$O$1:$O$471),MAX($AD$2:AD89)+1,MAX(INGRESOS!$O$1:$O$471)+1)),0) ->  | AE90: 2 | AH90: COMBUSTIBLE
A91: 2014-02-22 | B91: 2014-02-22 | D91: =IF(E91<>"",VLOOKUP(E91,PROVEEDORES!$A$2:$B$1000,2,FALSE),"") ->  | E91: LEROY MERLIN MASSANASSA | F91: MATERIAL | G91: 0 | T91: 11.01 | U91: 11.01 | V91: 0 | W91: 21 | X91: 0 | Z91: 11.01 | AB91: CADIZ 77 | AC91: 1 | AD91: =IF(AND(D91<>"",SUMIF($D$3:$D$548,D91,$V$3:$V$548)+SUMIF($D$3:$D$548,D91,$X$3:$X$548)>3005.06),IF(COUNTIF($D$3:D91,D91)>1,INDEX(GASTOS!$A$2:$AD$548,MATCH(D91,$D$2:D90,0),COLUMN($AD$2)),IF(MAX($AD$2:AD90)>MAX(INGRESOS!$O$1:$O$471),MAX($AD$2:AD90)+1,MAX(INGRESOS!$O$1:$O$471)+1)),0) ->  | AE91: 2 | AH91: MATERIALES/COMPRAS
A92: 2014-02-25 | B92: 2014-02-25 | D92: =IF(E92<>"",VLOOKUP(E92,PROVEEDORES!$A$2:$B$1000,2,FALSE),"") -> B84406289 | E92: BRICOLAJE BRICOMAN S.L.U. | F92: MATERIAL | G92: 0 | T92: 172.45 | U92: 172.45 | V92: 0 | W92: 21 | X92: 0 | Z92: 172.45 | AB92: CADIZ 77 | AC92: 1 | AD92: =IF(AND(D92<>"",SUMIF($D$3:$D$548,D92,$V$3:$V$548)+SUMIF($D$3:$D$548,D92,$X$3:$X$548)>3005.06),IF(COUNTIF($D$3:D92,D92)>1,INDEX(GASTOS!$A$2:$AD$548,MATCH(D92,$D$2:D91,0),COLUMN($AD$2)),IF(MAX($AD$2:AD91)>MAX(INGRESOS!$O$1:$O$471),MAX($AD$2:AD91)+1,MAX(INGRESOS!$O$1:$O$471)+1)),0) -> 0 | AE92: 2 | AH92: MATERIALES/COMPRAS
A93: 2014-02-25 | B93: 1900-01-02 | D93: =IF(E93<>"",VLOOKUP(E93,PROVEEDORES!$A$2:$B$1000,2,FALSE),"") ->  | E93: ING DIRECT | F93: COMIDA | G93: 0 | T93: 17.49 | U93: 17.49 | V93: 0 | W93: 0 | X93: 0 | Z93: 17.49 | AB93: CORRIENTE CARLOS | AC93: 1 | AD93: =IF(AND(D93<>"",SUMIF($D$3:$D$548,D93,$V$3:$V$548)+SUMIF($D$3:$D$548,D93,$X$3:$X$548)>3005.06),IF(COUNTIF($D$3:D93,D93)>1,INDEX(GASTOS!$A$2:$AD$548,MATCH(D93,$D$2:D92,0),COLUMN($AD$2)),IF(MAX($AD$2:AD92)>MAX(INGRESOS!$O$1:$O$471),MAX($AD$2:AD92)+1,MAX(INGRESOS!$O$1:$O$471)+1)),0) ->  | AE93: 2 | AH93: RETIRADAS METALICO
A94: 2014-02-27 | B94: =IF(A94<>"",A94,"") -> 2014-02-27 | D94: =IF(E94<>"",VLOOKUP(E94,PROVEEDORES!$A$2:$B$1000,2,FALSE),"") -> B84406289 | E94: BRICOLAJE BRICOMAN S.L.U. | F94: MATERIAL | G94: 0 | T94: 21.71 | U94: 21.71 | V94: 0 | W94: 21 | X94: 0 | Z94: 21.71 | AB94: cadiz 77 | AC94: 1 | AD94: =IF(AND(D94<>"",SUMIF($D$3:$D$548,D94,$V$3:$V$548)+SUMIF($D$3:$D$548,D94,$X$3:$X$548)>3005.06),IF(COUNTIF($D$3:D94,D94)>1,INDEX(GASTOS!$A$2:$AD$548,MATCH(D94,$D$2:D93,0),COLUMN($AD$2)),IF(MAX($AD$2:AD93)>MAX(INGRESOS!$O$1:$O$471),MAX($AD$2:AD93)+1,MAX(INGRESOS!$O$1:$O$471)+1)),0) -> 0 | AE94: 2 | AH94: MATERIALES/COMPRAS
A95: 2014-02-28 | B95: 2014-02-28 | D95: =IF(E95<>"",VLOOKUP(E95,PROVEEDORES!$A$2:$B$1000,2,FALSE),"") -> F08809808 | E95: CAJA DE ARQUITECTOS | F95: VISA LUCIA | G95: 0 | T95: 130 | U95: 130 | V95: 0 | W95: 0 | X95: 0 | Z95: 130 | AB95: CORRIENTE LUCIA | AC95: 1 | AD95: =IF(AND(D95<>"",SUMIF($D$3:$D$548,D95,$V$3:$V$548)+SUMIF($D$3:$D$548,D95,$X$3:$X$548)>3005.06),IF(COUNTIF($D$3:D95,D95)>1,INDEX(GASTOS!$A$2:$AD$548,MATCH(D95,$D$2:D94,0),COLUMN($AD$2)),IF(MAX($AD$2:AD94)>MAX(INGRESOS!$O$1:$O$471),MAX($AD$2:AD94)+1,MAX(INGRESOS!$O$1:$O$471)+1)),0) -> 0 | AE95: 2 | AH95: GASTOS CON TARJETA
A96: 2014-02-28 | B96: 2014-02-28 | D96: =IF(E96<>"",VLOOKUP(E96,PROVEEDORES!$A$2:$B$1000,2,FALSE),"") -> F08809808 | E96: CAJA DE ARQUITECTOS | F96: HIPOTECA CADIZ 38 | G96: 0 | Q96: 277.62 | U96: 277.62 | V96: 0 | W96: 0 | X96: 0 | Z96: 277.62 | AB96: CADIZ 38 | AC96: 1 | AD96: =IF(AND(D96<>"",SUMIF($D$3:$D$548,D96,$V$3:$V$548)+SUMIF($D$3:$D$548,D96,$X$3:$X$548)>3005.06),IF(COUNTIF($D$3:D96,D96)>1,INDEX(GASTOS!$A$2:$AD$548,MATCH(D96,$D$2:D95,0),COLUMN($AD$2)),IF(MAX($AD$2:AD95)>MAX(INGRESOS!$O$1:$O$471),MAX($AD$2:AD95)+1,MAX(INGRESOS!$O$1:$O$471)+1)),0) -> 0 | AE96: 2 | AH96: HIP. CADIZ 38
A97: 2014-02-28 | B97: 2014-02-28 | D97: =IF(E97<>"",VLOOKUP(E97,PROVEEDORES!$A$2:$B$1000,2,FALSE),"") -> B98361108 | E97: DECORVEGA DECORACIONES, S.L. | F97: MATERIAL | G97: 0 | T97: 11.33 | U97: 11.33 | V97: 0 | W97: 21 | X97: 0 | Z97: 11.33 | AB97: cadiz 77 | AC97: 1 | AD97: =IF(AND(D97<>"",SUMIF($D$3:$D$548,D97,$V$3:$V$548)+SUMIF($D$3:$D$548,D97,$X$3:$X$548)>3005.06),IF(COUNTIF($D$3:D97,D97)>1,INDEX(GASTOS!$A$2:$AD$548,MATCH(D97,$D$2:D96,0),COLUMN($AD$2)),IF(MAX($AD$2:AD96)>MAX(INGRESOS!$O$1:$O$471),MAX($AD$2:AD96)+1,MAX(INGRESOS!$O$1:$O$471)+1)),0) -> 0 | AE97: 2 | AH97: MATERIALES/COMPRAS
A98: 2014-03-01 | B98: 2014-03-01 | D98: =IF(E98<>"",VLOOKUP(E98,PROVEEDORES!$A$2:$B$1000,2,FALSE),"") -> A62018064 | E98: EURO DEPOT ESPAÑA S.A.U. | F98: MATERIAL | G98: 0 | T98: 53.72 | U98: 53.72 | V98: 0 | W98: 21 | X98: 0 | Z98: 53.72 | AB98: cadiz 77 | AC98: 1 | AD98: =IF(AND(D98<>"",SUMIF($D$3:$D$548,D98,$V$3:$V$548)+SUMIF($D$3:$D$548,D98,$X$3:$X$548)>3005.06),IF(COUNTIF($D$3:D98,D98)>1,INDEX(GASTOS!$A$2:$AD$548,MATCH(D98,$D$2:D97,0),COLUMN($AD$2)),IF(MAX($AD$2:AD97)>MAX(INGRESOS!$O$1:$O$471),MAX($AD$2:AD97)+1,MAX(INGRESOS!$O$1:$O$471)+1)),0) -> 0 | AE98: 3 | AH98: MATERIALES/COMPRAS
A99: 2014-03-01 | B99: 2014-03-01 | D99: =IF(E99<>"",VLOOKUP(E99,PROVEEDORES!$A$2:$B$1000,2,FALSE),"") -> A82018474 | E99: TELEFÓNICA DE ESPAÑA S.A.U. | F99: TELEFONIA FIJA | G99: 1 | O99: 49.9 | U99: 49.9 | V99: 49.9 | W99: 21 | X99: 10.48 | Z99: 60.38 | AB99: ARQUITECTURA | AC99: 1 | AD99: =IF(AND(D99<>"",SUMIF($D$3:$D$548,D99,$V$3:$V$548)+SUMIF($D$3:$D$548,D99,$X$3:$X$548)>3005.06),IF(COUNTIF($D$3:D99,D99)>1,INDEX(GASTOS!$A$2:$AD$548,MATCH(D99,$D$2:D98,0),COLUMN($AD$2)),IF(MAX($AD$2:AD98)>MAX(INGRESOS!$O$1:$O$471),MAX($AD$2:AD98)+1,MAX(INGRESOS!$O$1:$O$471)+1)),0) -> 0 | AE99: 3 | AH99: TELEFONIA
A100: 2014-03-01 | B100: 2014-03-01 | D100: =IF(E100<>"",VLOOKUP(E100,PROVEEDORES!$A$2:$B$1000,2,FALSE),"") -> A82018474 | E100: TELEFÓNICA DE ESPAÑA S.A.U. | F100: TERMINAL | G100: 1 | T100: 27.5 | U100: 27.5 | V100: 0 | W100: 0 | X100: 0 | Z100: 27.5 | AB100: ARQUITECTURA | AC100: 1 | AD100: =IF(AND(D100<>"",SUMIF($D$3:$D$548,D100,$V$3:$V$548)+SUMIF($D$3:$D$548,D100,$X$3:$X$548)>3005.06),IF(COUNTIF($D$3:D100,D100)>1,INDEX(GASTOS!$A$2:$AD$548,MATCH(D100,$D$2:D99,0),COLUMN($AD$2)),IF(MAX($AD$2:AD99)>MAX(INGRESOS!$O$1:$O$471),MAX($AD$2:AD99)+1,MAX(INGRESOS!$O$1:$O$471)+1)),0) -> 0 | AE100: 3 | AH100: TELEFONIA
A101: 2014-03-03 | B101: 2014-03-03 | D101: =IF(E101<>"",VLOOKUP(E101,PROVEEDORES!$A$2:$B$1000,2,FALSE),"") -> F08809808 | E101: CAJA DE ARQUITECTOS | F101: CARGO RECIBOS VISA LUCIA FEBRERO | G101: 0 | T101: 430.37 | U101: 430.37 | V101: 0 | W101: 0 | X101: 0 | Z101: 430.37 | AB101: CORRIENTE LUCIA | AC101: 1 | AD101: =IF(AND(D101<>"",SUMIF($D$3:$D$548,D101,$V$3:$V$548)+SUMIF($D$3:$D$548,D101,$X$3:$X$548)>3005.06),IF(COUNTIF($D$3:D101,D101)>1,INDEX(GASTOS!$A$2:$AD$548,MATCH(D101,$D$2:D100,0),COLUMN($AD$2)),IF(MAX($AD$2:AD100)>MAX(INGRESOS!$O$1:$O$471),MAX($AD$2:AD100)+1,MAX(INGRESOS!$O$1:$O$471)+1)),0) -> 0 | AE101: 3 | AH101: GASTOS CON TARJETA
A102: 2014-03-03 | B102: 2014-03-03 | D102: =IF(E102<>"",VLOOKUP(E102,PROVEEDORES!$A$2:$B$1000,2,FALSE),"") -> V28306678 | E102: HERMANDAD NACIONAL DE ARQUITECTOS | F102: SPP CARLOS FEB | G102: 0 | T102: 217.43 | U102: 217.43 | V102: 0 | W102: 0 | X102: 0 | Z102: 217.43 | AB102: SALUD CARLOS | AC102: 1 | AD102: =IF(AND(D102<>"",SUMIF($D$3:$D$548,D102,$V$3:$V$548)+SUMIF($D$3:$D$548,D102,$X$3:$X$548)>3005.06),IF(COUNTIF($D$3:D102,D102)>1,INDEX(GASTOS!$A$2:$AD$548,MATCH(D102,$D$2:D101,0),COLUMN($AD$2)),IF(MAX($AD$2:AD101)>MAX(INGRESOS!$O$1:$O$471),MAX($AD$2:AD101)+1,MAX(INGRESOS!$O$1:$O$471)+1)),0) -> 0 | AE102: 3 | AH102: HNA CARLOS
A103: 2014-03-03 | B103: 2014-03-03 | D103: =IF(E103<>"",VLOOKUP(E103,PROVEEDORES!$A$2:$B$1000,2,FALSE),"") -> A28037042 | E103: SANITAS SOCIEDAD ANONIMA DE SEGUROS S.A. | F103: SALUD CARLOS | G103: 0 | T103: 51.89 | U103: 51.89 | V103: 0 | W103: 0 | X103: 0 | Z103: 51.89 | AB103: SALUD CARLOS | AC103: 1 | AD103: =IF(AND(D103<>"",SUMIF($D$3:$D$548,D103,$V$3:$V$548)+SUMIF($D$3:$D$548,D103,$X$3:$X$548)>3005.06),IF(COUNTIF($D$3:D103,D103)>1,INDEX(GASTOS!$A$2:$AD$548,MATCH(D103,$D$2:D102,0),COLUMN($AD$2)),IF(MAX($AD$2:AD102)>MAX(INGRESOS!$O$1:$O$471),MAX($AD$2:AD102)+1,MAX(INGRESOS!$O$1:$O$471)+1)),0) -> 0 | AE103: 3 | AH103: HNA LUCIAS
A104: 2014-03-03 | B104: 2014-03-03 | D104: =IF(E104<>"",VLOOKUP(E104,PROVEEDORES!$A$2:$B$1000,2,FALSE),"") ->  | E104: ING DIRECT | F104: MATERIAL (PUERTAS) | G104: 0 | T104: 360 | U104: 360 | V104: 0 | W104: 0 | X104: 0 | Z104: 360 | AB104: CADIZ 77 | AC104: 1 | AD104: =IF(AND(D104<>"",SUMIF($D$3:$D$548,D104,$V$3:$V$548)+SUMIF($D$3:$D$548,D104,$X$3:$X$548)>3005.06),IF(COUNTIF($D$3:D104,D104)>1,INDEX(GASTOS!$A$2:$AD$548,MATCH(D104,$D$2:D103,0),COLUMN($AD$2)),IF(MAX($AD$2:AD103)>MAX(INGRESOS!$O$1:$O$471),MAX($AD$2:AD103)+1,MAX(INGRESOS!$O$1:$O$471)+1)),0) ->  | AE104: 3 | AH104: MATERIALES/COMPRAS
A105: 2014-03-03 | B105: 2014-03-03 | D105: =IF(E105<>"",VLOOKUP(E105,PROVEEDORES!$A$2:$B$1000,2,FALSE),"") ->  | E105: ING DIRECT | F105: COMIDA | G105: 0 | T105: 40 | U105: 40 | V105: 0 | W105: 0 | X105: 0 | Z105: 40 | AB105: CORRIENTE CARLOS | AC105: 1 | AD105: =IF(AND(D105<>"",SUMIF($D$3:$D$548,D105,$V$3:$V$548)+SUMIF($D$3:$D$548,D105,$X$3:$X$548)>3005.06),IF(COUNTIF($D$3:D105,D105)>1,INDEX(GASTOS!$A$2:$AD$548,MATCH(D105,$D$2:D104,0),COLUMN($AD$2)),IF(MAX($AD$2:AD104)>MAX(INGRESOS!$O$1:$O$471),MAX($AD$2:AD104)+1,MAX(INGRESOS!$O$1:$O$471)+1)),0) ->  | AE105: 3 | AH105: RETIRADAS METALICO
A106: 2014-03-04 | B106: 2014-03-04 | D106: =IF(E106<>"",VLOOKUP(E106,PROVEEDORES!$A$2:$B$1000,2,FALSE),"") -> F08809808 | E106: CAJA DE ARQUITECTOS | F106: HIPOTECA CADIZ 38 | G106: 0 | Q106: 362.78 | U106: 362.78 | V106: 0 | W106: 0 | X106: 0 | Z106: 362.78 | AB106: CADIZ 38 | AC106: 1 | AD106: =IF(AND(D106<>"",SUMIF($D$3:$D$548,D106,$V$3:$V$548)+SUMIF($D$3:$D$548,D106,$X$3:$X$548)>3005.06),IF(COUNTIF($D$3:D106,D106)>1,INDEX(GASTOS!$A$2:$AD$548,MATCH(D106,$D$2:D105,0),COLUMN($AD$2)),IF(MAX($AD$2:AD105)>MAX(INGRESOS!$O$1:$O$471),MAX($AD$2:AD105)+1,MAX(INGRESOS!$O$1:$O$471)+1)),0) -> 0 | AE106: 3 | AH106: HIP. CADIZ 38
A107: 2014-03-04 | B107: 2014-03-04 | D107: =IF(E107<>"",VLOOKUP(E107,PROVEEDORES!$A$2:$B$1000,2,FALSE),"") -> V28306678 | E107: HERMANDAD NACIONAL DE ARQUITECTOS | F107: SPP CARLOS MARZO | G107: 0 | T107: 217.43 | U107: 217.43 | V107: 0 | W107: 21 | X107: 0 | Z107: 217.43 | AB107: ARQUITECTURA | AC107: 1 | AD107: =IF(AND(D107<>"",SUMIF($D$3:$D$548,D107,$V$3:$V$548)+SUMIF($D$3:$D$548,D107,$X$3:$X$548)>3005.06),IF(COUNTIF($D$3:D107,D107)>1,INDEX(GASTOS!$A$2:$AD$548,MATCH(D107,$D$2:D106,0),COLUMN($AD$2)),IF(MAX($AD$2:AD106)>MAX(INGRESOS!$O$1:$O$471),MAX($AD$2:AD106)+1,MAX(INGRESOS!$O$1:$O$471)+1)),0) -> 0 | AE107: 3 | AH107: HNA CARLOS
A108: 2014-03-05 | B108: 2014-03-05 | D108: =IF(E108<>"",VLOOKUP(E108,PROVEEDORES!$A$2:$B$1000,2,FALSE),"") ->  | E108: ING DIRECT | F108: COMIDA | G108: 0 | T108: 40 | U108: 40 | V108: 0 | W108: 0 | X108: 0 | Z108: 40 | AB108: CORRIENTE CARLOS | AC108: 1 | AD108: =IF(AND(D108<>"",SUMIF($D$3:$D$548,D108,$V$3:$V$548)+SUMIF($D$3:$D$548,D108,$X$3:$X$548)>3005.06),IF(COUNTIF($D$3:D108,D108)>1,INDEX(GASTOS!$A$2:$AD$548,MATCH(D108,$D$2:D107,0),COLUMN($AD$2)),IF(MAX($AD$2:AD107)>MAX(INGRESOS!$O$1:$O$471),MAX($AD$2:AD107)+1,MAX(INGRESOS!$O$1:$O$471)+1)),0) ->  | AE108: 3 | AH108: RETIRADAS METALICO
A109: 2014-03-06 | B109: 2014-03-06 | D109: =IF(E109<>"",VLOOKUP(E109,PROVEEDORES!$A$2:$B$1000,2,FALSE),"") -> A78492782 | E109: CAMPSA ESTACIONES DE SERVICIO S.A. | F109: GASOLINA | G109: 0 | H109: 24.79 | U109: =SUM(H109:T109) -> 24.79 | V109: 0 | W109: 21 | X109: 0 | Z109: 24.79 | AB109: ARQUITECTURA | AC109: 1 | AD109: =IF(AND(D109<>"",SUMIF($D$3:$D$548,D109,$V$3:$V$548)+SUMIF($D$3:$D$548,D109,$X$3:$X$548)>3005.06),IF(COUNTIF($D$3:D109,D109)>1,INDEX(GASTOS!$A$2:$AD$548,MATCH(D109,$D$2:D108,0),COLUMN($AD$2)),IF(MAX($AD$2:AD108)>MAX(INGRESOS!$O$1:$O$471),MAX($AD$2:AD108)+1,MAX(INGRESOS!$O$1:$O$471)+1)),0) -> 0 | AE109: 3 | AH109: COMBUSTIBLE
A110: 2014-03-06 | B110: 2014-03-06 | D110: =IF(E110<>"",VLOOKUP(E110,PROVEEDORES!$A$2:$B$1000,2,FALSE),"") ->  | E110: GODADDY | F110: DOMINIO CPS-FORMACION | G110: 1 | T110: 9.13 | U110: 9.13 | V110: 0 | W110: 0 | X110: 0 | Z110: 9.13 | AB110: ARQUITECTURA | AC110: 1 | AD110: =IF(AND(D110<>"",SUMIF($D$3:$D$548,D110,$V$3:$V$548)+SUMIF($D$3:$D$548,D110,$X$3:$X$548)>3005.06),IF(COUNTIF($D$3:D110,D110)>1,INDEX(GASTOS!$A$2:$AD$548,MATCH(D110,$D$2:D109,0),COLUMN($AD$2)),IF(MAX($AD$2:AD109)>MAX(INGRESOS!$O$1:$O$471),MAX($AD$2:AD109)+1,MAX(INGRESOS!$O$1:$O$471)+1)),0) ->  | AE110: 3 | AH110: FACTURAS
A111: 2014-03-06 | B111: 2014-03-06 | D111: b96126412 | E111: JOSE TERUEL S.L. | F111: MATERIAL | G111: 0 | T111: 57.6 | U111: 57.6 | V111: 0 | W111: 21 | X111: 0 | Z111: 57.6 | AB111: CADIZ 77 | AC111: 1 | AD111: =IF(AND(D111<>"",SUMIF($D$3:$D$548,D111,$V$3:$V$548)+SUMIF($D$3:$D$548,D111,$X$3:$X$548)>3005.06),IF(COUNTIF($D$3:D111,D111)>1,INDEX(GASTOS!$A$2:$AD$548,MATCH(D111,$D$2:D110,0),COLUMN($AD$2)),IF(MAX($AD$2:AD110)>MAX(INGRESOS!$O$1:$O$471),MAX($AD$2:AD110)+1,MAX(INGRESOS!$O$1:$O$471)+1)),0) -> 0 | AE111: 3 | AH111: MATERIALES/COMPRAS
A112: 2014-03-06 | B112: 2014-03-06 | D112: =IF(E112<>"",VLOOKUP(E112,PROVEEDORES!$A$2:$B$1000,2,FALSE),"") -> B84406289 | E112: BRICOLAJE BRICOMAN S.L.U. | F112: MATERIAL | G112: 0 | T112: 309.91 | U112: 309.91 | V112: 0 | W112: 21 | X112: 0 | Z112: 309.91 | AB112: CADIZ 77 | AC112: 1 | AD112: =IF(AND(D112<>"",SUMIF($D$3:$D$548,D112,$V$3:$V$548)+SUMIF($D$3:$D$548,D112,$X$3:$X$548)>3005.06),IF(COUNTIF($D$3:D112,D112)>1,INDEX(GASTOS!$A$2:$AD$548,MATCH(D112,$D$2:D111,0),COLUMN($AD$2)),IF(MAX($AD$2:AD111)>MAX(INGRESOS!$O$1:$O$471),MAX($AD$2:AD111)+1,MAX(INGRESOS!$O$1:$O$471)+1)),0) -> 0 | AE112: 3 | AH112: MATERIALES/COMPRAS
A113: 2014-03-06 | B113: 2014-03-06 | D113: =IF(E113<>"",VLOOKUP(E113,PROVEEDORES!$A$2:$B$1000,2,FALSE),"") -> B84406289 | E113: BRICOLAJE BRICOMAN S.L.U. | F113: MATERIAL | G113: 0 | T113: 637.02 | U113: 637.02 | V113: 0 | W113: 21 | X113: 0 | Z113: 637.02 | AB113: CADIZ 77 | AC113: 1 | AD113: =IF(AND(D113<>"",SUMIF($D$3:$D$548,D113,$V$3:$V$548)+SUMIF($D$3:$D$548,D113,$X$3:$X$548)>3005.06),IF(COUNTIF($D$3:D113,D113)>1,INDEX(GASTOS!$A$2:$AD$548,MATCH(D113,$D$2:D112,0),COLUMN($AD$2)),IF(MAX($AD$2:AD112)>MAX(INGRESOS!$O$1:$O$471),MAX($AD$2:AD112)+1,MAX(INGRESOS!$O$1:$O$471)+1)),0) -> 0 | AE113: 3 | AH113: MATERIALES/COMPRAS
A114: 2014-03-07 | B114: 2014-03-07 | D114: =IF(E114<>"",VLOOKUP(E114,PROVEEDORES!$A$2:$B$1000,2,FALSE),"") -> A08980153 | E114: FINCONSUM, S.A.U. | F114: CREDITO IKEA | G114: 0 | T114: 122.83 | U114: 122.83 | V114: 0 | W114: 21 | X114: 0 | Z114: 122.83 | AB114: PRESTAMOS | AC114: 1 | AD114: =IF(AND(D114<>"",SUMIF($D$3:$D$548,D114,$V$3:$V$548)+SUMIF($D$3:$D$548,D114,$X$3:$X$548)>3005.06),IF(COUNTIF($D$3:D114,D114)>1,INDEX(GASTOS!$A$2:$AD$548,MATCH(D114,$D$2:D113,0),COLUMN($AD$2)),IF(MAX($AD$2:AD113)>MAX(INGRESOS!$O$1:$O$471),MAX($AD$2:AD113)+1,MAX(INGRESOS!$O$1:$O$471)+1)),0) -> 0 | AE114: 3 | AH114: CREDITOS
A115: 2014-03-07 | B115: 2014-03-07 | D115: =IF(E115<>"",VLOOKUP(E115,PROVEEDORES!$A$2:$B$1000,2,FALSE),"") -> B96126412 | E115: JOSE TERUEL S.L. | F115: MATERIAL | G115: 0 | T115: 8.92 | U115: 8.92 | V115: 0 | W115: 21 | X115: 0 | Z115: 8.92 | AB115: CADIZ 77 | AC115: 1 | AD115: =IF(AND(D115<>"",SUMIF($D$3:$D$548,D115,$V$3:$V$548)+SUMIF($D$3:$D$548,D115,$X$3:$X$548)>3005.06),IF(COUNTIF($D$3:D115,D115)>1,INDEX(GASTOS!$A$2:$AD$548,MATCH(D115,$D$2:D114,0),COLUMN($AD$2)),IF(MAX($AD$2:AD114)>MAX(INGRESOS!$O$1:$O$471),MAX($AD$2:AD114)+1,MAX(INGRESOS!$O$1:$O$471)+1)),0) -> 0 | AE115: 3 | AH115: MATERIALES/COMPRAS
A116: 2014-03-08 | B116: 2014-03-08 | D116: =IF(E116<>"",VLOOKUP(E116,PROVEEDORES!$A$2:$B$1000,2,FALSE),"") -> B84406289 | E116: BRICOLAJE BRICOMAN S.L.U. | F116: MATERIAL | G116: 0 | T116: 24.54 | U116: 24.54 | V116: 0 | W116: 21 | X116: 0 | Z116: 24.54 | AB116: CADIZ 77 | AC116: 1 | AD116: =IF(AND(D116<>"",SUMIF($D$3:$D$548,D116,$V$3:$V$548)+SUMIF($D$3:$D$548,D116,$X$3:$X$548)>3005.06),IF(COUNTIF($D$3:D116,D116)>1,INDEX(GASTOS!$A$2:$AD$548,MATCH(D116,$D$2:D115,0),COLUMN($AD$2)),IF(MAX($AD$2:AD115)>MAX(INGRESOS!$O$1:$O$471),MAX($AD$2:AD115)+1,MAX(INGRESOS!$O$1:$O$471)+1)),0) -> 0 | AE116: 3 | AH116: MATERIALES/COMPRAS
A117: 2014-03-08 | B117: 2014-03-08 | D117: =IF(E117<>"",VLOOKUP(E117,PROVEEDORES!$A$2:$B$1000,2,FALSE),"") -> B96126412 | E117: JOSE TERUEL S.L. | F117: MATERIAL | G117: 0 | T117: 10.29 | U117: 10.29 | V117: 0 | W117: 21 | X117: 0 | Z117: 10.29 | AB117: CADIZ 77 | AC117: 1 | AD117: =IF(AND(D117<>"",SUMIF($D$3:$D$548,D117,$V$3:$V$548)+SUMIF($D$3:$D$548,D117,$X$3:$X$548)>3005.06),IF(COUNTIF($D$3:D117,D117)>1,INDEX(GASTOS!$A$2:$AD$548,MATCH(D117,$D$2:D116,0),COLUMN($AD$2)),IF(MAX($AD$2:AD116)>MAX(INGRESOS!$O$1:$O$471),MAX($AD$2:AD116)+1,MAX(INGRESOS!$O$1:$O$471)+1)),0) -> 0 | AE117: 3 | AH117: MATERIALES/COMPRAS
A118: 2014-03-08 | B118: 2014-03-08 | D118: =IF(E118<>"",VLOOKUP(E118,PROVEEDORES!$A$2:$B$1000,2,FALSE),"") ->  | E118: OK SOFAS | F118: SOFA | G118: 0 | T118: 350 | U118: 350 | V118: 0 | W118: 0 | X118: 0 | Z118: 350 | AB118: CADIZ 77 | AC118: 1 | AD118: =IF(AND(D118<>"",SUMIF($D$3:$D$548,D118,$V$3:$V$548)+SUMIF($D$3:$D$548,D118,$X$3:$X$548)>3005.06),IF(COUNTIF($D$3:D118,D118)>1,INDEX(GASTOS!$A$2:$AD$548,MATCH(D118,$D$2:D117,0),COLUMN($AD$2)),IF(MAX($AD$2:AD117)>MAX(INGRESOS!$O$1:$O$471),MAX($AD$2:AD117)+1,MAX(INGRESOS!$O$1:$O$471)+1)),0) ->  | AE118: 3 | AH118: MATERIALES/COMPRAS
A119: 2014-03-08 | B119: 2014-03-08 | D119: =IF(E119<>"",VLOOKUP(E119,PROVEEDORES!$A$2:$B$1000,2,FALSE),"") ->  | E119: ING DIRECT | F119: MANO OBRA (MANOLO) | G119: 0 | T119: 60 | U119: 60 | V119: 0 | W119: 0 | X119: 0 | Z119: 60 | AB119: CADIZ 77 | AC119: 1 | AD119: =IF(AND(D119<>"",SUMIF($D$3:$D$548,D119,$V$3:$V$548)+SUMIF($D$3:$D$548,D119,$X$3:$X$548)>3005.06),IF(COUNTIF($D$3:D119,D119)>1,INDEX(GASTOS!$A$2:$AD$548,MATCH(D119,$D$2:D118,0),COLUMN($AD$2)),IF(MAX($AD$2:AD118)>MAX(INGRESOS!$O$1:$O$471),MAX($AD$2:AD118)+1,MAX(INGRESOS!$O$1:$O$471)+1)),0) ->  | AE119: 3 | AH119: MATERIALES/COMPRAS
A120: 2014-03-08 | B120: 2014-03-08 | D120: =IF(E120<>"",VLOOKUP(E120,PROVEEDORES!$A$2:$B$1000,2,FALSE),"") ->  | E120: ING DIRECT | F120: COMIDA | G120: 0 | T120: 10 | U120: 10 | V120: 0 | W120: 0 | X120: 0 | Z120: 10 | AB120: CORRIENTE CARLOS | AC120: 1 | AD120: =IF(AND(D120<>"",SUMIF($D$3:$D$548,D120,$V$3:$V$548)+SUMIF($D$3:$D$548,D120,$X$3:$X$548)>3005.06),IF(COUNTIF($D$3:D120,D120)>1,INDEX(GASTOS!$A$2:$AD$548,MATCH(D120,$D$2:D119,0),COLUMN($AD$2)),IF(MAX($AD$2:AD119)>MAX(INGRESOS!$O$1:$O$471),MAX($AD$2:AD119)+1,MAX(INGRESOS!$O$1:$O$471)+1)),0) ->  | AE120: 3 | AH120: RETIRADAS METALICO
A121: 2014-03-08 | B121: 2014-03-08 | D121: =IF(E121<>"",VLOOKUP(E121,PROVEEDORES!$A$2:$B$1000,2,FALSE),"") -> A82009812 | E121: FRANCE TELECOM ESPAÑA | F121: TELEFONIA MOVIL | G121: 1 | T121: 23 | U121: 23 | V121: 23 | W121: 21 | X121: 4.83 | Z121: 27.83 | AB121: ARQUITECTURA | AC121: 1 | AD121: =IF(AND(D121<>"",SUMIF($D$3:$D$548,D121,$V$3:$V$548)+SUMIF($D$3:$D$548,D121,$X$3:$X$548)>3005.06),IF(COUNTIF($D$3:D121,D121)>1,INDEX(GASTOS!$A$2:$AD$548,MATCH(D121,$D$2:D120,0),COLUMN($AD$2)),IF(MAX($AD$2:AD120)>MAX(INGRESOS!$O$1:$O$471),MAX($AD$2:AD120)+1,MAX(INGRESOS!$O$1:$O$471)+1)),0) -> 0 | AE121: 3 | AH121: TELEFONIA
A122: 2014-03-10 | B122: 2014-03-10 | D122: =IF(E122<>"",VLOOKUP(E122,PROVEEDORES!$A$2:$B$1000,2,FALSE),"") ->  | E122: ASEMAS | F122: SEGURO CARLOS | G122: 0 | T122: 224.61 | U122: 224.61 | V122: 0 | W122: 0 | X122: 0 | Z122: 224.61 | AB122: ARQUITECTURA | AC122: 1 | AD122: =IF(AND(D122<>"",SUMIF($D$3:$D$548,D122,$V$3:$V$548)+SUMIF($D$3:$D$548,D122,$X$3:$X$548)>3005.06),IF(COUNTIF($D$3:D122,D122)>1,INDEX(GASTOS!$A$2:$AD$548,MATCH(D122,$D$2:D121,0),COLUMN($AD$2)),IF(MAX($AD$2:AD121)>MAX(INGRESOS!$O$1:$O$471),MAX($AD$2:AD121)+1,MAX(INGRESOS!$O$1:$O$471)+1)),0) ->  | AE122: 3 | AH122: ASEMAS FIJO
A123: 2014-03-11 | B123: 2014-03-11 | D123: =IF(E123<>"",VLOOKUP(E123,PROVEEDORES!$A$2:$B$1000,2,FALSE),"") -> B84406289 | E123: BRICOLAJE BRICOMAN S.L.U. | F123: MATERIAL | G123: 0 | T123: 65.93 | U123: 65.93 | V123: 0 | W123: 21 | X123: 0 | Z123: 65.93 | AB123: CADIZ 77 | AC123: 1 | AD123: =IF(AND(D123<>"",SUMIF($D$3:$D$548,D123,$V$3:$V$548)+SUMIF($D$3:$D$548,D123,$X$3:$X$548)>3005.06),IF(COUNTIF($D$3:D123,D123)>1,INDEX(GASTOS!$A$2:$AD$548,MATCH(D123,$D$2:D122,0),COLUMN($AD$2)),IF(MAX($AD$2:AD122)>MAX(INGRESOS!$O$1:$O$471),MAX($AD$2:AD122)+1,MAX(INGRESOS!$O$1:$O$471)+1)),0) -> 0 | AE123: 3 | AH123: MATERIALES/COMPRAS
A124: 2014-03-12 | B124: 2014-03-12 | D124: =IF(E124<>"",VLOOKUP(E124,PROVEEDORES!$A$2:$B$1000,2,FALSE),"") ->  | E124: ING DIRECT | F124: MANO OBRA | G124: 0 | T124: 110 | U124: 110 | V124: 0 | W124: 0 | X124: 0 | Z124: 110 | AB124: CADIZ 77 | AC124: 1 | AD124: =IF(AND(D124<>"",SUMIF($D$3:$D$548,D124,$V$3:$V$548)+SUMIF($D$3:$D$548,D124,$X$3:$X$548)>3005.06),IF(COUNTIF($D$3:D124,D124)>1,INDEX(GASTOS!$A$2:$AD$548,MATCH(D124,$D$2:D123,0),COLUMN($AD$2)),IF(MAX($AD$2:AD123)>MAX(INGRESOS!$O$1:$O$471),MAX($AD$2:AD123)+1,MAX(INGRESOS!$O$1:$O$471)+1)),0) ->  | AE124: 3 | AH124: MATERIALES/COMPRAS
A125: 2014-03-13 | B125: 2014-03-13 | D125: =IF(E125<>"",VLOOKUP(E125,PROVEEDORES!$A$2:$B$1000,2,FALSE),"") -> Q4675003J | E125: COLEGIO TERRITORIAL DE ARQUITECTOS DE VALENCIA | F125: EXP. SOTAVENTO 11 | G125: 1 | N125: 37.5 | U125: 37.5 | V125: 37.5 | W125: 21 | X125: 7.88 | Z125: 45.38 | AB125: ARQUITECTURA | AC125: 1 | AD125: =IF(AND(D125<>"",SUMIF($D$3:$D$548,D125,$V$3:$V$548)+SUMIF($D$3:$D$548,D125,$X$3:$X$548)>3005.06),IF(COUNTIF($D$3:D125,D125)>1,INDEX(GASTOS!$A$2:$AD$548,MATCH(D125,$D$2:D124,0),COLUMN($AD$2)),IF(MAX($AD$2:AD124)>MAX(INGRESOS!$O$1:$O$471),MAX($AD$2:AD124)+1,MAX(INGRESOS!$O$1:$O$471)+1)),0) -> 0 | AE125: 3 | AH125: FACTURAS COLEGIO
A126: 2014-03-13 | B126: =IF(A126<>"",A126,"") -> 2014-03-13 | D126: =IF(E126<>"",VLOOKUP(E126,PROVEEDORES!$A$2:$B$1000,2,FALSE),"") ->  | E126: ING DIRECT | F126: A CUENTA CORREDERA | G126: 0 | T126: 765 | U126: 765 | V126: 0 | W126: 0 | X126: 0 | Z126: 765 | AB126: CADIZ 77 | AC126: 1 | AD126: =IF(AND(D126<>"",SUMIF($D$3:$D$548,D126,$V$3:$V$548)+SUMIF($D$3:$D$548,D126,$X$3:$X$548)>3005.06),IF(COUNTIF($D$3:D126,D126)>1,INDEX(GASTOS!$A$2:$AD$548,MATCH(D126,$D$2:D125,0),COLUMN($AD$2)),IF(MAX($AD$2:AD125)>MAX(INGRESOS!$O$1:$O$471),MAX($AD$2:AD125)+1,MAX(INGRESOS!$O$1:$O$471)+1)),0) ->  | AE126: 3 | AH126: MATERIALES/COMPRAS
A127: 2014-03-13 | B127: 2014-03-13 | D127: =IF(E127<>"",VLOOKUP(E127,PROVEEDORES!$A$2:$B$1000,2,FALSE),"") ->  | E127: ING DIRECT | F127: GASTOS CARLOS | G127: 0 | T127: 19.36 | U127: 19.36 | V127: 0 | W127: 0 | X127: 0 | Z127: 19.36 | AB127: CORRIENTE CARLOS | AC127: 1 | AD127: =IF(AND(D127<>"",SUMIF($D$3:$D$548,D127,$V$3:$V$548)+SUMIF($D$3:$D$548,D127,$X$3:$X$548)>3005.06),IF(COUNTIF($D$3:D127,D127)>1,INDEX(GASTOS!$A$2:$AD$548,MATCH(D127,$D$2:D126,0),COLUMN($AD$2)),IF(MAX($AD$2:AD126)>MAX(INGRESOS!$O$1:$O$471),MAX($AD$2:AD126)+1,MAX(INGRESOS!$O$1:$O$471)+1)),0) ->  | AE127: 3 | AH127: RETIRADAS METALICO
A128: 2014-03-14 | B128: 2014-03-14 | D128: =IF(E128<>"",VLOOKUP(E128,PROVEEDORES!$A$2:$B$1000,2,FALSE),"") -> B65371171 | E128: E.S. BALLENOIL | F128: GASOLINA | G128: 0 | H128: 41.32 | U128: 41.32 | V128: 0 | W128: 21 | X128: 0 | Z128: 41.32 | AB128: ARQUITECTURA | AC128: 1 | AD128: =IF(AND(D128<>"",SUMIF($D$3:$D$548,D128,$V$3:$V$548)+SUMIF($D$3:$D$548,D128,$X$3:$X$548)>3005.06),IF(COUNTIF($D$3:D128,D128)>1,INDEX(GASTOS!$A$2:$AD$548,MATCH(D128,$D$2:D127,0),COLUMN($AD$2)),IF(MAX($AD$2:AD127)>MAX(INGRESOS!$O$1:$O$471),MAX($AD$2:AD127)+1,MAX(INGRESOS!$O$1:$O$471)+1)),0) -> 0 | AE128: 3 | AH128: COMBUSTIBLE
A129: 2014-03-14 | B129: 2014-03-14 | D129: =IF(E129<>"",VLOOKUP(E129,PROVEEDORES!$A$2:$B$1000,2,FALSE),"") -> A62018064 | E129: EURO DEPOT ESPAÑA S.A.U. | F129: MATERIAL | G129: 0 | T129: 101.32 | U129: 101.32 | V129: 0 | W129: 21 | X129: 0 | Z129: 101.32 | AB129: CADIZ 77 | AC129: 1 | AD129: =IF(AND(D129<>"",SUMIF($D$3:$D$548,D129,$V$3:$V$548)+SUMIF($D$3:$D$548,D129,$X$3:$X$548)>3005.06),IF(COUNTIF($D$3:D129,D129)>1,INDEX(GASTOS!$A$2:$AD$548,MATCH(D129,$D$2:D128,0),COLUMN($AD$2)),IF(MAX($AD$2:AD128)>MAX(INGRESOS!$O$1:$O$471),MAX($AD$2:AD128)+1,MAX(INGRESOS!$O$1:$O$471)+1)),0) -> 0 | AE129: 3 | AH129: COMBUSTIBLE
A130: 2014-03-14 | B130: 2014-03-14 | D130: =IF(E130<>"",VLOOKUP(E130,PROVEEDORES!$A$2:$B$1000,2,FALSE),"") -> B98361108 | E130: DECORVEGA DECORACIONES, S.L. | F130: MATERIAL | G130: 0 | T130: 13.71 | U130: 13.71 | V130: =SUMPRODUCT((G130=1)*(W130<>0)*(H130:T130)) -> 0 | W130: 21 | X130: =ROUND((V130*(W130/100)),2) -> 0 | Z130: =SUM(H130:T130)+X130 -> 13.71 | AB130: CADIZ 77 | AC130: =IF(A130<>"",IF(MONTH(A130)<=3,1,IF(AND(MONTH(A130)>3,MONTH(A130)<=6),2,IF(AND(MONTH(A130)>6,MONTH(A130)<=9),3,4))),"") -> 1 | AD130: =IF(AND(D130<>"",SUMIF($D$3:$D$548,D130,$V$3:$V$548)+SUMIF($D$3:$D$548,D130,$X$3:$X$548)>3005.06),IF(COUNTIF($D$3:D130,D130)>1,INDEX(GASTOS!$A$2:$AD$548,MATCH(D130,$D$2:D129,0),COLUMN($AD$2)),IF(MAX($AD$2:AD129)>MAX(INGRESOS!$O$1:$O$471),MAX($AD$2:AD129)+1,MAX(INGRESOS!$O$1:$O$471)+1)),0) -> 0 | AE130: =IF(A130<>"",MONTH(A130),"") -> 3 | AH130: COMBUSTIBLE
A131: 2014-03-14 | B131: 2014-03-14 | D131: =IF(E131<>"",VLOOKUP(E131,PROVEEDORES!$A$2:$B$1000,2,FALSE),"") -> Q4675003J | E131: COLEGIO TERRITORIAL DE ARQUITECTOS DE VALENCIA | F131: EXP. FARM PEYDRO 24 | G131: 1 | N131: 122.04 | U131: 122.04 | V131: 122.04 | W131: 21 | X131: 25.63 | Z131: 147.67 | AB131: ARQUITECTURA | AC131: 1 | AD131: =IF(AND(D131<>"",SUMIF($D$3:$D$548,D131,$V$3:$V$548)+SUMIF($D$3:$D$548,D131,$X$3:$X$548)>3005.06),IF(COUNTIF($D$3:D131,D131)>1,INDEX(GASTOS!$A$2:$AD$548,MATCH(D131,$D$2:D130,0),COLUMN($AD$2)),IF(MAX($AD$2:AD130)>MAX(INGRESOS!$O$1:$O$471),MAX($AD$2:AD130)+1,MAX(INGRESOS!$O$1:$O$471)+1)),0) -> 0 | AE131: 3 | AH131: FACTURAS COLEGIO
A132: 2014-03-17 | B132: 2014-03-17 | D132: =IF(E132<>"",VLOOKUP(E132,PROVEEDORES!$A$2:$B$1000,2,FALSE),"") ->  | E132: ING DIRECT | F132: GASTOS CARLOS | G132: 0 | T132: 42 | U132: 42 | V132: 0 | W132: 0 | X132: 0 | Z132: 42 | AB132: CORRIENTE CARLOS | AC132: 1 | AD132: =IF(AND(D132<>"",SUMIF($D$3:$D$548,D132,$V$3:$V$548)+SUMIF($D$3:$D$548,D132,$X$3:$X$548)>3005.06),IF(COUNTIF($D$3:D132,D132)>1,INDEX(GASTOS!$A$2:$AD$548,MATCH(D132,$D$2:D131,0),COLUMN($AD$2)),IF(MAX($AD$2:AD131)>MAX(INGRESOS!$O$1:$O$471),MAX($AD$2:AD131)+1,MAX(INGRESOS!$O$1:$O$471)+1)),0) ->  | AE132: 3 | AH132: RETIRADAS METALICO
A133: 2014-03-18 | B133: 2014-03-18 | D133: =IF(E133<>"",VLOOKUP(E133,PROVEEDORES!$A$2:$B$1000,2,FALSE),"") -> A95554630 | E133: IBERDROLA COMERCIALIZACIÓN DE ÚLTIMO RECURSO | F133: ELECTRICIDAD | G133: 0 | O133: 117.01 | U133: 117.01 | V133: 0 | W133: 21 | X133: 0 | Z133: 117.01 | AB133: CADIZ 38 | AC133: 1 | AD133: =IF(AND(D133<>"",SUMIF($D$3:$D$548,D133,$V$3:$V$548)+SUMIF($D$3:$D$548,D133,$X$3:$X$548)>3005.06),IF(COUNTIF($D$3:D133,D133)>1,INDEX(GASTOS!$A$2:$AD$548,MATCH(D133,$D$2:D132,0),COLUMN($AD$2)),IF(MAX($AD$2:AD132)>MAX(INGRESOS!$O$1:$O$471),MAX($AD$2:AD132)+1,MAX(INGRESOS!$O$1:$O$471)+1)),0) -> 0 | AE133: 3 | AH133: ELEC. CADIZ 38
A134: 2014-03-19 | B134: 2014-03-19 | D134: =IF(E134<>"",VLOOKUP(E134,PROVEEDORES!$A$2:$B$1000,2,FALSE),"") -> A78492782 | E134: CAMPSA ESTACIONES DE SERVICIO S.A. | F134: GASOLINA | G134: 0 | H134: 16.53 | U134: 16.53 | V134: 0 | W134: 21 | X134: 0 | Z134: 16.53 | AB134: ARQUITECTURA | AC134: 1 | AD134: =IF(AND(D134<>"",SUMIF($D$3:$D$548,D134,$V$3:$V$548)+SUMIF($D$3:$D$548,D134,$X$3:$X$548)>3005.06),IF(COUNTIF($D$3:D134,D134)>1,INDEX(GASTOS!$A$2:$AD$548,MATCH(D134,$D$2:D133,0),COLUMN($AD$2)),IF(MAX($AD$2:AD133)>MAX(INGRESOS!$O$1:$O$471),MAX($AD$2:AD133)+1,MAX(INGRESOS!$O$1:$O$471)+1)),0) -> 0 | AE134: 3 | AH134: COMBUSTIBLE
A135: 2014-03-21 | B135: 2014-03-21 | D135: =IF(E135<>"",VLOOKUP(E135,PROVEEDORES!$A$2:$B$1000,2,FALSE),"") -> A95075586 | E135: IBERDROLA GENERACION S.A.U. | F135: ELECTRICIDAD | G135: 1 | O135: 162.54 | U135: 162.54 | V135: 162.54 | W135: 21 | X135: 34.13 | Z135: 196.67 | AB135: CADIZ 77 | AC135: 1 | AD135: =IF(AND(D135<>"",SUMIF($D$3:$D$548,D135,$V$3:$V$548)+SUMIF($D$3:$D$548,D135,$X$3:$X$548)>3005.06),IF(COUNTIF($D$3:D135,D135)>1,INDEX(GASTOS!$A$2:$AD$548,MATCH(D135,$D$2:D134,0),COLUMN($AD$2)),IF(MAX($AD$2:AD134)>MAX(INGRESOS!$O$1:$O$471),MAX($AD$2:AD134)+1,MAX(INGRESOS!$O$1:$O$471)+1)),0) -> 0 | AE135: 3 | AH135: ELEC. CADIZ 77
A136: 2014-03-21 | B136: 2014-03-21 | D136: G46397691 | E136: INSTITUTO VALENCIANO DE LA EDIFICACION | F136: CURSOS | G136: 1 | T136: 80 | U136: 80 | V136: 0 | W136: 0 | X136: 0 | Z136: 80 | AB136: ARQUITECTURA | AC136: 1 | AD136: =IF(AND(D136<>"",SUMIF($D$3:$D$548,D136,$V$3:$V$548)+SUMIF($D$3:$D$548,D136,$X$3:$X$548)>3005.06),IF(COUNTIF($D$3:D136,D136)>1,INDEX(GASTOS!$A$2:$AD$548,MATCH(D136,$D$2:D135,0),COLUMN($AD$2)),IF(MAX($AD$2:AD135)>MAX(INGRESOS!$O$1:$O$471),MAX($AD$2:AD135)+1,MAX(INGRESOS!$O$1:$O$471)+1)),0) -> 0 | AE136: 3 | AH136: FACTURAS
A137: 2014-03-21 | B137: 2014-03-21 | D137: =IF(E137<>"",VLOOKUP(E137,PROVEEDORES!$A$2:$B$1000,2,FALSE),"") -> F08809808 | E137: CAJA DE ARQUITECTOS | F137: HIPOTECA SAN VICENTE | G137: 0 | Q137: 192.99 | U137: 192.99 | V137: 0 | W137: 0 | X137: 0 | Z137: 192.99 | AB137: SAN VICENTE 222 | AC137: 1 | AD137: =IF(AND(D137<>"",SUMIF($D$3:$D$548,D137,$V$3:$V$548)+SUMIF($D$3:$D$548,D137,$X$3:$X$548)>3005.06),IF(COUNTIF($D$3:D137,D137)>1,INDEX(GASTOS!$A$2:$AD$548,MATCH(D137,$D$2:D136,0),COLUMN($AD$2)),IF(MAX($AD$2:AD136)>MAX(INGRESOS!$O$1:$O$471),MAX($AD$2:AD136)+1,MAX(INGRESOS!$O$1:$O$471)+1)),0) -> 0 | AE137: 3 | AH137: HIP. SAN VICENTE
A138: 2014-03-21 | B138: 2014-03-21 | D138: =IF(E138<>"",VLOOKUP(E138,PROVEEDORES!$A$2:$B$1000,2,FALSE),"") -> F08809808 | E138: CAJA DE ARQUITECTOS | F138: HIPOTECA SAN VICENTE | G138: 0 | Q138: 110.25 | U138: 110.25 | V138: 0 | W138: 0 | X138: 0 | Z138: 110.25 | AB138: SAN VICENTE 222 | AC138: 1 | AD138: =IF(AND(D138<>"",SUMIF($D$3:$D$548,D138,$V$3:$V$548)+SUMIF($D$3:$D$548,D138,$X$3:$X$548)>3005.06),IF(COUNTIF($D$3:D138,D138)>1,INDEX(GASTOS!$A$2:$AD$548,MATCH(D138,$D$2:D137,0),COLUMN($AD$2)),IF(MAX($AD$2:AD137)>MAX(INGRESOS!$O$1:$O$471),MAX($AD$2:AD137)+1,MAX(INGRESOS!$O$1:$O$471)+1)),0) -> 0 | AE138: 3 | AH138: HIP. SAN VICENTE
A139: 2014-03-21 | B139: 2014-03-21 | D139: =IF(E139<>"",VLOOKUP(E139,PROVEEDORES!$A$2:$B$1000,2,FALSE),"") ->  | E139: ING DIRECT | F139: GASTOS CARLOS | G139: 0 | T139: 40 | U139: 40 | V139: 0 | W139: 0 | X139: 0 | Z139: 40 | AB139: CORRIENTE CARLOS | AC139: 1 | AD139: =IF(AND(D139<>"",SUMIF($D$3:$D$548,D139,$V$3:$V$548)+SUMIF($D$3:$D$548,D139,$X$3:$X$548)>3005.06),IF(COUNTIF($D$3:D139,D139)>1,INDEX(GASTOS!$A$2:$AD$548,MATCH(D139,$D$2:D138,0),COLUMN($AD$2)),IF(MAX($AD$2:AD138)>MAX(INGRESOS!$O$1:$O$471),MAX($AD$2:AD138)+1,MAX(INGRESOS!$O$1:$O$471)+1)),0) ->  | AE139: 3 | AH139: RETIRADAS METALICO
A140: 2014-03-22 | B140: 2014-03-22 | D140: =IF(E140<>"",VLOOKUP(E140,PROVEEDORES!$A$2:$B$1000,2,FALSE),"") ->  | E140: LEROY MERLIN MASSANASSA | F140: MATERIAL | G140: 0 | T140: 258.14 | U140: 258.14 | V140: 0 | W140: 21 | X140: 0 | Z140: 258.14 | AB140: CADIZ 77 | AC140: 1 | AD140: =IF(AND(D140<>"",SUMIF($D$3:$D$548,D140,$V$3:$V$548)+SUMIF($D$3:$D$548,D140,$X$3:$X$548)>3005.06),IF(COUNTIF($D$3:D140,D140)>1,INDEX(GASTOS!$A$2:$AD$548,MATCH(D140,$D$2:D139,0),COLUMN($AD$2)),IF(MAX($AD$2:AD139)>MAX(INGRESOS!$O$1:$O$471),MAX($AD$2:AD139)+1,MAX(INGRESOS!$O$1:$O$471)+1)),0) ->  | AE140: 3 | AH140: MATERIALES/COMPRAS
A141: 2014-03-23 | B141: 2014-03-23 | D141: =IF(E141<>"",VLOOKUP(E141,PROVEEDORES!$A$2:$B$1000,2,FALSE),"") ->  | E141: ING DIRECT | F141: GASTOS CARLOS | G141: 0 | T141: 100 | U141: =SUM(H141:T141) -> 100 | V141: 0 | W141: 0 | X141: 0 | Z141: 100 | AB141: CORRIENTE CARLOS | AC141: 1 | AD141: =IF(AND(D141<>"",SUMIF($D$3:$D$548,D141,$V$3:$V$548)+SUMIF($D$3:$D$548,D141,$X$3:$X$548)>3005.06),IF(COUNTIF($D$3:D141,D141)>1,INDEX(GASTOS!$A$2:$AD$548,MATCH(D141,$D$2:D140,0),COLUMN($AD$2)),IF(MAX($AD$2:AD140)>MAX(INGRESOS!$O$1:$O$471),MAX($AD$2:AD140)+1,MAX(INGRESOS!$O$1:$O$471)+1)),0) ->  | AE141: 3 | AH141: RETIRADAS METALICO
A142: 2014-03-25 | B142: 2014-03-25 | D142: =IF(E142<>"",VLOOKUP(E142,PROVEEDORES!$A$2:$B$1000,2,FALSE),"") -> F08809808 | E142: CAJA DE ARQUITECTOS | F142: HIPOTECA SAN VICENTE | G142: 0 | Q142: 259.66 | U142: 259.66 | V142: 0 | W142: 0 | X142: 0 | Z142: 259.66 | AB142: SAN VICENTE 222 | AC142: 1 | AD142: =IF(AND(D142<>"",SUMIF($D$3:$D$548,D142,$V$3:$V$548)+SUMIF($D$3:$D$548,D142,$X$3:$X$548)>3005.06),IF(COUNTIF($D$3:D142,D142)>1,INDEX(GASTOS!$A$2:$AD$548,MATCH(D142,$D$2:D141,0),COLUMN($AD$2)),IF(MAX($AD$2:AD141)>MAX(INGRESOS!$O$1:$O$471),MAX($AD$2:AD141)+1,MAX(INGRESOS!$O$1:$O$471)+1)),0) -> 0 | AE142: 3 | AH142: HIP. SAN VICENTE
A143: 2014-03-25 | B143: 2014-03-25 | D143: =IF(E143<>"",VLOOKUP(E143,PROVEEDORES!$A$2:$B$1000,2,FALSE),"") -> F08809808 | E143: CAJA DE ARQUITECTOS | F143: HIPOTECA SAN VICENTE | G143: 0 | Q143: 148.33 | U143: 148.33 | V143: 0 | W143: 0 | X143: 0 | Z143: 148.33 | AB143: SAN VICENTE 222 | AC143: 1 | AD143: =IF(AND(D143<>"",SUMIF($D$3:$D$548,D143,$V$3:$V$548)+SUMIF($D$3:$D$548,D143,$X$3:$X$548)>3005.06),IF(COUNTIF($D$3:D143,D143)>1,INDEX(GASTOS!$A$2:$AD$548,MATCH(D143,$D$2:D142,0),COLUMN($AD$2)),IF(MAX($AD$2:AD142)>MAX(INGRESOS!$O$1:$O$471),MAX($AD$2:AD142)+1,MAX(INGRESOS!$O$1:$O$471)+1)),0) -> 0 | AE143: 3 | AH143: HIP. SAN VICENTE
A144: 2014-03-25 | B144: 2014-03-25 | D144: =IF(E144<>"",VLOOKUP(E144,PROVEEDORES!$A$2:$B$1000,2,FALSE),"") ->  | E144: MADERAS BRICOMART | F144: MATERIAL | G144: 0 | T144: 309.55 | U144: 309.55 | V144: 0 | W144: 21 | X144: 0 | Z144: 309.55 | AB144: CADIZ 77 | AC144: 1 | AD144: =IF(AND(D144<>"",SUMIF($D$3:$D$548,D144,$V$3:$V$548)+SUMIF($D$3:$D$548,D144,$X$3:$X$548)>3005.06),IF(COUNTIF($D$3:D144,D144)>1,INDEX(GASTOS!$A$2:$AD$548,MATCH(D144,$D$2:D143,0),COLUMN($AD$2)),IF(MAX($AD$2:AD143)>MAX(INGRESOS!$O$1:$O$471),MAX($AD$2:AD143)+1,MAX(INGRESOS!$O$1:$O$471)+1)),0) ->  | AE144: 3 | AH144: MATERIALES/COMPRAS
A145: 2014-03-25 | B145: 2014-03-25 | D145: =IF(E145<>"",VLOOKUP(E145,PROVEEDORES!$A$2:$B$1000,2,FALSE),"") -> B81609372 | E145: MADERAS HERMANOS ANDRES GOLVANO, S.L. | F145: MATERIAL | G145: 0 | T145: 68.18 | U145: 68.18 | V145: 0 | W145: 21 | X145: 0 | Z145: 68.18 | AB145: CADIZ 77 | AC145: 1 | AD145: =IF(AND(D145<>"",SUMIF($D$3:$D$548,D145,$V$3:$V$548)+SUMIF($D$3:$D$548,D145,$X$3:$X$548)>3005.06),IF(COUNTIF($D$3:D145,D145)>1,INDEX(GASTOS!$A$2:$AD$548,MATCH(D145,$D$2:D144,0),COLUMN($AD$2)),IF(MAX($AD$2:AD144)>MAX(INGRESOS!$O$1:$O$471),MAX($AD$2:AD144)+1,MAX(INGRESOS!$O$1:$O$471)+1)),0) -> 0 | AE145: 3 | AH145: MATERIALES/COMPRAS
A146: 2014-03-25 | B146: 2014-03-25 | D146: =IF(E146<>"",VLOOKUP(E146,PROVEEDORES!$A$2:$B$1000,2,FALSE),"") ->  | E146: GREEN ICE, S.L. | F146: MATERIAL | G146: 0 | T146: 63.6 | U146: 63.6 | V146: 0 | W146: 21 | X146: 0 | Z146: 63.6 | AB146: CADIZ 77 | AC146: 1 | AD146: =IF(AND(D146<>"",SUMIF($D$3:$D$548,D146,$V$3:$V$548)+SUMIF($D$3:$D$548,D146,$X$3:$X$548)>3005.06),IF(COUNTIF($D$3:D146,D146)>1,INDEX(GASTOS!$A$2:$AD$548,MATCH(D146,$D$2:D145,0),COLUMN($AD$2)),IF(MAX($AD$2:AD145)>MAX(INGRESOS!$O$1:$O$471),MAX($AD$2:AD145)+1,MAX(INGRESOS!$O$1:$O$471)+1)),0) ->  | AE146: 3 | AH146: MATERIALES/COMPRAS
A147: 2014-03-26 | B147: 2014-03-26 | D147: =IF(E147<>"",VLOOKUP(E147,PROVEEDORES!$A$2:$B$1000,2,FALSE),"") ->  | E147: GODADDY | F147: DOMAINS | G147: 1 | T147: 14.52 | U147: 14.52 | V147: 0 | W147: 0 | X147: 0 | Z147: 14.52 | AB147: ARQUITECTURA | AC147: 1 | AD147: =IF(AND(D147<>"",SUMIF($D$3:$D$548,D147,$V$3:$V$548)+SUMIF($D$3:$D$548,D147,$X$3:$X$548)>3005.06),IF(COUNTIF($D$3:D147,D147)>1,INDEX(GASTOS!$A$2:$AD$548,MATCH(D147,$D$2:D146,0),COLUMN($AD$2)),IF(MAX($AD$2:AD146)>MAX(INGRESOS!$O$1:$O$471),MAX($AD$2:AD146)+1,MAX(INGRESOS!$O$1:$O$471)+1)),0) ->  | AE147: 3 | AH147: FACTURAS
A148: 2014-03-26 | B148: 2014-03-26 | D148: B97982409 | E148: PASCUAL MARTI, S.L. | F148: NEVERA | G148: 0 | T148: 577.69 | U148: 577.69 | V148: 0 | W148: 21 | X148: 0 | Z148: 577.69 | AB148: CADIZ 77 | AC148: 1 | AD148: =IF(AND(D148<>"",SUMIF($D$3:$D$548,D148,$V$3:$V$548)+SUMIF($D$3:$D$548,D148,$X$3:$X$548)>3005.06),IF(COUNTIF($D$3:D148,D148)>1,INDEX(GASTOS!$A$2:$AD$548,MATCH(D148,$D$2:D147,0),COLUMN($AD$2)),IF(MAX($AD$2:AD147)>MAX(INGRESOS!$O$1:$O$471),MAX($AD$2:AD147)+1,MAX(INGRESOS!$O$1:$O$471)+1)),0) -> 0 | AE148: 3 | AH148: MATERIALES/COMPRAS
A149: 2014-03-28 | B149: 2014-03-28 | D149: =IF(E149<>"",VLOOKUP(E149,PROVEEDORES!$A$2:$B$1000,2,FALSE),"") -> F08809808 | E149: CAJA DE ARQUITECTOS | F149: HIPOTECA CADIZ 38 | G149: 0 | Q149: 640.02 | U149: 640.02 | V149: 0 | W149: 0 | X149: 0 | Z149: 640.02 | AB149: CADIZ 38 | AC149: 1 | AD149: =IF(AND(D149<>"",SUMIF($D$3:$D$548,D149,$V$3:$V$548)+SUMIF($D$3:$D$548,D149,$X$3:$X$548)>3005.06),IF(COUNTIF($D$3:D149,D149)>1,INDEX(GASTOS!$A$2:$AD$548,MATCH(D149,$D$2:D148,0),COLUMN($AD$2)),IF(MAX($AD$2:AD148)>MAX(INGRESOS!$O$1:$O$471),MAX($AD$2:AD148)+1,MAX(INGRESOS!$O$1:$O$471)+1)),0) -> 0 | AE149: 3 | AH149: HIP. CADIZ 38
A150: 2014-03-28 | B150: 2014-03-28 | D150: =IF(E150<>"",VLOOKUP(E150,PROVEEDORES!$A$2:$B$1000,2,FALSE),"") ->  | E150: ING DIRECT | F150: MANO OBRA | G150: 0 | T150: 250 | U150: 250 | V150: 0 | W150: 0 | X150: 0 | Z150: 250 | AB150: CADIZ 77 | AC150: 1 | AD150: =IF(AND(D150<>"",SUMIF($D$3:$D$548,D150,$V$3:$V$548)+SUMIF($D$3:$D$548,D150,$X$3:$X$548)>3005.06),IF(COUNTIF($D$3:D150,D150)>1,INDEX(GASTOS!$A$2:$AD$548,MATCH(D150,$D$2:D149,0),COLUMN($AD$2)),IF(MAX($AD$2:AD149)>MAX(INGRESOS!$O$1:$O$471),MAX($AD$2:AD149)+1,MAX(INGRESOS!$O$1:$O$471)+1)),0) ->  | AE150: 3 | AH150: MATERIALES/COMPRAS
A151: 2014-03-30 | B151: 2014-03-30 | D151: =IF(E151<>"",VLOOKUP(E151,PROVEEDORES!$A$2:$B$1000,2,FALSE),"") ->  | E151: E.S. CADIZ VALENCIA | F151: GASOLINA | G151: 0 | T151: 24.82 | U151: 24.82 | V151: 0 | W151: 21 | X151: 0 | Z151: 24.82 | AB151: ARQUITECTURA | AC151: 1 | AD151: =IF(AND(D151<>"",SUMIF($D$3:$D$548,D151,$V$3:$V$548)+SUMIF($D$3:$D$548,D151,$X$3:$X$548)>3005.06),IF(COUNTIF($D$3:D151,D151)>1,INDEX(GASTOS!$A$2:$AD$548,MATCH(D151,$D$2:D150,0),COLUMN($AD$2)),IF(MAX($AD$2:AD150)>MAX(INGRESOS!$O$1:$O$471),MAX($AD$2:AD150)+1,MAX(INGRESOS!$O$1:$O$471)+1)),0) ->  | AE151: 3 | AH151: COMBUSTIBLE
A152: 2014-03-31 | B152: 2014-03-31 | D152: =IF(E152<>"",VLOOKUP(E152,PROVEEDORES!$A$2:$B$1000,2,FALSE),"") -> H96036967 | E152: CDAD. PROP. CADIZ 77 | F152: 1T/2014 | G152: 0 | T152: 151.59 | U152: 151.59 | V152: 0 | W152: 21 | X152: 0 | Z152: 151.59 | AB152: CADIZ 77 | AC152: 1 | AD152: =IF(AND(D152<>"",SUMIF($D$3:$D$548,D152,$V$3:$V$548)+SUMIF($D$3:$D$548,D152,$X$3:$X$548)>3005.06),IF(COUNTIF($D$3:D152,D152)>1,INDEX(GASTOS!$A$2:$AD$548,MATCH(D152,$D$2:D151,0),COLUMN($AD$2)),IF(MAX($AD$2:AD151)>MAX(INGRESOS!$O$1:$O$471),MAX($AD$2:AD151)+1,MAX(INGRESOS!$O$1:$O$471)+1)),0) -> 0 | AE152: 3 | AH152: CDAD. CADIZ 77
A153: 2014-03-31 | B153: 2014-03-31 | D153: =IF(E153<>"",VLOOKUP(E153,PROVEEDORES!$A$2:$B$1000,2,FALSE),"") -> H46854410 | E153: CDAD. PROP. GARAJE SUECA 64 | F153: 1T/2014 | G153: 0 | T153: 120.4 | U153: 120.4 | V153: 0 | W153: 0 | X153: 0 | Z153: 120.4 | AB153: SUECA 64 | AC153: 1 | AD153: =IF(AND(D153<>"",SUMIF($D$3:$D$548,D153,$V$3:$V$548)+SUMIF($D$3:$D$548,D153,$X$3:$X$548)>3005.06),IF(COUNTIF($D$3:D153,D153)>1,INDEX(GASTOS!$A$2:$AD$548,MATCH(D153,$D$2:D152,0),COLUMN($AD$2)),IF(MAX($AD$2:AD152)>MAX(INGRESOS!$O$1:$O$471),MAX($AD$2:AD152)+1,MAX(INGRESOS!$O$1:$O$471)+1)),0) -> 0 | AE153: 3 | AF153: PEND. PAGO | AH153: CDAD. SUECA 64
A154: 2014-03-31 | B154: 2014-03-31 | D154: =IF(E154<>"",VLOOKUP(E154,PROVEEDORES!$A$2:$B$1000,2,FALSE),"") -> B98361108 | E154: DECORVEGA DECORACIONES, S.L. | F154: PINTURA | G154: 0 | T154: 95.3 | U154: 95.3 | V154: 0 | W154: 21 | X154: 0 | Z154: 95.3 | AB154: CADIZ 77 | AC154: 1 | AD154: =IF(AND(D154<>"",SUMIF($D$3:$D$548,D154,$V$3:$V$548)+SUMIF($D$3:$D$548,D154,$X$3:$X$548)>3005.06),IF(COUNTIF($D$3:D154,D154)>1,INDEX(GASTOS!$A$2:$AD$548,MATCH(D154,$D$2:D153,0),COLUMN($AD$2)),IF(MAX($AD$2:AD153)>MAX(INGRESOS!$O$1:$O$471),MAX($AD$2:AD153)+1,MAX(INGRESOS!$O$1:$O$471)+1)),0) -> 0 | AE154: 3 | AH154: MATERIALES/COMPRAS
A155: 2014-04-01 | B155: 2014-04-01 | D155: =IF(E155<>"",VLOOKUP(E155,PROVEEDORES!$A$2:$B$1000,2,FALSE),"") ->  | E155: ASEMAS | F155: SEGURO 01-04 A 01-07 | G155: 0 | N155: 223.41 | U155: 223.41 | V155: 0 | W155: 0 | X155: 0 | Z155: 223.41 | AB155: ARQUITECTURA | AC155: 2 | AD155: =IF(AND(D155<>"",SUMIF($D$3:$D$548,D155,$V$3:$V$548)+SUMIF($D$3:$D$548,D155,$X$3:$X$548)>3005.06),IF(COUNTIF($D$3:D155,D155)>1,INDEX(GASTOS!$A$2:$AD$548,MATCH(D155,$D$2:D154,0),COLUMN($AD$2)),IF(MAX($AD$2:AD154)>MAX(INGRESOS!$O$1:$O$471),MAX($AD$2:AD154)+1,MAX(INGRESOS!$O$1:$O$471)+1)),0) ->  | AE155: 4 | AH155: ASEMAS FIJO
A156: 2014-04-01 | B156: 2014-04-01 | D156: =IF(E156<>"",VLOOKUP(E156,PROVEEDORES!$A$2:$B$1000,2,FALSE),"") -> H97554299 | E156: CDAD. PROP. CADIZ 38 | F156: 1T/2014 | G156: 0 | T156: 126.34 | U156: 126.34 | V156: 0 | W156: 0 | X156: 0 | Z156: 126.34 | AB156: CADIZ 38 | AC156: 2 | AD156: =IF(AND(D156<>"",SUMIF($D$3:$D$548,D156,$V$3:$V$548)+SUMIF($D$3:$D$548,D156,$X$3:$X$548)>3005.06),IF(COUNTIF($D$3:D156,D156)>1,INDEX(GASTOS!$A$2:$AD$548,MATCH(D156,$D$2:D155,0),COLUMN($AD$2)),IF(MAX($AD$2:AD155)>MAX(INGRESOS!$O$1:$O$471),MAX($AD$2:AD155)+1,MAX(INGRESOS!$O$1:$O$471)+1)),0) -> 0 | AE156: 4 | AH156: CDAD. CADIZ 38
A157: 2014-04-01 | B157: 2014-04-01 | D157: =IF(E157<>"",VLOOKUP(E157,PROVEEDORES!$A$2:$B$1000,2,FALSE),"") -> F08809808 | E157: CAJA DE ARQUITECTOS | F157: CARGO RECIBOS VISA LUCIA ENERO | G157: 0 | T157: 576.77 | U157: 576.77 | V157: 0 | W157: 0 | X157: 0 | Z157: 576.77 | AB157: CORRIENTE LUCIA | AC157: 2 | AD157: =IF(AND(D157<>"",SUMIF($D$3:$D$548,D157,$V$3:$V$548)+SUMIF($D$3:$D$548,D157,$X$3:$X$548)>3005.06),IF(COUNTIF($D$3:D157,D157)>1,INDEX(GASTOS!$A$2:$AD$548,MATCH(D157,$D$2:D156,0),COLUMN($AD$2)),IF(MAX($AD$2:AD156)>MAX(INGRESOS!$O$1:$O$471),MAX($AD$2:AD156)+1,MAX(INGRESOS!$O$1:$O$471)+1)),0) -> 0 | AE157: 4 | AH157: GASTOS CON TARJETA
A158: 2014-04-01 | B158: =IF(A158<>"",A158,"") -> 2014-04-01 | D158: =IF(E158<>"",VLOOKUP(E158,PROVEEDORES!$A$2:$B$1000,2,FALSE),"") -> V28306678 | E158: HERMANDAD NACIONAL DE ARQUITECTOS | F158: SPP | G158: 0 | T158: 217.43 | U158: 217.43 | V158: 0 | W158: 0 | X158: 0 | Z158: 217.43 | AB158: ARQUITECTURA | AC158: 2 | AD158: =IF(AND(D158<>"",SUMIF($D$3:$D$548,D158,$V$3:$V$548)+SUMIF($D$3:$D$548,D158,$X$3:$X$548)>3005.06),IF(COUNTIF($D$3:D158,D158)>1,INDEX(GASTOS!$A$2:$AD$548,MATCH(D158,$D$2:D157,0),COLUMN($AD$2)),IF(MAX($AD$2:AD157)>MAX(INGRESOS!$O$1:$O$471),MAX($AD$2:AD157)+1,MAX(INGRESOS!$O$1:$O$471)+1)),0) -> 0 | AE158: 4 | AH158: HNA CARLOS
A159: 2014-04-01 | B159: 2014-04-01 | D159: =IF(E159<>"",VLOOKUP(E159,PROVEEDORES!$A$2:$B$1000,2,FALSE),"") -> V28306678 | E159: HERMANDAD NACIONAL DE ARQUITECTOS | F159: SEGURO CARLOS | G159: 0 | T159: 37.09 | U159: 37.09 | V159: 0 | W159: 0 | X159: 0 | Z159: 37.09 | AB159: SALUD CARLOS | AC159: 2 | AD159: =IF(AND(D159<>"",SUMIF($D$3:$D$548,D159,$V$3:$V$548)+SUMIF($D$3:$D$548,D159,$X$3:$X$548)>3005.06),IF(COUNTIF($D$3:D159,D159)>1,INDEX(GASTOS!$A$2:$AD$548,MATCH(D159,$D$2:D158,0),COLUMN($AD$2)),IF(MAX($AD$2:AD158)>MAX(INGRESOS!$O$1:$O$471),MAX($AD$2:AD158)+1,MAX(INGRESOS!$O$1:$O$471)+1)),0) -> 0 | AE159: 4 | AH159: HNA CARLOS
A160: 2014-04-01 | B160: 2014-04-01 | D160: =IF(E160<>"",VLOOKUP(E160,PROVEEDORES!$A$2:$B$1000,2,FALSE),"") -> A28037042 | E160: SANITAS SOCIEDAD ANONIMA DE SEGUROS S.A. | F160: SALUD CARLOS | G160: 0 | T160: 51.89 | U160: 51.89 | V160: 0 | W160: 0 | X160: 0 | Z160: 51.89 | AB160: SALUD CARLOS | AC160: 2 | AD160: =IF(AND(D160<>"",SUMIF($D$3:$D$548,D160,$V$3:$V$548)+SUMIF($D$3:$D$548,D160,$X$3:$X$548)>3005.06),IF(COUNTIF($D$3:D160,D160)>1,INDEX(GASTOS!$A$2:$AD$548,MATCH(D160,$D$2:D159,0),COLUMN($AD$2)),IF(MAX($AD$2:AD159)>MAX(INGRESOS!$O$1:$O$471),MAX($AD$2:AD159)+1,MAX(INGRESOS!$O$1:$O$471)+1)),0) -> 0 | AE160: 4 | AH160: HNA CARLOS
A161: 2014-04-01 | B161: 2014-04-01 | D161: =IF(E161<>"",VLOOKUP(E161,PROVEEDORES!$A$2:$B$1000,2,FALSE),"") -> V28306678 | E161: HERMANDAD NACIONAL DE ARQUITECTOS | F161: SPP CARLOS ABRIL | G161: 0 | T161: 217.43 | U161: 217.43 | V161: 0 | W161: 21 | X161: 0 | Z161: 217.43 | AB161: ARQUITECTURA | AC161: 2 | AD161: =IF(AND(D161<>"",SUMIF($D$3:$D$548,D161,$V$3:$V$548)+SUMIF($D$3:$D$548,D161,$X$3:$X$548)>3005.06),IF(COUNTIF($D$3:D161,D161)>1,INDEX(GASTOS!$A$2:$AD$548,MATCH(D161,$D$2:D160,0),COLUMN($AD$2)),IF(MAX($AD$2:AD160)>MAX(INGRESOS!$O$1:$O$471),MAX($AD$2:AD160)+1,MAX(INGRESOS!$O$1:$O$471)+1)),0) -> 0 | AE161: 4 | AH161: HNA CARLOS
A162: 2014-04-01 | B162: 2014-04-01 | D162: =IF(E162<>"",VLOOKUP(E162,PROVEEDORES!$A$2:$B$1000,2,FALSE),"") -> V28306678 | E162: HERMANDAD NACIONAL DE ARQUITECTOS | F162: INCAPACIDAD CARLOS | G162: 0 | T162: 37.09 | U162: 37.09 | V162: 0 | W162: 21 | X162: 0 | Z162: 37.09 | AB162: ARQUITECTURA | AC162: 2 | AD162: =IF(AND(D162<>"",SUMIF($D$3:$D$548,D162,$V$3:$V$548)+SUMIF($D$3:$D$548,D162,$X$3:$X$548)>3005.06),IF(COUNTIF($D$3:D162,D162)>1,INDEX(GASTOS!$A$2:$AD$548,MATCH(D162,$D$2:D161,0),COLUMN($AD$2)),IF(MAX($AD$2:AD161)>MAX(INGRESOS!$O$1:$O$471),MAX($AD$2:AD161)+1,MAX(INGRESOS!$O$1:$O$471)+1)),0) -> 0 | AE162: 4 | AH162: HNA CARLOS
A163: 2014-04-01 | B163: 2014-04-01 | D163: V28306678 | E163: HERMANDAD NACIONAL DE ARQUITECTOS | F163: SALUD LUCIAS | G163: 0 | T163: 120.66 | U163: =IF(G163=1,SUM(H163:T163),0) -> 0 | V163: 0 | W163: 0 | X163: 0 | Z163: 120.66 | AB163: SALUD LUCIAS | AC163: 2 | AD163: =IF(AND(D163<>"",SUMIF($D$3:$D$548,D163,$V$3:$V$548)+SUMIF($D$3:$D$548,D163,$X$3:$X$548)>3005.06),IF(COUNTIF($D$3:D163,D163)>1,INDEX(GASTOS!$A$2:$AD$548,MATCH(D163,$D$2:D162,0),COLUMN($AD$2)),IF(MAX($AD$2:AD162)>MAX(INGRESOS!$O$1:$O$471),MAX($AD$2:AD162)+1,MAX(INGRESOS!$O$1:$O$471)+1)),0) -> 0 | AE163: 4 | AF163: PAGADA | AH163: HNA LUCIAS
A164: 2014-04-01 | B164: 2014-04-01 | D164: V28306678 | E164: HERMANDAD NACIONAL DE ARQUITECTOS | F164: SALUD LUCIAS | G164: 0 | T164: 120.66 | U164: =IF(G164=1,SUM(H164:T164),0) -> 0 | V164: 0 | W164: 0 | X164: 0 | Z164: 120.66 | AB164: SALUD LUCIAS | AC164: 2 | AD164: =IF(AND(D164<>"",SUMIF($D$3:$D$548,D164,$V$3:$V$548)+SUMIF($D$3:$D$548,D164,$X$3:$X$548)>3005.06),IF(COUNTIF($D$3:D164,D164)>1,INDEX(GASTOS!$A$2:$AD$548,MATCH(D164,$D$2:D163,0),COLUMN($AD$2)),IF(MAX($AD$2:AD163)>MAX(INGRESOS!$O$1:$O$471),MAX($AD$2:AD163)+1,MAX(INGRESOS!$O$1:$O$471)+1)),0) -> 0 | AE164: 4 | AF164: PAGADA | AH164: HNA LUCIAS
A165: 2014-04-01 | B165: 2014-04-01 | D165: =IF(E165<>"",VLOOKUP(E165,PROVEEDORES!$A$2:$B$1000,2,FALSE),"") -> 0 | E165: AGENCIA TRIBUTARIA | F165: MULTA RETRASO PAGO IVA 1T/2013 | G165: 0 | T165: 103.33 | U165: =SUM(H165:T165) -> 103.33 | V165: 0 | W165: 21 | X165: 0 | Z165: 103.33 | AB165: ARQUITECTURA | AC165: 2 | AD165: =IF(AND(D165<>"",SUMIF($D$3:$D$548,D165,$V$3:$V$548)+SUMIF($D$3:$D$548,D165,$X$3:$X$548)>3005.06),IF(COUNTIF($D$3:D165,D165)>1,INDEX(GASTOS!$A$2:$AD$548,MATCH(D165,$D$2:D164,0),COLUMN($AD$2)),IF(MAX($AD$2:AD164)>MAX(INGRESOS!$O$1:$O$471),MAX($AD$2:AD164)+1,MAX(INGRESOS!$O$1:$O$471)+1)),0) -> 0 | AE165: 4 | AH165: PAGOS AEAT
A166: 2014-04-01 | B166: 2014-04-01 | D166: =IF(E166<>"",VLOOKUP(E166,PROVEEDORES!$A$2:$B$1000,2,FALSE),"") -> A82018474 | E166: TELEFÓNICA DE ESPAÑA S.A.U. | F166: TELEFONIA FIJA | G166: 1 | O166: 49.9 | U166: 49.9 | V166: 49.9 | W166: 21 | X166: 10.48 | Z166: 60.38 | AB166: ARQUITECTURA | AC166: 2 | AD166: =IF(AND(D166<>"",SUMIF($D$3:$D$548,D166,$V$3:$V$548)+SUMIF($D$3:$D$548,D166,$X$3:$X$548)>3005.06),IF(COUNTIF($D$3:D166,D166)>1,INDEX(GASTOS!$A$2:$AD$548,MATCH(D166,$D$2:D165,0),COLUMN($AD$2)),IF(MAX($AD$2:AD165)>MAX(INGRESOS!$O$1:$O$471),MAX($AD$2:AD165)+1,MAX(INGRESOS!$O$1:$O$471)+1)),0) -> 0 | AE166: 4 | AH166: TELEFONIA
A167: 2014-04-01 | B167: 2014-04-01 | D167: =IF(E167<>"",VLOOKUP(E167,PROVEEDORES!$A$2:$B$1000,2,FALSE),"") -> A82018474 | E167: TELEFÓNICA DE ESPAÑA S.A.U. | F167: TERMINAL | G167: 1 | T167: 27.5 | U167: 27.5 | V167: 0 | W167: 0 | X167: 0 | Z167: 27.5 | AB167: ARQUITECTURA | AC167: 2 | AD167: =IF(AND(D167<>"",SUMIF($D$3:$D$548,D167,$V$3:$V$548)+SUMIF($D$3:$D$548,D167,$X$3:$X$548)>3005.06),IF(COUNTIF($D$3:D167,D167)>1,INDEX(GASTOS!$A$2:$AD$548,MATCH(D167,$D$2:D166,0),COLUMN($AD$2)),IF(MAX($AD$2:AD166)>MAX(INGRESOS!$O$1:$O$471),MAX($AD$2:AD166)+1,MAX(INGRESOS!$O$1:$O$471)+1)),0) -> 0 | AE167: 4 | AH167: TELEFONIA
A168: 2014-04-01 | B168: 2014-04-01 | D168: =IF(E168<>"",VLOOKUP(E168,PROVEEDORES!$A$2:$B$1000,2,FALSE),"") -> A82018474 | E168: TELEFÓNICA DE ESPAÑA S.A.U. | F168: TELEFONIA FIJA | G168: 1 | O168: 49.9 | U168: 49.9 | V168: 49.9 | W168: 21 | X168: 10.48 | Z168: 60.38 | AB168: ARQUITECTURA | AC168: 2 | AD168: =IF(AND(D168<>"",SUMIF($D$3:$D$548,D168,$V$3:$V$548)+SUMIF($D$3:$D$548,D168,$X$3:$X$548)>3005.06),IF(COUNTIF($D$3:D168,D168)>1,INDEX(GASTOS!$A$2:$AD$548,MATCH(D168,$D$2:D167,0),COLUMN($AD$2)),IF(MAX($AD$2:AD167)>MAX(INGRESOS!$O$1:$O$471),MAX($AD$2:AD167)+1,MAX(INGRESOS!$O$1:$O$471)+1)),0) -> 0 | AE168: 4 | AH168: TELEFONIA
A169: 2014-04-01 | B169: 2014-04-01 | D169: =IF(E169<>"",VLOOKUP(E169,PROVEEDORES!$A$2:$B$1000,2,FALSE),"") -> A82018474 | E169: TELEFÓNICA DE ESPAÑA S.A.U. | F169: TERMINAL | G169: 1 | T169: 27.5 | U169: 27.5 | V169: 0 | W169: 0 | X169: 0 | Z169: 27.5 | AB169: ARQUITECTURA | AC169: 2 | AD169: =IF(AND(D169<>"",SUMIF($D$3:$D$548,D169,$V$3:$V$548)+SUMIF($D$3:$D$548,D169,$X$3:$X$548)>3005.06),IF(COUNTIF($D$3:D169,D169)>1,INDEX(GASTOS!$A$2:$AD$548,MATCH(D169,$D$2:D168,0),COLUMN($AD$2)),IF(MAX($AD$2:AD168)>MAX(INGRESOS!$O$1:$O$471),MAX($AD$2:AD168)+1,MAX(INGRESOS!$O$1:$O$471)+1)),0) -> 0 | AE169: 4 | AH169: TELEFONIA
A170: 2014-04-01 | B170: 2014-04-01 | D170: =IF(E170<>"",VLOOKUP(E170,PROVEEDORES!$A$2:$B$1000,2,FALSE),"") -> A82018474 | E170: TELEFÓNICA DE ESPAÑA S.A.U. | F170: DOBLE SIM | G170: 1 | O170: 3.41 | U170: 3.41 | V170: 3.41 | W170: 21 | X170: 0.72 | Z170: 4.13 | AB170: ARQUITECTURA | AC170: 2 | AD170: =IF(AND(D170<>"",SUMIF($D$3:$D$548,D170,$V$3:$V$548)+SUMIF($D$3:$D$548,D170,$X$3:$X$548)>3005.06),IF(COUNTIF($D$3:D170,D170)>1,INDEX(GASTOS!$A$2:$AD$548,MATCH(D170,$D$2:D169,0),COLUMN($AD$2)),IF(MAX($AD$2:AD169)>MAX(INGRESOS!$O$1:$O$471),MAX($AD$2:AD169)+1,MAX(INGRESOS!$O$1:$O$471)+1)),0) -> 0 | AE170: 4 | AH170: TELEFONIA
A171: 2014-04-02 | B171: 2014-04-02 | D171: =IF(E171<>"",VLOOKUP(E171,PROVEEDORES!$A$2:$B$1000,2,FALSE),"") ->  | E171: ING DIRECT | F171: GASTOS CARLOS | G171: 0 | T171: 40 | U171: 40 | V171: 0 | W171: 0 | X171: 0 | Z171: 40 | AB171: CORRIENTE CARLOS | AC171: 2 | AD171: =IF(AND(D171<>"",SUMIF($D$3:$D$548,D171,$V$3:$V$548)+SUMIF($D$3:$D$548,D171,$X$3:$X$548)>3005.06),IF(COUNTIF($D$3:D171,D171)>1,INDEX(GASTOS!$A$2:$AD$548,MATCH(D171,$D$2:D170,0),COLUMN($AD$2)),IF(MAX($AD$2:AD170)>MAX(INGRESOS!$O$1:$O$471),MAX($AD$2:AD170)+1,MAX(INGRESOS!$O$1:$O$471)+1)),0) ->  | AE171: 4 | AH171: RETIRADAS METALICO
A172: 2014-04-03 | B172: 2014-04-03 | D172: =IF(E172<>"",VLOOKUP(E172,PROVEEDORES!$A$2:$B$1000,2,FALSE),"") ->  | E172: E.M. VALENCIANA DE AGUAS S.A. | F172: AGUA SAN VICENTE | G172: 1 | H172: 40.15 | U172: 40.15 | V172: 40.15 | W172: 21 | X172: 8.43 | Z172: 48.58 | AB172: SAN VICENTE 222 | AC172: 2 | AD172: =IF(AND(D172<>"",SUMIF($D$3:$D$548,D172,$V$3:$V$548)+SUMIF($D$3:$D$548,D172,$X$3:$X$548)>3005.06),IF(COUNTIF($D$3:D172,D172)>1,INDEX(GASTOS!$A$2:$AD$548,MATCH(D172,$D$2:D171,0),COLUMN($AD$2)),IF(MAX($AD$2:AD171)>MAX(INGRESOS!$O$1:$O$471),MAX($AD$2:AD171)+1,MAX(INGRESOS!$O$1:$O$471)+1)),0) ->  | AE172: 4 | AH172: AGUA SAN VICENTE
A173: 2014-04-03 | B173: 2014-04-03 | D173: =IF(E173<>"",VLOOKUP(E173,PROVEEDORES!$A$2:$B$1000,2,FALSE),"") ->  | E173: ING DIRECT | F173: GASTOS CARLOS | G173: 0 | T173: 40 | U173: 40 | V173: 0 | W173: 21 | X173: 0 | Z173: 40 | AB173: CORRIENTE CARLOS | AC173: 2 | AD173: =IF(AND(D173<>"",SUMIF($D$3:$D$548,D173,$V$3:$V$548)+SUMIF($D$3:$D$548,D173,$X$3:$X$548)>3005.06),IF(COUNTIF($D$3:D173,D173)>1,INDEX(GASTOS!$A$2:$AD$548,MATCH(D173,$D$2:D172,0),COLUMN($AD$2)),IF(MAX($AD$2:AD172)>MAX(INGRESOS!$O$1:$O$471),MAX($AD$2:AD172)+1,MAX(INGRESOS!$O$1:$O$471)+1)),0) ->  | AE173: 4 | AH173: RETIRADAS METALICO
A174: 2014-04-04 | B174: 2014-04-04 | D174: =IF(E174<>"",VLOOKUP(E174,PROVEEDORES!$A$2:$B$1000,2,FALSE),"") ->  | E174: ING DIRECT | F174: MANO OBRA (JUAN CARLOS) | G174: 0 | T174: 350 | U174: 350 | V174: 0 | W174: 0 | X174: 0 | Z174: 350 | AB174: CADIZ 77 | AC174: 2 | AD174: =IF(AND(D174<>"",SUMIF($D$3:$D$548,D174,$V$3:$V$548)+SUMIF($D$3:$D$548,D174,$X$3:$X$548)>3005.06),IF(COUNTIF($D$3:D174,D174)>1,INDEX(GASTOS!$A$2:$AD$548,MATCH(D174,$D$2:D173,0),COLUMN($AD$2)),IF(MAX($AD$2:AD173)>MAX(INGRESOS!$O$1:$O$471),MAX($AD$2:AD173)+1,MAX(INGRESOS!$O$1:$O$471)+1)),0) ->  | AE174: 4 | AH174: MATERIALES/COMPRAS
A175: 2014-04-04 | B175: 2014-04-04 | D175: =IF(E175<>"",VLOOKUP(E175,PROVEEDORES!$A$2:$B$1000,2,FALSE),"") ->  | E175: ING DIRECT | F175: COMPRA PLACA INDUCCION | G175: 0 | T175: 240.09 | U175: 240.09 | V175: 0 | W175: 0 | X175: 0 | Z175: 240.09 | AB175: CADIZ 77 | AC175: 2 | AD175: =IF(AND(D175<>"",SUMIF($D$3:$D$548,D175,$V$3:$V$548)+SUMIF($D$3:$D$548,D175,$X$3:$X$548)>3005.06),IF(COUNTIF($D$3:D175,D175)>1,INDEX(GASTOS!$A$2:$AD$548,MATCH(D175,$D$2:D174,0),COLUMN($AD$2)),IF(MAX($AD$2:AD174)>MAX(INGRESOS!$O$1:$O$471),MAX($AD$2:AD174)+1,MAX(INGRESOS!$O$1:$O$471)+1)),0) ->  | AE175: 4 | AH175: MATERIALES/COMPRAS
A176: 2014-04-04 | B176: 2014-04-04 | D176: =IF(E176<>"",VLOOKUP(E176,PROVEEDORES!$A$2:$B$1000,2,FALSE),"") -> B84406289 | E176: BRICOLAJE BRICOMAN S.L.U. | F176: MATERIAL | G176: 0 | T176: 54.02 | U176: 54.02 | V176: 0 | W176: 21 | X176: 0 | Z176: 54.02 | AB176: CADIZ 77 | AC176: 2 | AD176: =IF(AND(D176<>"",SUMIF($D$3:$D$548,D176,$V$3:$V$548)+SUMIF($D$3:$D$548,D176,$X$3:$X$548)>3005.06),IF(COUNTIF($D$3:D176,D176)>1,INDEX(GASTOS!$A$2:$AD$548,MATCH(D176,$D$2:D175,0),COLUMN($AD$2)),IF(MAX($AD$2:AD175)>MAX(INGRESOS!$O$1:$O$471),MAX($AD$2:AD175)+1,MAX(INGRESOS!$O$1:$O$471)+1)),0) -> 0 | AE176: 4 | AH176: MATERIALES/COMPRAS
A177: 2014-04-04 | B177: 2014-04-04 | D177: =IF(E177<>"",VLOOKUP(E177,PROVEEDORES!$A$2:$B$1000,2,FALSE),"") -> B98361108 | E177: DECORVEGA DECORACIONES, S.L. | F177: PINTURA | G177: 0 | T177: 95.34 | U177: 95.34 | V177: 0 | W177: 21 | X177: 0 | Z177: 95.34 | AB177: CADIZ 77 | AC177: 2 | AD177: =IF(AND(D177<>"",SUMIF($D$3:$D$548,D177,$V$3:$V$548)+SUMIF($D$3:$D$548,D177,$X$3:$X$548)>3005.06),IF(COUNTIF($D$3:D177,D177)>1,INDEX(GASTOS!$A$2:$AD$548,MATCH(D177,$D$2:D176,0),COLUMN($AD$2)),IF(MAX($AD$2:AD176)>MAX(INGRESOS!$O$1:$O$471),MAX($AD$2:AD176)+1,MAX(INGRESOS!$O$1:$O$471)+1)),0) -> 0 | AE177: 4 | AH177: MATERIALES/COMPRAS
A178: 2014-04-04 | B178: 2014-04-04 | D178: =IF(E178<>"",VLOOKUP(E178,PROVEEDORES!$A$2:$B$1000,2,FALSE),"") ->  | E178: BANI ELECTRONICS (DIGITAL SHOPPING) | F178: MATERIAL | G178: 0 | T178: 198.42 | U178: 198.42 | V178: 0 | W178: 21 | X178: 0 | Z178: 198.42 | AB178: CADIZ 77 | AC178: 2 | AD178: =IF(AND(D178<>"",SUMIF($D$3:$D$548,D178,$V$3:$V$548)+SUMIF($D$3:$D$548,D178,$X$3:$X$548)>3005.06),IF(COUNTIF($D$3:D178,D178)>1,INDEX(GASTOS!$A$2:$AD$548,MATCH(D178,$D$2:D177,0),COLUMN($AD$2)),IF(MAX($AD$2:AD177)>MAX(INGRESOS!$O$1:$O$471),MAX($AD$2:AD177)+1,MAX(INGRESOS!$O$1:$O$471)+1)),0) ->  | AE178: 4 | AH178: MATERIALES/COMPRAS
A179: 2014-04-05 | B179: 2014-04-05 | D179: =IF(E179<>"",VLOOKUP(E179,PROVEEDORES!$A$2:$B$1000,2,FALSE),"") ->  | E179: ING DIRECT | F179: MANO OBRA (MANOLO) | G179: 0 | T179: 120 | U179: 120 | V179: 0 | W179: 0 | X179: 0 | Z179: 120 | AB179: CADI Z77 | AC179: 2 | AD179: =IF(AND(D179<>"",SUMIF($D$3:$D$548,D179,$V$3:$V$548)+SUMIF($D$3:$D$548,D179,$X$3:$X$548)>3005.06),IF(COUNTIF($D$3:D179,D179)>1,INDEX(GASTOS!$A$2:$AD$548,MATCH(D179,$D$2:D178,0),COLUMN($AD$2)),IF(MAX($AD$2:AD178)>MAX(INGRESOS!$O$1:$O$471),MAX($AD$2:AD178)+1,MAX(INGRESOS!$O$1:$O$471)+1)),0) ->  | AE179: 4 | AH179: MATERIALES/COMPRAS
A180: 2014-04-06 | B180: 2014-04-06 | D180: =IF(E180<>"",VLOOKUP(E180,PROVEEDORES!$A$2:$B$1000,2,FALSE),"") ->  | E180: GODADDY | F180: DOMAINS | G180: 1 | T180: 14.52 | U180: 14.52 | V180: 0 | W180: 0 | X180: 0 | Z180: 14.52 | AB180: ARQUITECTURA | AC180: 2 | AD180: =IF(AND(D180<>"",SUMIF($D$3:$D$548,D180,$V$3:$V$548)+SUMIF($D$3:$D$548,D180,$X$3:$X$548)>3005.06),IF(COUNTIF($D$3:D180,D180)>1,INDEX(GASTOS!$A$2:$AD$548,MATCH(D180,$D$2:D179,0),COLUMN($AD$2)),IF(MAX($AD$2:AD179)>MAX(INGRESOS!$O$1:$O$471),MAX($AD$2:AD179)+1,MAX(INGRESOS!$O$1:$O$471)+1)),0) ->  | AE180: 4 | AH180: FACTURAS
A181: 2014-04-07 | B181: 2014-04-07 | D181: =IF(E181<>"",VLOOKUP(E181,PROVEEDORES!$A$2:$B$1000,2,FALSE),"") ->  | E181: E.M. VALENCIANA DE AGUAS S.A. | F181: AGUA CADIZ 38 | G181: 0 | T181: 44.05 | U181: 44.05 | V181: 0 | W181: 21 | X181: 0 | Z181: 44.05 | AB181: CADIZ 38 | AC181: 2 | AD181: =IF(AND(D181<>"",SUMIF($D$3:$D$548,D181,$V$3:$V$548)+SUMIF($D$3:$D$548,D181,$X$3:$X$548)>3005.06),IF(COUNTIF($D$3:D181,D181)>1,INDEX(GASTOS!$A$2:$AD$548,MATCH(D181,$D$2:D180,0),COLUMN($AD$2)),IF(MAX($AD$2:AD180)>MAX(INGRESOS!$O$1:$O$471),MAX($AD$2:AD180)+1,MAX(INGRESOS!$O$1:$O$471)+1)),0) ->  | AE181: 4 | AH181: AGUA CADIZ 38
A182: 2014-04-07 | B182: 2014-04-07 | D182: B64138407 | E182: SIHOGAR, S.L. | F182: CAMPANA | G182: 0 | T182: 177.8 | U182: 177.8 | V182: 0 | W182: 21 | X182: 0 | Z182: 177.8 | AB182: CADIZ 77 | AC182: 2 | AD182: =IF(AND(D182<>"",SUMIF($D$3:$D$548,D182,$V$3:$V$548)+SUMIF($D$3:$D$548,D182,$X$3:$X$548)>3005.06),IF(COUNTIF($D$3:D182,D182)>1,INDEX(GASTOS!$A$2:$AD$548,MATCH(D182,$D$2:D181,0),COLUMN($AD$2)),IF(MAX($AD$2:AD181)>MAX(INGRESOS!$O$1:$O$471),MAX($AD$2:AD181)+1,MAX(INGRESOS!$O$1:$O$471)+1)),0) -> 0 | AE182: 4 | AH182: MATERIALES/COMPRAS
A183: 2014-04-07 | B183: 2014-04-07 | D183: =IF(E183<>"",VLOOKUP(E183,PROVEEDORES!$A$2:$B$1000,2,FALSE),"") ->  | E183: ING DIRECT | F183: GASTOS CARLOS | G183: 0 | T183: 50 | U183: 50 | V183: 0 | W183: 0 | X183: 0 | Z183: 50 | AB183: CORRIENTE CARLOS | AC183: 2 | AD183: =IF(AND(D183<>"",SUMIF($D$3:$D$548,D183,$V$3:$V$548)+SUMIF($D$3:$D$548,D183,$X$3:$X$548)>3005.06),IF(COUNTIF($D$3:D183,D183)>1,INDEX(GASTOS!$A$2:$AD$548,MATCH(D183,$D$2:D182,0),COLUMN($AD$2)),IF(MAX($AD$2:AD182)>MAX(INGRESOS!$O$1:$O$471),MAX($AD$2:AD182)+1,MAX(INGRESOS!$O$1:$O$471)+1)),0) ->  | AE183: 4 | AH183: RETIRADAS METALICO
A184: 2014-04-08 | B184: 2014-04-08 | D184: =IF(E184<>"",VLOOKUP(E184,PROVEEDORES!$A$2:$B$1000,2,FALSE),"") -> A08980153 | E184: FINCONSUM, S.A.U. | F184: CREDITO IKEA | G184: 0 | T184: 122.83 | U184: 122.83 | V184: 0 | W184: 21 | X184: 0 | Z184: 122.83 | AB184: PRESTAMOS | AC184: 2 | AD184: =IF(AND(D184<>"",SUMIF($D$3:$D$548,D184,$V$3:$V$548)+SUMIF($D$3:$D$548,D184,$X$3:$X$548)>3005.06),IF(COUNTIF($D$3:D184,D184)>1,INDEX(GASTOS!$A$2:$AD$548,MATCH(D184,$D$2:D183,0),COLUMN($AD$2)),IF(MAX($AD$2:AD183)>MAX(INGRESOS!$O$1:$O$471),MAX($AD$2:AD183)+1,MAX(INGRESOS!$O$1:$O$471)+1)),0) -> 0 | AE184: 4 | AH184: CREDITOS
A185: 2014-04-08 | B185: 2014-04-08 | D185: =IF(E185<>"",VLOOKUP(E185,PROVEEDORES!$A$2:$B$1000,2,FALSE),"") ->  | E185: ELECTROPRECIO.COM S.L. | F185: HORNO | G185: 0 | T185: 247.11 | U185: 247.11 | V185: 0 | W185: 21 | X185: 0 | Z185: 247.11 | AB185: CADIZ 77 | AC185: 2 | AD185: =IF(AND(D185<>"",SUMIF($D$3:$D$548,D185,$V$3:$V$548)+SUMIF($D$3:$D$548,D185,$X$3:$X$548)>3005.06),IF(COUNTIF($D$3:D185,D185)>1,INDEX(GASTOS!$A$2:$AD$548,MATCH(D185,$D$2:D184,0),COLUMN($AD$2)),IF(MAX($AD$2:AD184)>MAX(INGRESOS!$O$1:$O$471),MAX($AD$2:AD184)+1,MAX(INGRESOS!$O$1:$O$471)+1)),0) ->  | AE185: 4 | AH185: MATERIALES/COMPRAS
A186: 2014-04-08 | B186: 2014-04-08 | D186: =IF(E186<>"",VLOOKUP(E186,PROVEEDORES!$A$2:$B$1000,2,FALSE),"") -> A82009812 | E186: FRANCE TELECOM ESPAÑA | F186: TELEFONIA MOVIL | G186: 1 | O186: 23 | U186: 23 | V186: 23 | W186: 21 | X186: 4.83 | Z186: 27.83 | AB186: ARQUITECTURA | AC186: 2 | AD186: =IF(AND(D186<>"",SUMIF($D$3:$D$548,D186,$V$3:$V$548)+SUMIF($D$3:$D$548,D186,$X$3:$X$548)>3005.06),IF(COUNTIF($D$3:D186,D186)>1,INDEX(GASTOS!$A$2:$AD$548,MATCH(D186,$D$2:D185,0),COLUMN($AD$2)),IF(MAX($AD$2:AD185)>MAX(INGRESOS!$O$1:$O$471),MAX($AD$2:AD185)+1,MAX(INGRESOS!$O$1:$O$471)+1)),0) -> 0 | AE186: 4 | AH186: TELEFONIA
A187: 2014-04-09 | B187: 2014-04-09 | D187: =IF(E187<>"",VLOOKUP(E187,PROVEEDORES!$A$2:$B$1000,2,FALSE),"") ->  | E187: ASOCIACION ANTIGUOS UPV | F187: CUOTA | G187: 0 | T187: 28.5 | U187: 28.5 | V187: 0 | W187: 0 | X187: 0 | Z187: 28.5 | AB187: ARQUITECTURA | AC187: 2 | AD187: =IF(AND(D187<>"",SUMIF($D$3:$D$548,D187,$V$3:$V$548)+SUMIF($D$3:$D$548,D187,$X$3:$X$548)>3005.06),IF(COUNTIF($D$3:D187,D187)>1,INDEX(GASTOS!$A$2:$AD$548,MATCH(D187,$D$2:D186,0),COLUMN($AD$2)),IF(MAX($AD$2:AD186)>MAX(INGRESOS!$O$1:$O$471),MAX($AD$2:AD186)+1,MAX(INGRESOS!$O$1:$O$471)+1)),0) ->  | AE187: 4 | AH187: GASTOS VARIOS
A188: 2014-04-10 | B188: 2014-04-10 | D188: =IF(E188<>"",VLOOKUP(E188,PROVEEDORES!$A$2:$B$1000,2,FALSE),"") ->  | E188: ING DIRECT | F188: GASTOS CARLOS | G188: 0 | T188: 40 | U188: 40 | V188: 0 | W188: 0 | X188: 0 | Z188: 40 | AB188: CORRIENTE CARLOS | AC188: 2 | AD188: =IF(AND(D188<>"",SUMIF($D$3:$D$548,D188,$V$3:$V$548)+SUMIF($D$3:$D$548,D188,$X$3:$X$548)>3005.06),IF(COUNTIF($D$3:D188,D188)>1,INDEX(GASTOS!$A$2:$AD$548,MATCH(D188,$D$2:D187,0),COLUMN($AD$2)),IF(MAX($AD$2:AD187)>MAX(INGRESOS!$O$1:$O$471),MAX($AD$2:AD187)+1,MAX(INGRESOS!$O$1:$O$471)+1)),0) ->  | AE188: 4 | AH188: RETIRADAS METALICO
A189: 2014-04-11 | B189: 2014-04-11 | D189: =IF(E189<>"",VLOOKUP(E189,PROVEEDORES!$A$2:$B$1000,2,FALSE),"") -> A95554630 | E189: IBERDROLA COMERCIALIZACIÓN DE ÚLTIMO RECURSO | F189: ELECTRICIDAD CADIZ 38 | G189: 0 | T189: 40.51 | U189: 40.51 | V189: 0 | W189: 21 | X189: 0 | Z189: 40.51 | AB189: CADIZ 38 | AC189: 2 | AD189: =IF(AND(D189<>"",SUMIF($D$3:$D$548,D189,$V$3:$V$548)+SUMIF($D$3:$D$548,D189,$X$3:$X$548)>3005.06),IF(COUNTIF($D$3:D189,D189)>1,INDEX(GASTOS!$A$2:$AD$548,MATCH(D189,$D$2:D188,0),COLUMN($AD$2)),IF(MAX($AD$2:AD188)>MAX(INGRESOS!$O$1:$O$471),MAX($AD$2:AD188)+1,MAX(INGRESOS!$O$1:$O$471)+1)),0) -> 0 | AE189: 4 | AH189: ELEC. CADIZ 38
A190: 2014-04-11 | B190: =IF(A190<>"",A190,"") -> 2014-04-11 | D190: =IF(E190<>"",VLOOKUP(E190,PROVEEDORES!$A$2:$B$1000,2,FALSE),"") -> Q4675003J | E190: COLEGIO TERRITORIAL DE ARQUITECTOS DE VALENCIA | F190: APORTACION 2014 | G190: 1 | T190: 50 | U190: 50 | V190: 50 | W190: 21 | X190: 10.5 | Z190: 60.5 | AB190: ARQUITECTURA | AC190: 2 | AD190: =IF(AND(D190<>"",SUMIF($D$3:$D$548,D190,$V$3:$V$548)+SUMIF($D$3:$D$548,D190,$X$3:$X$548)>3005.06),IF(COUNTIF($D$3:D190,D190)>1,INDEX(GASTOS!$A$2:$AD$548,MATCH(D190,$D$2:D189,0),COLUMN($AD$2)),IF(MAX($AD$2:AD189)>MAX(INGRESOS!$O$1:$O$471),MAX($AD$2:AD189)+1,MAX(INGRESOS!$O$1:$O$471)+1)),0) -> 0 | AE190: 4 | AH190: FACTURAS COLEGIO
A191: 2014-04-11 | B191: 2014-04-11 | D191: =IF(E191<>"",VLOOKUP(E191,PROVEEDORES!$A$2:$B$1000,2,FALSE),"") -> B84406289 | E191: BRICOLAJE BRICOMAN S.L.U. | F191: MATERIAL | G191: 0 | T191: 117.36 | U191: 117.36 | V191: 0 | W191: 21 | X191: 0 | Z191: 117.36 | AB191: CADIZ 77 | AC191: 2 | AD191: =IF(AND(D191<>"",SUMIF($D$3:$D$548,D191,$V$3:$V$548)+SUMIF($D$3:$D$548,D191,$X$3:$X$548)>3005.06),IF(COUNTIF($D$3:D191,D191)>1,INDEX(GASTOS!$A$2:$AD$548,MATCH(D191,$D$2:D190,0),COLUMN($AD$2)),IF(MAX($AD$2:AD190)>MAX(INGRESOS!$O$1:$O$471),MAX($AD$2:AD190)+1,MAX(INGRESOS!$O$1:$O$471)+1)),0) -> 0 | AE191: 4 | AH191: MATERIALES/COMPRAS
A192: 2014-04-12 | B192: 2014-04-12 | D192: =IF(E192<>"",VLOOKUP(E192,PROVEEDORES!$A$2:$B$1000,2,FALSE),"") ->  | E192: SUCESORES DAVER, S.L. | F192: GASOLINA | G192: 0 | T192: 24.79 | U192: 24.79 | V192: 0 | W192: 21 | X192: 0 | Z192: 24.79 | AB192: ARQUITECTURA | AC192: 2 | AD192: =IF(AND(D192<>"",SUMIF($D$3:$D$548,D192,$V$3:$V$548)+SUMIF($D$3:$D$548,D192,$X$3:$X$548)>3005.06),IF(COUNTIF($D$3:D192,D192)>1,INDEX(GASTOS!$A$2:$AD$548,MATCH(D192,$D$2:D191,0),COLUMN($AD$2)),IF(MAX($AD$2:AD191)>MAX(INGRESOS!$O$1:$O$471),MAX($AD$2:AD191)+1,MAX(INGRESOS!$O$1:$O$471)+1)),0) ->  | AE192: 4 | AH192: COMBUSTIBLE
A193: 2014-04-14 | B193: 2014-04-14 | D193: =IF(E193<>"",VLOOKUP(E193,PROVEEDORES!$A$2:$B$1000,2,FALSE),"") ->  | E193: PAYPAL | F193: MATERIAL | G193: 0 | T193: 47.39 | U193: 47.39 | V193: 0 | W193: 0 | X193: 0 | Z193: 47.39 | AB193: CADIZ 77 | AC193: 2 | AD193: =IF(AND(D193<>"",SUMIF($D$3:$D$548,D193,$V$3:$V$548)+SUMIF($D$3:$D$548,D193,$X$3:$X$548)>3005.06),IF(COUNTIF($D$3:D193,D193)>1,INDEX(GASTOS!$A$2:$AD$548,MATCH(D193,$D$2:D192,0),COLUMN($AD$2)),IF(MAX($AD$2:AD192)>MAX(INGRESOS!$O$1:$O$471),MAX($AD$2:AD192)+1,MAX(INGRESOS!$O$1:$O$471)+1)),0) ->  | AE193: 4 | AH193: MATERIALES/COMPRAS
A194: 2014-04-15 | B194: 2014-04-15 | D194: =IF(E194<>"",VLOOKUP(E194,PROVEEDORES!$A$2:$B$1000,2,FALSE),"") -> B84406289 | E194: BRICOLAJE BRICOMAN S.L.U. | F194: MATERIAL | G194: 0 | T194: 138.02 | U194: 138.02 | V194: =SUMPRODUCT((G194=1)*(W194<>0)*(H194:T194)) -> 0 | W194: 21 | X194: =ROUND((V194*(W194/100)),2) -> 0 | Z194: =SUM(H194:T194)+X194 -> 138.02 | AB194: CADIZ 77 | AC194: =IF(A194<>"",IF(MONTH(A194)<=3,1,IF(AND(MONTH(A194)>3,MONTH(A194)<=6),2,IF(AND(MONTH(A194)>6,MONTH(A194)<=9),3,4))),"") -> 2 | AD194: =IF(AND(D194<>"",SUMIF($D$3:$D$548,D194,$V$3:$V$548)+SUMIF($D$3:$D$548,D194,$X$3:$X$548)>3005.06),IF(COUNTIF($D$3:D194,D194)>1,INDEX(GASTOS!$A$2:$AD$548,MATCH(D194,$D$2:D193,0),COLUMN($AD$2)),IF(MAX($AD$2:AD193)>MAX(INGRESOS!$O$1:$O$471),MAX($AD$2:AD193)+1,MAX(INGRESOS!$O$1:$O$471)+1)),0) -> 0 | AE194: =IF(A194<>"",MONTH(A194),"") -> 4 | AH194: MATERIALES/COMPRAS
A195: 2014-04-16 | B195: 2014-04-16 | D195: =IF(E195<>"",VLOOKUP(E195,PROVEEDORES!$A$2:$B$1000,2,FALSE),"") ->  | E195: IVACE VALENCIA | F195: CEE CADIZ 77 | G195: 1 | T195: 10 | U195: 10 | V195: 0 | W195: 0 | X195: 0 | Z195: 10 | AB195: CADIZ 77 | AC195: 2 | AD195: =IF(AND(D195<>"",SUMIF($D$3:$D$548,D195,$V$3:$V$548)+SUMIF($D$3:$D$548,D195,$X$3:$X$548)>3005.06),IF(COUNTIF($D$3:D195,D195)>1,INDEX(GASTOS!$A$2:$AD$548,MATCH(D195,$D$2:D194,0),COLUMN($AD$2)),IF(MAX($AD$2:AD194)>MAX(INGRESOS!$O$1:$O$471),MAX($AD$2:AD194)+1,MAX(INGRESOS!$O$1:$O$471)+1)),0) ->  | AE195: 4 | AH195: FACTURAS
A196: 2014-04-16 | B196: 2014-04-16 | D196: =IF(E196<>"",VLOOKUP(E196,PROVEEDORES!$A$2:$B$1000,2,FALSE),"") -> 0 | E196: AGENCIA TRIBUTARIA | F196: 303 1T2014 CPS | G196: 0 | T196: 882.58 | U196: 882.58 | V196: 0 | W196: 0 | X196: 0 | Z196: 882.58 | AB196: ARQUITECTURA | AC196: 2 | AD196: =IF(AND(D196<>"",SUMIF($D$3:$D$548,D196,$V$3:$V$548)+SUMIF($D$3:$D$548,D196,$X$3:$X$548)>3005.06),IF(COUNTIF($D$3:D196,D196)>1,INDEX(GASTOS!$A$2:$AD$548,MATCH(D196,$D$2:D195,0),COLUMN($AD$2)),IF(MAX($AD$2:AD195)>MAX(INGRESOS!$O$1:$O$471),MAX($AD$2:AD195)+1,MAX(INGRESOS!$O$1:$O$471)+1)),0) -> 0 | AE196: 4 | AF196: PAGADA | AH196: PAGOS AEAT
A197: 2014-04-17 | B197: 2014-04-17 | D197: =IF(E197<>"",VLOOKUP(E197,PROVEEDORES!$A$2:$B$1000,2,FALSE),"") ->  | E197: ING DIRECT | F197: GASTOS LUCIA | G197: 0 | T197: 40 | U197: =SUM(H197:T197) -> 40 | V197: 0 | W197: 0 | X197: 0 | Z197: 40 | AB197: CORRIENTE LUCIA | AC197: 2 | AD197: =IF(AND(D197<>"",SUMIF($D$3:$D$548,D197,$V$3:$V$548)+SUMIF($D$3:$D$548,D197,$X$3:$X$548)>3005.06),IF(COUNTIF($D$3:D197,D197)>1,INDEX(GASTOS!$A$2:$AD$548,MATCH(D197,$D$2:D196,0),COLUMN($AD$2)),IF(MAX($AD$2:AD196)>MAX(INGRESOS!$O$1:$O$471),MAX($AD$2:AD196)+1,MAX(INGRESOS!$O$1:$O$471)+1)),0) ->  | AE197: 4 | AH197: GASTOS CON TARJETA
A198: 2014-04-17 | B198: 2014-04-17 | D198: =IF(E198<>"",VLOOKUP(E198,PROVEEDORES!$A$2:$B$1000,2,FALSE),"") -> B98361108 | E198: DECORVEGA DECORACIONES, S.L. | F198: PINTURA | G198: 0 | T198: 58.51 | U198: 58.51 | V198: 0 | W198: 21 | X198: 0 | Z198: 58.51 | AB198: CADIZ 77 | AC198: 2 | AD198: =IF(AND(D198<>"",SUMIF($D$3:$D$548,D198,$V$3:$V$548)+SUMIF($D$3:$D$548,D198,$X$3:$X$548)>3005.06),IF(COUNTIF($D$3:D198,D198)>1,INDEX(GASTOS!$A$2:$AD$548,MATCH(D198,$D$2:D197,0),COLUMN($AD$2)),IF(MAX($AD$2:AD197)>MAX(INGRESOS!$O$1:$O$471),MAX($AD$2:AD197)+1,MAX(INGRESOS!$O$1:$O$471)+1)),0) -> 0 | AE198: 4 | AH198: MATERIALES/COMPRAS
A199: 2014-04-17 | B199: 2014-04-17 | D199: =IF(E199<>"",VLOOKUP(E199,PROVEEDORES!$A$2:$B$1000,2,FALSE),"") ->  | E199: ING DIRECT | F199: MANO OBRA (JUAN CARLOS) | G199: 0 | T199: 120 | U199: 120 | V199: 0 | W199: 0 | X199: 0 | Z199: 120 | AB199: CADIZ 77 | AC199: 2 | AD199: =IF(AND(D199<>"",SUMIF($D$3:$D$548,D199,$V$3:$V$548)+SUMIF($D$3:$D$548,D199,$X$3:$X$548)>3005.06),IF(COUNTIF($D$3:D199,D199)>1,INDEX(GASTOS!$A$2:$AD$548,MATCH(D199,$D$2:D198,0),COLUMN($AD$2)),IF(MAX($AD$2:AD198)>MAX(INGRESOS!$O$1:$O$471),MAX($AD$2:AD198)+1,MAX(INGRESOS!$O$1:$O$471)+1)),0) ->  | AE199: 4 | AH199: MATERIALES/COMPRAS
A200: 2014-04-17 | B200: 2014-04-17 | D200: =IF(E200<>"",VLOOKUP(E200,PROVEEDORES!$A$2:$B$1000,2,FALSE),"") ->  | E200: ING DIRECT | F200: MANO OBRA JUAN CARLOS | G200: 0 | T200: 160 | U200: 160 | V200: 0 | W200: 0 | X200: 0 | Z200: 160 | AB200: CADIZ 77 | AC200: 2 | AD200: =IF(AND(D200<>"",SUMIF($D$3:$D$548,D200,$V$3:$V$548)+SUMIF($D$3:$D$548,D200,$X$3:$X$548)>3005.06),IF(COUNTIF($D$3:D200,D200)>1,INDEX(GASTOS!$A$2:$AD$548,MATCH(D200,$D$2:D199,0),COLUMN($AD$2)),IF(MAX($AD$2:AD199)>MAX(INGRESOS!$O$1:$O$471),MAX($AD$2:AD199)+1,MAX(INGRESOS!$O$1:$O$471)+1)),0) ->  | AE200: 4 | AH200: MATERIALES/COMPRAS
... 310 more rows

Sheet CLIENTES
A1: APELLIDOS Y NOMBRE O RAZÓN SOCIAL | B1: NIF / CIF | C1: Para Modelo 347: PROVINCIA | D1: Para Modelo 347: Arrendamiento local negocio: "X" | E1: Para M-347: Importe percibido en metálico | F1: NUM CLIENTE
A2: CDAD. PROP. C/ CURA FEMENÍA, 20 | C2: VALENCIA / VALÉNCIA | F2: 284
A3: CDAD. PROP. C/ HISTORIADOR DIAGO, 2 | B3: H46774501 | C3: VALENCIA / VALÉNCIA | F3: 281
A4: CDAD. PROP. C/ MALLENT I MERI 113 | B4: H97902969 | C4: VALENCIA / VALÉNCIA | F4: 248
A5: KONE ELEVADORES, S.A. | B5: A28791069 | C5: MADRID | F5: 291
A6: COLEGIO TERRITORIAL DE ARQUITECTOS DE VALENCIA | B6: Q4675003J | C6: VALENCIA / VALÉNCIA | F6: 0

Sheet PROVEEDORES
A1: APELLIDOS Y NOMBRE O RAZÓN SOCIAL | B1: NIF / CIF | C1: Para Modelo 347: PROVINCIA | D1: Para Modelo 347: Arrendamiento local negocio: "X" | E1: Para M-347: Importe percibido en metálico
A2: AGENCIA TRIBUTARIA | B2: 0 | C2: MADRID
A3: AUTO SWEEDEN S.A. | B3: A46155347 | C3: VALENCIA / VALÉNCIA
A4: BIOPRINT ASTALIR S.L. | B4: B23637721
A5: BRICOLAJE BRICOMAN S.L.U. | B5: B84406289 | C5: MADRID
A6: CAJA DE ARQUITECTOS | B6: F08809808 | C6: BARCELONA
A7: CAMPSA ESTACIONES DE SERVICIO S.A. | B7: A78492782
A8: CDAD. PROP. CADIZ 38 | B8: H97554299 | C8: VALENCIA / VALÉNCIA
A9: CDAD. PROP. CADIZ 77 | B9: H96036967 | C9: VALENCIA / VALÉNCIA
A10: CDAD. PROP. GARAJE SUECA 64 | B10: H46854410 | C10: VALENCIA / VALÉNCIA
A11: COLEGIO TERRITORIAL DE ARQUITECTOS DE VALENCIA | B11: Q4675003J | C11: VALENCIA / VALÉNCIA
A12: DECORVEGA DECORACIONES, S.L. | B12: B98361108 | C12: VALENCIA / VALÉNCIA
A13: E.S. BALLENOIL | B13: B65371171 | C13: BARCELONA
A14: E.S. SUR | B14: B96589668 | C14: VALENCIA / VALÉNCIA
A15: EURO DEPOT ESPAÑA S.A.U. | B15: A62018064 | C15: BARCELONA
A16: FINCONSUM, S.A.U. | B16: A08980153
A17: FRANCE TELECOM ESPAÑA | B17: A82009812 | C17: MADRID
A18: GAS NATURAL SDG, S.A. | B18: A08431090 | C18: BARCELONA
A19: HERMANDAD NACIONAL DE ARQUITECTOS | B19: V28306678 | C19: MADRID
A20: IBERDROLA CLIENTES | B20: A95758389
A21: IBERDROLA COMERCIALIZACIÓN DE ÚLTIMO RECURSO | B21: A95554630 | C21: BIZKAIA
A22: IBERDROLA GENERACION S.A.U. | B22: A95075586 | C22: MADRID
A23: INSTITUTO VALENCIANO DE LA EDIFICACION | B23: G46397691 | C23: VALENCIA / VALÉNCIA
A24: JOSE TERUEL S.L. | B24: B96126412 | C24: VALENCIA / VALÉNCIA
A25: JUAN JOSE HERRERO MANRIQUE | B25: 13157016G | C25: BURGOS
A26: MADERAS HERMANOS ANDRES GOLVANO, S.L. | B26: B81609372 | C26: BURGOS
A27: PASCUAL MARTI, S.L. | B27: B97982409
A28: SANITAS SOCIEDAD ANONIMA DE SEGUROS S.A. | B28: A28037042 | C28: MADRID
A29: SIHOGAR, S.L. | B29: B64138407
A30: TELEFÓNICA DE ESPAÑA S.A.U. | B30: A82018474 | C30: MADRID
A31: APELLIDOS Y NOMBRE O RAZÓN SOCIAL | B31: CIF / NIF

Sheet CALCULOS
A2: CÁLCULOS TRIMESTRALES PARA EL MODELO 130: IRPF
A4: TRIMESTRE | B4: Ingresos Casilla [01] | C4: Gastos Brutos | D4: Casilla [02] Gastos con deducción | E4: Casilla [05] | F4: Casilla [6] Retenc. soportad | G4: Casilla [07] Pago fraccionado | J4: Casilla [11] | K4: Casilla [12] | L4: Casilla [13] Minoración deducción "400€" | M4: Casilla [15] Compensar negativas anteriores | N4: Casilla [17] | O4: Casilla [18] | P4: Casilla [19]
A5: 1T | B5: =SUMIF(INGRESOS!$N$2:$N$471,1,INGRESOS!$F$2:$F$471) -> 0 | C5: =SUMPRODUCT(((GASTOS!AC3:AC548)=1)*((GASTOS!$G$3:$G$548)=1)*(GASTOS!$U$3:$U$548)) -> 1473.88 | D5: =ROUND(IF((B5-C5)>=0,C5+0.05*(B5-C5),C5),2) -> 1473.88 | E5: 0 | F5: =ROUND(SUMIF(INGRESOS!$N$2:$N$471,1,INGRESOS!$K$2:$K$471),2) -> 0 | G5: =ROUND(IF((B5-D5)>=0,0.2*(B5-D5),0)-(E5+F5),2) -> 0 | K5: =IF(G5+J5>0,G5+J5,0) -> 0 | L5: =IF(4*($B$5-$D$5)<=12000,IF(4*($B$5-$D$5)<=8000,IF(K5>400/4,400/4,K5),IF(K5>(400-0.1*(4*($B$5-$D$5)-8000))/4,(400-0.1*(4*($B$5-$D$5)-8000))/4,K5)),0) -> 0 | M5: 0 | N5: =K5-L5-M5 -> 0 | P5: =N5-O5 -> 0
A6: 2T | B6: =SUMIF(INGRESOS!$N$2:$N$471,2,INGRESOS!$F$2:$F$471) -> 1750 | C6: =SUMPRODUCT(((GASTOS!$AC$3:$AC$548)=2)*((GASTOS!$G$3:$G$548)=1)*(GASTOS!$U$3:$U$548)) -> 1250.78 | D6: =ROUND(IF((B6-C6)>=0,C6+0.05*(B6-C6),C6),2) -> 1275.74 | E6: =IF(G5>0,G5,0) -> 0 | F6: =ROUND(SUMIF(INGRESOS!$N$2:$N$471,"<=2",INGRESOS!$K$2:$K$471),2) -> 0 | G6: =ROUND(IF((B6-D6)>=0,0.2*(B6-D6),0)-(E6+F6),2) -> 94.85 | K6: =IF(G6+J6>0,G6+J6,0) -> 94.85 | L6: =IF(4*($B$5-$D$5)<=12000,IF(4*($B$5-$D$5)<=8000,IF(K6>400/4,400/4,K6),IF(K6>(400-0.1*(4*($B$5-$D$5)-8000))/4,(400-0.1*(4*($B$5-$D$5)-8000))/4,K6)),0) -> 94.85 | M6: =IF(AND(K6-L6>0,P5<0),IF(ABS(P5)<K6-L6,ABS(P5),K6-L6),0) -> 0 | N6: =K6-L6-M6 -> 0 | P6: =N6-O6 -> 0
A7: 3T | B7: =SUMIF(INGRESOS!$N$2:$N$471,3,INGRESOS!$F$2:$F$471) -> 5930 | C7: =SUMPRODUCT(((GASTOS!$AC$3:$AC$548)=3)*((GASTOS!$G$3:$G$548)=1)*(GASTOS!$U$3:$U$548)) -> 1270.73 | D7: =ROUND(IF((B7-C7)>=0,C7+0.05*(B7-C7),C7),2) -> 1503.69 | E7: =E6+IF(G6>0,G6,0) -> 94.85 | F7: =ROUND(SUMIF(INGRESOS!$N$2:$N$471,"<=3",INGRESOS!$K$2:$K$471),2) -> 0 | G7: =ROUND(IF((B7-D7)>=0,0.2*(B7-D7),0)-(E7+F7),2) -> 790.41 | K7: =IF(G7+J7>0,G7+J7,0) -> 790.41 | L7: =IF(4*($B$5-$D$5)<=12000,IF(4*($B$5-$D$5)<=8000,IF(K7>400/4,400/4,K7),IF(K7>(400-0.1*(4*($B$5-$D$5)-8000))/4,(400-0.1*(4*($B$5-$D$5)-8000))/4,K7)),0) -> 100 | M7: =IF(AND(K7-L7>0,(IF(P6<0,P6,0)+IF(M6+P5<0,M6+P5,0))<0),IF(ABS(IF(P6<0,P6,0)+IF(M6+P5<0,M6+P5,0))<K7-L7,ABS(IF(P6<0,P6,0)+IF(M6+P5<0,M6+P5,0)),K7-L7),0) -> 0 | N7: =K7-L7-M7 -> 690.41 | P7: =N7-O7 -> 690.41
A8: 4T | B8: =SUMIF(INGRESOS!$N$2:$N$471,4,INGRESOS!$F$2:$F$471) -> 8857 | C8: =SUMPRODUCT(((GASTOS!$AC$3:$AC$548)=4)*((GASTOS!$G$3:$G$548)=1)*(GASTOS!$U$3:$U$548)) -> 742.58 | D8: =ROUND(IF((B8-C8)>=0,C8+0.05*(B8-C8),C8),2) -> 1148.3 | E8: =E7+IF(G7>0,G7,0) -> 885.26 | F8: =ROUND(SUMIF(INGRESOS!$N$2:$N$471,"<=4",INGRESOS!$K$2:$K$471),2) -> 0 | G8: =ROUND(IF((B8-D8)>=0,0.2*(B8-D8),0)-(E8+F8),2) -> 656.48 | K8: =IF(G8+J8>0,G8+J8,0) -> 656.48 | L8: =IF(4*($B$5-$D$5)<=12000,IF(4*($B$5-$D$5)<=8000,IF(K8>400/4,400/4,K8),IF(K8>(400-0.1*(4*($B$5-$D$5)-8000))/4,(400-0.1*(4*($B$5-$D$5)-8000))/4,K8)),0) -> 100 | M8: =IF(AND(K8-L8>0,SUM(M6:M7)+SUMIF(P5:P7,"<0")<0),IF(ABS(SUM(M6:M7)+SUMIF(P5:P7,"<0"))<K8-L8,ABS(SUM(M6:M7)+SUMIF(P5:P7,"<0")),K8-L8),0) -> 0 | N8: =K8-L8-M8 -> 556.48 | P8: =N8-O8 -> 556.48
A10: CÁLCULOS TRIMESTRALES PARA EL MODELO 303: IVA
A12: TRIMESTRE | B12: IVA Devengado | N12: Total Base IVA Deducible [22] | O12: Total Cuota IVA Deducible [23] | P12: Casilla [38] Diferencia | Q12: Casilla [41] Cuotas a compensar trimestes anteriores | R12: Casilla [46] Resultado (40-41+45) | S12: Casilla [47] | T12: Casilla [48] Resultado Autoliquidac
B13: ="Bases al Tipo " & 'DATOS FISCALES'!B12 &"%" -> Bases al Tipo 21% | C13: ="Cuotas IVA al "& 'DATOS FISCALES'!B12 & "%" -> Cuotas IVA al 21% | D13: ="Bases sujetas R.E. " & 'DATOS FISCALES'!D12 & "%" -> Bases sujetas R.E. 0,5% | E13: ="Cuotas R.E. " & 'DATOS FISCALES'!D12 & "%" -> Cuotas R.E. 0,5% | F13: ="Bases al Tipo " & 'DATOS FISCALES'!B13 & "%" -> Bases al Tipo 10% | G13: ="Cuotas IVA al " & 'DATOS FISCALES'!B13 & "%" -> Cuotas IVA al 10% | H13: ="Bases sujetas R.E. " & 'DATOS FISCALES'!D13 & "%" -> Bases sujetas R.E. 1,4% | I13: ="Cuotas R.E. " & 'DATOS FISCALES'!D13 & "%" -> Cuotas R.E. 1,4% | J13: ="Bases al Tipo " & 'DATOS FISCALES'!B14 & "%" -> Bases al Tipo 4% | K13: ="Cuotas IVA al " & 'DATOS FISCALES'!B14 & "%" -> Cuotas IVA al 4% | L13: ="Bases sujetas R.E. " & 'DATOS FISCALES'!D14 & "%" -> Bases sujetas R.E. 5,2% | M13: ="Cuotas R.E. " & 'DATOS FISCALES'!D14 & "%" -> Cuotas R.E. 5,2%
A14: 1T | B14: =SUMPRODUCT((INGRESOS!$N$2:$N$471=1)*(INGRESOS!$G$2:$G$471='DATOS FISCALES'!$B$12)*(INGRESOS!$Q$2:$Q$471="CPS")*INGRESOS!$F$2:$F$471) -> 0 | C14: =SUMPRODUCT((INGRESOS!$N$2:$N$471=1)*(INGRESOS!$G$2:$G$471='DATOS FISCALES'!$B$12)*(INGRESOS!$Q$2:$Q$471="CPS")*INGRESOS!$I$2:$I$471) -> 0 | D14: =SUMPRODUCT((INGRESOS!$N$2:$N$471=1)*(INGRESOS!$H$2:$H$471='DATOS FISCALES'!$D$12)*INGRESOS!$F$2:$F$471) -> 0 | E14: =SUMPRODUCT((INGRESOS!$N$2:$N$471=1)*(INGRESOS!$H$2:$H$471='DATOS FISCALES'!$D$12)*INGRESOS!$J$2:$J$471) -> 0 | F14: =SUMPRODUCT((INGRESOS!$N$2:$N$471=1)*(INGRESOS!$G$2:$G$471='DATOS FISCALES'!$B$13)*INGRESOS!$F$2:$F$471) -> 0 | G14: =SUMPRODUCT((INGRESOS!$N$2:$N$471=1)*(INGRESOS!$G$2:$G$471='DATOS FISCALES'!$B$13)*INGRESOS!$I$2:$I$471) -> 0 | H14: =SUMPRODUCT((INGRESOS!$N$2:$N$471=1)*(INGRESOS!$H$2:$H$471='DATOS FISCALES'!$D$13)*INGRESOS!$F$2:$F$471) -> 0 | I14: =SUMPRODUCT((INGRESOS!$N$2:$N$471=1)*(INGRESOS!$H$2:$H$471='DATOS FISCALES'!$D$13)*INGRESOS!$J$2:$J$471) -> 0 | J14: =SUMPRODUCT((INGRESOS!$N$2:$N$471=1)*(INGRESOS!$G$2:$G$471='DATOS FISCALES'!$B$14)*INGRESOS!$F$2:$F$471) -> 0 | K14: =SUMPRODUCT((INGRESOS!$N$2:$N$471=1)*(INGRESOS!$G$2:$G$471='DATOS FISCALES'!$B$14)*INGRESOS!$I$2:$I$471) -> 0 | L14: =SUMPRODUCT((INGRESOS!$N$2:$N$471=1)*(INGRESOS!$H$2:$H$471='DATOS FISCALES'!$D$14)*INGRESOS!$F$2:$F$471) -> 0 | M14: =SUMPRODUCT((INGRESOS!$N$2:$N$471=1)*(INGRESOS!$H$2:$H$471='DATOS FISCALES'!$D$14)*INGRESOS!$J$2:$J$471) -> 0 | N14: =SUMIF(GASTOS!AC2:AC548,1,GASTOS!V2:V548) -> 1139.04 | O14: =SUMPRODUCT((GASTOS!$G$3:$G$548=1)*(GASTOS!$AC$3:$AC$548=1)*GASTOS!$X$3:$X$548) -> 232 | P14: =(C14+G14+K14)+(E14+I14+M14)-O14 -> -232 | R14: =P14-Q14 -> -232 | T14: =R14-S14 -> -232
A15: 2T | B15: =SUMPRODUCT((INGRESOS!$N$2:$N$471=2)*(INGRESOS!$G$2:$G$471='DATOS FISCALES'!$B$12)*(INGRESOS!$Q$2:$Q$471="CPS")*INGRESOS!$F$2:$F$471) -> 0 | C15: =SUMPRODUCT((INGRESOS!$N$2:$N$471=2)*(INGRESOS!$G$2:$G$471='DATOS FISCALES'!$B$12)*(INGRESOS!$Q$2:$Q$471="CPS")*INGRESOS!$I$2:$I$471) -> 0 | D15: =SUMPRODUCT((INGRESOS!$N$2:$N$471=2)*(INGRESOS!$H$2:$H$471='DATOS FISCALES'!$D$12)*INGRESOS!$F$2:$F$471) -> 0 | E15: =SUMPRODUCT((INGRESOS!$N$2:$N$471=2)*(INGRESOS!$H$2:$H$471='DATOS FISCALES'!$D$12)*INGRESOS!$J$2:$J$471) -> 0 | F15: =SUMPRODUCT((INGRESOS!$N$2:$N$471=2)*(INGRESOS!$G$2:$G$471='DATOS FISCALES'!$B$13)*INGRESOS!$F$2:$F$471) -> 0 | G15: =SUMPRODUCT((INGRESOS!$N$2:$N$471=2)*(INGRESOS!$G$2:$G$471='DATOS FISCALES'!$B$13)*INGRESOS!$I$2:$I$471) -> 0 | H15: =SUMPRODUCT((INGRESOS!$N$2:$N$471=2)*(INGRESOS!$H$2:$H$471='DATOS FISCALES'!$D$13)*INGRESOS!$F$2:$F$471) -> 0 | I15: =SUMPRODUCT((INGRESOS!$N$2:$N$471=2)*(INGRESOS!$H$2:$H$471='DATOS FISCALES'!$D$13)*INGRESOS!$J$2:$J$471) -> 0 | J15: =SUMPRODUCT((INGRESOS!$N$2:$N$471=2)*(INGRESOS!$G$2:$G$471='DATOS FISCALES'!$B$14)*INGRESOS!$F$2:$F$471) -> 0 | K15: =SUMPRODUCT((INGRESOS!$N$2:$N$471=2)*(INGRESOS!$G$2:$G$471='DATOS FISCALES'!$B$14)*INGRESOS!$I$2:$I$471) -> 0 | L15: =SUMPRODUCT((INGRESOS!$N$2:$N$471=2)*(INGRESOS!$H$2:$H$471='DATOS FISCALES'!$D$14)*INGRESOS!$F$2:$F$471) -> 0 | M15: =SUMPRODUCT((INGRESOS!$N$2:$N$471=2)*(INGRESOS!$H$2:$H$471='DATOS FISCALES'!$D$14)*INGRESOS!$J$2:$J$471) -> 0 | N15: =SUMIF(GASTOS!AC2:AC549,2,GASTOS!V2:V549) -> 1034.26 | O15: =SUMPRODUCT((GASTOS!$G$3:$G$548=1)*(GASTOS!$AC$3:$AC$548=2)*GASTOS!$X$3:$X$548) -> 217.21 | P15: =(C15+G15+K15)+(E15+I15+M15)-O15 -> -217.21 | Q15: =IF(R14<0,ABS(R14),0) -> 232 | R15: =P15-Q15 -> -449.21 | T15: =R15-S15 -> -449.21
A16: 3T | B16: =SUMPRODUCT((INGRESOS!$N$2:$N$471=3)*(INGRESOS!$G$2:$G$471='DATOS FISCALES'!$B$12)*(INGRESOS!$Q$2:$Q$471="CPS")*INGRESOS!$F$2:$F$471) -> 0 | C16: =SUMPRODUCT((INGRESOS!$N$2:$N$471=3)*(INGRESOS!$G$2:$G$471='DATOS FISCALES'!$B$12)*(INGRESOS!$Q$2:$Q$471="CPS")*INGRESOS!$I$2:$I$471) -> 0 | D16: =SUMPRODUCT((INGRESOS!$N$2:$N$471=3)*(INGRESOS!$H$2:$H$471='DATOS FISCALES'!$D$12)*INGRESOS!$F$2:$F$471) -> 0 | E16: =SUMPRODUCT((INGRESOS!$N$2:$N$471=3)*(INGRESOS!$H$2:$H$471='DATOS FISCALES'!$D$12)*INGRESOS!$J$2:$J$471) -> 0 | F16: =SUMPRODUCT((INGRESOS!$N$2:$N$471=3)*(INGRESOS!$G$2:$G$471='DATOS FISCALES'!$B$13)*INGRESOS!$F$2:$F$471) -> 0 | G16: =SUMPRODUCT((INGRESOS!$N$2:$N$471=3)*(INGRESOS!$G$2:$G$471='DATOS FISCALES'!$B$13)*INGRESOS!$I$2:$I$471) -> 0 | H16: =SUMPRODUCT((INGRESOS!$N$2:$N$471=3)*(INGRESOS!$H$2:$H$471='DATOS FISCALES'!$D$13)*INGRESOS!$F$2:$F$471) -> 0 | I16: =SUMPRODUCT((INGRESOS!$N$2:$N$471=3)*(INGRESOS!$H$2:$H$471='DATOS FISCALES'!$D$13)*INGRESOS!$J$2:$J$471) -> 0 | J16: =SUMPRODUCT((INGRESOS!$N$2:$N$471=3)*(INGRESOS!$G$2:$G$471='DATOS FISCALES'!$B$14)*INGRESOS!$F$2:$F$471) -> 0 | K16: =SUMPRODUCT((INGRESOS!$N$2:$N$471=3)*(INGRESOS!$G$2:$G$471='DATOS FISCALES'!$B$14)*INGRESOS!$I$2:$I$471) -> 0 | L16: =SUMPRODUCT((INGRESOS!$N$2:$N$471=3)*(INGRESOS!$H$2:$H$471='DATOS FISCALES'!$D$14)*INGRESOS!$F$2:$F$471) -> 0 | M16: =SUMPRODUCT((INGRESOS!$N$2:$N$471=3)*(INGRESOS!$H$2:$H$471='DATOS FISCALES'!$D$14)*INGRESOS!$J$2:$J$471) -> 0 | N16: =SUMPRODUCT((GASTOS!$AC$3:$AC$548=3)*(GASTOS!$W$3:$W$548>0)*GASTOS!$V$3:$V$548) -> 1181.23 | O16: =SUMIF(GASTOS!$AC$3:$AC$548,3,GASTOS!$X$3:$X$548) -> 250.47 | P16: =(C16+G16+K16)+(E16+I16+M16)-O16 -> -250.47 | Q16: =IF(R15<0,ABS(R15),0) -> 449.21 | R16: =P16-Q16 -> -699.68 | T16: =R16-S16 -> -699.68
A17: 4T | B17: =SUMPRODUCT((INGRESOS!$N$2:$N$471=4)*(INGRESOS!$G$2:$G$471='DATOS FISCALES'!$B$12)*(INGRESOS!$Q$2:$Q$471="CPS")*INGRESOS!$F$2:$F$471) -> 0 | C17: =SUMPRODUCT((INGRESOS!$N$2:$N$471=4)*(INGRESOS!$G$2:$G$471='DATOS FISCALES'!$B$12)*(INGRESOS!$Q$2:$Q$471="CPS")*INGRESOS!$I$2:$I$471) -> 0 | D17: =SUMPRODUCT((INGRESOS!$N$2:$N$471=4)*(INGRESOS!$H$2:$H$471='DATOS FISCALES'!$D$12)*INGRESOS!$F$2:$F$471) -> 0 | E17: =SUMPRODUCT((INGRESOS!$N$2:$N$471=4)*(INGRESOS!$H$2:$H$471='DATOS FISCALES'!$D$12)*INGRESOS!$J$2:$J$471) -> 0 | F17: =SUMPRODUCT((INGRESOS!$N$2:$N$471=4)*(INGRESOS!$G$2:$G$471='DATOS FISCALES'!$B$13)*INGRESOS!$F$2:$F$471) -> 0 | G17: =SUMPRODUCT((INGRESOS!$N$2:$N$471=4)*(INGRESOS!$G$2:$G$471='DATOS FISCALES'!$B$13)*INGRESOS!$I$2:$I$471) -> 0 | H17: =SUMPRODUCT((INGRESOS!$N$2:$N$471=4)*(INGRESOS!$H$2:$H$471='DATOS FISCALES'!$D$13)*INGRESOS!$F$2:$F$471) -> 0 | I17: =SUMPRODUCT((INGRESOS!$N$2:$N$471=4)*(INGRESOS!$H$2:$H$471='DATOS FISCALES'!$D$13)*INGRESOS!$J$2:$J$471) -> 0 | J17: =SUMPRODUCT((INGRESOS!$N$2:$N$471=4)*(INGRESOS!$G$2:$G$471='DATOS FISCALES'!$B$14)*INGRESOS!$F$2:$F$471) -> 0 | K17: =SUMPRODUCT((INGRESOS!$N$2:$N$471=4)*(INGRESOS!$G$2:$G$471='DATOS FISCALES'!$B$14)*INGRESOS!$I$2:$I$471) -> 0 | L17: =SUMPRODUCT((INGRESOS!$N$2:$N$471=4)*(INGRESOS!$H$2:$H$471='DATOS FISCALES'!$D$14)*INGRESOS!$F$2:$F$471) -> 0 | M17: =SUMPRODUCT((INGRESOS!$N$2:$N$471=4)*(INGRESOS!$H$2:$H$471='DATOS FISCALES'!$D$14)*INGRESOS!$J$2:$J$471) -> 0 | N17: =SUMPRODUCT((GASTOS!$AC$3:$AC$548=4)*(GASTOS!$W$3:$W$548>0)*GASTOS!$V$3:$V$548) -> 655.88 | O17: =SUMIF(GASTOS!$AC$3:$AC$548,4,GASTOS!$X$3:$X$548) -> 139.82 | P17: =(C17+G17+K17)+(E17+I17+M17)-O17 -> -139.82 | Q17: =IF(R16<0,ABS(R16),0) -> 699.68 | R17: =P17-Q17 -> -839.5 | T17: =R17-S17 -> -839.5
A19: CÁLCULOS PARA EL MODELO 390
A21: RESUMEN ANUAL IVA | B21: IVA Devengado | N21: IVA Deducible
B22: ="Bases al Tipo " & 'DATOS FISCALES'!B12 &"%" -> Bases al Tipo 21% | C22: ="Cuota IVA al "& 'DATOS FISCALES'!B12 & "%" -> Cuota IVA al 21% | D22: ="Bases sujetas R.E. " & 'DATOS FISCALES'!D12 & "%" -> Bases sujetas R.E. 0,5% | E22: ="Cuotas R.E. " & 'DATOS FISCALES'!D12 & "%" -> Cuotas R.E. 0,5% | F22: ="Bases al Tipo " & 'DATOS FISCALES'!B13 & "%" -> Bases al Tipo 10% | G22: ="Cuotas IVA al " & 'DATOS FISCALES'!B13 & "%" -> Cuotas IVA al 10% | H22: ="Bases sujetas R.E. " & 'DATOS FISCALES'!D13 & "%" -> Bases sujetas R.E. 1,4% | I22: ="Cuotas R.E. " & 'DATOS FISCALES'!D13 & "%" -> Cuotas R.E. 1,4% | J22: ="Bases al Tipo " & 'DATOS FISCALES'!B14 & "%" -> Bases al Tipo 4% | K22: ="Cuotas IVA al " & 'DATOS FISCALES'!B14 & "%" -> Cuotas IVA al 4% | L22: ="Bases sujetas R.E. " & 'DATOS FISCALES'!D14 & "%" -> Bases sujetas R.E. 5,2% | M22: ="Cuotas R.E. " & 'DATOS FISCALES'!D14 & "%" -> Cuotas R.E. 5,2% | N22: ="Bases al Tipo " & 'DATOS FISCALES'!B12 &"%" -> Bases al Tipo 21% | O22: ="Cuota IVA al "& 'DATOS FISCALES'!B12 & "%" -> Cuota IVA al 21% | P22: ="Bases al Tipo " & 'DATOS FISCALES'!B13 & "%" -> Bases al Tipo 10% | Q22: ="Cuota IVA al " & 'DATOS FISCALES'!B13 & "%" -> Cuota IVA al 10% | R22: ="Bases al Tipo " & 'DATOS FISCALES'!B14 & "%" -> Bases al Tipo 4% | S22: ="Cuota IVA al " & 'DATOS FISCALES'!B14 & "%" -> Cuota IVA al 4%
B23: =SUM(B14:B17) -> 0 | C23: =SUM(C14:C17) -> 0 | D23: 0 | E23: 0 | F23: 0 | G23: 0 | H23: 0 | I23: 0 | J23: 0 | K23: 0 | L23: 0 | M23: 0 | N23: =SUMIF(GASTOS!$W$3:$W$548,'DATOS FISCALES'!B12,GASTOS!$V$3:$V$548) -> 3965.31 | O23: =SUMIF(GASTOS!$W$3:$W$548,'DATOS FISCALES'!B12,GASTOS!$X$3:$X$548) -> 832.77 | P23: =SUMIF(GASTOS!$W$3:$W$548,'DATOS FISCALES'!B13,GASTOS!$V$3:$V$548) -> 0 | Q23: =SUMIF(GASTOS!$W$3:$W$548,'DATOS FISCALES'!B13,GASTOS!$X$3:$X$548) -> 0 | R23: =SUMIF(GASTOS!$W$3:$W$548,'DATOS FISCALES'!B14,GASTOS!$V$3:$V$548) -> 0 | S23: =SUMIF(GASTOS!$W$3:$W$548,'DATOS FISCALES'!B14,GASTOS!$X$3:$X$548) -> 0
A25: CÁCULOS TRIMESTRALES PARA EL MODELO 115: IRPF ARRENDAMIENTOS
A26: Cálculos del Modelo 115 aportados por un usuario anónimo. Agradecemos su aportación
A27: TRIMESTRE | B27: Casilla (2) Base Retención | C27: % Retención | D27: Casilla (3) Importe Retención | E27: Casilla (5) Total Retención
A28: 1T | B28: =SUMIF(GASTOS!$AC$3:$AC$548,1,GASTOS!$L$3:$L$548) -> 0 | C28: 0.21 | D28: =B28*C28 -> 0 | E28: =D28 -> 0
A29: 2T | B29: =SUMIF(GASTOS!$AC$3:$AC$548,2,GASTOS!$L$3:$L$548) -> 0 | C29: 0.21 | D29: =B29*C29 -> 0 | E29: =D29 -> 0
A30: 3T | B30: =SUMIF(GASTOS!$AC$3:$AC$548,3,GASTOS!$L$3:$L$548) -> 0 | C30: 0.21 | D30: =B30*C30 -> 0 | E30: =D30 -> 0
A31: 4T | B31: =SUMIF(GASTOS!$AC$3:$AC$548,4,GASTOS!$L$3:$L$548) -> 0 | C31: 0.21 | D31: =B31*C31 -> 0 | E31: =D31 -> 0
A32: TOTAL DECLARACIÓN ANUAL | B32: =SUM(B28:B31) -> 0 | C32: 0.21 | D32: =B32*C32 -> 0 | E32: =SUM(E28:E31) -> 0
A34: CÁLCULOS PARA EL MODELO 347
A36: Nº Declarado | B36: Libro | C36: NIF declarado | D36: NIF representante | E36: Apellidos y nombre o razón social | F36: Provincia (Código) | G36: País (Código) | H36: Clave de operación | I36: Arrendamiento local negocio | J36: Aviso deber de cumplir "hoja anexo" | K36: Importe percibido en metálico | L36: Importe anual de las operaciones | M36: Importe trimestral de las operaciones | Q36: Importe anual transmisiones inmuebles sujetas IVA | R36: Importe trimestral percibido por transmisiones de inmuebles sujetas a IVA | V36: Importe anual transmisiones inmuebles sujetas IVA | W36: Nº total personas y entidades en las hojas interiores [01] | X36: Importe total anual operaciones en las hojas interiores [02] | Y36: Nº total inmuebles en la hoja anexo de arrend. locales de negocio [03] | Z36: Importe total operaciones hoja anexo arrend. Locales negocio [04]
M37: 1 T | N37: 2 T | O37: 3 T | P37: 4 T | R37: 1 T | S37: 2 T | T37: 3 T | U37: 4 T
A38: 1 | B38: =IF(NOT(ISERROR(MATCH(A38,INGRESOS!$O$1:$O$471,0))),"INGRESOS",IF(NOT(ISERROR(MATCH(A38,GASTOS!$AD$2:$AD$548,0))),"GASTOS","")) -> INGRESOS | C38: =IF(B38="INGRESOS",INDEX(INGRESOS!$A$1:$O$471,MATCH(A38,INGRESOS!$O$1:$O$471,0),COLUMN(INGRESOS!D1)),IF(B38="GASTOS",INDEX(GASTOS!$A$2:$AD$548,MATCH(A38,GASTOS!$AD$2:$AD$548,0),COLUMN(INGRESOS!$D$1)),"")) -> A28791069 | E38: =IF(B38<>"",IF(B38="INGRESOS",INDEX(CLIENTES!$A$1:$K$1001,MATCH(C38,CLIENTES!$B$1:$B$1001,0),COLUMN(CLIENTES!$A$1)),INDEX(PROVEEDORES!$A$1:$K$1000,MATCH(C38,PROVEEDORES!$B$1:$B$1000,0),COLUMN(PROVEEDORES!$A$1))),"") -> KONE ELEVADORES, S.A. | F38: =IF(B38<>"",IF(""=IF(B38="INGRESOS",VLOOKUP(C38,CLIENTES!$B$1:$C$1001,2,FALSE),VLOOKUP(C38,PROVEEDORES!$B$1:$C$1000,2,FALSE)),"FALTA",VLOOKUP(IF(B38="INGRESOS",VLOOKUP(C38,CLIENTES!$B$1:$C$1001,2,FALSE),VLOOKUP(C38,PROVEEDORES!$B$1:$C$1000,2,FALSE)),'DATOS FISCALES'!$E$19:$F$71,2,FALSE)),"") -> 28 | G38: =IF(F38=99,"introducir código de país","") ->  | H38: =IF(B38<>"",IF(B38="INGRESOS","B",IF(B38="GASTOS","A","¿?")),"") -> B | I38: =IF(B38<>"",IF(B38="INGRESOS",VLOOKUP(C38,CLIENTES!$B$2:$E$1001,3,FALSE),VLOOKUP(C38,PROVEEDORES!$B$2:$E$1000,3,FALSE)),"") -> 0 | J38: =IF(AND(B38="INGRESOS",I38>0),"AVISO_ANEXO","") ->  | K38: =IF(B38<>"",IF(B38="INGRESOS",VLOOKUP(C38,CLIENTES!$B$2:$E$1001,4,FALSE),VLOOKUP(C38,PROVEEDORES!$B$2:$E$1000,4,FALSE)),0) -> 0 | L38: =SUM(M38:P38) -> 17892.27 | M38: =IF(B38<>"",IF(B38="INGRESOS",SUMPRODUCT((INGRESOS!$N$2:$N$471=1)*(INGRESOS!$O$2:$O$471=A38)*INGRESOS!$F$2:$F$471)+SUMPRODUCT((INGRESOS!$N$2:$N$471=1)*(INGRESOS!$O$2:$O$471=A38)*INGRESOS!$I$2:$I$471)+SUMPRODUCT((INGRESOS!$N$2:$N$471=1)*(INGRESOS!$O$2:$O$471=A38)*INGRESOS!$J$2:$J$471),SUMPRODUCT((GASTOS!$AC$3:$AC$548=1)*(GASTOS!$AD$3:$AD$548=A38)*GASTOS!$V$3:$V$548)+SUMPRODUCT((GASTOS!$AC$3:$AC$548=1)*(GASTOS!$AD$3:$AD$548=A38)*GASTOS!$X$3:$X$548)),0) -> 0 | N38: =IF(B38<>"",IF(B38="INGRESOS",SUMPRODUCT((INGRESOS!$N$2:$N$471=2)*(INGRESOS!$O$2:$O$471=A38)*INGRESOS!$F$2:$F$471)+SUMPRODUCT((INGRESOS!$N$2:$N$471=2)*(INGRESOS!$O$2:$O$471=A38)*INGRESOS!$I$2:$I$471)+SUMPRODUCT((INGRESOS!$N$2:$N$471=2)*(INGRESOS!$O$2:$O$471=A38)*INGRESOS!$J$2:$J$471),SUMPRODUCT((GASTOS!$AC$3:$AC$548=2)*(GASTOS!$AD$3:$AD$548=A38)*GASTOS!$V$3:$V$548)+SUMPRODUCT((GASTOS!$AC$3:$AC$548=2)*(GASTOS!$AD$3:$AD$548=A38)*GASTOS!$X$3:$X$548)),0) -> 0 | O38: =IF(B38<>"",IF(B38="INGRESOS",SUMPRODUCT((INGRESOS!$N$2:$N$471=3)*(INGRESOS!$O$2:$O$471=A38)*INGRESOS!$F$2:$F$471)+SUMPRODUCT((INGRESOS!$N$2:$N$471=3)*(INGRESOS!$O$2:$O$471=A38)*INGRESOS!$I$2:$I$471)+SUMPRODUCT((INGRESOS!$N$2:$N$471=3)*(INGRESOS!$O$2:$O$471=A38)*INGRESOS!$J$2:$J$471),SUMPRODUCT((GASTOS!$AC$3:$AC$548=3)*(GASTOS!$AD$3:$AD$548=A38)*GASTOS!$V$3:$V$548)+SUMPRODUCT((GASTOS!$AC$3:$AC$548=3)*(GASTOS!$AD$3:$AD$548=A38)*GASTOS!$X$3:$X$548)),0) -> 7175.3 | P38: =IF(B38<>"",IF(B38="INGRESOS",SUMPRODUCT((INGRESOS!$N$2:$N$471=4)*(INGRESOS!$O$2:$O$471=A38)*INGRESOS!$F$2:$F$471)+SUMPRODUCT((INGRESOS!$N$2:$N$471=4)*(INGRESOS!$O$2:$O$471=A38)*INGRESOS!$I$2:$I$471)+SUMPRODUCT((INGRESOS!$N$2:$N$471=4)*(INGRESOS!$O$2:$O$471=A38)*INGRESOS!$J$2:$J$471),SUMPRODUCT((GASTOS!$AC$3:$AC$548=4)*(GASTOS!$AD$3:$AD$548=A38)*GASTOS!$V$3:$V$548)+SUMPRODUCT((GASTOS!$AC$3:$AC$548=4)*(GASTOS!$AD$3:$AD$548=A38)*GASTOS!$X$3:$X$548)),0) -> 10716.97 | W38: =COUNTIF(B38:B53,">""") -> 1 | X38: =SUM(L38:L53,Q38:Q53) -> 17892.27
A39: 2 | B39: =IF(NOT(ISERROR(MATCH(A39,INGRESOS!$O$1:$O$471,0))),"INGRESOS",IF(NOT(ISERROR(MATCH(A39,GASTOS!$AD$2:$AD$548,0))),"GASTOS","")) ->  | C39: =IF(B39="INGRESOS",INDEX(INGRESOS!$A$1:$O$471,MATCH(A39,INGRESOS!$O$1:$O$471,0),COLUMN(INGRESOS!#REF!)),IF(B39="GASTOS",INDEX(GASTOS!$A$2:$AD$548,MATCH(A39,GASTOS!$AD$2:$AD$548,0),COLUMN(INGRESOS!$D$1)),"")) ->  | E39: =IF(B39<>"",IF(B39="INGRESOS",INDEX(CLIENTES!$A$1:$K$1001,MATCH(C39,CLIENTES!$B$1:$B$1001,0),COLUMN(CLIENTES!$A$1)),INDEX(PROVEEDORES!$A$1:$K$1000,MATCH(C39,PROVEEDORES!$B$1:$B$1000,0),COLUMN(PROVEEDORES!$A$1))),"") ->  | F39: =IF(B39<>"",IF(""=IF(B39="INGRESOS",VLOOKUP(C39,CLIENTES!$B$1:$C$1001,2,FALSE),VLOOKUP(C39,PROVEEDORES!$B$1:$C$1000,2,FALSE)),"FALTA",VLOOKUP(IF(B39="INGRESOS",VLOOKUP(C39,CLIENTES!$B$1:$C$1001,2,FALSE),VLOOKUP(C39,PROVEEDORES!$B$1:$C$1000,2,FALSE)),'DATOS FISCALES'!$E$19:$F$71,2,FALSE)),"") ->  | G39: =IF(F39=99,"introducir código de país","") ->  | H39: =IF(B39<>"",IF(B39="INGRESOS","B",IF(B39="GASTOS","A","¿?")),"") ->  | I39: =IF(B39<>"",IF(B39="INGRESOS",VLOOKUP(C39,CLIENTES!$B$2:$E$1001,3,FALSE),VLOOKUP(C39,PROVEEDORES!$B$2:$E$1000,3,FALSE)),"") ->  | J39: =IF(AND(B39="INGRESOS",I39>0),"AVISO_ANEXO","") ->  | K39: =IF(B39<>"",IF(B39="INGRESOS",VLOOKUP(C39,CLIENTES!$B$2:$E$1001,4,FALSE),VLOOKUP(C39,PROVEEDORES!$B$2:$E$1000,4,FALSE)),0) -> 0 | L39: =SUM(M39:P39) -> 0 | M39: =IF(B39<>"",IF(B39="INGRESOS",SUMPRODUCT((INGRESOS!$N$2:$N$471=1)*(INGRESOS!$O$2:$O$471=A39)*INGRESOS!$F$2:$F$471)+SUMPRODUCT((INGRESOS!$N$2:$N$471=1)*(INGRESOS!$O$2:$O$471=A39)*INGRESOS!$I$2:$I$471)+SUMPRODUCT((INGRESOS!$N$2:$N$471=1)*(INGRESOS!$O$2:$O$471=A39)*INGRESOS!$J$2:$J$471),SUMPRODUCT((GASTOS!$AC$3:$AC$548=1)*(GASTOS!$AD$3:$AD$548=A39)*GASTOS!$V$3:$V$548)+SUMPRODUCT((GASTOS!$AC$3:$AC$548=1)*(GASTOS!$AD$3:$AD$548=A39)*GASTOS!$X$3:$X$548)),0) -> 0 | N39: =IF(B39<>"",IF(B39="INGRESOS",SUMPRODUCT((INGRESOS!$N$2:$N$471=2)*(INGRESOS!$O$2:$O$471=A39)*INGRESOS!$F$2:$F$471)+SUMPRODUCT((INGRESOS!$N$2:$N$471=2)*(INGRESOS!$O$2:$O$471=A39)*INGRESOS!$I$2:$I$471)+SUMPRODUCT((INGRESOS!$N$2:$N$471=2)*(INGRESOS!$O$2:$O$471=A39)*INGRESOS!$J$2:$J$471),SUMPRODUCT((GASTOS!$AC$3:$AC$548=2)*(GASTOS!$AD$3:$AD$548=A39)*GASTOS!$V$3:$V$548)+SUMPRODUCT((GASTOS!$AC$3:$AC$548=2)*(GASTOS!$AD$3:$AD$548=A39)*GASTOS!$X$3:$X$548)),0) -> 0 | O39: =IF(B39<>"",IF(B39="INGRESOS",SUMPRODUCT((INGRESOS!$N$2:$N$471=3)*(INGRESOS!$O$2:$O$471=A39)*INGRESOS!$F$2:$F$471)+SUMPRODUCT((INGRESOS!$N$2:$N$471=3)*(INGRESOS!$O$2:$O$471=A39)*INGRESOS!$I$2:$I$471)+SUMPRODUCT((INGRESOS!$N$2:$N$471=3)*(INGRESOS!$O$2:$O$471=A39)*INGRESOS!$J$2:$J$471),SUMPRODUCT((GASTOS!$AC$3:$AC$548=3)*(GASTOS!$AD$3:$AD$548=A39)*GASTOS!$V$3:$V$548)+SUMPRODUCT((GASTOS!$AC$3:$AC$548=3)*(GASTOS!$AD$3:$AD$548=A39)*GASTOS!$X$3:$X$548)),0) -> 0 | P39: =IF(B39<>"",IF(B39="INGRESOS",SUMPRODUCT((INGRESOS!$N$2:$N$471=4)*(INGRESOS!$O$2:$O$471=A39)*INGRESOS!$F$2:$F$471)+SUMPRODUCT((INGRESOS!$N$2:$N$471=4)*(INGRESOS!$O$2:$O$471=A39)*INGRESOS!$I$2:$I$471)+SUMPRODUCT((INGRESOS!$N$2:$N$471=4)*(INGRESOS!$O$2:$O$471=A39)*INGRESOS!$J$2:$J$471),SUMPRODUCT((GASTOS!$AC$3:$AC$548=4)*(GASTOS!$AD$3:$AD$548=A39)*GASTOS!$V$3:$V$548)+SUMPRODUCT((GASTOS!$AC$3:$AC$548=4)*(GASTOS!$AD$3:$AD$548=A39)*GASTOS!$X$3:$X$548)),0) -> 0
A40: 3 | B40: =IF(NOT(ISERROR(MATCH(A40,INGRESOS!$O$1:$O$471,0))),"INGRESOS",IF(NOT(ISERROR(MATCH(A40,GASTOS!$AD$2:$AD$548,0))),"GASTOS","")) ->  | C40: =IF(B40="INGRESOS",INDEX(INGRESOS!$A$1:$O$471,MATCH(A40,INGRESOS!$O$1:$O$471,0),COLUMN(INGRESOS!#REF!)),IF(B40="GASTOS",INDEX(GASTOS!$A$2:$AD$548,MATCH(A40,GASTOS!$AD$2:$AD$548,0),COLUMN(INGRESOS!$D$1)),"")) ->  | E40: =IF(B40<>"",IF(B40="INGRESOS",INDEX(CLIENTES!$A$1:$K$1001,MATCH(C40,CLIENTES!$B$1:$B$1001,0),COLUMN(CLIENTES!$A$1)),INDEX(PROVEEDORES!$A$1:$K$1000,MATCH(C40,PROVEEDORES!$B$1:$B$1000,0),COLUMN(PROVEEDORES!$A$1))),"") ->  | F40: =IF(B40<>"",IF(""=IF(B40="INGRESOS",VLOOKUP(C40,CLIENTES!$B$1:$C$1001,2,FALSE),VLOOKUP(C40,PROVEEDORES!$B$1:$C$1000,2,FALSE)),"FALTA",VLOOKUP(IF(B40="INGRESOS",VLOOKUP(C40,CLIENTES!$B$1:$C$1001,2,FALSE),VLOOKUP(C40,PROVEEDORES!$B$1:$C$1000,2,FALSE)),'DATOS FISCALES'!$E$19:$F$71,2,FALSE)),"") ->  | I40: =IF(B40<>"",IF(B40="INGRESOS",VLOOKUP(C40,CLIENTES!$B$2:$E$1001,3,FALSE),VLOOKUP(C40,PROVEEDORES!$B$2:$E$1000,3,FALSE)),"") ->  | K40: =IF(B40<>"",IF(B40="INGRESOS",VLOOKUP(C40,CLIENTES!$B$2:$E$1001,4,FALSE),VLOOKUP(C40,PROVEEDORES!$B$2:$E$1000,4,FALSE)),0) -> 0 | L40: 0 | M40: =IF(B40<>"",IF(B40="INGRESOS",SUMPRODUCT((INGRESOS!$N$2:$N$471=1)*(INGRESOS!$O$2:$O$471=A40)*INGRESOS!$F$2:$F$471)+SUMPRODUCT((INGRESOS!$N$2:$N$471=1)*(INGRESOS!$O$2:$O$471=A40)*INGRESOS!$I$2:$I$471)+SUMPRODUCT((INGRESOS!$N$2:$N$471=1)*(INGRESOS!$O$2:$O$471=A40)*INGRESOS!$J$2:$J$471),SUMPRODUCT((GASTOS!$AC$3:$AC$548=1)*(GASTOS!$AD$3:$AD$548=A40)*GASTOS!$V$3:$V$548)+SUMPRODUCT((GASTOS!$AC$3:$AC$548=1)*(GASTOS!$AD$3:$AD$548=A40)*GASTOS!$X$3:$X$548)),0) -> 0 | N40: =IF(B40<>"",IF(B40="INGRESOS",SUMPRODUCT((INGRESOS!$N$2:$N$471=2)*(INGRESOS!$O$2:$O$471=A40)*INGRESOS!$F$2:$F$471)+SUMPRODUCT((INGRESOS!$N$2:$N$471=2)*(INGRESOS!$O$2:$O$471=A40)*INGRESOS!$I$2:$I$471)+SUMPRODUCT((INGRESOS!$N$2:$N$471=2)*(INGRESOS!$O$2:$O$471=A40)*INGRESOS!$J$2:$J$471),SUMPRODUCT((GASTOS!$AC$3:$AC$548=2)*(GASTOS!$AD$3:$AD$548=A40)*GASTOS!$V$3:$V$548)+SUMPRODUCT((GASTOS!$AC$3:$AC$548=2)*(GASTOS!$AD$3:$AD$548=A40)*GASTOS!$X$3:$X$548)),0) -> 0 | O40: =IF(B40<>"",IF(B40="INGRESOS",SUMPRODUCT((INGRESOS!$N$2:$N$471=3)*(INGRESOS!$O$2:$O$471=A40)*INGRESOS!$F$2:$F$471)+SUMPRODUCT((INGRESOS!$N$2:$N$471=3)*(INGRESOS!$O$2:$O$471=A40)*INGRESOS!$I$2:$I$471)+SUMPRODUCT((INGRESOS!$N$2:$N$471=3)*(INGRESOS!$O$2:$O$471=A40)*INGRESOS!$J$2:$J$471),SUMPRODUCT((GASTOS!$AC$3:$AC$548=3)*(GASTOS!$AD$3:$AD$548=A40)*GASTOS!$V$3:$V$548)+SUMPRODUCT((GASTOS!$AC$3:$AC$548=3)*(GASTOS!$AD$3:$AD$548=A40)*GASTOS!$X$3:$X$548)),0) -> 0 | P40: =IF(B40<>"",IF(B40="INGRESOS",SUMPRODUCT((INGRESOS!$N$2:$N$471=4)*(INGRESOS!$O$2:$O$471=A40)*INGRESOS!$F$2:$F$471)+SUMPRODUCT((INGRESOS!$N$2:$N$471=4)*(INGRESOS!$O$2:$O$471=A40)*INGRESOS!$I$2:$I$471)+SUMPRODUCT((INGRESOS!$N$2:$N$471=4)*(INGRESOS!$O$2:$O$471=A40)*INGRESOS!$J$2:$J$471),SUMPRODUCT((GASTOS!$AC$3:$AC$548=4)*(GASTOS!$AD$3:$AD$548=A40)*GASTOS!$V$3:$V$548)+SUMPRODUCT((GASTOS!$AC$3:$AC$548=4)*(GASTOS!$AD$3:$AD$548=A40)*GASTOS!$X$3:$X$548)),0) -> 0
A41: 4 | B41: =IF(NOT(ISERROR(MATCH(A41,INGRESOS!$O$1:$O$471,0))),"INGRESOS",IF(NOT(ISERROR(MATCH(A41,GASTOS!$AD$2:$AD$548,0))),"GASTOS","")) ->  | C41: =IF(B41="INGRESOS",INDEX(INGRESOS!$A$1:$O$471,MATCH(A41,INGRESOS!$O$1:$O$471,0),COLUMN(INGRESOS!#REF!)),IF(B41="GASTOS",INDEX(GASTOS!$A$2:$AD$548,MATCH(A41,GASTOS!$AD$2:$AD$548,0),COLUMN(INGRESOS!$D$1)),"")) ->  | E41: =IF(B41<>"",IF(B41="INGRESOS",INDEX(CLIENTES!$A$1:$K$1001,MATCH(C41,CLIENTES!$B$1:$B$1001,0),COLUMN(CLIENTES!$A$1)),INDEX(PROVEEDORES!$A$1:$K$1000,MATCH(C41,PROVEEDORES!$B$1:$B$1000,0),COLUMN(PROVEEDORES!$A$1))),"") ->  | F41: =IF(B41<>"",IF(""=IF(B41="INGRESOS",VLOOKUP(C41,CLIENTES!$B$1:$C$1001,2,FALSE),VLOOKUP(C41,PROVEEDORES!$B$1:$C$1000,2,FALSE)),"FALTA",VLOOKUP(IF(B41="INGRESOS",VLOOKUP(C41,CLIENTES!$B$1:$C$1001,2,FALSE),VLOOKUP(C41,PROVEEDORES!$B$1:$C$1000,2,FALSE)),'DATOS FISCALES'!$E$19:$F$71,2,FALSE)),"") ->  | I41: =IF(B41<>"",IF(B41="INGRESOS",VLOOKUP(C41,CLIENTES!$B$2:$E$1001,3,FALSE),VLOOKUP(C41,PROVEEDORES!$B$2:$E$1000,3,FALSE)),"") ->  | K41: =IF(B41<>"",IF(B41="INGRESOS",VLOOKUP(C41,CLIENTES!$B$2:$E$1001,4,FALSE),VLOOKUP(C41,PROVEEDORES!$B$2:$E$1000,4,FALSE)),0) -> 0 | L41: 0 | M41: =IF(B41<>"",IF(B41="INGRESOS",SUMPRODUCT((INGRESOS!$N$2:$N$471=1)*(INGRESOS!$O$2:$O$471=A41)*INGRESOS!$F$2:$F$471)+SUMPRODUCT((INGRESOS!$N$2:$N$471=1)*(INGRESOS!$O$2:$O$471=A41)*INGRESOS!$I$2:$I$471)+SUMPRODUCT((INGRESOS!$N$2:$N$471=1)*(INGRESOS!$O$2:$O$471=A41)*INGRESOS!$J$2:$J$471),SUMPRODUCT((GASTOS!$AC$3:$AC$548=1)*(GASTOS!$AD$3:$AD$548=A41)*GASTOS!$V$3:$V$548)+SUMPRODUCT((GASTOS!$AC$3:$AC$548=1)*(GASTOS!$AD$3:$AD$548=A41)*GASTOS!$X$3:$X$548)),0) -> 0 | N41: =IF(B41<>"",IF(B41="INGRESOS",SUMPRODUCT((INGRESOS!$N$2:$N$471=2)*(INGRESOS!$O$2:$O$471=A41)*INGRESOS!$F$2:$F$471)+SUMPRODUCT((INGRESOS!$N$2:$N$471=2)*(INGRESOS!$O$2:$O$471=A41)*INGRESOS!$I$2:$I$471)+SUMPRODUCT((INGRESOS!$N$2:$N$471=2)*(INGRESOS!$O$2:$O$471=A41)*INGRESOS!$J$2:$J$471),SUMPRODUCT((GASTOS!$AC$3:$AC$548=2)*(GASTOS!$AD$3:$AD$548=A41)*GASTOS!$V$3:$V$548)+SUMPRODUCT((GASTOS!$AC$3:$AC$548=2)*(GASTOS!$AD$3:$AD$548=A41)*GASTOS!$X$3:$X$548)),0) -> 0 | O41: =IF(B41<>"",IF(B41="INGRESOS",SUMPRODUCT((INGRESOS!$N$2:$N$471=3)*(INGRESOS!$O$2:$O$471=A41)*INGRESOS!$F$2:$F$471)+SUMPRODUCT((INGRESOS!$N$2:$N$471=3)*(INGRESOS!$O$2:$O$471=A41)*INGRESOS!$I$2:$I$471)+SUMPRODUCT((INGRESOS!$N$2:$N$471=3)*(INGRESOS!$O$2:$O$471=A41)*INGRESOS!$J$2:$J$471),SUMPRODUCT((GASTOS!$AC$3:$AC$548=3)*(GASTOS!$AD$3:$AD$548=A41)*GASTOS!$V$3:$V$548)+SUMPRODUCT((GASTOS!$AC$3:$AC$548=3)*(GASTOS!$AD$3:$AD$548=A41)*GASTOS!$X$3:$X$548)),0) -> 0 | P41: =IF(B41<>"",IF(B41="INGRESOS",SUMPRODUCT((INGRESOS!$N$2:$N$471=4)*(INGRESOS!$O$2:$O$471=A41)*INGRESOS!$F$2:$F$471)+SUMPRODUCT((INGRESOS!$N$2:$N$471=4)*(INGRESOS!$O$2:$O$471=A41)*INGRESOS!$I$2:$I$471)+SUMPRODUCT((INGRESOS!$N$2:$N$471=4)*(INGRESOS!$O$2:$O$471=A41)*INGRESOS!$J$2:$J$471),SUMPRODUCT((GASTOS!$AC$3:$AC$548=4)*(GASTOS!$AD$3:$AD$548=A41)*GASTOS!$V$3:$V$548)+SUMPRODUCT((GASTOS!$AC$3:$AC$548=4)*(GASTOS!$AD$3:$AD$548=A41)*GASTOS!$X$3:$X$548)),0) -> 0
A42: 5 | B42: =IF(NOT(ISERROR(MATCH(A42,INGRESOS!$O$1:$O$471,0))),"INGRESOS",IF(NOT(ISERROR(MATCH(A42,GASTOS!$AD$2:$AD$548,0))),"GASTOS","")) ->  | C42: =IF(B42="INGRESOS",INDEX(INGRESOS!$A$1:$O$471,MATCH(A42,INGRESOS!$O$1:$O$471,0),COLUMN(INGRESOS!#REF!)),IF(B42="GASTOS",INDEX(GASTOS!$A$2:$AD$548,MATCH(A42,GASTOS!$AD$2:$AD$548,0),COLUMN(INGRESOS!$D$1)),"")) ->  | E42: =IF(B42<>"",IF(B42="INGRESOS",INDEX(CLIENTES!$A$1:$K$1001,MATCH(C42,CLIENTES!$B$1:$B$1001,0),COLUMN(CLIENTES!$A$1)),INDEX(PROVEEDORES!$A$1:$K$1000,MATCH(C42,PROVEEDORES!$B$1:$B$1000,0),COLUMN(PROVEEDORES!$A$1))),"") ->  | F42: =IF(B42<>"",IF(""=IF(B42="INGRESOS",VLOOKUP(C42,CLIENTES!$B$1:$C$1001,2,FALSE),VLOOKUP(C42,PROVEEDORES!$B$1:$C$1000,2,FALSE)),"FALTA",VLOOKUP(IF(B42="INGRESOS",VLOOKUP(C42,CLIENTES!$B$1:$C$1001,2,FALSE),VLOOKUP(C42,PROVEEDORES!$B$1:$C$1000,2,FALSE)),'DATOS FISCALES'!$E$19:$F$71,2,FALSE)),"") ->  | I42: =IF(B42<>"",IF(B42="INGRESOS",VLOOKUP(C42,CLIENTES!$B$2:$E$1001,3,FALSE),VLOOKUP(C42,PROVEEDORES!$B$2:$E$1000,3,FALSE)),"") ->  | K42: =IF(B42<>"",IF(B42="INGRESOS",VLOOKUP(C42,CLIENTES!$B$2:$E$1001,4,FALSE),VLOOKUP(C42,PROVEEDORES!$B$2:$E$1000,4,FALSE)),0) -> 0 | L42: 0 | M42: =IF(B42<>"",IF(B42="INGRESOS",SUMPRODUCT((INGRESOS!$N$2:$N$471=1)*(INGRESOS!$O$2:$O$471=A42)*INGRESOS!$F$2:$F$471)+SUMPRODUCT((INGRESOS!$N$2:$N$471=1)*(INGRESOS!$O$2:$O$471=A42)*INGRESOS!$I$2:$I$471)+SUMPRODUCT((INGRESOS!$N$2:$N$471=1)*(INGRESOS!$O$2:$O$471=A42)*INGRESOS!$J$2:$J$471),SUMPRODUCT((GASTOS!$AC$3:$AC$548=1)*(GASTOS!$AD$3:$AD$548=A42)*GASTOS!$V$3:$V$548)+SUMPRODUCT((GASTOS!$AC$3:$AC$548=1)*(GASTOS!$AD$3:$AD$548=A42)*GASTOS!$X$3:$X$548)),0) -> 0 | N42: =IF(B42<>"",IF(B42="INGRESOS",SUMPRODUCT((INGRESOS!$N$2:$N$471=2)*(INGRESOS!$O$2:$O$471=A42)*INGRESOS!$F$2:$F$471)+SUMPRODUCT((INGRESOS!$N$2:$N$471=2)*(INGRESOS!$O$2:$O$471=A42)*INGRESOS!$I$2:$I$471)+SUMPRODUCT((INGRESOS!$N$2:$N$471=2)*(INGRESOS!$O$2:$O$471=A42)*INGRESOS!$J$2:$J$471),SUMPRODUCT((GASTOS!$AC$3:$AC$548=2)*(GASTOS!$AD$3:$AD$548=A42)*GASTOS!$V$3:$V$548)+SUMPRODUCT((GASTOS!$AC$3:$AC$548=2)*(GASTOS!$AD$3:$AD$548=A42)*GASTOS!$X$3:$X$548)),0) -> 0 | O42: =IF(B42<>"",IF(B42="INGRESOS",SUMPRODUCT((INGRESOS!$N$2:$N$471=3)*(INGRESOS!$O$2:$O$471=A42)*INGRESOS!$F$2:$F$471)+SUMPRODUCT((INGRESOS!$N$2:$N$471=3)*(INGRESOS!$O$2:$O$471=A42)*INGRESOS!$I$2:$I$471)+SUMPRODUCT((INGRESOS!$N$2:$N$471=3)*(INGRESOS!$O$2:$O$471=A42)*INGRESOS!$J$2:$J$471),SUMPRODUCT((GASTOS!$AC$3:$AC$548=3)*(GASTOS!$AD$3:$AD$548=A42)*GASTOS!$V$3:$V$548)+SUMPRODUCT((GASTOS!$AC$3:$AC$548=3)*(GASTOS!$AD$3:$AD$548=A42)*GASTOS!$X$3:$X$548)),0) -> 0 | P42: =IF(B42<>"",IF(B42="INGRESOS",SUMPRODUCT((INGRESOS!$N$2:$N$471=4)*(INGRESOS!$O$2:$O$471=A42)*INGRESOS!$F$2:$F$471)+SUMPRODUCT((INGRESOS!$N$2:$N$471=4)*(INGRESOS!$O$2:$O$471=A42)*INGRESOS!$I$2:$I$471)+SUMPRODUCT((INGRESOS!$N$2:$N$471=4)*(INGRESOS!$O$2:$O$471=A42)*INGRESOS!$J$2:$J$471),SUMPRODUCT((GASTOS!$AC$3:$AC$548=4)*(GASTOS!$AD$3:$AD$548=A42)*GASTOS!$V$3:$V$548)+SUMPRODUCT((GASTOS!$AC$3:$AC$548=4)*(GASTOS!$AD$3:$AD$548=A42)*GASTOS!$X$3:$X$548)),0) -> 0
A43: 6 | B43: =IF(NOT(ISERROR(MATCH(A43,INGRESOS!$O$1:$O$471,0))),"INGRESOS",IF(NOT(ISERROR(MATCH(A43,GASTOS!$AD$2:$AD$548,0))),"GASTOS","")) ->  | C43: =IF(B43="INGRESOS",INDEX(INGRESOS!$A$1:$O$471,MATCH(A43,INGRESOS!$O$1:$O$471,0),COLUMN(INGRESOS!#REF!)),IF(B43="GASTOS",INDEX(GASTOS!$A$2:$AD$548,MATCH(A43,GASTOS!$AD$2:$AD$548,0),COLUMN(INGRESOS!$D$1)),"")) ->  | E43: =IF(B43<>"",IF(B43="INGRESOS",INDEX(CLIENTES!$A$1:$K$1001,MATCH(C43,CLIENTES!$B$1:$B$1001,0),COLUMN(CLIENTES!$A$1)),INDEX(PROVEEDORES!$A$1:$K$1000,MATCH(C43,PROVEEDORES!$B$1:$B$1000,0),COLUMN(PROVEEDORES!$A$1))),"") ->  | F43: =IF(B43<>"",IF(""=IF(B43="INGRESOS",VLOOKUP(C43,CLIENTES!$B$1:$C$1001,2,FALSE),VLOOKUP(C43,PROVEEDORES!$B$1:$C$1000,2,FALSE)),"FALTA",VLOOKUP(IF(B43="INGRESOS",VLOOKUP(C43,CLIENTES!$B$1:$C$1001,2,FALSE),VLOOKUP(C43,PROVEEDORES!$B$1:$C$1000,2,FALSE)),'DATOS FISCALES'!$E$19:$F$71,2,FALSE)),"") ->  | I43: =IF(B43<>"",IF(B43="INGRESOS",VLOOKUP(C43,CLIENTES!$B$2:$E$1001,3,FALSE),VLOOKUP(C43,PROVEEDORES!$B$2:$E$1000,3,FALSE)),"") ->  | K43: =IF(B43<>"",IF(B43="INGRESOS",VLOOKUP(C43,CLIENTES!$B$2:$E$1001,4,FALSE),VLOOKUP(C43,PROVEEDORES!$B$2:$E$1000,4,FALSE)),0) -> 0 | L43: 0 | M43: =IF(B43<>"",IF(B43="INGRESOS",SUMPRODUCT((INGRESOS!$N$2:$N$471=1)*(INGRESOS!$O$2:$O$471=A43)*INGRESOS!$F$2:$F$471)+SUMPRODUCT((INGRESOS!$N$2:$N$471=1)*(INGRESOS!$O$2:$O$471=A43)*INGRESOS!$I$2:$I$471)+SUMPRODUCT((INGRESOS!$N$2:$N$471=1)*(INGRESOS!$O$2:$O$471=A43)*INGRESOS!$J$2:$J$471),SUMPRODUCT((GASTOS!$AC$3:$AC$548=1)*(GASTOS!$AD$3:$AD$548=A43)*GASTOS!$V$3:$V$548)+SUMPRODUCT((GASTOS!$AC$3:$AC$548=1)*(GASTOS!$AD$3:$AD$548=A43)*GASTOS!$X$3:$X$548)),0) -> 0 | N43: =IF(B43<>"",IF(B43="INGRESOS",SUMPRODUCT((INGRESOS!$N$2:$N$471=2)*(INGRESOS!$O$2:$O$471=A43)*INGRESOS!$F$2:$F$471)+SUMPRODUCT((INGRESOS!$N$2:$N$471=2)*(INGRESOS!$O$2:$O$471=A43)*INGRESOS!$I$2:$I$471)+SUMPRODUCT((INGRESOS!$N$2:$N$471=2)*(INGRESOS!$O$2:$O$471=A43)*INGRESOS!$J$2:$J$471),SUMPRODUCT((GASTOS!$AC$3:$AC$548=2)*(GASTOS!$AD$3:$AD$548=A43)*GASTOS!$V$3:$V$548)+SUMPRODUCT((GASTOS!$AC$3:$AC$548=2)*(GASTOS!$AD$3:$AD$548=A43)*GASTOS!$X$3:$X$548)),0) -> 0 | O43: =IF(B43<>"",IF(B43="INGRESOS",SUMPRODUCT((INGRESOS!$N$2:$N$471=3)*(INGRESOS!$O$2:$O$471=A43)*INGRESOS!$F$2:$F$471)+SUMPRODUCT((INGRESOS!$N$2:$N$471=3)*(INGRESOS!$O$2:$O$471=A43)*INGRESOS!$I$2:$I$471)+SUMPRODUCT((INGRESOS!$N$2:$N$471=3)*(INGRESOS!$O$2:$O$471=A43)*INGRESOS!$J$2:$J$471),SUMPRODUCT((GASTOS!$AC$3:$AC$548=3)*(GASTOS!$AD$3:$AD$548=A43)*GASTOS!$V$3:$V$548)+SUMPRODUCT((GASTOS!$AC$3:$AC$548=3)*(GASTOS!$AD$3:$AD$548=A43)*GASTOS!$X$3:$X$548)),0) -> 0 | P43: =IF(B43<>"",IF(B43="INGRESOS",SUMPRODUCT((INGRESOS!$N$2:$N$471=4)*(INGRESOS!$O$2:$O$471=A43)*INGRESOS!$F$2:$F$471)+SUMPRODUCT((INGRESOS!$N$2:$N$471=4)*(INGRESOS!$O$2:$O$471=A43)*INGRESOS!$I$2:$I$471)+SUMPRODUCT((INGRESOS!$N$2:$N$471=4)*(INGRESOS!$O$2:$O$471=A43)*INGRESOS!$J$2:$J$471),SUMPRODUCT((GASTOS!$AC$3:$AC$548=4)*(GASTOS!$AD$3:$AD$548=A43)*GASTOS!$V$3:$V$548)+SUMPRODUCT((GASTOS!$AC$3:$AC$548=4)*(GASTOS!$AD$3:$AD$548=A43)*GASTOS!$X$3:$X$548)),0) -> 0
A44: 7 | B44: =IF(NOT(ISERROR(MATCH(A44,INGRESOS!$O$1:$O$471,0))),"INGRESOS",IF(NOT(ISERROR(MATCH(A44,GASTOS!$AD$2:$AD$548,0))),"GASTOS","")) ->  | C44: =IF(B44="INGRESOS",INDEX(INGRESOS!$A$1:$O$471,MATCH(A44,INGRESOS!$O$1:$O$471,0),COLUMN(INGRESOS!#REF!)),IF(B44="GASTOS",INDEX(GASTOS!$A$2:$AD$548,MATCH(A44,GASTOS!$AD$2:$AD$548,0),COLUMN(INGRESOS!$D$1)),"")) ->  | E44: =IF(B44<>"",IF(B44="INGRESOS",INDEX(CLIENTES!$A$1:$K$1001,MATCH(C44,CLIENTES!$B$1:$B$1001,0),COLUMN(CLIENTES!$A$1)),INDEX(PROVEEDORES!$A$1:$K$1000,MATCH(C44,PROVEEDORES!$B$1:$B$1000,0),COLUMN(PROVEEDORES!$A$1))),"") ->  | F44: =IF(B44<>"",IF(""=IF(B44="INGRESOS",VLOOKUP(C44,CLIENTES!$B$1:$C$1001,2,FALSE),VLOOKUP(C44,PROVEEDORES!$B$1:$C$1000,2,FALSE)),"FALTA",VLOOKUP(IF(B44="INGRESOS",VLOOKUP(C44,CLIENTES!$B$1:$C$1001,2,FALSE),VLOOKUP(C44,PROVEEDORES!$B$1:$C$1000,2,FALSE)),'DATOS FISCALES'!$E$19:$F$71,2,FALSE)),"") ->  | I44: =IF(B44<>"",IF(B44="INGRESOS",VLOOKUP(C44,CLIENTES!$B$2:$E$1001,3,FALSE),VLOOKUP(C44,PROVEEDORES!$B$2:$E$1000,3,FALSE)),"") ->  | K44: =IF(B44<>"",IF(B44="INGRESOS",VLOOKUP(C44,CLIENTES!$B$2:$E$1001,4,FALSE),VLOOKUP(C44,PROVEEDORES!$B$2:$E$1000,4,FALSE)),0) -> 0 | L44: 0 | M44: =IF(B44<>"",IF(B44="INGRESOS",SUMPRODUCT((INGRESOS!$N$2:$N$471=1)*(INGRESOS!$O$2:$O$471=A44)*INGRESOS!$F$2:$F$471)+SUMPRODUCT((INGRESOS!$N$2:$N$471=1)*(INGRESOS!$O$2:$O$471=A44)*INGRESOS!$I$2:$I$471)+SUMPRODUCT((INGRESOS!$N$2:$N$471=1)*(INGRESOS!$O$2:$O$471=A44)*INGRESOS!$J$2:$J$471),SUMPRODUCT((GASTOS!$AC$3:$AC$548=1)*(GASTOS!$AD$3:$AD$548=A44)*GASTOS!$V$3:$V$548)+SUMPRODUCT((GASTOS!$AC$3:$AC$548=1)*(GASTOS!$AD$3:$AD$548=A44)*GASTOS!$X$3:$X$548)),0) -> 0 | N44: =IF(B44<>"",IF(B44="INGRESOS",SUMPRODUCT((INGRESOS!$N$2:$N$471=2)*(INGRESOS!$O$2:$O$471=A44)*INGRESOS!$F$2:$F$471)+SUMPRODUCT((INGRESOS!$N$2:$N$471=2)*(INGRESOS!$O$2:$O$471=A44)*INGRESOS!$I$2:$I$471)+SUMPRODUCT((INGRESOS!$N$2:$N$471=2)*(INGRESOS!$O$2:$O$471=A44)*INGRESOS!$J$2:$J$471),SUMPRODUCT((GASTOS!$AC$3:$AC$548=2)*(GASTOS!$AD$3:$AD$548=A44)*GASTOS!$V$3:$V$548)+SUMPRODUCT((GASTOS!$AC$3:$AC$548=2)*(GASTOS!$AD$3:$AD$548=A44)*GASTOS!$X$3:$X$548)),0) -> 0 | O44: =IF(B44<>"",IF(B44="INGRESOS",SUMPRODUCT((INGRESOS!$N$2:$N$471=3)*(INGRESOS!$O$2:$O$471=A44)*INGRESOS!$F$2:$F$471)+SUMPRODUCT((INGRESOS!$N$2:$N$471=3)*(INGRESOS!$O$2:$O$471=A44)*INGRESOS!$I$2:$I$471)+SUMPRODUCT((INGRESOS!$N$2:$N$471=3)*(INGRESOS!$O$2:$O$471=A44)*INGRESOS!$J$2:$J$471),SUMPRODUCT((GASTOS!$AC$3:$AC$548=3)*(GASTOS!$AD$3:$AD$548=A44)*GASTOS!$V$3:$V$548)+SUMPRODUCT((GASTOS!$AC$3:$AC$548=3)*(GASTOS!$AD$3:$AD$548=A44)*GASTOS!$X$3:$X$548)),0) -> 0 | P44: =IF(B44<>"",IF(B44="INGRESOS",SUMPRODUCT((INGRESOS!$N$2:$N$471=4)*(INGRESOS!$O$2:$O$471=A44)*INGRESOS!$F$2:$F$471)+SUMPRODUCT((INGRESOS!$N$2:$N$471=4)*(INGRESOS!$O$2:$O$471=A44)*INGRESOS!$I$2:$I$471)+SUMPRODUCT((INGRESOS!$N$2:$N$471=4)*(INGRESOS!$O$2:$O$471=A44)*INGRESOS!$J$2:$J$471),SUMPRODUCT((GASTOS!$AC$3:$AC$548=4)*(GASTOS!$AD$3:$AD$548=A44)*GASTOS!$V$3:$V$548)+SUMPRODUCT((GASTOS!$AC$3:$AC$548=4)*(GASTOS!$AD$3:$AD$548=A44)*GASTOS!$X$3:$X$548)),0) -> 0
A45: 8 | B45: =IF(NOT(ISERROR(MATCH(A45,INGRESOS!$O$1:$O$471,0))),"INGRESOS",IF(NOT(ISERROR(MATCH(A45,GASTOS!$AD$2:$AD$548,0))),"GASTOS","")) ->  | C45: =IF(B45="INGRESOS",INDEX(INGRESOS!$A$1:$O$471,MATCH(A45,INGRESOS!$O$1:$O$471,0),COLUMN(INGRESOS!#REF!)),IF(B45="GASTOS",INDEX(GASTOS!$A$2:$AD$548,MATCH(A45,GASTOS!$AD$2:$AD$548,0),COLUMN(INGRESOS!$D$1)),"")) ->  | E45: =IF(B45<>"",IF(B45="INGRESOS",INDEX(CLIENTES!$A$1:$K$1001,MATCH(C45,CLIENTES!$B$1:$B$1001,0),COLUMN(CLIENTES!$A$1)),INDEX(PROVEEDORES!$A$1:$K$1000,MATCH(C45,PROVEEDORES!$B$1:$B$1000,0),COLUMN(PROVEEDORES!$A$1))),"") ->  | F45: =IF(B45<>"",IF(""=IF(B45="INGRESOS",VLOOKUP(C45,CLIENTES!$B$1:$C$1001,2,FALSE),VLOOKUP(C45,PROVEEDORES!$B$1:$C$1000,2,FALSE)),"FALTA",VLOOKUP(IF(B45="INGRESOS",VLOOKUP(C45,CLIENTES!$B$1:$C$1001,2,FALSE),VLOOKUP(C45,PROVEEDORES!$B$1:$C$1000,2,FALSE)),'DATOS FISCALES'!$E$19:$F$71,2,FALSE)),"") ->  | I45: =IF(B45<>"",IF(B45="INGRESOS",VLOOKUP(C45,CLIENTES!$B$2:$E$1001,3,FALSE),VLOOKUP(C45,PROVEEDORES!$B$2:$E$1000,3,FALSE)),"") ->  | K45: =IF(B45<>"",IF(B45="INGRESOS",VLOOKUP(C45,CLIENTES!$B$2:$E$1001,4,FALSE),VLOOKUP(C45,PROVEEDORES!$B$2:$E$1000,4,FALSE)),0) -> 0 | L45: 0 | M45: =IF(B45<>"",IF(B45="INGRESOS",SUMPRODUCT((INGRESOS!$N$2:$N$471=1)*(INGRESOS!$O$2:$O$471=A45)*INGRESOS!$F$2:$F$471)+SUMPRODUCT((INGRESOS!$N$2:$N$471=1)*(INGRESOS!$O$2:$O$471=A45)*INGRESOS!$I$2:$I$471)+SUMPRODUCT((INGRESOS!$N$2:$N$471=1)*(INGRESOS!$O$2:$O$471=A45)*INGRESOS!$J$2:$J$471),SUMPRODUCT((GASTOS!$AC$3:$AC$548=1)*(GASTOS!$AD$3:$AD$548=A45)*GASTOS!$V$3:$V$548)+SUMPRODUCT((GASTOS!$AC$3:$AC$548=1)*(GASTOS!$AD$3:$AD$548=A45)*GASTOS!$X$3:$X$548)),0) -> 0 | N45: =IF(B45<>"",IF(B45="INGRESOS",SUMPRODUCT((INGRESOS!$N$2:$N$471=2)*(INGRESOS!$O$2:$O$471=A45)*INGRESOS!$F$2:$F$471)+SUMPRODUCT((INGRESOS!$N$2:$N$471=2)*(INGRESOS!$O$2:$O$471=A45)*INGRESOS!$I$2:$I$471)+SUMPRODUCT((INGRESOS!$N$2:$N$471=2)*(INGRESOS!$O$2:$O$471=A45)*INGRESOS!$J$2:$J$471),SUMPRODUCT((GASTOS!$AC$3:$AC$548=2)*(GASTOS!$AD$3:$AD$548=A45)*GASTOS!$V$3:$V$548)+SUMPRODUCT((GASTOS!$AC$3:$AC$548=2)*(GASTOS!$AD$3:$AD$548=A45)*GASTOS!$X$3:$X$548)),0) -> 0 | O45: =IF(B45<>"",IF(B45="INGRESOS",SUMPRODUCT((INGRESOS!$N$2:$N$471=3)*(INGRESOS!$O$2:$O$471=A45)*INGRESOS!$F$2:$F$471)+SUMPRODUCT((INGRESOS!$N$2:$N$471=3)*(INGRESOS!$O$2:$O$471=A45)*INGRESOS!$I$2:$I$471)+SUMPRODUCT((INGRESOS!$N$2:$N$471=3)*(INGRESOS!$O$2:$O$471=A45)*INGRESOS!$J$2:$J$471),SUMPRODUCT((GASTOS!$AC$3:$AC$548=3)*(GASTOS!$AD$3:$AD$548=A45)*GASTOS!$V$3:$V$548)+SUMPRODUCT((GASTOS!$AC$3:$AC$548=3)*(GASTOS!$AD$3:$AD$548=A45)*GASTOS!$X$3:$X$548)),0) -> 0 | P45: =IF(B45<>"",IF(B45="INGRESOS",SUMPRODUCT((INGRESOS!$N$2:$N$471=4)*(INGRESOS!$O$2:$O$471=A45)*INGRESOS!$F$2:$F$471)+SUMPRODUCT((INGRESOS!$N$2:$N$471=4)*(INGRESOS!$O$2:$O$471=A45)*INGRESOS!$I$2:$I$471)+SUMPRODUCT((INGRESOS!$N$2:$N$471=4)*(INGRESOS!$O$2:$O$471=A45)*INGRESOS!$J$2:$J$471),SUMPRODUCT((GASTOS!$AC$3:$AC$548=4)*(GASTOS!$AD$3:$AD$548=A45)*GASTOS!$V$3:$V$548)+SUMPRODUCT((GASTOS!$AC$3:$AC$548=4)*(GASTOS!$AD$3:$AD$548=A45)*GASTOS!$X$3:$X$548)),0) -> 0
A46: 9 | B46: =IF(NOT(ISERROR(MATCH(A46,INGRESOS!$O$1:$O$471,0))),"INGRESOS",IF(NOT(ISERROR(MATCH(A46,GASTOS!$AD$2:$AD$548,0))),"GASTOS","")) ->  | C46: =IF(B46="INGRESOS",INDEX(INGRESOS!$A$1:$O$471,MATCH(A46,INGRESOS!$O$1:$O$471,0),COLUMN(INGRESOS!#REF!)),IF(B46="GASTOS",INDEX(GASTOS!$A$2:$AD$548,MATCH(A46,GASTOS!$AD$2:$AD$548,0),COLUMN(INGRESOS!$D$1)),"")) ->  | E46: =IF(B46<>"",IF(B46="INGRESOS",INDEX(CLIENTES!$A$1:$K$1001,MATCH(C46,CLIENTES!$B$1:$B$1001,0),COLUMN(CLIENTES!$A$1)),INDEX(PROVEEDORES!$A$1:$K$1000,MATCH(C46,PROVEEDORES!$B$1:$B$1000,0),COLUMN(PROVEEDORES!$A$1))),"") ->  | F46: =IF(B46<>"",IF(""=IF(B46="INGRESOS",VLOOKUP(C46,CLIENTES!$B$1:$C$1001,2,FALSE),VLOOKUP(C46,PROVEEDORES!$B$1:$C$1000,2,FALSE)),"FALTA",VLOOKUP(IF(B46="INGRESOS",VLOOKUP(C46,CLIENTES!$B$1:$C$1001,2,FALSE),VLOOKUP(C46,PROVEEDORES!$B$1:$C$1000,2,FALSE)),'DATOS FISCALES'!$E$19:$F$71,2,FALSE)),"") ->  | I46: =IF(B46<>"",IF(B46="INGRESOS",VLOOKUP(C46,CLIENTES!$B$2:$E$1001,3,FALSE),VLOOKUP(C46,PROVEEDORES!$B$2:$E$1000,3,FALSE)),"") ->  | K46: =IF(B46<>"",IF(B46="INGRESOS",VLOOKUP(C46,CLIENTES!$B$2:$E$1001,4,FALSE),VLOOKUP(C46,PROVEEDORES!$B$2:$E$1000,4,FALSE)),0) -> 0 | L46: 0 | M46: =IF(B46<>"",IF(B46="INGRESOS",SUMPRODUCT((INGRESOS!$N$2:$N$471=1)*(INGRESOS!$O$2:$O$471=A46)*INGRESOS!$F$2:$F$471)+SUMPRODUCT((INGRESOS!$N$2:$N$471=1)*(INGRESOS!$O$2:$O$471=A46)*INGRESOS!$I$2:$I$471)+SUMPRODUCT((INGRESOS!$N$2:$N$471=1)*(INGRESOS!$O$2:$O$471=A46)*INGRESOS!$J$2:$J$471),SUMPRODUCT((GASTOS!$AC$3:$AC$548=1)*(GASTOS!$AD$3:$AD$548=A46)*GASTOS!$V$3:$V$548)+SUMPRODUCT((GASTOS!$AC$3:$AC$548=1)*(GASTOS!$AD$3:$AD$548=A46)*GASTOS!$X$3:$X$548)),0) -> 0 | N46: =IF(B46<>"",IF(B46="INGRESOS",SUMPRODUCT((INGRESOS!$N$2:$N$471=2)*(INGRESOS!$O$2:$O$471=A46)*INGRESOS!$F$2:$F$471)+SUMPRODUCT((INGRESOS!$N$2:$N$471=2)*(INGRESOS!$O$2:$O$471=A46)*INGRESOS!$I$2:$I$471)+SUMPRODUCT((INGRESOS!$N$2:$N$471=2)*(INGRESOS!$O$2:$O$471=A46)*INGRESOS!$J$2:$J$471),SUMPRODUCT((GASTOS!$AC$3:$AC$548=2)*(GASTOS!$AD$3:$AD$548=A46)*GASTOS!$V$3:$V$548)+SUMPRODUCT((GASTOS!$AC$3:$AC$548=2)*(GASTOS!$AD$3:$AD$548=A46)*GASTOS!$X$3:$X$548)),0) -> 0 | O46: =IF(B46<>"",IF(B46="INGRESOS",SUMPRODUCT((INGRESOS!$N$2:$N$471=3)*(INGRESOS!$O$2:$O$471=A46)*INGRESOS!$F$2:$F$471)+SUMPRODUCT((INGRESOS!$N$2:$N$471=3)*(INGRESOS!$O$2:$O$471=A46)*INGRESOS!$I$2:$I$471)+SUMPRODUCT((INGRESOS!$N$2:$N$471=3)*(INGRESOS!$O$2:$O$471=A46)*INGRESOS!$J$2:$J$471),SUMPRODUCT((GASTOS!$AC$3:$AC$548=3)*(GASTOS!$AD$3:$AD$548=A46)*GASTOS!$V$3:$V$548)+SUMPRODUCT((GASTOS!$AC$3:$AC$548=3)*(GASTOS!$AD$3:$AD$548=A46)*GASTOS!$X$3:$X$548)),0) -> 0 | P46: =IF(B46<>"",IF(B46="INGRESOS",SUMPRODUCT((INGRESOS!$N$2:$N$471=4)*(INGRESOS!$O$2:$O$471=A46)*INGRESOS!$F$2:$F$471)+SUMPRODUCT((INGRESOS!$N$2:$N$471=4)*(INGRESOS!$O$2:$O$471=A46)*INGRESOS!$I$2:$I$471)+SUMPRODUCT((INGRESOS!$N$2:$N$471=4)*(INGRESOS!$O$2:$O$471=A46)*INGRESOS!$J$2:$J$471),SUMPRODUCT((GASTOS!$AC$3:$AC$548=4)*(GASTOS!$AD$3:$AD$548=A46)*GASTOS!$V$3:$V$548)+SUMPRODUCT((GASTOS!$AC$3:$AC$548=4)*(GASTOS!$AD$3:$AD$548=A46)*GASTOS!$X$3:$X$548)),0) -> 0
A47: 10 | B47: =IF(NOT(ISERROR(MATCH(A47,INGRESOS!$O$1:$O$471,0))),"INGRESOS",IF(NOT(ISERROR(MATCH(A47,GASTOS!$AD$2:$AD$548,0))),"GASTOS","")) ->  | C47: =IF(B47="INGRESOS",INDEX(INGRESOS!$A$1:$O$471,MATCH(A47,INGRESOS!$O$1:$O$471,0),COLUMN(INGRESOS!#REF!)),IF(B47="GASTOS",INDEX(GASTOS!$A$2:$AD$548,MATCH(A47,GASTOS!$AD$2:$AD$548,0),COLUMN(INGRESOS!$D$1)),"")) ->  | E47: =IF(B47<>"",IF(B47="INGRESOS",INDEX(CLIENTES!$A$1:$K$1001,MATCH(C47,CLIENTES!$B$1:$B$1001,0),COLUMN(CLIENTES!$A$1)),INDEX(PROVEEDORES!$A$1:$K$1000,MATCH(C47,PROVEEDORES!$B$1:$B$1000,0),COLUMN(PROVEEDORES!$A$1))),"") ->  | F47: =IF(B47<>"",IF(""=IF(B47="INGRESOS",VLOOKUP(C47,CLIENTES!$B$1:$C$1001,2,FALSE),VLOOKUP(C47,PROVEEDORES!$B$1:$C$1000,2,FALSE)),"FALTA",VLOOKUP(IF(B47="INGRESOS",VLOOKUP(C47,CLIENTES!$B$1:$C$1001,2,FALSE),VLOOKUP(C47,PROVEEDORES!$B$1:$C$1000,2,FALSE)),'DATOS FISCALES'!$E$19:$F$71,2,FALSE)),"") ->  | I47: =IF(B47<>"",IF(B47="INGRESOS",VLOOKUP(C47,CLIENTES!$B$2:$E$1001,3,FALSE),VLOOKUP(C47,PROVEEDORES!$B$2:$E$1000,3,FALSE)),"") ->  | K47: =IF(B47<>"",IF(B47="INGRESOS",VLOOKUP(C47,CLIENTES!$B$2:$E$1001,4,FALSE),VLOOKUP(C47,PROVEEDORES!$B$2:$E$1000,4,FALSE)),0) -> 0 | L47: 0 | M47: =IF(B47<>"",IF(B47="INGRESOS",SUMPRODUCT((INGRESOS!$N$2:$N$471=1)*(INGRESOS!$O$2:$O$471=A47)*INGRESOS!$F$2:$F$471)+SUMPRODUCT((INGRESOS!$N$2:$N$471=1)*(INGRESOS!$O$2:$O$471=A47)*INGRESOS!$I$2:$I$471)+SUMPRODUCT((INGRESOS!$N$2:$N$471=1)*(INGRESOS!$O$2:$O$471=A47)*INGRESOS!$J$2:$J$471),SUMPRODUCT((GASTOS!$AC$3:$AC$548=1)*(GASTOS!$AD$3:$AD$548=A47)*GASTOS!$V$3:$V$548)+SUMPRODUCT((GASTOS!$AC$3:$AC$548=1)*(GASTOS!$AD$3:$AD$548=A47)*GASTOS!$X$3:$X$548)),0) -> 0 | N47: =IF(B47<>"",IF(B47="INGRESOS",SUMPRODUCT((INGRESOS!$N$2:$N$471=2)*(INGRESOS!$O$2:$O$471=A47)*INGRESOS!$F$2:$F$471)+SUMPRODUCT((INGRESOS!$N$2:$N$471=2)*(INGRESOS!$O$2:$O$471=A47)*INGRESOS!$I$2:$I$471)+SUMPRODUCT((INGRESOS!$N$2:$N$471=2)*(INGRESOS!$O$2:$O$471=A47)*INGRESOS!$J$2:$J$471),SUMPRODUCT((GASTOS!$AC$3:$AC$548=2)*(GASTOS!$AD$3:$AD$548=A47)*GASTOS!$V$3:$V$548)+SUMPRODUCT((GASTOS!$AC$3:$AC$548=2)*(GASTOS!$AD$3:$AD$548=A47)*GASTOS!$X$3:$X$548)),0) -> 0 | O47: =IF(B47<>"",IF(B47="INGRESOS",SUMPRODUCT((INGRESOS!$N$2:$N$471=3)*(INGRESOS!$O$2:$O$471=A47)*INGRESOS!$F$2:$F$471)+SUMPRODUCT((INGRESOS!$N$2:$N$471=3)*(INGRESOS!$O$2:$O$471=A47)*INGRESOS!$I$2:$I$471)+SUMPRODUCT((INGRESOS!$N$2:$N$471=3)*(INGRESOS!$O$2:$O$471=A47)*INGRESOS!$J$2:$J$471),SUMPRODUCT((GASTOS!$AC$3:$AC$548=3)*(GASTOS!$AD$3:$AD$548=A47)*GASTOS!$V$3:$V$548)+SUMPRODUCT((GASTOS!$AC$3:$AC$548=3)*(GASTOS!$AD$3:$AD$548=A47)*GASTOS!$X$3:$X$548)),0) -> 0 | P47: =IF(B47<>"",IF(B47="INGRESOS",SUMPRODUCT((INGRESOS!$N$2:$N$471=4)*(INGRESOS!$O$2:$O$471=A47)*INGRESOS!$F$2:$F$471)+SUMPRODUCT((INGRESOS!$N$2:$N$471=4)*(INGRESOS!$O$2:$O$471=A47)*INGRESOS!$I$2:$I$471)+SUMPRODUCT((INGRESOS!$N$2:$N$471=4)*(INGRESOS!$O$2:$O$471=A47)*INGRESOS!$J$2:$J$471),SUMPRODUCT((GASTOS!$AC$3:$AC$548=4)*(GASTOS!$AD$3:$AD$548=A47)*GASTOS!$V$3:$V$548)+SUMPRODUCT((GASTOS!$AC$3:$AC$548=4)*(GASTOS!$AD$3:$AD$548=A47)*GASTOS!$X$3:$X$548)),0) -> 0
A48: 11 | B48: =IF(NOT(ISERROR(MATCH(A48,INGRESOS!$O$1:$O$471,0))),"INGRESOS",IF(NOT(ISERROR(MATCH(A48,GASTOS!$AD$2:$AD$548,0))),"GASTOS","")) ->  | C48: =IF(B48="INGRESOS",INDEX(INGRESOS!$A$1:$O$471,MATCH(A48,INGRESOS!$O$1:$O$471,0),COLUMN(INGRESOS!#REF!)),IF(B48="GASTOS",INDEX(GASTOS!$A$2:$AD$548,MATCH(A48,GASTOS!$AD$2:$AD$548,0),COLUMN(INGRESOS!$D$1)),"")) ->  | E48: =IF(B48<>"",IF(B48="INGRESOS",INDEX(CLIENTES!$A$1:$K$1001,MATCH(C48,CLIENTES!$B$1:$B$1001,0),COLUMN(CLIENTES!$A$1)),INDEX(PROVEEDORES!$A$1:$K$1000,MATCH(C48,PROVEEDORES!$B$1:$B$1000,0),COLUMN(PROVEEDORES!$A$1))),"") ->  | F48: =IF(B48<>"",IF(""=IF(B48="INGRESOS",VLOOKUP(C48,CLIENTES!$B$1:$C$1001,2,FALSE),VLOOKUP(C48,PROVEEDORES!$B$1:$C$1000,2,FALSE)),"FALTA",VLOOKUP(IF(B48="INGRESOS",VLOOKUP(C48,CLIENTES!$B$1:$C$1001,2,FALSE),VLOOKUP(C48,PROVEEDORES!$B$1:$C$1000,2,FALSE)),'DATOS FISCALES'!$E$19:$F$71,2,FALSE)),"") ->  | I48: =IF(B48<>"",IF(B48="INGRESOS",VLOOKUP(C48,CLIENTES!$B$2:$E$1001,3,FALSE),VLOOKUP(C48,PROVEEDORES!$B$2:$E$1000,3,FALSE)),"") ->  | K48: =IF(B48<>"",IF(B48="INGRESOS",VLOOKUP(C48,CLIENTES!$B$2:$E$1001,4,FALSE),VLOOKUP(C48,PROVEEDORES!$B$2:$E$1000,4,FALSE)),0) -> 0 | L48: 0 | M48: =IF(B48<>"",IF(B48="INGRESOS",SUMPRODUCT((INGRESOS!$N$2:$N$471=1)*(INGRESOS!$O$2:$O$471=A48)*INGRESOS!$F$2:$F$471)+SUMPRODUCT((INGRESOS!$N$2:$N$471=1)*(INGRESOS!$O$2:$O$471=A48)*INGRESOS!$I$2:$I$471)+SUMPRODUCT((INGRESOS!$N$2:$N$471=1)*(INGRESOS!$O$2:$O$471=A48)*INGRESOS!$J$2:$J$471),SUMPRODUCT((GASTOS!$AC$3:$AC$548=1)*(GASTOS!$AD$3:$AD$548=A48)*GASTOS!$V$3:$V$548)+SUMPRODUCT((GASTOS!$AC$3:$AC$548=1)*(GASTOS!$AD$3:$AD$548=A48)*GASTOS!$X$3:$X$548)),0) -> 0 | N48: =IF(B48<>"",IF(B48="INGRESOS",SUMPRODUCT((INGRESOS!$N$2:$N$471=2)*(INGRESOS!$O$2:$O$471=A48)*INGRESOS!$F$2:$F$471)+SUMPRODUCT((INGRESOS!$N$2:$N$471=2)*(INGRESOS!$O$2:$O$471=A48)*INGRESOS!$I$2:$I$471)+SUMPRODUCT((INGRESOS!$N$2:$N$471=2)*(INGRESOS!$O$2:$O$471=A48)*INGRESOS!$J$2:$J$471),SUMPRODUCT((GASTOS!$AC$3:$AC$548=2)*(GASTOS!$AD$3:$AD$548=A48)*GASTOS!$V$3:$V$548)+SUMPRODUCT((GASTOS!$AC$3:$AC$548=2)*(GASTOS!$AD$3:$AD$548=A48)*GASTOS!$X$3:$X$548)),0) -> 0 | O48: =IF(B48<>"",IF(B48="INGRESOS",SUMPRODUCT((INGRESOS!$N$2:$N$471=3)*(INGRESOS!$O$2:$O$471=A48)*INGRESOS!$F$2:$F$471)+SUMPRODUCT((INGRESOS!$N$2:$N$471=3)*(INGRESOS!$O$2:$O$471=A48)*INGRESOS!$I$2:$I$471)+SUMPRODUCT((INGRESOS!$N$2:$N$471=3)*(INGRESOS!$O$2:$O$471=A48)*INGRESOS!$J$2:$J$471),SUMPRODUCT((GASTOS!$AC$3:$AC$548=3)*(GASTOS!$AD$3:$AD$548=A48)*GASTOS!$V$3:$V$548)+SUMPRODUCT((GASTOS!$AC$3:$AC$548=3)*(GASTOS!$AD$3:$AD$548=A48)*GASTOS!$X$3:$X$548)),0) -> 0 | P48: =IF(B48<>"",IF(B48="INGRESOS",SUMPRODUCT((INGRESOS!$N$2:$N$471=4)*(INGRESOS!$O$2:$O$471=A48)*INGRESOS!$F$2:$F$471)+SUMPRODUCT((INGRESOS!$N$2:$N$471=4)*(INGRESOS!$O$2:$O$471=A48)*INGRESOS!$I$2:$I$471)+SUMPRODUCT((INGRESOS!$N$2:$N$471=4)*(INGRESOS!$O$2:$O$471=A48)*INGRESOS!$J$2:$J$471),SUMPRODUCT((GASTOS!$AC$3:$AC$548=4)*(GASTOS!$AD$3:$AD$548=A48)*GASTOS!$V$3:$V$548)+SUMPRODUCT((GASTOS!$AC$3:$AC$548=4)*(GASTOS!$AD$3:$AD$548=A48)*GASTOS!$X$3:$X$548)),0) -> 0
A49: 12 | B49: =IF(NOT(ISERROR(MATCH(A49,INGRESOS!$O$1:$O$471,0))),"INGRESOS",IF(NOT(ISERROR(MATCH(A49,GASTOS!$AD$2:$AD$548,0))),"GASTOS","")) ->  | C49: =IF(B49="INGRESOS",INDEX(INGRESOS!$A$1:$O$471,MATCH(A49,INGRESOS!$O$1:$O$471,0),COLUMN(INGRESOS!#REF!)),IF(B49="GASTOS",INDEX(GASTOS!$A$2:$AD$548,MATCH(A49,GASTOS!$AD$2:$AD$548,0),COLUMN(INGRESOS!$D$1)),"")) ->  | E49: =IF(B49<>"",IF(B49="INGRESOS",INDEX(CLIENTES!$A$1:$K$1001,MATCH(C49,CLIENTES!$B$1:$B$1001,0),COLUMN(CLIENTES!$A$1)),INDEX(PROVEEDORES!$A$1:$K$1000,MATCH(C49,PROVEEDORES!$B$1:$B$1000,0),COLUMN(PROVEEDORES!$A$1))),"") ->  | F49: =IF(B49<>"",IF(""=IF(B49="INGRESOS",VLOOKUP(C49,CLIENTES!$B$1:$C$1001,2,FALSE),VLOOKUP(C49,PROVEEDORES!$B$1:$C$1000,2,FALSE)),"FALTA",VLOOKUP(IF(B49="INGRESOS",VLOOKUP(C49,CLIENTES!$B$1:$C$1001,2,FALSE),VLOOKUP(C49,PROVEEDORES!$B$1:$C$1000,2,FALSE)),'DATOS FISCALES'!$E$19:$F$71,2,FALSE)),"") ->  | I49: =IF(B49<>"",IF(B49="INGRESOS",VLOOKUP(C49,CLIENTES!$B$2:$E$1001,3,FALSE),VLOOKUP(C49,PROVEEDORES!$B$2:$E$1000,3,FALSE)),"") ->  | K49: =IF(B49<>"",IF(B49="INGRESOS",VLOOKUP(C49,CLIENTES!$B$2:$E$1001,4,FALSE),VLOOKUP(C49,PROVEEDORES!$B$2:$E$1000,4,FALSE)),0) -> 0 | L49: 0 | M49: =IF(B49<>"",IF(B49="INGRESOS",SUMPRODUCT((INGRESOS!$N$2:$N$471=1)*(INGRESOS!$O$2:$O$471=A49)*INGRESOS!$F$2:$F$471)+SUMPRODUCT((INGRESOS!$N$2:$N$471=1)*(INGRESOS!$O$2:$O$471=A49)*INGRESOS!$I$2:$I$471)+SUMPRODUCT((INGRESOS!$N$2:$N$471=1)*(INGRESOS!$O$2:$O$471=A49)*INGRESOS!$J$2:$J$471),SUMPRODUCT((GASTOS!$AC$3:$AC$548=1)*(GASTOS!$AD$3:$AD$548=A49)*GASTOS!$V$3:$V$548)+SUMPRODUCT((GASTOS!$AC$3:$AC$548=1)*(GASTOS!$AD$3:$AD$548=A49)*GASTOS!$X$3:$X$548)),0) -> 0 | N49: =IF(B49<>"",IF(B49="INGRESOS",SUMPRODUCT((INGRESOS!$N$2:$N$471=2)*(INGRESOS!$O$2:$O$471=A49)*INGRESOS!$F$2:$F$471)+SUMPRODUCT((INGRESOS!$N$2:$N$471=2)*(INGRESOS!$O$2:$O$471=A49)*INGRESOS!$I$2:$I$471)+SUMPRODUCT((INGRESOS!$N$2:$N$471=2)*(INGRESOS!$O$2:$O$471=A49)*INGRESOS!$J$2:$J$471),SUMPRODUCT((GASTOS!$AC$3:$AC$548=2)*(GASTOS!$AD$3:$AD$548=A49)*GASTOS!$V$3:$V$548)+SUMPRODUCT((GASTOS!$AC$3:$AC$548=2)*(GASTOS!$AD$3:$AD$548=A49)*GASTOS!$X$3:$X$548)),0) -> 0 | O49: =IF(B49<>"",IF(B49="INGRESOS",SUMPRODUCT((INGRESOS!$N$2:$N$471=3)*(INGRESOS!$O$2:$O$471=A49)*INGRESOS!$F$2:$F$471)+SUMPRODUCT((INGRESOS!$N$2:$N$471=3)*(INGRESOS!$O$2:$O$471=A49)*INGRESOS!$I$2:$I$471)+SUMPRODUCT((INGRESOS!$N$2:$N$471=3)*(INGRESOS!$O$2:$O$471=A49)*INGRESOS!$J$2:$J$471),SUMPRODUCT((GASTOS!$AC$3:$AC$548=3)*(GASTOS!$AD$3:$AD$548=A49)*GASTOS!$V$3:$V$548)+SUMPRODUCT((GASTOS!$AC$3:$AC$548=3)*(GASTOS!$AD$3:$AD$548=A49)*GASTOS!$X$3:$X$548)),0) -> 0 | P49: =IF(B49<>"",IF(B49="INGRESOS",SUMPRODUCT((INGRESOS!$N$2:$N$471=4)*(INGRESOS!$O$2:$O$471=A49)*INGRESOS!$F$2:$F$471)+SUMPRODUCT((INGRESOS!$N$2:$N$471=4)*(INGRESOS!$O$2:$O$471=A49)*INGRESOS!$I$2:$I$471)+SUMPRODUCT((INGRESOS!$N$2:$N$471=4)*(INGRESOS!$O$2:$O$471=A49)*INGRESOS!$J$2:$J$471),SUMPRODUCT((GASTOS!$AC$3:$AC$548=4)*(GASTOS!$AD$3:$AD$548=A49)*GASTOS!$V$3:$V$548)+SUMPRODUCT((GASTOS!$AC$3:$AC$548=4)*(GASTOS!$AD$3:$AD$548=A49)*GASTOS!$X$3:$X$548)),0) -> 0
A50: 13 | B50: =IF(NOT(ISERROR(MATCH(A50,INGRESOS!$O$1:$O$471,0))),"INGRESOS",IF(NOT(ISERROR(MATCH(A50,GASTOS!$AD$2:$AD$548,0))),"GASTOS","")) ->  | C50: =IF(B50="INGRESOS",INDEX(INGRESOS!$A$1:$O$471,MATCH(A50,INGRESOS!$O$1:$O$471,0),COLUMN(INGRESOS!D2)),IF(B50="GASTOS",INDEX(GASTOS!$A$2:$AD$548,MATCH(A50,GASTOS!$AD$2:$AD$548,0),COLUMN(INGRESOS!$D$1)),"")) ->  | E50: =IF(B50<>"",IF(B50="INGRESOS",INDEX(CLIENTES!$A$1:$K$1001,MATCH(C50,CLIENTES!$B$1:$B$1001,0),COLUMN(CLIENTES!$A$1)),INDEX(PROVEEDORES!$A$1:$K$1000,MATCH(C50,PROVEEDORES!$B$1:$B$1000,0),COLUMN(PROVEEDORES!$A$1))),"") ->  | F50: =IF(B50<>"",IF(""=IF(B50="INGRESOS",VLOOKUP(C50,CLIENTES!$B$1:$C$1001,2,FALSE),VLOOKUP(C50,PROVEEDORES!$B$1:$C$1000,2,FALSE)),"FALTA",VLOOKUP(IF(B50="INGRESOS",VLOOKUP(C50,CLIENTES!$B$1:$C$1001,2,FALSE),VLOOKUP(C50,PROVEEDORES!$B$1:$C$1000,2,FALSE)),'DATOS FISCALES'!$E$19:$F$71,2,FALSE)),"") ->  | I50: =IF(B50<>"",IF(B50="INGRESOS",VLOOKUP(C50,CLIENTES!$B$2:$E$1001,3,FALSE),VLOOKUP(C50,PROVEEDORES!$B$2:$E$1000,3,FALSE)),"") ->  | K50: =IF(B50<>"",IF(B50="INGRESOS",VLOOKUP(C50,CLIENTES!$B$2:$E$1001,4,FALSE),VLOOKUP(C50,PROVEEDORES!$B$2:$E$1000,4,FALSE)),0) -> 0 | L50: 0 | M50: =IF(B50<>"",IF(B50="INGRESOS",SUMPRODUCT((INGRESOS!$N$2:$N$471=1)*(INGRESOS!$O$2:$O$471=A50)*INGRESOS!$F$2:$F$471)+SUMPRODUCT((INGRESOS!$N$2:$N$471=1)*(INGRESOS!$O$2:$O$471=A50)*INGRESOS!$I$2:$I$471)+SUMPRODUCT((INGRESOS!$N$2:$N$471=1)*(INGRESOS!$O$2:$O$471=A50)*INGRESOS!$J$2:$J$471),SUMPRODUCT((GASTOS!$AC$3:$AC$548=1)*(GASTOS!$AD$3:$AD$548=A50)*GASTOS!$V$3:$V$548)+SUMPRODUCT((GASTOS!$AC$3:$AC$548=1)*(GASTOS!$AD$3:$AD$548=A50)*GASTOS!$X$3:$X$548)),0) -> 0 | N50: =IF(B50<>"",IF(B50="INGRESOS",SUMPRODUCT((INGRESOS!$N$2:$N$471=2)*(INGRESOS!$O$2:$O$471=A50)*INGRESOS!$F$2:$F$471)+SUMPRODUCT((INGRESOS!$N$2:$N$471=2)*(INGRESOS!$O$2:$O$471=A50)*INGRESOS!$I$2:$I$471)+SUMPRODUCT((INGRESOS!$N$2:$N$471=2)*(INGRESOS!$O$2:$O$471=A50)*INGRESOS!$J$2:$J$471),SUMPRODUCT((GASTOS!$AC$3:$AC$548=2)*(GASTOS!$AD$3:$AD$548=A50)*GASTOS!$V$3:$V$548)+SUMPRODUCT((GASTOS!$AC$3:$AC$548=2)*(GASTOS!$AD$3:$AD$548=A50)*GASTOS!$X$3:$X$548)),0) -> 0 | O50: =IF(B50<>"",IF(B50="INGRESOS",SUMPRODUCT((INGRESOS!$N$2:$N$471=3)*(INGRESOS!$O$2:$O$471=A50)*INGRESOS!$F$2:$F$471)+SUMPRODUCT((INGRESOS!$N$2:$N$471=3)*(INGRESOS!$O$2:$O$471=A50)*INGRESOS!$I$2:$I$471)+SUMPRODUCT((INGRESOS!$N$2:$N$471=3)*(INGRESOS!$O$2:$O$471=A50)*INGRESOS!$J$2:$J$471),SUMPRODUCT((GASTOS!$AC$3:$AC$548=3)*(GASTOS!$AD$3:$AD$548=A50)*GASTOS!$V$3:$V$548)+SUMPRODUCT((GASTOS!$AC$3:$AC$548=3)*(GASTOS!$AD$3:$AD$548=A50)*GASTOS!$X$3:$X$548)),0) -> 0 | P50: =IF(B50<>"",IF(B50="INGRESOS",SUMPRODUCT((INGRESOS!$N$2:$N$471=4)*(INGRESOS!$O$2:$O$471=A50)*INGRESOS!$F$2:$F$471)+SUMPRODUCT((INGRESOS!$N$2:$N$471=4)*(INGRESOS!$O$2:$O$471=A50)*INGRESOS!$I$2:$I$471)+SUMPRODUCT((INGRESOS!$N$2:$N$471=4)*(INGRESOS!$O$2:$O$471=A50)*INGRESOS!$J$2:$J$471),SUMPRODUCT((GASTOS!$AC$3:$AC$548=4)*(GASTOS!$AD$3:$AD$548=A50)*GASTOS!$V$3:$V$548)+SUMPRODUCT((GASTOS!$AC$3:$AC$548=4)*(GASTOS!$AD$3:$AD$548=A50)*GASTOS!$X$3:$X$548)),0) -> 0
A51: 14 | B51: =IF(NOT(ISERROR(MATCH(A51,INGRESOS!$O$1:$O$471,0))),"INGRESOS",IF(NOT(ISERROR(MATCH(A51,GASTOS!$AD$2:$AD$548,0))),"GASTOS","")) ->  | C51: =IF(B51="INGRESOS",INDEX(INGRESOS!$A$1:$O$471,MATCH(A51,INGRESOS!$O$1:$O$471,0),COLUMN(INGRESOS!#REF!)),IF(B51="GASTOS",INDEX(GASTOS!$A$2:$AD$548,MATCH(A51,GASTOS!$AD$2:$AD$548,0),COLUMN(INGRESOS!$D$1)),"")) ->  | E51: =IF(B51<>"",IF(B51="INGRESOS",INDEX(CLIENTES!$A$1:$K$1001,MATCH(C51,CLIENTES!$B$1:$B$1001,0),COLUMN(CLIENTES!$A$1)),INDEX(PROVEEDORES!$A$1:$K$1000,MATCH(C51,PROVEEDORES!$B$1:$B$1000,0),COLUMN(PROVEEDORES!$A$1))),"") ->  | F51: =IF(B51<>"",IF(""=IF(B51="INGRESOS",VLOOKUP(C51,CLIENTES!$B$1:$C$1001,2,FALSE),VLOOKUP(C51,PROVEEDORES!$B$1:$C$1000,2,FALSE)),"FALTA",VLOOKUP(IF(B51="INGRESOS",VLOOKUP(C51,CLIENTES!$B$1:$C$1001,2,FALSE),VLOOKUP(C51,PROVEEDORES!$B$1:$C$1000,2,FALSE)),'DATOS FISCALES'!$E$19:$F$71,2,FALSE)),"") ->  | I51: =IF(B51<>"",IF(B51="INGRESOS",VLOOKUP(C51,CLIENTES!$B$2:$E$1001,3,FALSE),VLOOKUP(C51,PROVEEDORES!$B$2:$E$1000,3,FALSE)),"") ->  | K51: =IF(B51<>"",IF(B51="INGRESOS",VLOOKUP(C51,CLIENTES!$B$2:$E$1001,4,FALSE),VLOOKUP(C51,PROVEEDORES!$B$2:$E$1000,4,FALSE)),0) -> 0 | L51: 0 | M51: =IF(B51<>"",IF(B51="INGRESOS",SUMPRODUCT((INGRESOS!$N$2:$N$471=1)*(INGRESOS!$O$2:$O$471=A51)*INGRESOS!$F$2:$F$471)+SUMPRODUCT((INGRESOS!$N$2:$N$471=1)*(INGRESOS!$O$2:$O$471=A51)*INGRESOS!$I$2:$I$471)+SUMPRODUCT((INGRESOS!$N$2:$N$471=1)*(INGRESOS!$O$2:$O$471=A51)*INGRESOS!$J$2:$J$471),SUMPRODUCT((GASTOS!$AC$3:$AC$548=1)*(GASTOS!$AD$3:$AD$548=A51)*GASTOS!$V$3:$V$548)+SUMPRODUCT((GASTOS!$AC$3:$AC$548=1)*(GASTOS!$AD$3:$AD$548=A51)*GASTOS!$X$3:$X$548)),0) -> 0 | N51: =IF(B51<>"",IF(B51="INGRESOS",SUMPRODUCT((INGRESOS!$N$2:$N$471=2)*(INGRESOS!$O$2:$O$471=A51)*INGRESOS!$F$2:$F$471)+SUMPRODUCT((INGRESOS!$N$2:$N$471=2)*(INGRESOS!$O$2:$O$471=A51)*INGRESOS!$I$2:$I$471)+SUMPRODUCT((INGRESOS!$N$2:$N$471=2)*(INGRESOS!$O$2:$O$471=A51)*INGRESOS!$J$2:$J$471),SUMPRODUCT((GASTOS!$AC$3:$AC$548=2)*(GASTOS!$AD$3:$AD$548=A51)*GASTOS!$V$3:$V$548)+SUMPRODUCT((GASTOS!$AC$3:$AC$548=2)*(GASTOS!$AD$3:$AD$548=A51)*GASTOS!$X$3:$X$548)),0) -> 0 | O51: =IF(B51<>"",IF(B51="INGRESOS",SUMPRODUCT((INGRESOS!$N$2:$N$471=3)*(INGRESOS!$O$2:$O$471=A51)*INGRESOS!$F$2:$F$471)+SUMPRODUCT((INGRESOS!$N$2:$N$471=3)*(INGRESOS!$O$2:$O$471=A51)*INGRESOS!$I$2:$I$471)+SUMPRODUCT((INGRESOS!$N$2:$N$471=3)*(INGRESOS!$O$2:$O$471=A51)*INGRESOS!$J$2:$J$471),SUMPRODUCT((GASTOS!$AC$3:$AC$548=3)*(GASTOS!$AD$3:$AD$548=A51)*GASTOS!$V$3:$V$548)+SUMPRODUCT((GASTOS!$AC$3:$AC$548=3)*(GASTOS!$AD$3:$AD$548=A51)*GASTOS!$X$3:$X$548)),0) -> 0 | P51: =IF(B51<>"",IF(B51="INGRESOS",SUMPRODUCT((INGRESOS!$N$2:$N$471=4)*(INGRESOS!$O$2:$O$471=A51)*INGRESOS!$F$2:$F$471)+SUMPRODUCT((INGRESOS!$N$2:$N$471=4)*(INGRESOS!$O$2:$O$471=A51)*INGRESOS!$I$2:$I$471)+SUMPRODUCT((INGRESOS!$N$2:$N$471=4)*(INGRESOS!$O$2:$O$471=A51)*INGRESOS!$J$2:$J$471),SUMPRODUCT((GASTOS!$AC$3:$AC$548=4)*(GASTOS!$AD$3:$AD$548=A51)*GASTOS!$V$3:$V$548)+SUMPRODUCT((GASTOS!$AC$3:$AC$548=4)*(GASTOS!$AD$3:$AD$548=A51)*GASTOS!$X$3:$X$548)),0) -> 0
A52: 15 | B52: =IF(NOT(ISERROR(MATCH(A52,INGRESOS!$O$1:$O$471,0))),"INGRESOS",IF(NOT(ISERROR(MATCH(A52,GASTOS!$AD$2:$AD$548,0))),"GASTOS","")) ->  | C52: =IF(B52="INGRESOS",INDEX(INGRESOS!$A$1:$O$471,MATCH(A52,INGRESOS!$O$1:$O$471,0),COLUMN(INGRESOS!#REF!)),IF(B52="GASTOS",INDEX(GASTOS!$A$2:$AD$548,MATCH(A52,GASTOS!$AD$2:$AD$548,0),COLUMN(INGRESOS!$D$1)),"")) ->  | E52: =IF(B52<>"",IF(B52="INGRESOS",INDEX(CLIENTES!$A$1:$K$1001,MATCH(C52,CLIENTES!$B$1:$B$1001,0),COLUMN(CLIENTES!$A$1)),INDEX(PROVEEDORES!$A$1:$K$1000,MATCH(C52,PROVEEDORES!$B$1:$B$1000,0),COLUMN(PROVEEDORES!$A$1))),"") ->  | F52: =IF(B52<>"",IF(""=IF(B52="INGRESOS",VLOOKUP(C52,CLIENTES!$B$1:$C$1001,2,FALSE),VLOOKUP(C52,PROVEEDORES!$B$1:$C$1000,2,FALSE)),"FALTA",VLOOKUP(IF(B52="INGRESOS",VLOOKUP(C52,CLIENTES!$B$1:$C$1001,2,FALSE),VLOOKUP(C52,PROVEEDORES!$B$1:$C$1000,2,FALSE)),'DATOS FISCALES'!$E$19:$F$71,2,FALSE)),"") ->  | I52: =IF(B52<>"",IF(B52="INGRESOS",VLOOKUP(C52,CLIENTES!$B$2:$E$1001,3,FALSE),VLOOKUP(C52,PROVEEDORES!$B$2:$E$1000,3,FALSE)),"") ->  | K52: =IF(B52<>"",IF(B52="INGRESOS",VLOOKUP(C52,CLIENTES!$B$2:$E$1001,4,FALSE),VLOOKUP(C52,PROVEEDORES!$B$2:$E$1000,4,FALSE)),0) -> 0 | L52: 0 | M52: =IF(B52<>"",IF(B52="INGRESOS",SUMPRODUCT((INGRESOS!$N$2:$N$471=1)*(INGRESOS!$O$2:$O$471=A52)*INGRESOS!$F$2:$F$471)+SUMPRODUCT((INGRESOS!$N$2:$N$471=1)*(INGRESOS!$O$2:$O$471=A52)*INGRESOS!$I$2:$I$471)+SUMPRODUCT((INGRESOS!$N$2:$N$471=1)*(INGRESOS!$O$2:$O$471=A52)*INGRESOS!$J$2:$J$471),SUMPRODUCT((GASTOS!$AC$3:$AC$548=1)*(GASTOS!$AD$3:$AD$548=A52)*GASTOS!$V$3:$V$548)+SUMPRODUCT((GASTOS!$AC$3:$AC$548=1)*(GASTOS!$AD$3:$AD$548=A52)*GASTOS!$X$3:$X$548)),0) -> 0 | N52: =IF(B52<>"",IF(B52="INGRESOS",SUMPRODUCT((INGRESOS!$N$2:$N$471=2)*(INGRESOS!$O$2:$O$471=A52)*INGRESOS!$F$2:$F$471)+SUMPRODUCT((INGRESOS!$N$2:$N$471=2)*(INGRESOS!$O$2:$O$471=A52)*INGRESOS!$I$2:$I$471)+SUMPRODUCT((INGRESOS!$N$2:$N$471=2)*(INGRESOS!$O$2:$O$471=A52)*INGRESOS!$J$2:$J$471),SUMPRODUCT((GASTOS!$AC$3:$AC$548=2)*(GASTOS!$AD$3:$AD$548=A52)*GASTOS!$V$3:$V$548)+SUMPRODUCT((GASTOS!$AC$3:$AC$548=2)*(GASTOS!$AD$3:$AD$548=A52)*GASTOS!$X$3:$X$548)),0) -> 0 | O52: =IF(B52<>"",IF(B52="INGRESOS",SUMPRODUCT((INGRESOS!$N$2:$N$471=3)*(INGRESOS!$O$2:$O$471=A52)*INGRESOS!$F$2:$F$471)+SUMPRODUCT((INGRESOS!$N$2:$N$471=3)*(INGRESOS!$O$2:$O$471=A52)*INGRESOS!$I$2:$I$471)+SUMPRODUCT((INGRESOS!$N$2:$N$471=3)*(INGRESOS!$O$2:$O$471=A52)*INGRESOS!$J$2:$J$471),SUMPRODUCT((GASTOS!$AC$3:$AC$548=3)*(GASTOS!$AD$3:$AD$548=A52)*GASTOS!$V$3:$V$548)+SUMPRODUCT((GASTOS!$AC$3:$AC$548=3)*(GASTOS!$AD$3:$AD$548=A52)*GASTOS!$X$3:$X$548)),0) -> 0 | P52: =IF(B52<>"",IF(B52="INGRESOS",SUMPRODUCT((INGRESOS!$N$2:$N$471=4)*(INGRESOS!$O$2:$O$471=A52)*INGRESOS!$F$2:$F$471)+SUMPRODUCT((INGRESOS!$N$2:$N$471=4)*(INGRESOS!$O$2:$O$471=A52)*INGRESOS!$I$2:$I$471)+SUMPRODUCT((INGRESOS!$N$2:$N$471=4)*(INGRESOS!$O$2:$O$471=A52)*INGRESOS!$J$2:$J$471),SUMPRODUCT((GASTOS!$AC$3:$AC$548=4)*(GASTOS!$AD$3:$AD$548=A52)*GASTOS!$V$3:$V$548)+SUMPRODUCT((GASTOS!$AC$3:$AC$548=4)*(GASTOS!$AD$3:$AD$548=A52)*GASTOS!$X$3:$X$548)),0) -> 0
A53: 16 | B53: =IF(NOT(ISERROR(MATCH(A53,INGRESOS!$O$1:$O$471,0))),"INGRESOS",IF(NOT(ISERROR(MATCH(A53,GASTOS!$AD$2:$AD$548,0))),"GASTOS","")) ->  | C53: =IF(B53="INGRESOS",INDEX(INGRESOS!$A$1:$O$471,MATCH(A53,INGRESOS!$O$1:$O$471,0),COLUMN(INGRESOS!#REF!)),IF(B53="GASTOS",INDEX(GASTOS!$A$2:$AD$548,MATCH(A53,GASTOS!$AD$2:$AD$548,0),COLUMN(INGRESOS!$D$1)),"")) ->  | E53: =IF(B53<>"",IF(B53="INGRESOS",INDEX(CLIENTES!$A$1:$K$1001,MATCH(C53,CLIENTES!$B$1:$B$1001,0),COLUMN(CLIENTES!$A$1)),INDEX(PROVEEDORES!$A$1:$K$1000,MATCH(C53,PROVEEDORES!$B$1:$B$1000,0),COLUMN(PROVEEDORES!$A$1))),"") ->  | F53: =IF(B53<>"",IF(""=IF(B53="INGRESOS",VLOOKUP(C53,CLIENTES!$B$1:$C$1001,2,FALSE),VLOOKUP(C53,PROVEEDORES!$B$1:$C$1000,2,FALSE)),"FALTA",VLOOKUP(IF(B53="INGRESOS",VLOOKUP(C53,CLIENTES!$B$1:$C$1001,2,FALSE),VLOOKUP(C53,PROVEEDORES!$B$1:$C$1000,2,FALSE)),'DATOS FISCALES'!$E$19:$F$71,2,FALSE)),"") ->  | I53: =IF(B53<>"",IF(B53="INGRESOS",VLOOKUP(C53,CLIENTES!$B$2:$E$1001,3,FALSE),VLOOKUP(C53,PROVEEDORES!$B$2:$E$1000,3,FALSE)),"") ->  | K53: =IF(B53<>"",IF(B53="INGRESOS",VLOOKUP(C53,CLIENTES!$B$2:$E$1001,4,FALSE),VLOOKUP(C53,PROVEEDORES!$B$2:$E$1000,4,FALSE)),0) -> 0 | L53: 0 | M53: =IF(B53<>"",IF(B53="INGRESOS",SUMPRODUCT((INGRESOS!$N$2:$N$471=1)*(INGRESOS!$O$2:$O$471=A53)*INGRESOS!$F$2:$F$471)+SUMPRODUCT((INGRESOS!$N$2:$N$471=1)*(INGRESOS!$O$2:$O$471=A53)*INGRESOS!$I$2:$I$471)+SUMPRODUCT((INGRESOS!$N$2:$N$471=1)*(INGRESOS!$O$2:$O$471=A53)*INGRESOS!$J$2:$J$471),SUMPRODUCT((GASTOS!$AC$3:$AC$548=1)*(GASTOS!$AD$3:$AD$548=A53)*GASTOS!$V$3:$V$548)+SUMPRODUCT((GASTOS!$AC$3:$AC$548=1)*(GASTOS!$AD$3:$AD$548=A53)*GASTOS!$X$3:$X$548)),0) -> 0 | N53: =IF(B53<>"",IF(B53="INGRESOS",SUMPRODUCT((INGRESOS!$N$2:$N$471=2)*(INGRESOS!$O$2:$O$471=A53)*INGRESOS!$F$2:$F$471)+SUMPRODUCT((INGRESOS!$N$2:$N$471=2)*(INGRESOS!$O$2:$O$471=A53)*INGRESOS!$I$2:$I$471)+SUMPRODUCT((INGRESOS!$N$2:$N$471=2)*(INGRESOS!$O$2:$O$471=A53)*INGRESOS!$J$2:$J$471),SUMPRODUCT((GASTOS!$AC$3:$AC$548=2)*(GASTOS!$AD$3:$AD$548=A53)*GASTOS!$V$3:$V$548)+SUMPRODUCT((GASTOS!$AC$3:$AC$548=2)*(GASTOS!$AD$3:$AD$548=A53)*GASTOS!$X$3:$X$548)),0) -> 0 | O53: =IF(B53<>"",IF(B53="INGRESOS",SUMPRODUCT((INGRESOS!$N$2:$N$471=3)*(INGRESOS!$O$2:$O$471=A53)*INGRESOS!$F$2:$F$471)+SUMPRODUCT((INGRESOS!$N$2:$N$471=3)*(INGRESOS!$O$2:$O$471=A53)*INGRESOS!$I$2:$I$471)+SUMPRODUCT((INGRESOS!$N$2:$N$471=3)*(INGRESOS!$O$2:$O$471=A53)*INGRESOS!$J$2:$J$471),SUMPRODUCT((GASTOS!$AC$3:$AC$548=3)*(GASTOS!$AD$3:$AD$548=A53)*GASTOS!$V$3:$V$548)+SUMPRODUCT((GASTOS!$AC$3:$AC$548=3)*(GASTOS!$AD$3:$AD$548=A53)*GASTOS!$X$3:$X$548)),0) -> 0 | P53: =IF(B53<>"",IF(B53="INGRESOS",SUMPRODUCT((INGRESOS!$N$2:$N$471=4)*(INGRESOS!$O$2:$O$471=A53)*INGRESOS!$F$2:$F$471)+SUMPRODUCT((INGRESOS!$N$2:$N$471=4)*(INGRESOS!$O$2:$O$471=A53)*INGRESOS!$I$2:$I$471)+SUMPRODUCT((INGRESOS!$N$2:$N$471=4)*(INGRESOS!$O$2:$O$471=A53)*INGRESOS!$J$2:$J$471),SUMPRODUCT((GASTOS!$AC$3:$AC$548=4)*(GASTOS!$AD$3:$AD$548=A53)*GASTOS!$V$3:$V$548)+SUMPRODUCT((GASTOS!$AC$3:$AC$548=4)*(GASTOS!$AD$3:$AD$548=A53)*GASTOS!$X$3:$X$548)),0) -> 0
A58: CÓMPUTO DE INGRESOS Y GASTOS
A60: TRIMESTRAL
A62: TRIMESTRE | B62: INGRESOS | D62: GASTOS
B63: ="Bases al Tipo " & 'DATOS FISCALES'!B59 &"%" -> Bases al Tipo % | C63: ="Cuotas IVA al "& 'DATOS FISCALES'!B59 & "%" -> Cuotas IVA al % | D63: CADIZ 77 | E63: CADIZ 38 | F63: SUECA 64 | G63: ARQUITECTURA | H63: PERSONAL | I63: LUCIA | J63: VISA | K63: NO DESGRAVABLES | L63: SAN VICENTE 222 | M63: INDEFINIDO | O63: TOTAL GASTOS | P63: RESULTADO
A64: 1T | B64: =SUMPRODUCT((INGRESOS!$N$2:$N$471=1)*(INGRESOS!$G$2:$G$471='DATOS FISCALES'!$B$12)*INGRESOS!$F$2:$F$471) -> 0 | C64: =SUMPRODUCT((INGRESOS!$N$2:$N$471=1)*(INGRESOS!$G$2:$G$471='DATOS FISCALES'!$B$12)*INGRESOS!$I$2:$I$471) -> 0 | D64: =SUMPRODUCT((GASTOS!$AB$3:$AB$548=D$63)*(GASTOS!$AC$3:$AC$548=1)*GASTOS!$Z$3:$Z$548) -> 6571.36 | E64: =SUMPRODUCT((GASTOS!$AB$3:$AB$548=E$63)*(GASTOS!$AC$3:$AC$548=1)*GASTOS!$Z$3:$Z$548) -> 3099.04 | F64: =SUMPRODUCT((GASTOS!$AB$3:$AB$548=F$63)*(GASTOS!$AC$3:$AC$548=1)*GASTOS!$Z$3:$Z$548) -> 217.01 | G64: =SUMPRODUCT((GASTOS!$AB$3:$AB$548=G$63)*(GASTOS!$AC$3:$AC$548=1)*GASTOS!$Z$3:$Z$548) -> 1659.9 | H64: =SUMPRODUCT((GASTOS!$AB$3:$AB$548=H$63)*(GASTOS!$AC$3:$AC$548=1)*GASTOS!$Z$3:$Z$548) -> 0 | I64: =SUMPRODUCT((GASTOS!$AB$3:$AB$548=I$63)*(GASTOS!$AC$3:$AC$548=1)*GASTOS!$Z$3:$Z$548) -> 0 | J64: =SUMPRODUCT((GASTOS!$AB$3:$AB$548=J$63)*(GASTOS!$AC$3:$AC$548=1)*GASTOS!$Z$3:$Z$548) -> 0 | K64: =SUMPRODUCT((GASTOS!$AB$3:$AB$548=K$63)*(GASTOS!$AC$3:$AC$548=1)*GASTOS!$Z$3:$Z$548) -> 0 | L64: =SUMPRODUCT((GASTOS!$AB$3:$AB$548=L$63)*(GASTOS!$AC$3:$AC$548=1)*GASTOS!$Z$3:$Z$548) -> 3503.4 | M64: =SUMPRODUCT((GASTOS!$AB$3:$AB$548=M$63)*(GASTOS!$AC$3:$AC$548=1)*GASTOS!$Z$3:$Z$548) -> 0 | O64: =SUM(D64:M64) -> 15050.71 | P64: =B64+C64-O64-P14 -> -14818.71
A65: 2T | B65: =SUMPRODUCT((INGRESOS!$N$2:$N$471=2)*(INGRESOS!$G$2:$G$471='DATOS FISCALES'!$B$12)*INGRESOS!$F$2:$F$471) -> 1750 | C65: =SUMPRODUCT((INGRESOS!$N$2:$N$471=2)*(INGRESOS!$G$2:$G$471='DATOS FISCALES'!$B$12)*INGRESOS!$I$2:$I$471) -> 367.5 | D65: =SUMPRODUCT((GASTOS!$AB$3:$AB$548=D$63)*(GASTOS!$AC$3:$AC$548=2)*GASTOS!$Z$3:$Z$548) -> 16258.93 | E65: =SUMPRODUCT((GASTOS!$AB$3:$AB$548=E$63)*(GASTOS!$AC$3:$AC$548=2)*GASTOS!$Z$3:$Z$548) -> 2646.79 | F65: =SUMPRODUCT((GASTOS!$AB$3:$AB$548=F$63)*(GASTOS!$AC$3:$AC$548=2)*GASTOS!$Z$3:$Z$548) -> 0 | G65: =SUMPRODUCT((GASTOS!$AB$3:$AB$548=G$63)*(GASTOS!$AC$3:$AC$548=2)*GASTOS!$Z$3:$Z$548) -> 3326.61 | H65: =SUMPRODUCT((GASTOS!$AB$3:$AB$548=H$63)*(GASTOS!$AC$3:$AC$548=2)*GASTOS!$Z$3:$Z$548) -> 0 | I65: =SUMPRODUCT((GASTOS!$AB$3:$AB$548=I$63)*(GASTOS!$AC$3:$AC$548=2)*GASTOS!$Z$3:$Z$548) -> 0 | J65: =SUMPRODUCT((GASTOS!$AB$3:$AB$548=J$63)*(GASTOS!$AC$3:$AC$548=2)*GASTOS!$Z$3:$Z$548) -> 0 | K65: =SUMPRODUCT((GASTOS!$AB$3:$AB$548=K$63)*(GASTOS!$AC$3:$AC$548=2)*GASTOS!$Z$3:$Z$548) -> 0 | L65: =SUMPRODUCT((GASTOS!$AB$3:$AB$548=L$63)*(GASTOS!$AC$3:$AC$548=2)*GASTOS!$Z$3:$Z$548) -> 2730.31 | M65: =SUMPRODUCT((GASTOS!$AB$3:$AB$548=M$63)*(GASTOS!$AC$3:$AC$548=2)*GASTOS!$Z$3:$Z$548) -> 0 | O65: =SUM(D65:M65) -> 24962.64 | P65: =B65-O65 -> -23212.64
A66: 3T | B66: =SUMPRODUCT((INGRESOS!$N$2:$N$471=3)*(INGRESOS!$G$2:$G$471='DATOS FISCALES'!$B$12)*INGRESOS!$F$2:$F$471) -> 5930 | C66: =SUMPRODUCT((INGRESOS!$N$2:$N$471=3)*(INGRESOS!$G$2:$G$471='DATOS FISCALES'!$B$12)*INGRESOS!$I$2:$I$471) -> 1245.3 | D66: =SUMPRODUCT((GASTOS!$AB$3:$AB$548=D$63)*(GASTOS!$AC$3:$AC$548=3)*GASTOS!$Z$3:$Z$548) -> 6866.44 | E66: =SUMPRODUCT((GASTOS!$AB$3:$AB$548=E$63)*(GASTOS!$AC$3:$AC$548=3)*GASTOS!$Z$3:$Z$548) -> 1430.47 | F66: =SUMPRODUCT((GASTOS!$AB$3:$AB$548=F$63)*(GASTOS!$AC$3:$AC$548=3)*GASTOS!$Z$3:$Z$548) -> 94.34 | G66: =SUMPRODUCT((GASTOS!$AB$3:$AB$548=G$63)*(GASTOS!$AC$3:$AC$548=3)*GASTOS!$Z$3:$Z$548) -> 2221.3 | H66: =SUMPRODUCT((GASTOS!$AB$3:$AB$548=H$63)*(GASTOS!$AC$3:$AC$548=3)*GASTOS!$Z$3:$Z$548) -> 0 | I66: =SUMPRODUCT((GASTOS!$AB$3:$AB$548=I$63)*(GASTOS!$AC$3:$AC$548=3)*GASTOS!$Z$3:$Z$548) -> 0 | J66: =SUMPRODUCT((GASTOS!$AB$3:$AB$548=J$63)*(GASTOS!$AC$3:$AC$548=3)*GASTOS!$Z$3:$Z$548) -> 0 | K66: =SUMPRODUCT((GASTOS!$AB$3:$AB$548=K$63)*(GASTOS!$AC$3:$AC$548=3)*GASTOS!$Z$3:$Z$548) -> 0 | L66: =SUMPRODUCT((GASTOS!$AB$3:$AB$548=L$63)*(GASTOS!$AC$3:$AC$548=3)*GASTOS!$Z$3:$Z$548) -> 1421.62 | M66: =SUMPRODUCT((GASTOS!$AB$3:$AB$548=M$63)*(GASTOS!$AC$3:$AC$548=3)*GASTOS!$Z$3:$Z$548) -> 0 | O66: =SUM(D66:M66) -> 12034.17 | P66: =B66-O66 -> -6104.17
A67: 4T | B67: =SUMPRODUCT((INGRESOS!$N$2:$N$471=4)*(INGRESOS!$G$2:$G$471='DATOS FISCALES'!$B$12)*INGRESOS!$F$2:$F$471) -> 8857 | C67: =SUMPRODUCT((INGRESOS!$N$2:$N$471=4)*(INGRESOS!$G$2:$G$471='DATOS FISCALES'!$B$12)*INGRESOS!$I$2:$I$471) -> 1859.97 | D67: =SUMPRODUCT((GASTOS!$AB$3:$AB$548=D$63)*(GASTOS!$AC$3:$AC$548=4)*GASTOS!$Z$3:$Z$548) -> 4204.01 | E67: =SUMPRODUCT((GASTOS!$AB$3:$AB$548=E$63)*(GASTOS!$AC$3:$AC$548=4)*GASTOS!$Z$3:$Z$548) -> 1774.16 | F67: =SUMPRODUCT((GASTOS!$AB$3:$AB$548=F$63)*(GASTOS!$AC$3:$AC$548=4)*GASTOS!$Z$3:$Z$548) -> 0 | G67: =SUMPRODUCT((GASTOS!$AB$3:$AB$548=G$63)*(GASTOS!$AC$3:$AC$548=4)*GASTOS!$Z$3:$Z$548) -> 2578.36 | H67: =SUMPRODUCT((GASTOS!$AB$3:$AB$548=H$63)*(GASTOS!$AC$3:$AC$548=4)*GASTOS!$Z$3:$Z$548) -> 0 | I67: =SUMPRODUCT((GASTOS!$AB$3:$AB$548=I$63)*(GASTOS!$AC$3:$AC$548=4)*GASTOS!$Z$3:$Z$548) -> 0 | J67: =SUMPRODUCT((GASTOS!$AB$3:$AB$548=J$63)*(GASTOS!$AC$3:$AC$548=4)*GASTOS!$Z$3:$Z$548) -> 0 | K67: =SUMPRODUCT((GASTOS!$AB$3:$AB$548=K$63)*(GASTOS!$AC$3:$AC$548=4)*GASTOS!$Z$3:$Z$548) -> 0 | L67: =SUMPRODUCT((GASTOS!$AB$3:$AB$548=L$63)*(GASTOS!$AC$3:$AC$548=4)*GASTOS!$Z$3:$Z$548) -> 1421.81 | M67: =SUMPRODUCT((GASTOS!$AB$3:$AB$548=M$63)*(GASTOS!$AC$3:$AC$548=4)*GASTOS!$Z$3:$Z$548) -> 0 | O67: =SUM(D67:M67) -> 9978.34 | P67: =B67-O67 -> -1121.34
A69: MENSUAL GENERAL
A70: MES | B70: INGRESOS | D70: ALGUNOS GASTOS AGRUPADOS
B71: ="Bases al Tipo " & 'DATOS FISCALES'!B67 &"%" -> Bases al Tipo % | C71: ="Cuotas IVA al "& 'DATOS FISCALES'!B67 & "%" -> Cuotas IVA al % | D71: CADIZ 77 | E71: CADIZ 38 | F71: SUECA 64 | G71: ARQUITECTURA | H71: SAN VICENTE 222 | I71: CORRIENTE LUCIA | J71: CORRIENTE CARLOS | K71: SALUD CARLOS | L71: SALUD LUCIAS | M71: PRESTAMOS | N71: PRESTAMOS | O71: TOTAL GASTOS | P71: RESULTADO MES
A72: 1 | B72: =SUMPRODUCT((INGRESOS!$P$2:$P$471=$A72)*(INGRESOS!$G$2:$G$471='DATOS FISCALES'!$B$12)*INGRESOS!$F$2:$F$471) -> 0 | C72: =SUMPRODUCT((INGRESOS!$P$2:$P$471=$A72)*(INGRESOS!$G$2:$G$471='DATOS FISCALES'!$B$12)*INGRESOS!$I$2:$I$471) -> 0 | D72: =SUMPRODUCT((GASTOS!$AB$3:$AB$548=D$71)*(GASTOS!$AE$3:$AE$548=CALCULOS!$A72)*GASTOS!$Z$3:$Z$548) -> 1050.68 | E72: =SUMPRODUCT((GASTOS!$AB$3:$AB$548=E$71)*(GASTOS!$AE$3:$AE$548=CALCULOS!$A72)*GASTOS!$Z$3:$Z$548) -> 760.11 | F72: =SUMPRODUCT((GASTOS!$AB$3:$AB$548=F$71)*(GASTOS!$AE$3:$AE$548=CALCULOS!$A72)*GASTOS!$Z$3:$Z$548) -> 96.61 | G72: =SUMPRODUCT((GASTOS!$AB$3:$AB$548=G$71)*(GASTOS!$AE$3:$AE$548=CALCULOS!$A72)*GASTOS!$Z$3:$Z$548) -> 176.08 | H72: =SUMPRODUCT((GASTOS!$AB$3:$AB$548=H$71)*(GASTOS!$AE$3:$AE$548=CALCULOS!$A72)*GASTOS!$Z$3:$Z$548) -> 1481.05 | I72: =SUMPRODUCT((GASTOS!$AB$3:$AB$548=I$71)*(GASTOS!$AE$3:$AE$548=CALCULOS!$A72)*GASTOS!$Z$3:$Z$548) -> 783.31 | J72: =SUMPRODUCT((GASTOS!$AB$3:$AB$548=J$71)*(GASTOS!$AE$3:$AE$548=CALCULOS!$A72)*GASTOS!$Z$3:$Z$548) -> 358.28 | K72: =SUMPRODUCT((GASTOS!$AB$3:$AB$548=K$71)*(GASTOS!$AE$3:$AE$548=CALCULOS!$A72)*GASTOS!$Z$3:$Z$548) -> 308.15 | L72: =SUMPRODUCT((GASTOS!$AB$3:$AB$548=L$71)*(GASTOS!$AE$3:$AE$548=CALCULOS!$A72)*GASTOS!$Z$3:$Z$548) -> 234.79 | M72: =SUMPRODUCT((GASTOS!$AB$3:$AB$548=M$71)*(GASTOS!$AE$3:$AE$548=CALCULOS!$A72)*GASTOS!$Z$3:$Z$548) -> 143.09 | N72: =SUMPRODUCT((GASTOS!$AB$3:$AB$548=N$71)*(GASTOS!$AE$3:$AE$548=CALCULOS!$A72)*GASTOS!$Z$3:$Z$548) -> 143.09 | O72: =SUMPRODUCT((GASTOS!$AE$3:$AE$548=CALCULOS!$A72)*GASTOS!$Z$3:$Z$548) -> 5542.15 | P72: =B72-O72 -> -5542.15
A73: 2 | B73: =SUMPRODUCT((INGRESOS!$P$2:$P$471=$A73)*(INGRESOS!$G$2:$G$471='DATOS FISCALES'!$B$12)*INGRESOS!$F$2:$F$471) -> 0 | C73: =SUMPRODUCT((INGRESOS!$P$2:$P$471=$A73)*(INGRESOS!$G$2:$G$471='DATOS FISCALES'!$B$12)*INGRESOS!$I$2:$I$471) -> 0 | D73: =SUMPRODUCT((GASTOS!$AB$3:$AB$548=D$71)*(GASTOS!$AE$3:$AE$548=CALCULOS!$A73)*GASTOS!$Z$3:$Z$548) -> 818.67 | E73: =SUMPRODUCT((GASTOS!$AB$3:$AB$548=E$71)*(GASTOS!$AE$3:$AE$548=CALCULOS!$A73)*GASTOS!$Z$3:$Z$548) -> 1219.12 | F73: =SUMPRODUCT((GASTOS!$AB$3:$AB$548=F$71)*(GASTOS!$AE$3:$AE$548=CALCULOS!$A73)*GASTOS!$Z$3:$Z$548) -> 0 | G73: =SUMPRODUCT((GASTOS!$AB$3:$AB$548=G$71)*(GASTOS!$AE$3:$AE$548=CALCULOS!$A73)*GASTOS!$Z$3:$Z$548) -> 521.91 | H73: =SUMPRODUCT((GASTOS!$AB$3:$AB$548=H$71)*(GASTOS!$AE$3:$AE$548=CALCULOS!$A73)*GASTOS!$Z$3:$Z$548) -> 1311.12 | I73: =SUMPRODUCT((GASTOS!$AB$3:$AB$548=I$71)*(GASTOS!$AE$3:$AE$548=CALCULOS!$A73)*GASTOS!$Z$3:$Z$548) -> 1285.19 | J73: =SUMPRODUCT((GASTOS!$AB$3:$AB$548=J$71)*(GASTOS!$AE$3:$AE$548=CALCULOS!$A73)*GASTOS!$Z$3:$Z$548) -> 214.67 | K73: =SUMPRODUCT((GASTOS!$AB$3:$AB$548=K$71)*(GASTOS!$AE$3:$AE$548=CALCULOS!$A73)*GASTOS!$Z$3:$Z$548) -> 51.89 | L73: =SUMPRODUCT((GASTOS!$AB$3:$AB$548=L$71)*(GASTOS!$AE$3:$AE$548=CALCULOS!$A73)*GASTOS!$Z$3:$Z$548) -> 120.66 | M73: =SUMPRODUCT((GASTOS!$AB$3:$AB$548=M$71)*(GASTOS!$AE$3:$AE$548=CALCULOS!$A73)*GASTOS!$Z$3:$Z$548) -> 122.83 | N73: =SUMPRODUCT((GASTOS!$AB$3:$AB$548=N$71)*(GASTOS!$AE$3:$AE$548=CALCULOS!$A73)*GASTOS!$Z$3:$Z$548) -> 122.83 | O73: =SUMPRODUCT((GASTOS!$AE$3:$AE$548=CALCULOS!$A73)*GASTOS!$Z$3:$Z$548) -> 5696.06 | P73: =B73-O73 -> -5696.06
A74: 3 | B74: =SUMPRODUCT((INGRESOS!$P$2:$P$471=$A74)*(INGRESOS!$G$2:$G$471='DATOS FISCALES'!$B$12)*INGRESOS!$F$2:$F$471) -> 0 | C74: =SUMPRODUCT((INGRESOS!$P$2:$P$471=$A74)*(INGRESOS!$G$2:$G$471='DATOS FISCALES'!$B$12)*INGRESOS!$I$2:$I$471) -> 0 | D74: =SUMPRODUCT((GASTOS!$AB$3:$AB$548=D$71)*(GASTOS!$AE$3:$AE$548=CALCULOS!$A74)*GASTOS!$Z$3:$Z$548) -> 4702.01 | E74: =SUMPRODUCT((GASTOS!$AB$3:$AB$548=E$71)*(GASTOS!$AE$3:$AE$548=CALCULOS!$A74)*GASTOS!$Z$3:$Z$548) -> 1119.81 | F74: =SUMPRODUCT((GASTOS!$AB$3:$AB$548=F$71)*(GASTOS!$AE$3:$AE$548=CALCULOS!$A74)*GASTOS!$Z$3:$Z$548) -> 120.4 | G74: =SUMPRODUCT((GASTOS!$AB$3:$AB$548=G$71)*(GASTOS!$AE$3:$AE$548=CALCULOS!$A74)*GASTOS!$Z$3:$Z$548) -> 961.91 | H74: =SUMPRODUCT((GASTOS!$AB$3:$AB$548=H$71)*(GASTOS!$AE$3:$AE$548=CALCULOS!$A74)*GASTOS!$Z$3:$Z$548) -> 711.23 | I74: =SUMPRODUCT((GASTOS!$AB$3:$AB$548=I$71)*(GASTOS!$AE$3:$AE$548=CALCULOS!$A74)*GASTOS!$Z$3:$Z$548) -> 430.37 | J74: =SUMPRODUCT((GASTOS!$AB$3:$AB$548=J$71)*(GASTOS!$AE$3:$AE$548=CALCULOS!$A74)*GASTOS!$Z$3:$Z$548) -> 291.36 | K74: =SUMPRODUCT((GASTOS!$AB$3:$AB$548=K$71)*(GASTOS!$AE$3:$AE$548=CALCULOS!$A74)*GASTOS!$Z$3:$Z$548) -> 269.32 | L74: =SUMPRODUCT((GASTOS!$AB$3:$AB$548=L$71)*(GASTOS!$AE$3:$AE$548=CALCULOS!$A74)*GASTOS!$Z$3:$Z$548) -> 0 | M74: =SUMPRODUCT((GASTOS!$AB$3:$AB$548=M$71)*(GASTOS!$AE$3:$AE$548=CALCULOS!$A74)*GASTOS!$Z$3:$Z$548) -> 122.83 | N74: =SUMPRODUCT((GASTOS!$AB$3:$AB$548=N$71)*(GASTOS!$AE$3:$AE$548=CALCULOS!$A74)*GASTOS!$Z$3:$Z$548) -> 122.83 | O74: =SUMPRODUCT((GASTOS!$AE$3:$AE$548=CALCULOS!$A74)*GASTOS!$Z$3:$Z$548) -> 8925.91 | P74: -8925.91
A75: 4 | B75: =SUMPRODUCT((INGRESOS!$P$2:$P$471=$A75)*(INGRESOS!$G$2:$G$471='DATOS FISCALES'!$B$12)*INGRESOS!$F$2:$F$471) -> 0 | C75: =SUMPRODUCT((INGRESOS!$P$2:$P$471=$A75)*(INGRESOS!$G$2:$G$471='DATOS FISCALES'!$B$12)*INGRESOS!$I$2:$I$471) -> 0 | D75: =SUMPRODUCT((GASTOS!$AB$3:$AB$548=D$71)*(GASTOS!$AE$3:$AE$548=CALCULOS!$A75)*GASTOS!$Z$3:$Z$548) -> 6126.76 | E75: =SUMPRODUCT((GASTOS!$AB$3:$AB$548=E$71)*(GASTOS!$AE$3:$AE$548=CALCULOS!$A75)*GASTOS!$Z$3:$Z$548) -> 954.41 | F75: =SUMPRODUCT((GASTOS!$AB$3:$AB$548=F$71)*(GASTOS!$AE$3:$AE$548=CALCULOS!$A75)*GASTOS!$Z$3:$Z$548) -> 0 | G75: =SUMPRODUCT((GASTOS!$AB$3:$AB$548=G$71)*(GASTOS!$AE$3:$AE$548=CALCULOS!$A75)*GASTOS!$Z$3:$Z$548) -> 2148.51 | H75: =SUMPRODUCT((GASTOS!$AB$3:$AB$548=H$71)*(GASTOS!$AE$3:$AE$548=CALCULOS!$A75)*GASTOS!$Z$3:$Z$548) -> 1308.69 | I75: =SUMPRODUCT((GASTOS!$AB$3:$AB$548=I$71)*(GASTOS!$AE$3:$AE$548=CALCULOS!$A75)*GASTOS!$Z$3:$Z$548) -> 616.77 | J75: =SUMPRODUCT((GASTOS!$AB$3:$AB$548=J$71)*(GASTOS!$AE$3:$AE$548=CALCULOS!$A75)*GASTOS!$Z$3:$Z$548) -> 370 | K75: =SUMPRODUCT((GASTOS!$AB$3:$AB$548=K$71)*(GASTOS!$AE$3:$AE$548=CALCULOS!$A75)*GASTOS!$Z$3:$Z$548) -> 88.98 | L75: =SUMPRODUCT((GASTOS!$AB$3:$AB$548=L$71)*(GASTOS!$AE$3:$AE$548=CALCULOS!$A75)*GASTOS!$Z$3:$Z$548) -> 241.32 | M75: =SUMPRODUCT((GASTOS!$AB$3:$AB$548=M$71)*(GASTOS!$AE$3:$AE$548=CALCULOS!$A75)*GASTOS!$Z$3:$Z$548) -> 122.83 | N75: =SUMPRODUCT((GASTOS!$AB$3:$AB$548=N$71)*(GASTOS!$AE$3:$AE$548=CALCULOS!$A75)*GASTOS!$Z$3:$Z$548) -> 122.83 | O75: =SUMPRODUCT((GASTOS!$AE$3:$AE$548=CALCULOS!$A75)*GASTOS!$Z$3:$Z$548) -> 12193.61 | P75: -12193.61
A76: 5 | B76: =SUMPRODUCT((INGRESOS!$P$2:$P$471=$A76)*(INGRESOS!$G$2:$G$471='DATOS FISCALES'!$B$12)*INGRESOS!$F$2:$F$471) -> 0 | C76: =SUMPRODUCT((INGRESOS!$P$2:$P$471=$A76)*(INGRESOS!$G$2:$G$471='DATOS FISCALES'!$B$12)*INGRESOS!$I$2:$I$471) -> 0 | D76: =SUMPRODUCT((GASTOS!$AB$3:$AB$548=D$71)*(GASTOS!$AE$3:$AE$548=CALCULOS!$A76)*GASTOS!$Z$3:$Z$548) -> 6915.51 | E76: =SUMPRODUCT((GASTOS!$AB$3:$AB$548=E$71)*(GASTOS!$AE$3:$AE$548=CALCULOS!$A76)*GASTOS!$Z$3:$Z$548) -> 782.69 | F76: =SUMPRODUCT((GASTOS!$AB$3:$AB$548=F$71)*(GASTOS!$AE$3:$AE$548=CALCULOS!$A76)*GASTOS!$Z$3:$Z$548) -> 0 | G76: =SUMPRODUCT((GASTOS!$AB$3:$AB$548=G$71)*(GASTOS!$AE$3:$AE$548=CALCULOS!$A76)*GASTOS!$Z$3:$Z$548) -> 516.29 | H76: =SUMPRODUCT((GASTOS!$AB$3:$AB$548=H$71)*(GASTOS!$AE$3:$AE$548=CALCULOS!$A76)*GASTOS!$Z$3:$Z$548) -> 710.81 | I76: =SUMPRODUCT((GASTOS!$AB$3:$AB$548=I$71)*(GASTOS!$AE$3:$AE$548=CALCULOS!$A76)*GASTOS!$Z$3:$Z$548) -> 1067.22 | J76: =SUMPRODUCT((GASTOS!$AB$3:$AB$548=J$71)*(GASTOS!$AE$3:$AE$548=CALCULOS!$A76)*GASTOS!$Z$3:$Z$548) -> 940.3 | K76: =SUMPRODUCT((GASTOS!$AB$3:$AB$548=K$71)*(GASTOS!$AE$3:$AE$548=CALCULOS!$A76)*GASTOS!$Z$3:$Z$548) -> 51.89 | L76: =SUMPRODUCT((GASTOS!$AB$3:$AB$548=L$71)*(GASTOS!$AE$3:$AE$548=CALCULOS!$A76)*GASTOS!$Z$3:$Z$548) -> 120.66 | M76: =SUMPRODUCT((GASTOS!$AB$3:$AB$548=M$71)*(GASTOS!$AE$3:$AE$548=CALCULOS!$A76)*GASTOS!$Z$3:$Z$548) -> 122.83 | N76: =SUMPRODUCT((GASTOS!$AB$3:$AB$548=N$71)*(GASTOS!$AE$3:$AE$548=CALCULOS!$A76)*GASTOS!$Z$3:$Z$548) -> 122.83 | O76: =SUMPRODUCT((GASTOS!$AE$3:$AE$548=CALCULOS!$A76)*GASTOS!$Z$3:$Z$548) -> 11228.2 | P76: -11228.2
A77: 6 | B77: =SUMPRODUCT((INGRESOS!$P$2:$P$471=$A77)*(INGRESOS!$G$2:$G$471='DATOS FISCALES'!$B$12)*INGRESOS!$F$2:$F$471) -> 1750 | C77: =SUMPRODUCT((INGRESOS!$P$2:$P$471=$A77)*(INGRESOS!$G$2:$G$471='DATOS FISCALES'!$B$12)*INGRESOS!$I$2:$I$471) -> 367.5 | D77: =SUMPRODUCT((GASTOS!$AB$3:$AB$548=D$71)*(GASTOS!$AE$3:$AE$548=CALCULOS!$A77)*GASTOS!$Z$3:$Z$548) -> 3216.66 | E77: =SUMPRODUCT((GASTOS!$AB$3:$AB$548=E$71)*(GASTOS!$AE$3:$AE$548=CALCULOS!$A77)*GASTOS!$Z$3:$Z$548) -> 909.69 | F77: =SUMPRODUCT((GASTOS!$AB$3:$AB$548=F$71)*(GASTOS!$AE$3:$AE$548=CALCULOS!$A77)*GASTOS!$Z$3:$Z$548) -> 0 | G77: =SUMPRODUCT((GASTOS!$AB$3:$AB$548=G$71)*(GASTOS!$AE$3:$AE$548=CALCULOS!$A77)*GASTOS!$Z$3:$Z$548) -> 661.81 | H77: =SUMPRODUCT((GASTOS!$AB$3:$AB$548=H$71)*(GASTOS!$AE$3:$AE$548=CALCULOS!$A77)*GASTOS!$Z$3:$Z$548) -> 710.81 | I77: =SUMPRODUCT((GASTOS!$AB$3:$AB$548=I$71)*(GASTOS!$AE$3:$AE$548=CALCULOS!$A77)*GASTOS!$Z$3:$Z$548) -> 14.99 | J77: =SUMPRODUCT((GASTOS!$AB$3:$AB$548=J$71)*(GASTOS!$AE$3:$AE$548=CALCULOS!$A77)*GASTOS!$Z$3:$Z$548) -> 400 | K77: =SUMPRODUCT((GASTOS!$AB$3:$AB$548=K$71)*(GASTOS!$AE$3:$AE$548=CALCULOS!$A77)*GASTOS!$Z$3:$Z$548) -> 51.89 | L77: =SUMPRODUCT((GASTOS!$AB$3:$AB$548=L$71)*(GASTOS!$AE$3:$AE$548=CALCULOS!$A77)*GASTOS!$Z$3:$Z$548) -> 120.66 | M77: =SUMPRODUCT((GASTOS!$AB$3:$AB$548=M$71)*(GASTOS!$AE$3:$AE$548=CALCULOS!$A77)*GASTOS!$Z$3:$Z$548) -> 122.83 | N77: =SUMPRODUCT((GASTOS!$AB$3:$AB$548=N$71)*(GASTOS!$AE$3:$AE$548=CALCULOS!$A77)*GASTOS!$Z$3:$Z$548) -> 122.83 | O77: =SUMPRODUCT((GASTOS!$AE$3:$AE$548=CALCULOS!$A77)*GASTOS!$Z$3:$Z$548) -> 6209.34 | P77: -4459.34
A78: 7 | B78: =SUMPRODUCT((INGRESOS!$P$2:$P$471=$A78)*(INGRESOS!$G$2:$G$471='DATOS FISCALES'!$B$12)*INGRESOS!$F$2:$F$471) -> 0 | C78: =SUMPRODUCT((INGRESOS!$P$2:$P$471=$A78)*(INGRESOS!$G$2:$G$471='DATOS FISCALES'!$B$12)*INGRESOS!$I$2:$I$471) -> 0 | D78: =SUMPRODUCT((GASTOS!$AB$3:$AB$548=D$71)*(GASTOS!$AE$3:$AE$548=CALCULOS!$A78)*GASTOS!$Z$3:$Z$548) -> 2277.25 | E78: =SUMPRODUCT((GASTOS!$AB$3:$AB$548=E$71)*(GASTOS!$AE$3:$AE$548=CALCULOS!$A78)*GASTOS!$Z$3:$Z$548) -> 640.02 | F78: =SUMPRODUCT((GASTOS!$AB$3:$AB$548=F$71)*(GASTOS!$AE$3:$AE$548=CALCULOS!$A78)*GASTOS!$Z$3:$Z$548) -> 94.34 | G78: =SUMPRODUCT((GASTOS!$AB$3:$AB$548=G$71)*(GASTOS!$AE$3:$AE$548=CALCULOS!$A78)*GASTOS!$Z$3:$Z$548) -> 1304.2 | H78: =SUMPRODUCT((GASTOS!$AB$3:$AB$548=H$71)*(GASTOS!$AE$3:$AE$548=CALCULOS!$A78)*GASTOS!$Z$3:$Z$548) -> 710.81 | I78: =SUMPRODUCT((GASTOS!$AB$3:$AB$548=I$71)*(GASTOS!$AE$3:$AE$548=CALCULOS!$A78)*GASTOS!$Z$3:$Z$548) -> 550 | J78: =SUMPRODUCT((GASTOS!$AB$3:$AB$548=J$71)*(GASTOS!$AE$3:$AE$548=CALCULOS!$A78)*GASTOS!$Z$3:$Z$548) -> 240.01 | K78: =SUMPRODUCT((GASTOS!$AB$3:$AB$548=K$71)*(GASTOS!$AE$3:$AE$548=CALCULOS!$A78)*GASTOS!$Z$3:$Z$548) -> 306.41 | L78: =SUMPRODUCT((GASTOS!$AB$3:$AB$548=L$71)*(GASTOS!$AE$3:$AE$548=CALCULOS!$A78)*GASTOS!$Z$3:$Z$548) -> 120.66 | M78: =SUMPRODUCT((GASTOS!$AB$3:$AB$548=M$71)*(GASTOS!$AE$3:$AE$548=CALCULOS!$A78)*GASTOS!$Z$3:$Z$548) -> 122.83 | N78: =SUMPRODUCT((GASTOS!$AB$3:$AB$548=N$71)*(GASTOS!$AE$3:$AE$548=CALCULOS!$A78)*GASTOS!$Z$3:$Z$548) -> 122.83 | O78: =SUMPRODUCT((GASTOS!$AE$3:$AE$548=CALCULOS!$A78)*GASTOS!$Z$3:$Z$548) -> 6366.53 | P78: -6366.53
A79: 8 | B79: =SUMPRODUCT((INGRESOS!$P$2:$P$471=$A79)*(INGRESOS!$G$2:$G$471='DATOS FISCALES'!$B$12)*INGRESOS!$F$2:$F$471) -> 2800 | C79: =SUMPRODUCT((INGRESOS!$P$2:$P$471=$A79)*(INGRESOS!$G$2:$G$471='DATOS FISCALES'!$B$12)*INGRESOS!$I$2:$I$471) -> 588 | D79: =SUMPRODUCT((GASTOS!$AB$3:$AB$548=D$71)*(GASTOS!$AE$3:$AE$548=CALCULOS!$A79)*GASTOS!$Z$3:$Z$548) -> 3797.67 | E79: =SUMPRODUCT((GASTOS!$AB$3:$AB$548=E$71)*(GASTOS!$AE$3:$AE$548=CALCULOS!$A79)*GASTOS!$Z$3:$Z$548) -> 727.74 | F79: =SUMPRODUCT((GASTOS!$AB$3:$AB$548=F$71)*(GASTOS!$AE$3:$AE$548=CALCULOS!$A79)*GASTOS!$Z$3:$Z$548) -> 0 | G79: =SUMPRODUCT((GASTOS!$AB$3:$AB$548=G$71)*(GASTOS!$AE$3:$AE$548=CALCULOS!$A79)*GASTOS!$Z$3:$Z$548) -> 442.86 | H79: =SUMPRODUCT((GASTOS!$AB$3:$AB$548=H$71)*(GASTOS!$AE$3:$AE$548=CALCULOS!$A79)*GASTOS!$Z$3:$Z$548) -> 710.81 | I79: =SUMPRODUCT((GASTOS!$AB$3:$AB$548=I$71)*(GASTOS!$AE$3:$AE$548=CALCULOS!$A79)*GASTOS!$Z$3:$Z$548) -> 0 | J79: =SUMPRODUCT((GASTOS!$AB$3:$AB$548=J$71)*(GASTOS!$AE$3:$AE$548=CALCULOS!$A79)*GASTOS!$Z$3:$Z$548) -> 747.45 | K79: =SUMPRODUCT((GASTOS!$AB$3:$AB$548=K$71)*(GASTOS!$AE$3:$AE$548=CALCULOS!$A79)*GASTOS!$Z$3:$Z$548) -> 269.32 | L79: =SUMPRODUCT((GASTOS!$AB$3:$AB$548=L$71)*(GASTOS!$AE$3:$AE$548=CALCULOS!$A79)*GASTOS!$Z$3:$Z$548) -> 120.66 | M79: =SUMPRODUCT((GASTOS!$AB$3:$AB$548=M$71)*(GASTOS!$AE$3:$AE$548=CALCULOS!$A79)*GASTOS!$Z$3:$Z$548) -> 122.83 | N79: =SUMPRODUCT((GASTOS!$AB$3:$AB$548=N$71)*(GASTOS!$AE$3:$AE$548=CALCULOS!$A79)*GASTOS!$Z$3:$Z$548) -> 122.83 | O79: =SUMPRODUCT((GASTOS!$AE$3:$AE$548=CALCULOS!$A79)*GASTOS!$Z$3:$Z$548) -> 6939.34 | P79: -4139.34
A80: 9 | B80: =SUMPRODUCT((INGRESOS!$P$2:$P$471=$A80)*(INGRESOS!$G$2:$G$471='DATOS FISCALES'!$B$12)*INGRESOS!$F$2:$F$471) -> 3130 | C80: =SUMPRODUCT((INGRESOS!$P$2:$P$471=$A80)*(INGRESOS!$G$2:$G$471='DATOS FISCALES'!$B$12)*INGRESOS!$I$2:$I$471) -> 657.3 | D80: =SUMPRODUCT((GASTOS!$AB$3:$AB$548=D$71)*(GASTOS!$AE$3:$AE$548=CALCULOS!$A80)*GASTOS!$Z$3:$Z$548) -> 791.52 | E80: =SUMPRODUCT((GASTOS!$AB$3:$AB$548=E$71)*(GASTOS!$AE$3:$AE$548=CALCULOS!$A80)*GASTOS!$Z$3:$Z$548) -> 62.71 | F80: =SUMPRODUCT((GASTOS!$AB$3:$AB$548=F$71)*(GASTOS!$AE$3:$AE$548=CALCULOS!$A80)*GASTOS!$Z$3:$Z$548) -> 0 | G80: =SUMPRODUCT((GASTOS!$AB$3:$AB$548=G$71)*(GASTOS!$AE$3:$AE$548=CALCULOS!$A80)*GASTOS!$Z$3:$Z$548) -> 474.24 | H80: =SUMPRODUCT((GASTOS!$AB$3:$AB$548=H$71)*(GASTOS!$AE$3:$AE$548=CALCULOS!$A80)*GASTOS!$Z$3:$Z$548) -> 0 | I80: =SUMPRODUCT((GASTOS!$AB$3:$AB$548=I$71)*(GASTOS!$AE$3:$AE$548=CALCULOS!$A80)*GASTOS!$Z$3:$Z$548) -> 0 | J80: =SUMPRODUCT((GASTOS!$AB$3:$AB$548=J$71)*(GASTOS!$AE$3:$AE$548=CALCULOS!$A80)*GASTOS!$Z$3:$Z$548) -> 318.9 | K80: =SUMPRODUCT((GASTOS!$AB$3:$AB$548=K$71)*(GASTOS!$AE$3:$AE$548=CALCULOS!$A80)*GASTOS!$Z$3:$Z$548) -> 0 | L80: =SUMPRODUCT((GASTOS!$AB$3:$AB$548=L$71)*(GASTOS!$AE$3:$AE$548=CALCULOS!$A80)*GASTOS!$Z$3:$Z$548) -> 0 | M80: =SUMPRODUCT((GASTOS!$AB$3:$AB$548=M$71)*(GASTOS!$AE$3:$AE$548=CALCULOS!$A80)*GASTOS!$Z$3:$Z$548) -> 0 | N80: =SUMPRODUCT((GASTOS!$AB$3:$AB$548=N$71)*(GASTOS!$AE$3:$AE$548=CALCULOS!$A80)*GASTOS!$Z$3:$Z$548) -> 0 | O80: =SUMPRODUCT((GASTOS!$AE$3:$AE$548=CALCULOS!$A80)*GASTOS!$Z$3:$Z$548) -> 1647.37 | P80: 1482.63
A81: 10 | B81: =SUMPRODUCT((INGRESOS!$P$2:$P$471=$A81)*(INGRESOS!$G$2:$G$471='DATOS FISCALES'!$B$12)*INGRESOS!$F$2:$F$471) -> 5807 | C81: =SUMPRODUCT((INGRESOS!$P$2:$P$471=$A81)*(INGRESOS!$G$2:$G$471='DATOS FISCALES'!$B$12)*INGRESOS!$I$2:$I$471) -> 1219.47 | D81: =SUMPRODUCT((GASTOS!$AB$3:$AB$548=D$71)*(GASTOS!$AE$3:$AE$548=CALCULOS!$A81)*GASTOS!$Z$3:$Z$548) -> 3987.52 | E81: =SUMPRODUCT((GASTOS!$AB$3:$AB$548=E$71)*(GASTOS!$AE$3:$AE$548=CALCULOS!$A81)*GASTOS!$Z$3:$Z$548) -> 1163.77 | F81: =SUMPRODUCT((GASTOS!$AB$3:$AB$548=F$71)*(GASTOS!$AE$3:$AE$548=CALCULOS!$A81)*GASTOS!$Z$3:$Z$548) -> 0 | G81: =SUMPRODUCT((GASTOS!$AB$3:$AB$548=G$71)*(GASTOS!$AE$3:$AE$548=CALCULOS!$A81)*GASTOS!$Z$3:$Z$548) -> 2343.35 | H81: =SUMPRODUCT((GASTOS!$AB$3:$AB$548=H$71)*(GASTOS!$AE$3:$AE$548=CALCULOS!$A81)*GASTOS!$Z$3:$Z$548) -> 711 | I81: =SUMPRODUCT((GASTOS!$AB$3:$AB$548=I$71)*(GASTOS!$AE$3:$AE$548=CALCULOS!$A81)*GASTOS!$Z$3:$Z$548) -> 0 | J81: =SUMPRODUCT((GASTOS!$AB$3:$AB$548=J$71)*(GASTOS!$AE$3:$AE$548=CALCULOS!$A81)*GASTOS!$Z$3:$Z$548) -> 1051.8 | K81: =SUMPRODUCT((GASTOS!$AB$3:$AB$548=K$71)*(GASTOS!$AE$3:$AE$548=CALCULOS!$A81)*GASTOS!$Z$3:$Z$548) -> 45 | L81: =SUMPRODUCT((GASTOS!$AB$3:$AB$548=L$71)*(GASTOS!$AE$3:$AE$548=CALCULOS!$A81)*GASTOS!$Z$3:$Z$548) -> 0 | M81: =SUMPRODUCT((GASTOS!$AB$3:$AB$548=M$71)*(GASTOS!$AE$3:$AE$548=CALCULOS!$A81)*GASTOS!$Z$3:$Z$548) -> 122.83 | N81: =SUMPRODUCT((GASTOS!$AB$3:$AB$548=N$71)*(GASTOS!$AE$3:$AE$548=CALCULOS!$A81)*GASTOS!$Z$3:$Z$548) -> 122.83 | O81: =SUMPRODUCT((GASTOS!$AE$3:$AE$548=CALCULOS!$A81)*GASTOS!$Z$3:$Z$548) -> 10282.8 | P81: -4475.8
A82: 11 | B82: =SUMPRODUCT((INGRESOS!$P$2:$P$471=$A82)*(INGRESOS!$G$2:$G$471='DATOS FISCALES'!$B$12)*INGRESOS!$F$2:$F$471) -> 0 | C82: =SUMPRODUCT((INGRESOS!$P$2:$P$471=$A82)*(INGRESOS!$G$2:$G$471='DATOS FISCALES'!$B$12)*INGRESOS!$I$2:$I$471) -> 0 | D82: =SUMPRODUCT((GASTOS!$AB$3:$AB$548=D$71)*(GASTOS!$AE$3:$AE$548=CALCULOS!$A82)*GASTOS!$Z$3:$Z$548) -> 98.14 | E82: =SUMPRODUCT((GASTOS!$AB$3:$AB$548=E$71)*(GASTOS!$AE$3:$AE$548=CALCULOS!$A82)*GASTOS!$Z$3:$Z$548) -> 396.35 | F82: =SUMPRODUCT((GASTOS!$AB$3:$AB$548=F$71)*(GASTOS!$AE$3:$AE$548=CALCULOS!$A82)*GASTOS!$Z$3:$Z$548) -> 0 | G82: =SUMPRODUCT((GASTOS!$AB$3:$AB$548=G$71)*(GASTOS!$AE$3:$AE$548=CALCULOS!$A82)*GASTOS!$Z$3:$Z$548) -> 125.61 | H82: =SUMPRODUCT((GASTOS!$AB$3:$AB$548=H$71)*(GASTOS!$AE$3:$AE$548=CALCULOS!$A82)*GASTOS!$Z$3:$Z$548) -> 710.81 | I82: =SUMPRODUCT((GASTOS!$AB$3:$AB$548=I$71)*(GASTOS!$AE$3:$AE$548=CALCULOS!$A82)*GASTOS!$Z$3:$Z$548) -> 0 | J82: =SUMPRODUCT((GASTOS!$AB$3:$AB$548=J$71)*(GASTOS!$AE$3:$AE$548=CALCULOS!$A82)*GASTOS!$Z$3:$Z$548) -> 0 | K82: =SUMPRODUCT((GASTOS!$AB$3:$AB$548=K$71)*(GASTOS!$AE$3:$AE$548=CALCULOS!$A82)*GASTOS!$Z$3:$Z$548) -> 45 | L82: =SUMPRODUCT((GASTOS!$AB$3:$AB$548=L$71)*(GASTOS!$AE$3:$AE$548=CALCULOS!$A82)*GASTOS!$Z$3:$Z$548) -> 120.66 | M82: =SUMPRODUCT((GASTOS!$AB$3:$AB$548=M$71)*(GASTOS!$AE$3:$AE$548=CALCULOS!$A82)*GASTOS!$Z$3:$Z$548) -> 0 | N82: =SUMPRODUCT((GASTOS!$AB$3:$AB$548=N$71)*(GASTOS!$AE$3:$AE$548=CALCULOS!$A82)*GASTOS!$Z$3:$Z$548) -> 0 | O82: =SUMPRODUCT((GASTOS!$AE$3:$AE$548=CALCULOS!$A82)*GASTOS!$Z$3:$Z$548) -> 4690.48 | P82: -4690.48
A83: 12 | B83: =SUMPRODUCT((INGRESOS!$P$2:$P$471=$A83)*(INGRESOS!$G$2:$G$471='DATOS FISCALES'!$B$12)*INGRESOS!$F$2:$F$471) -> 3050 | C83: =SUMPRODUCT((INGRESOS!$P$2:$P$471=$A83)*(INGRESOS!$G$2:$G$471='DATOS FISCALES'!$B$12)*INGRESOS!$I$2:$I$471) -> 640.5 | D83: =SUMPRODUCT((GASTOS!$AB$3:$AB$548=D$71)*(GASTOS!$AE$3:$AE$548=CALCULOS!$A83)*GASTOS!$Z$3:$Z$548) -> 118.35 | E83: =SUMPRODUCT((GASTOS!$AB$3:$AB$548=E$71)*(GASTOS!$AE$3:$AE$548=CALCULOS!$A83)*GASTOS!$Z$3:$Z$548) -> 214.04 | F83: =SUMPRODUCT((GASTOS!$AB$3:$AB$548=F$71)*(GASTOS!$AE$3:$AE$548=CALCULOS!$A83)*GASTOS!$Z$3:$Z$548) -> 0 | G83: =SUMPRODUCT((GASTOS!$AB$3:$AB$548=G$71)*(GASTOS!$AE$3:$AE$548=CALCULOS!$A83)*GASTOS!$Z$3:$Z$548) -> 109.4 | H83: =SUMPRODUCT((GASTOS!$AB$3:$AB$548=H$71)*(GASTOS!$AE$3:$AE$548=CALCULOS!$A83)*GASTOS!$Z$3:$Z$548) -> 0 | I83: =SUMPRODUCT((GASTOS!$AB$3:$AB$548=I$71)*(GASTOS!$AE$3:$AE$548=CALCULOS!$A83)*GASTOS!$Z$3:$Z$548) -> 0 | J83: =SUMPRODUCT((GASTOS!$AB$3:$AB$548=J$71)*(GASTOS!$AE$3:$AE$548=CALCULOS!$A83)*GASTOS!$Z$3:$Z$548) -> 0 | K83: =SUMPRODUCT((GASTOS!$AB$3:$AB$548=K$71)*(GASTOS!$AE$3:$AE$548=CALCULOS!$A83)*GASTOS!$Z$3:$Z$548) -> 0 | L83: =SUMPRODUCT((GASTOS!$AB$3:$AB$548=L$71)*(GASTOS!$AE$3:$AE$548=CALCULOS!$A83)*GASTOS!$Z$3:$Z$548) -> 0 | M83: =SUMPRODUCT((GASTOS!$AB$3:$AB$548=M$71)*(GASTOS!$AE$3:$AE$548=CALCULOS!$A83)*GASTOS!$Z$3:$Z$548) -> 0 | N83: =SUMPRODUCT((GASTOS!$AB$3:$AB$548=N$71)*(GASTOS!$AE$3:$AE$548=CALCULOS!$A83)*GASTOS!$Z$3:$Z$548) -> 0 | O83: =SUMPRODUCT((GASTOS!$AE$3:$AE$548=CALCULOS!$A83)*GASTOS!$Z$3:$Z$548) -> 441.79 | P83: 2608.21
B85: =SUM(B72:B84) -> 16537 | D85: =SUM(D72:D83) -> 33900.74 | E85: =SUM(E72:E83) -> 8950.46 | F85: 311.35 | G85: 9786.17 | H85: 9077.14 | I85: 4747.85 | J85: 4932.77 | K85: 1487.85 | L85: 1200.07 | M85: 1125.73 | N85: =SUM(N72:N83) -> 1125.73 | O85: =SUM(O72:O84) -> 80163.58 | P85: =SUM(P72:P83) -> -63626.58
A112: CÁLCULOS TRIMESTRALES PARA EL MODELO 303: IVA
A114: TRIMESTRE | B114: IVA Devengado | N114: Total Base IVA Deducible [22] | O114: Total Cuota IVA Deducible [23] | P114: Casilla [38] Diferencia | Q114: Casilla [41] Cuotas a compensar trimestes anteriores | R114: Casilla [46] Resultado (40-41+45) | S114: Casilla [47] | T114: Casilla [48] Resultado Autoliquidac
B115: ="Bases al Tipo " & 'DATOS FISCALES'!B114 &"%" -> Bases al Tipo % | C115: ="Cuotas IVA al "& 'DATOS FISCALES'!B114 & "%" -> Cuotas IVA al % | D115: ="Bases sujetas R.E. " & 'DATOS FISCALES'!D114 & "%" -> Bases sujetas R.E. ORGIVA% | E115: ="Cuotas R.E. " & 'DATOS FISCALES'!D114 & "%" -> Cuotas R.E. ORGIVA% | F115: ="Bases al Tipo " & 'DATOS FISCALES'!B115 & "%" -> Bases al Tipo % | G115: ="Cuotas IVA al " & 'DATOS FISCALES'!B115 & "%" -> Cuotas IVA al % | H115: ="Bases sujetas R.E. " & 'DATOS FISCALES'!D115 & "%" -> Bases sujetas R.E. GRANADA% | I115: ="Cuotas R.E. " & 'DATOS FISCALES'!D115 & "%" -> Cuotas R.E. GRANADA% | J115: ="Bases al Tipo " & 'DATOS FISCALES'!B116 & "%" -> Bases al Tipo % | K115: ="Cuotas IVA al " & 'DATOS FISCALES'!B116 & "%" -> Cuotas IVA al % | L115: ="Bases sujetas R.E. " & 'DATOS FISCALES'!D116 & "%" -> Bases sujetas R.E. GRANADA-ALMANJAYAR% | M115: ="Cuotas R.E. " & 'DATOS FISCALES'!D116 & "%" -> Cuotas R.E. GRANADA-ALMANJAYAR%
A116: 1T | B116: =SUMPRODUCT((INGRESOS!$N$2:$N$471=1)*(INGRESOS!$G$2:$G$471='DATOS FISCALES'!$B$12)*(INGRESOS!$Q$2:$Q$471="TRAZIA")*INGRESOS!$F$2:$F$471) -> 0 | C116: =SUMPRODUCT((INGRESOS!$N$2:$N$471=1)*(INGRESOS!$G$2:$G$471='DATOS FISCALES'!$B$12)*INGRESOS!$I$2:$I$471) -> 0 | D116: =SUMPRODUCT((INGRESOS!$N$2:$N$471=1)*(INGRESOS!$H$2:$H$471='DATOS FISCALES'!$D$12)*INGRESOS!$F$2:$F$471) -> 0 | E116: =SUMPRODUCT((INGRESOS!$N$2:$N$471=1)*(INGRESOS!$H$2:$H$471='DATOS FISCALES'!$D$12)*INGRESOS!$J$2:$J$471) -> 0 | F116: =SUMPRODUCT((INGRESOS!$N$2:$N$471=1)*(INGRESOS!$G$2:$G$471='DATOS FISCALES'!$B$13)*INGRESOS!$F$2:$F$471) -> 0 | G116: =SUMPRODUCT((INGRESOS!$N$2:$N$471=1)*(INGRESOS!$G$2:$G$471='DATOS FISCALES'!$B$13)*INGRESOS!$I$2:$I$471) -> 0 | H116: =SUMPRODUCT((INGRESOS!$N$2:$N$471=1)*(INGRESOS!$H$2:$H$471='DATOS FISCALES'!$D$13)*INGRESOS!$F$2:$F$471) -> 0 | I116: =SUMPRODUCT((INGRESOS!$N$2:$N$471=1)*(INGRESOS!$H$2:$H$471='DATOS FISCALES'!$D$13)*INGRESOS!$J$2:$J$471) -> 0 | J116: =SUMPRODUCT((INGRESOS!$N$2:$N$471=1)*(INGRESOS!$G$2:$G$471='DATOS FISCALES'!$B$14)*INGRESOS!$F$2:$F$471) -> 0 | K116: =SUMPRODUCT((INGRESOS!$N$2:$N$471=1)*(INGRESOS!$G$2:$G$471='DATOS FISCALES'!$B$14)*INGRESOS!$I$2:$I$471) -> 0 | L116: =SUMPRODUCT((INGRESOS!$N$2:$N$471=1)*(INGRESOS!$H$2:$H$471='DATOS FISCALES'!$D$14)*INGRESOS!$F$2:$F$471) -> 0 | M116: =SUMPRODUCT((INGRESOS!$N$2:$N$471=1)*(INGRESOS!$H$2:$H$471='DATOS FISCALES'!$D$14)*INGRESOS!$J$2:$J$471) -> 0 | N116: =SUMIF(GASTOS!AC104:AC650,1,GASTOS!V104:V650) -> 345.08 | O116: =SUMPRODUCT((GASTOS!$G$3:$G$548=1)*(GASTOS!$AC$3:$AC$548=1)*GASTOS!$X$3:$X$548) -> 232 | P116: =(C116+G116+K116)+(E116+I116+M116)-O116 -> -232 | R116: =P116-Q116 -> -232 | T116: =R116-S116 -> -232
A117: 2T | B117: =SUMPRODUCT((INGRESOS!$N$2:$N$471=2)*(INGRESOS!$G$2:$G$471='DATOS FISCALES'!$B$12)*(INGRESOS!$Q$2:$Q$471="TRAZIA")*INGRESOS!$F$2:$F$471) -> 1750 | C117: =SUMPRODUCT((INGRESOS!$N$2:$N$471=2)*(INGRESOS!$G$2:$G$471='DATOS FISCALES'!$B$12)*INGRESOS!$I$2:$I$471) -> 367.5 | D117: =SUMPRODUCT((INGRESOS!$N$2:$N$471=2)*(INGRESOS!$H$2:$H$471='DATOS FISCALES'!$D$12)*INGRESOS!$F$2:$F$471) -> 0 | E117: =SUMPRODUCT((INGRESOS!$N$2:$N$471=2)*(INGRESOS!$H$2:$H$471='DATOS FISCALES'!$D$12)*INGRESOS!$J$2:$J$471) -> 0 | F117: =SUMPRODUCT((INGRESOS!$N$2:$N$471=2)*(INGRESOS!$G$2:$G$471='DATOS FISCALES'!$B$13)*INGRESOS!$F$2:$F$471) -> 0 | G117: =SUMPRODUCT((INGRESOS!$N$2:$N$471=2)*(INGRESOS!$G$2:$G$471='DATOS FISCALES'!$B$13)*INGRESOS!$I$2:$I$471) -> 0 | H117: =SUMPRODUCT((INGRESOS!$N$2:$N$471=2)*(INGRESOS!$H$2:$H$471='DATOS FISCALES'!$D$13)*INGRESOS!$F$2:$F$471) -> 0 | I117: =SUMPRODUCT((INGRESOS!$N$2:$N$471=2)*(INGRESOS!$H$2:$H$471='DATOS FISCALES'!$D$13)*INGRESOS!$J$2:$J$471) -> 0 | J117: =SUMPRODUCT((INGRESOS!$N$2:$N$471=2)*(INGRESOS!$G$2:$G$471='DATOS FISCALES'!$B$14)*INGRESOS!$F$2:$F$471) -> 0 | K117: =SUMPRODUCT((INGRESOS!$N$2:$N$471=2)*(INGRESOS!$G$2:$G$471='DATOS FISCALES'!$B$14)*INGRESOS!$I$2:$I$471) -> 0 | L117: =SUMPRODUCT((INGRESOS!$N$2:$N$471=2)*(INGRESOS!$H$2:$H$471='DATOS FISCALES'!$D$14)*INGRESOS!$F$2:$F$471) -> 0 | M117: =SUMPRODUCT((INGRESOS!$N$2:$N$471=2)*(INGRESOS!$H$2:$H$471='DATOS FISCALES'!$D$14)*INGRESOS!$J$2:$J$471) -> 0 | N117: =SUMIF(GASTOS!AC104:AC651,2,GASTOS!V104:V651) -> 1034.26 | O117: =SUMPRODUCT((GASTOS!$G$3:$G$548=1)*(GASTOS!$AC$3:$AC$548=2)*GASTOS!$X$3:$X$548) -> 217.21 | P117: =(C117+G117+K117)+(E117+I117+M117)-O117 -> 150.29 | Q117: =IF(R116<0,ABS(R116),0) -> 232 | R117: =P117-Q117 -> -81.71 | T117: =R117-S117 -> -81.71
A118: 3T | B118: =SUMPRODUCT((INGRESOS!$N$2:$N$471=3)*(INGRESOS!$G$2:$G$471='DATOS FISCALES'!$B$12)*(INGRESOS!$Q$2:$Q$471="TRAZIA")*INGRESOS!$F$2:$F$471) -> 5930 | C118: =SUMPRODUCT((INGRESOS!$N$2:$N$471=3)*(INGRESOS!$G$2:$G$471='DATOS FISCALES'!$B$12)*INGRESOS!$I$2:$I$471) -> 1245.3 | D118: =SUMPRODUCT((INGRESOS!$N$2:$N$471=3)*(INGRESOS!$H$2:$H$471='DATOS FISCALES'!$D$12)*INGRESOS!$F$2:$F$471) -> 0 | E118: =SUMPRODUCT((INGRESOS!$N$2:$N$471=3)*(INGRESOS!$H$2:$H$471='DATOS FISCALES'!$D$12)*INGRESOS!$J$2:$J$471) -> 0 | F118: =SUMPRODUCT((INGRESOS!$N$2:$N$471=3)*(INGRESOS!$G$2:$G$471='DATOS FISCALES'!$B$13)*INGRESOS!$F$2:$F$471) -> 0 | G118: =SUMPRODUCT((INGRESOS!$N$2:$N$471=3)*(INGRESOS!$G$2:$G$471='DATOS FISCALES'!$B$13)*INGRESOS!$I$2:$I$471) -> 0 | H118: =SUMPRODUCT((INGRESOS!$N$2:$N$471=3)*(INGRESOS!$H$2:$H$471='DATOS FISCALES'!$D$13)*INGRESOS!$F$2:$F$471) -> 0 | I118: =SUMPRODUCT((INGRESOS!$N$2:$N$471=3)*(INGRESOS!$H$2:$H$471='DATOS FISCALES'!$D$13)*INGRESOS!$J$2:$J$471) -> 0 | J118: =SUMPRODUCT((INGRESOS!$N$2:$N$471=3)*(INGRESOS!$G$2:$G$471='DATOS FISCALES'!$B$14)*INGRESOS!$F$2:$F$471) -> 0 | K118: =SUMPRODUCT((INGRESOS!$N$2:$N$471=3)*(INGRESOS!$G$2:$G$471='DATOS FISCALES'!$B$14)*INGRESOS!$I$2:$I$471) -> 0 | L118: =SUMPRODUCT((INGRESOS!$N$2:$N$471=3)*(INGRESOS!$H$2:$H$471='DATOS FISCALES'!$D$14)*INGRESOS!$F$2:$F$471) -> 0 | M118: =SUMPRODUCT((INGRESOS!$N$2:$N$471=3)*(INGRESOS!$H$2:$H$471='DATOS FISCALES'!$D$14)*INGRESOS!$J$2:$J$471) -> 0 | N118: =SUMPRODUCT((GASTOS!$AC$3:$AC$548=3)*(GASTOS!$W$3:$W$548>0)*GASTOS!$V$3:$V$548) -> 1181.23 | O118: =SUMIF(GASTOS!$AC$3:$AC$548,3,GASTOS!$X$3:$X$548) -> 250.47 | P118: =(C118+G118+K118)+(E118+I118+M118)-O118 -> 994.83 | Q118: =IF(R117<0,ABS(R117),0) -> 81.71 | R118: =P118-Q118 -> 913.12 | T118: =R118-S118 -> 913.12
A119: 4T | B119: =SUMPRODUCT((INGRESOS!$N$2:$N$471=4)*(INGRESOS!$G$2:$G$471='DATOS FISCALES'!$B$12)*(INGRESOS!$Q$2:$Q$471="TRAZIA")*INGRESOS!$F$2:$F$471) -> 8857 | C119: =SUMPRODUCT((INGRESOS!$N$2:$N$471=4)*(INGRESOS!$G$2:$G$471='DATOS FISCALES'!$B$12)*INGRESOS!$I$2:$I$471) -> 1859.97 | D119: =SUMPRODUCT((INGRESOS!$N$2:$N$471=4)*(INGRESOS!$H$2:$H$471='DATOS FISCALES'!$D$12)*INGRESOS!$F$2:$F$471) -> 0 | E119: =SUMPRODUCT((INGRESOS!$N$2:$N$471=4)*(INGRESOS!$H$2:$H$471='DATOS FISCALES'!$D$12)*INGRESOS!$J$2:$J$471) -> 0 | F119: =SUMPRODUCT((INGRESOS!$N$2:$N$471=4)*(INGRESOS!$G$2:$G$471='DATOS FISCALES'!$B$13)*INGRESOS!$F$2:$F$471) -> 0 | G119: =SUMPRODUCT((INGRESOS!$N$2:$N$471=4)*(INGRESOS!$G$2:$G$471='DATOS FISCALES'!$B$13)*INGRESOS!$I$2:$I$471) -> 0 | H119: =SUMPRODUCT((INGRESOS!$N$2:$N$471=4)*(INGRESOS!$H$2:$H$471='DATOS FISCALES'!$D$13)*INGRESOS!$F$2:$F$471) -> 0 | I119: =SUMPRODUCT((INGRESOS!$N$2:$N$471=4)*(INGRESOS!$H$2:$H$471='DATOS FISCALES'!$D$13)*INGRESOS!$J$2:$J$471) -> 0 | J119: =SUMPRODUCT((INGRESOS!$N$2:$N$471=4)*(INGRESOS!$G$2:$G$471='DATOS FISCALES'!$B$14)*INGRESOS!$F$2:$F$471) -> 0 | K119: =SUMPRODUCT((INGRESOS!$N$2:$N$471=4)*(INGRESOS!$G$2:$G$471='DATOS FISCALES'!$B$14)*INGRESOS!$I$2:$I$471) -> 0 | L119: =SUMPRODUCT((INGRESOS!$N$2:$N$471=4)*(INGRESOS!$H$2:$H$471='DATOS FISCALES'!$D$14)*INGRESOS!$F$2:$F$471) -> 0 | M119: =SUMPRODUCT((INGRESOS!$N$2:$N$471=4)*(INGRESOS!$H$2:$H$471='DATOS FISCALES'!$D$14)*INGRESOS!$J$2:$J$471) -> 0 | N119: =SUMPRODUCT((GASTOS!$AC$3:$AC$548=4)*(GASTOS!$W$3:$W$548>0)*GASTOS!$V$3:$V$548) -> 655.88 | O119: =SUMIF(GASTOS!$AC$3:$AC$548,4,GASTOS!$X$3:$X$548) -> 139.82 | P119: =(C119+G119+K119)+(E119+I119+M119)-O119 -> 1720.15 | Q119: =IF(R118<0,ABS(R118),0) -> 0 | R119: =P119-Q119 -> 1720.15 | T119: =R119-S119 -> 1720.15

Sheet MODELO 130
AV1: Mostrar Calculadora de Windows (Ctl+w)
